Workbook

Sheet CCRQM_Report
A1: CCRQM_風險趨勢與組成
V8: 違約情況
B9: 請於下方儲存格輸入您所需要查詢的公司
V10: 時間 | X10: 違約與否(D)
V11: =Raw!B$3 -> 2013-12-31 | X11: =IF(Raw!$B$5<=4,"低度風險",IF(AND(Raw!$B$5>=5,Raw!$B$5<=6),"中度風險",IF(AND(Raw!$B$5>=7,Raw!$B$5<=9),"高度風險","違約"))) -> 中度風險
V12: =Raw!C$3 -> 2014-06-30 | X12: =IF(Raw!$C$5<=4,"低度風險",IF(AND(Raw!$C$5>=5,Raw!$C$5<=6),"中度風險",IF(AND(Raw!$C$5>=7,Raw!$C$5<=9),"高度風險","違約"))) -> 高度風險
V13: =Raw!D$3 -> 2014-12-31 | X13: =IF(Raw!$D$5<=4,"低度風險",IF(AND(Raw!$D$5>=5,Raw!$D$5<=6),"中度風險",IF(AND(Raw!$D$5>=7,Raw!$D$5<=9),"高度風險","違約"))) -> 中度風險
B14: 000002 | V14: =Raw!E$3 -> 2015-06-30 | X14: =IF(Raw!$E$5<=4,"低度風險",IF(AND(Raw!$E$5>=5,Raw!$E$5<=6),"中度風險",IF(AND(Raw!$E$5>=7,Raw!$E$5<=9),"高度風險","違約"))) -> 中度風險
V15: =Raw!F$3 -> 2015-12-31 | X15: =IF(Raw!$F$5<=4,"低度風險",IF(AND(Raw!$F$5>=5,Raw!$F$5<=6),"中度風險",IF(AND(Raw!$F$5>=7,Raw!$F$5<=9),"高度風險","違約"))) -> 中度風險
V16: =Raw!G$3 -> 2016-06-30 | X16: =IF(Raw!$G$5<=4,"低度風險",IF(AND(Raw!$G$5>=5,Raw!$G$5<=6),"中度風險",IF(AND(Raw!$G$5>=7,Raw!$G$5<=9),"高度風險","違約"))) -> 高度風險
V17: =Raw!H$3 -> 2016-12-30 | X17: =IF(Raw!$H$5<=4,"低度風險",IF(AND(Raw!$H$5>=5,Raw!$H$5<=6),"中度風險",IF(AND(Raw!$H$5>=7,Raw!$H$5<=9),"高度風險","違約"))) -> 中度風險
V18: =Raw!I$3 -> 2017-06-30 | X18: =IF(Raw!$I$5<=4,"低度風險",IF(AND(Raw!$I$5>=5,Raw!$I$5<=6),"中度風險",IF(AND(Raw!$I$5>=7,Raw!$I$5<=9),"高度風險","違約"))) -> 高度風險

Sheet Performance
A1: CCRI_獲利能力分析
V8: 違約情況
B9: 請於下方儲存格輸入您所需要查詢的公司
V10: 時間 | X10: 違約與否(D)
V11: =Raw!B$3 -> 2013-12-31 | X11: =IF(Raw!$B$5<=4,"低度風險",IF(AND(Raw!$B$5>=5,Raw!$B$5<=6),"中度風險",IF(AND(Raw!$B$5>=7,Raw!$B$5<=9),"高度風險","違約"))) -> 中度風險
V12: =Raw!C$3 -> 2014-06-30 | X12: =IF(Raw!$C$5<=4,"低度風險",IF(AND(Raw!$C$5>=5,Raw!$C$5<=6),"中度風險",IF(AND(Raw!$C$5>=7,Raw!$C$5<=9),"高度風險","違約"))) -> 高度風險
V13: =Raw!D$3 -> 2014-12-31 | X13: =IF(Raw!$D$5<=4,"低度風險",IF(AND(Raw!$D$5>=5,Raw!$D$5<=6),"中度風險",IF(AND(Raw!$D$5>=7,Raw!$D$5<=9),"高度風險","違約"))) -> 中度風險
B14: 000002 | V14: =Raw!E$3 -> 2015-06-30 | X14: =IF(Raw!$E$5<=4,"低度風險",IF(AND(Raw!$E$5>=5,Raw!$E$5<=6),"中度風險",IF(AND(Raw!$E$5>=7,Raw!$E$5<=9),"高度風險","違約"))) -> 中度風險
V15: =Raw!F$3 -> 2015-12-31 | X15: =IF(Raw!$F$5<=4,"低度風險",IF(AND(Raw!$F$5>=5,Raw!$F$5<=6),"中度風險",IF(AND(Raw!$F$5>=7,Raw!$F$5<=9),"高度風險","違約"))) -> 中度風險
V16: =Raw!G$3 -> 2016-06-30 | X16: =IF(Raw!$G$5<=4,"低度風險",IF(AND(Raw!$G$5>=5,Raw!$G$5<=6),"中度風險",IF(AND(Raw!$G$5>=7,Raw!$G$5<=9),"高度風險","違約"))) -> 高度風險
V17: =Raw!H$3 -> 2016-12-30 | X17: =IF(Raw!$H$5<=4,"低度風險",IF(AND(Raw!$H$5>=5,Raw!$H$5<=6),"中度風險",IF(AND(Raw!$H$5>=7,Raw!$H$5<=9),"高度風險","違約"))) -> 中度風險
V18: =Raw!I$3 -> 2017-06-30 | X18: =IF(Raw!$I$5<=4,"低度風險",IF(AND(Raw!$I$5>=5,Raw!$I$5<=6),"中度風險",IF(AND(Raw!$I$5>=7,Raw!$I$5<=9),"高度風險","違約"))) -> 高度風險

Sheet Liquidity
A1: CCRI_償債能力分析
V8: 違約情況
B9: 請於下方儲存格輸入您所需要查詢的公司
V10: 時間 | X10: 違約與否(D)
V11: =Raw!B$3 -> 2013-12-31 | X11: =IF(Raw!$B$5<=4,"低度風險",IF(AND(Raw!$B$5>=5,Raw!$B$5<=6),"中度風險",IF(AND(Raw!$B$5>=7,Raw!$B$5<=9),"高度風險","違約"))) -> 中度風險
V12: =Raw!C$3 -> 2014-06-30 | X12: =IF(Raw!$C$5<=4,"低度風險",IF(AND(Raw!$C$5>=5,Raw!$C$5<=6),"中度風險",IF(AND(Raw!$C$5>=7,Raw!$C$5<=9),"高度風險","違約"))) -> 高度風險
V13: =Raw!D$3 -> 2014-12-31 | X13: =IF(Raw!$D$5<=4,"低度風險",IF(AND(Raw!$D$5>=5,Raw!$D$5<=6),"中度風險",IF(AND(Raw!$D$5>=7,Raw!$D$5<=9),"高度風險","違約"))) -> 中度風險
B14: 000002 | V14: =Raw!E$3 -> 2015-06-30 | X14: =IF(Raw!$E$5<=4,"低度風險",IF(AND(Raw!$E$5>=5,Raw!$E$5<=6),"中度風險",IF(AND(Raw!$E$5>=7,Raw!$E$5<=9),"高度風險","違約"))) -> 中度風險
V15: =Raw!F$3 -> 2015-12-31 | X15: =IF(Raw!$F$5<=4,"低度風險",IF(AND(Raw!$F$5>=5,Raw!$F$5<=6),"中度風險",IF(AND(Raw!$F$5>=7,Raw!$F$5<=9),"高度風險","違約"))) -> 中度風險
V16: =Raw!G$3 -> 2016-06-30 | X16: =IF(Raw!$G$5<=4,"低度風險",IF(AND(Raw!$G$5>=5,Raw!$G$5<=6),"中度風險",IF(AND(Raw!$G$5>=7,Raw!$G$5<=9),"高度風險","違約"))) -> 高度風險
V17: =Raw!H$3 -> 2016-12-30 | X17: =IF(Raw!$H$5<=4,"低度風險",IF(AND(Raw!$H$5>=5,Raw!$H$5<=6),"中度風險",IF(AND(Raw!$H$5>=7,Raw!$H$5<=9),"高度風險","違約"))) -> 中度風險
V18: =Raw!I$3 -> 2017-06-30 | X18: =IF(Raw!$I$5<=4,"低度風險",IF(AND(Raw!$I$5>=5,Raw!$I$5<=6),"中度風險",IF(AND(Raw!$I$5>=7,Raw!$I$5<=9),"高度風險","違約"))) -> 高度風險

Sheet Corporate Governance
A1: CCRI_公司治理分析
V8: 違約情況
B9: 請於下方儲存格輸入您所需要查詢的公司
V10: 時間 | X10: 違約與否(D)
V11: =Raw!B$3 -> 2013-12-31 | X11: =IF(Raw!$B$5<=4,"低度風險",IF(AND(Raw!$B$5>=5,Raw!$B$5<=6),"中度風險",IF(AND(Raw!$B$5>=7,Raw!$B$5<=9),"高度風險","違約"))) -> 中度風險
V12: =Raw!C$3 -> 2014-06-30 | X12: =IF(Raw!$C$5<=4,"低度風險",IF(AND(Raw!$C$5>=5,Raw!$C$5<=6),"中度風險",IF(AND(Raw!$C$5>=7,Raw!$C$5<=9),"高度風險","違約"))) -> 高度風險
V13: =Raw!D$3 -> 2014-12-31 | X13: =IF(Raw!$D$5<=4,"低度風險",IF(AND(Raw!$D$5>=5,Raw!$D$5<=6),"中度風險",IF(AND(Raw!$D$5>=7,Raw!$D$5<=9),"高度風險","違約"))) -> 中度風險
B14: 000002 | V14: =Raw!E$3 -> 2015-06-30 | X14: =IF(Raw!$E$5<=4,"低度風險",IF(AND(Raw!$E$5>=5,Raw!$E$5<=6),"中度風險",IF(AND(Raw!$E$5>=7,Raw!$E$5<=9),"高度風險","違約"))) -> 中度風險
V15: =Raw!F$3 -> 2015-12-31 | X15: =IF(Raw!$F$5<=4,"低度風險",IF(AND(Raw!$F$5>=5,Raw!$F$5<=6),"中度風險",IF(AND(Raw!$F$5>=7,Raw!$F$5<=9),"高度風險","違約"))) -> 中度風險
V16: =Raw!G$3 -> 2016-06-30 | X16: =IF(Raw!$G$5<=4,"低度風險",IF(AND(Raw!$G$5>=5,Raw!$G$5<=6),"中度風險",IF(AND(Raw!$G$5>=7,Raw!$G$5<=9),"高度風險","違約"))) -> 高度風險
V17: =Raw!H$3 -> 2016-12-30 | X17: =IF(Raw!$H$5<=4,"低度風險",IF(AND(Raw!$H$5>=5,Raw!$H$5<=6),"中度風險",IF(AND(Raw!$H$5>=7,Raw!$H$5<=9),"高度風險","違約"))) -> 中度風險
V18: =Raw!I$3 -> 2017-06-30 | X18: =IF(Raw!$I$5<=4,"低度風險",IF(AND(Raw!$I$5>=5,Raw!$I$5<=6),"中度風險",IF(AND(Raw!$I$5>=7,Raw!$I$5<=9),"高度風險","違約"))) -> 高度風險

Sheet Business Activity
A1: CCRI_企業活動力分析
V8: 違約情況
B9: 請於下方儲存格輸入您所需要查詢的公司
V10: 時間 | X10: 違約與否(D)
V11: =Raw!B$3 -> 2013-12-31 | X11: =IF(Raw!$B$5<=4,"低度風險",IF(AND(Raw!$B$5>=5,Raw!$B$5<=6),"中度風險",IF(AND(Raw!$B$5>=7,Raw!$B$5<=9),"高度風險","違約"))) -> 中度風險
V12: =Raw!C$3 -> 2014-06-30 | X12: =IF(Raw!$C$5<=4,"低度風險",IF(AND(Raw!$C$5>=5,Raw!$C$5<=6),"中度風險",IF(AND(Raw!$C$5>=7,Raw!$C$5<=9),"高度風險","違約"))) -> 高度風險
V13: =Raw!D$3 -> 2014-12-31 | X13: =IF(Raw!$D$5<=4,"低度風險",IF(AND(Raw!$D$5>=5,Raw!$D$5<=6),"中度風險",IF(AND(Raw!$D$5>=7,Raw!$D$5<=9),"高度風險","違約"))) -> 中度風險
B14: 000002 | V14: =Raw!E$3 -> 2015-06-30 | X14: =IF(Raw!$E$5<=4,"低度風險",IF(AND(Raw!$E$5>=5,Raw!$E$5<=6),"中度風險",IF(AND(Raw!$E$5>=7,Raw!$E$5<=9),"高度風險","違約"))) -> 中度風險
V15: =Raw!F$3 -> 2015-12-31 | X15: =IF(Raw!$F$5<=4,"低度風險",IF(AND(Raw!$F$5>=5,Raw!$F$5<=6),"中度風險",IF(AND(Raw!$F$5>=7,Raw!$F$5<=9),"高度風險","違約"))) -> 中度風險
V16: =Raw!G$3 -> 2016-06-30 | X16: =IF(Raw!$G$5<=4,"低度風險",IF(AND(Raw!$G$5>=5,Raw!$G$5<=6),"中度風險",IF(AND(Raw!$G$5>=7,Raw!$G$5<=9),"高度風險","違約"))) -> 高度風險
V17: =Raw!H$3 -> 2016-12-30 | X17: =IF(Raw!$H$5<=4,"低度風險",IF(AND(Raw!$H$5>=5,Raw!$H$5<=6),"中度風險",IF(AND(Raw!$H$5>=7,Raw!$H$5<=9),"高度風險","違約"))) -> 中度風險
V18: =Raw!I$3 -> 2017-06-30 | X18: =IF(Raw!$I$5<=4,"低度風險",IF(AND(Raw!$I$5>=5,Raw!$I$5<=6),"中度風險",IF(AND(Raw!$I$5>=7,Raw!$I$5<=9),"高度風險","違約"))) -> 高度風險

Sheet News
A1: 000002 萬科Ａ
A2: 日期 | B2: 序號 | C2: CCRI-數量模型(資料年月) | D2: 新聞內容 | E2: 事件大分類 | F2: 事件小分類名
A3: 2017-09-06 | B3: N0100001 | C3: 7(2017/06) | D3: 記者調查發現，萬科的資產負債率已創歷史新高，舉債發展的步伐明顯加快；同 | E3: 營運風險上升 | F3: 財務結構惡化
A4: 2017-09-06 | B4: N0100002 | C4: 7(2017/06) | D4: 時，它的流動比率創下1993年以來新低，償還負債能力變弱。 萬科的負債為 | E4: 營運風險上升 | F4: 財務結構惡化
A5: 2017-09-06 | B5: N0100003 | C5: 7(2017/06) | D5: 何攀升，它的資金究竟流向了哪里？ | E5: 營運風險上升 | F5: 財務結構惡化
A6: 2017-09-06 | B6: N0100004 | C6: 7(2017/06) | D6: 上半年中，萬科共獲取新項目79個，總規劃建築面積1559.8萬平方米，權益規 | E6: 營運風險上升 | F6: 財務結構惡化
A7: 2017-09-06 | B7: N0100005 | C7: 7(2017/06) | D7: 劃建築面積983.8萬平方米，權益地價總額約537.9億元，新增項目均價為5467.8 | E7: 營運風險上升 | F7: 財務結構惡化
A8: 2017-09-06 | B8: N0100006 | C8: 7(2017/06) | D8: 元/平方米。 萬科有關方面表示，鑒於房地產融資渠道收緊、核心城市土地 | E8: 營運風險上升 | F8: 財務結構惡化
A9: 2017-09-06 | B9: N0100007 | C9: 7(2017/06) | D9: 資源日益稀缺，資源的獲取方式主要是通過與存量資源所有者合作以及資產包收 | E9: 營運風險上升 | F9: 財務結構惡化
A10: 2017-09-06 | B10: N0100008 | C10: 7(2017/06) | D10: 購。 2017年7月，萬科以551億元巨資接盤廣東國際信託投資公司下屬公司投 | E10: 營運風險上升 | F10: 財務結構惡化
A11: 2017-09-06 | B11: N0100009 | C11: 7(2017/06) | D11: 資權益及相關債權（以下簡稱“廣信資產包”）。 而萬科需在明年2月28日 | E11: 營運風險上升 | F11: 財務結構惡化
A12: 2017-09-06 | B12: N0100010 | C12: 7(2017/06) | D12: 前，分四期現金支付全部款項。 此外，萬科上半年的物流地產業務也新獲取 | E12: 營運風險上升 | F12: 財務結構惡化
A13: 2017-09-06 | B13: N0100011 | C13: 7(2017/06) | D13: 14個項目，合計規劃建築面積為108萬平方米。 算上廣信資產包，萬科上半 | E13: 營運風險上升 | F13: 財務結構惡化
A14: 2017-09-06 | B14: N0100012 | C14: 7(2017/06) | D14: 年拿地金額約1463億元，占簽約銷售金額54%左右，在行業內投入最多。 | E14: 營運風險上升 | F14: 財務結構惡化
A15: 2017-09-06 | B15: N0100013 | C15: 7(2017/06) | D15: 7月以來，萬科先後發行了兩期公司債，均為5年期品種，發行規模分別為30 | E15: 營運風險上升 | F15: 財務結構惡化
A16: 2017-09-06 | B16: N0100014 | C16: 7(2017/06) | D16: 億元和10億元，最終發行的票面利率分別為4.50%和4.54%。 根據萬科公告， | E16: 營運風險上升 | F16: 財務結構惡化
A17: 2017-09-06 | B17: N0100015 | C17: 7(2017/06) | D17: 萬科發行這兩期公司債，原本是打算將扣除發行費用後的募集資金，全部用于償 | E17: 營運風險上升 | F17: 財務結構惡化
A18: 2017-09-06 | B18: N0100016 | C18: 7(2017/06) | D18: 還金融機構貸款，改善債務結構。但是，預計未來一段時間，萬科的利息支出將 | E18: 營運風險上升 | F18: 財務結構惡化
A19: 2017-09-06 | B19: N0100017 | C19: 7(2017/06) | D19: 繼續上升。 | E19: 營運風險上升 | F19: 財務結構惡化

Sheet News(All Firm)
A1: 公司碼 | B1: 日期 | C1: 序號 | D1: CCRI-數量模型(資料年月) | E1: 新聞內容 | F1: 事件大分類 | G1: 事件小分類名
A2: 000038 深大通 | B2: 2017-11-10 | C2: H0200001 | D2: 5(2017/06) | E2: 公司擬通過非公開發行股份購買資產并募集配套資金方式購買潘學清先生、佘煥 | F2: 營運風險上升 | G2: 并購投資進度不如預期
A3: 000038 深大通 | B3: 2017-11-10 | C3: H0200002 | D3: 5(2017/06) | E3: 發先生持有的北京敦和國際影視文化有限公司100%股權及曹黎明先生、董豔女士 | F3: 營運風險上升 | G3: 并購投資進度不如預期
A4: 000038 深大通 | B4: 2017-11-10 | C4: H0200003 | D4: 5(2017/06) | E4: 持有的北京亞群廣告有限公司100%股權。 | F4: 營運風險上升 | G4: 并購投資進度不如預期
A5: 000038 深大通 | B5: 2017-11-10 | C5: H0200004 | D5: 5(2017/06) | E5: 公司擬收購海南龍帆廣告有限公司、北京敦和國際影視文化有限公司、北京亞群 | F5: 營運風險上升 | G5: 并購投資進度不如預期
A6: 000038 深大通 | B6: 2017-11-10 | C6: H0200005 | D6: 5(2017/06) | E6: 廣告有限公司。經過深入的討論協商，公司與海南龍帆廣告有限公司因盡職調查 | F6: 營運風險上升 | G6: 并購投資進度不如預期
A7: 000038 深大通 | B7: 2017-11-10 | C7: H0200006 | D7: 5(2017/06) | E7: 等多方面問題未能達成一致，故公司減少該投資標的，終止對海南龍帆廣告有限 | F7: 營運風險上升 | G7: 并購投資進度不如預期
A8: 000038 深大通 | B8: 2017-11-10 | C8: H0200007 | D8: 5(2017/06) | E8: 公司的收購意向。 | F8: 營運風險上升 | G8: 并購投資進度不如預期
A9: 000408 藏格控股 | B9: 2017-11-10 | C9: G0100001 | D9: 4(2017/06) | E9: 公司于11月4日披露了《關於2017年第三季度報告的更正公告》，對2017年第三 | F9: 財務面問題 | G9: 會計差錯更正之財報重編
A10: 000408 藏格控股 | B10: 2017-11-10 | C10: G0100002 | D10: 4(2017/06) | E10: 季度報告披露的“應付股利”及與其相關的“歸屬於上市公司股東的淨資產”、 | F10: 財務面問題 | G10: 會計差錯更正之財報重編
A11: 000408 藏格控股 | B11: 2017-11-10 | C11: G0100003 | D11: 4(2017/06) | E11: “負債合計”、“未分配利潤”等部分內容予以更正。 | F11: 財務面問題 | G11: 會計差錯更正之財報重編
A12: 000408 藏格控股 | B12: 2017-11-10 | C12: G0100004 | D12: 4(2017/06) | E12: 企業會計準則規定，企業應根據股東大會或類似機構通過的利潤分配方案，按應 | F12: 財務面問題 | G12: 會計差錯更正之財報重編
A13: 000408 藏格控股 | B13: 2017-11-10 | C13: G0100005 | D13: 4(2017/06) | E13: 支付的現金股利或利潤，借記“利潤分配”科目，貸記“應付股利”科目。企業 | F13: 財務面問題 | G13: 會計差錯更正之財報重編
A14: 000408 藏格控股 | B14: 2017-11-10 | C14: G0100006 | D14: 4(2017/06) | E14: 董事會或類似機構通過的利潤分配方案中擬分配的現金股利或利潤，不做賬務處 | F14: 財務面問題 | G14: 會計差錯更正之財報重編
A15: 000408 藏格控股 | B15: 2017-11-10 | C15: G0100007 | D15: 4(2017/06) | E15: 理，但應在附注中披露。根據企業會計準則的要求，公司應根據2017年9月15日 | F15: 財務面問題 | G15: 會計差錯更正之財報重編
A16: 000408 藏格控股 | B16: 2017-11-10 | C16: G0100008 | D16: 4(2017/06) | E16: 通過股東大會決議內容，按應支付的現金股利或利潤進行相應的會計處理，因相 | F16: 財務面問題 | G16: 會計差錯更正之財報重編
A17: 000408 藏格控股 | B17: 2017-11-10 | C17: G0100009 | D17: 4(2017/06) | E17: 關工作人員失誤，未及時對股東會通過的利潤分配方案進行會計處理，導致第三 | F17: 財務面問題 | G17: 會計差錯更正之財報重編
A18: 000408 藏格控股 | B18: 2017-11-10 | C18: G0100010 | D18: 4(2017/06) | E18: 季度報告中報表項目錯誤，故對其進行更正。 | F18: 財務面問題 | G18: 會計差錯更正之財報重編
A19: 000797 中國武夷 | B19: 2017-11-10 | C19: H0100001 | D19: 8(2017/06) | E19: 公司本次非公開發行股票方案發布至今已一年之久，期間資本市場環境和融資政 | F19: 營運風險上升 | G19: 募資及財務調度不順
A20: 000797 中國武夷 | B20: 2017-11-10 | C20: H0100002 | D20: 8(2017/06) | E20: 策等發生諸多變化，導致方案遲遲無法得到中國證監會的核准。同時，公司本次 | F20: 營運風險上升 | G20: 募資及財務調度不順
A21: 000797 中國武夷 | B21: 2017-11-10 | C21: H0100003 | D21: 8(2017/06) | E21: 非公開發行的股東大會決議暨授權董事會全權辦理相關事宜的期限即將逾期失效 | F21: 營運風險上升 | G21: 募資及財務調度不順
A22: 000797 中國武夷 | B22: 2017-11-10 | C22: H0100004 | D22: 8(2017/06) | E22: 。綜上，公司綜合考慮內外部影響因素，結合自身實際情況并與各中介機構反復 | F22: 營運風險上升 | G22: 募資及財務調度不順
A23: 000797 中國武夷 | B23: 2017-11-10 | C23: H0100005 | D23: 8(2017/06) | E23: 研究和論證，公司擬決定終止2016年度非公開發行股票事項，并決定向中國證監 | F23: 營運風險上升 | G23: 募資及財務調度不順
A24: 000797 中國武夷 | B24: 2017-11-10 | C24: H0100006 | D24: 8(2017/06) | E24: 會申請撤回本次非公開發行股票的申請文件。 | F24: 營運風險上升 | G24: 募資及財務調度不順
A25: 002017 東信和平 | B25: 2017-11-10 | C25: G0100001 | D25: 4(2017/06) | E25: 于2017 年9 月22 日召開第六屆董事會第四次會議，于2017 年11 月6 日召開20 | F25: 營運風險上升 | G25: 募資及財務調度不順
A26: 002017 東信和平 | B26: 2017-11-10 | C26: G0100002 | D26: 4(2017/06) | E26: 17 年第四次臨時股東大會，審議通過《關於終止公司非公開發行A 股股票事項 | F26: 營運風險上升 | G26: 募資及財務調度不順
A27: 002017 東信和平 | B27: 2017-11-10 | C27: G0100003 | D27: 4(2017/06) | E27: 的議案》，公司決定終止本次非公開發行 A 股股票事項，并向中國證券監督管 | F27: 營運風險上升 | G27: 募資及財務調度不順
A28: 002017 東信和平 | B28: 2017-11-10 | C28: G0100004 | D28: 4(2017/06) | E28: 理委員會（以下簡稱“中國證監會”）申請撤回本次非公開發行A 股股票的申請 | F28: 營運風險上升 | G28: 募資及財務調度不順
A29: 002017 東信和平 | B29: 2017-11-10 | C29: G0100005 | D29: 4(2017/06) | E29: 文件。 | F29: 營運風險上升 | G29: 募資及財務調度不順
A30: 002357 富臨運業 | B30: 2017-11-10 | C30: G0100001 | D30: 5(2017/06) | E30: 今日在自查中發現公司副董事長兼總經理蔡亮發先生的證券賬戶于近日存在違規 | F30: 股票交易問題 | G30: 違規買賣股
A31: 002357 富臨運業 | B31: 2017-11-10 | C31: G0100002 | D31: 5(2017/06) | E31: 減持公司股票的情形 | F31: 股票交易問題 | G31: 違規買賣股
A32: 002565 順灝股份 | B32: 2017-11-10 | C32: G0100001 | D32: 7(2017/06) | E32: 公司（以下簡稱“公司”或“順灝股份”）收到中國證券監督管理委員會上海監 | F32: 財務面問題 | G32: 資金占用、掏空
A33: 002565 順灝股份 | B33: 2017-11-10 | C33: G0100002 | D33: 7(2017/06) | E33: 管局出具的《行政處罰決定書》（滬[2016]5號），公司被中國證券監督管理委 | F33: 財務面問題 | G33: 資金占用、掏空
A34: 002565 順灝股份 | B34: 2017-11-10 | C34: G0100003 | D34: 7(2017/06) | E34: 員會上海監管局行政處罰。在本次行政處罰後，共有275名投資者向上海市第二 | F34: 財務面問題 | G34: 資金占用、掏空
A35: 002565 順灝股份 | B35: 2017-11-10 | C35: G0100004 | D35: 7(2017/06) | E35: 中級人民法院（以下簡稱“法院”）對公司提起了訴訟 | F35: 財務面問題 | G35: 資金占用、掏空
A36: 002601 龍蟒佰利 | B36: 2017-11-10 | C36: G0100001 | D36: 3(2017/06) | E36: 根據焦作市工業和信息化委員會《關於印發焦作市工業和信息化系統2017-2018 | F36: 公司治理問題 | G36: 環保問題
A37: 002601 龍蟒佰利 | B37: 2017-11-10 | C37: G0100002 | D37: 3(2017/06) | E37: 年秋冬季大氣污染綜合治理攻堅及工業企業錯峰生產實施方案的通知》（焦工信 | F37: 公司治理問題 | G37: 環保問題
A38: 002601 龍蟒佰利 | B38: 2017-11-10 | C38: G0100003 | D38: 3(2017/06) | E38: 【2017】173號）文件要求，公司焦作基地硫酸法鈦白粉生產線自2017年11月15 | F38: 公司治理問題 | G38: 環保問題
A39: 002601 龍蟒佰利 | B39: 2017-11-10 | C39: G0100004 | D39: 3(2017/06) | E39: 日-2018年3月15日限產限排30%（以2017年8月為基數）。為保證德陽基地生產的 | F39: 公司治理問題 | G39: 環保問題
A40: 002601 龍蟒佰利 | B40: 2017-11-10 | C40: G0100005 | D40: 3(2017/06) | E40: 高效穩定運行，經公司研究決定於2017年11月、12月對德陽基地鈦白粉、硫酸、 | F40: 公司治理問題 | G40: 環保問題
A41: 002601 龍蟒佰利 | B41: 2017-11-10 | C41: G0100006 | D41: 3(2017/06) | E41: 熱電裝置進行限產、停產檢修，其中：鈦業全面檢修時間為2017年12月15日-25 | F41: 公司治理問題 | G41: 環保問題
A42: 002601 龍蟒佰利 | B42: 2017-11-10 | C42: G0100007 | D42: 3(2017/06) | E42: 日。二、對公司的影響公司焦作基地此次限產4個月預計減少鈦白粉產量2-2.4萬 | F42: 公司治理問題 | G42: 環保問題
A43: 002601 龍蟒佰利 | B43: 2017-11-10 | C43: G0100008 | D43: 3(2017/06) | E43: 噸，公司德陽基地此次停產檢修預計減少鈦白粉產量1.5萬噸。綜上，公司焦作 | F43: 公司治理問題 | G43: 環保問題
A44: 002601 龍蟒佰利 | B44: 2017-11-10 | C44: G0100009 | D44: 3(2017/06) | E44: 基地限產及德陽基地停產檢修預計減少公司鈦白粉產量3.5-3.9萬噸， | F44: 公司治理問題 | G44: 環保問題
A45: 002750 龍津藥業 | B45: 2017-11-10 | C45: H0100001 | D45: 6(2017/06) | E45: 近日有媒體發表《360之後，萬達的殼也水落石出了？》將大連萬達商業地產“ | F45: 營運風險上升 | G45: 澄清市場營運消息
A46: 002750 龍津藥業 | B46: 2017-11-10 | C46: H0100002 | D46: 6(2017/06) | E46: 借殼”的潛在目標指向公司。二、澄清說明為避免投資者對報道內容產生誤讀， | F46: 營運風險上升 | G46: 澄清市場營運消息
A47: 002750 龍津藥業 | B47: 2017-11-10 | C47: H0100003 | D47: 6(2017/06) | E47: 公司對有關事項進行認真核查，現將有關情況說明如下：公司董事會確認，截至 | F47: 營運風險上升 | G47: 澄清市場營運消息
A48: 002750 龍津藥業 | B48: 2017-11-10 | C48: H0100004 | D48: 6(2017/06) | E48: 目前公司從未與大連萬達商業地產或其財務顧問接洽“借殼”事宜，也未與大連 | F48: 營運風險上升 | G48: 澄清市場營運消息
A49: 002750 龍津藥業 | B49: 2017-11-10 | C49: H0100005 | D49: 6(2017/06) | E49: 萬達商業地產有任何合作意向。 | F49: 營運風險上升 | G49: 澄清市場營運消息
A50: 300438 鵬輝能源 | B50: 2017-11-10 | C50: H0100001 | D50: 6(2017/06) | E50: 公司擬與金壇金城科技產業園管理委員會簽署合作協議，就公司在常州市金壇金 | F50: 機會 | G50: 新投資計劃
A51: 300438 鵬輝能源 | B51: 2017-11-10 | C51: H0100002 | D51: 6(2017/06) | E51: 城科技產業園（以下簡稱“金科園”）內投資建設“鵬輝能源鋰離子動力電池及 | F51: 機會 | G51: 新投資計劃
A52: 300438 鵬輝能源 | B52: 2017-11-10 | C52: H0100003 | D52: 6(2017/06) | E52: 系統項目”進行合作。該項目計劃固定資產投資58億元（人民幣）以上，具體實 | F52: 機會 | G52: 新投資計劃
A53: 300438 鵬輝能源 | B53: 2017-11-10 | C53: H0100004 | D53: 6(2017/06) | E53: 施10Gwh鋰離子動力電池項目和5Gwh鋰離子動力電池PACK項目。 | F53: 機會 | G53: 新投資計劃
A54: 600227 赤天化 | B54: 2017-11-10 | C54: G0100001 | D54: 8(2017/06) | E54: 因公司正在籌劃重大事項，且該重大事項具有不確定性，赤天化集團向上海證券 | F54: 營運風險上升 | G54: 募資及財務調度不順
A55: 600227 赤天化 | B55: 2017-11-10 | C55: G0100002 | D55: 8(2017/06) | E55: 交易所債券部提交了關於中止非公開發行可交換債券的申請，目前，該申請已獲 | F55: 營運風險上升 | G55: 募資及財務調度不順
A56: 600227 赤天化 | B56: 2017-11-10 | C56: G0100003 | D56: 8(2017/06) | E56: 得上海證券交易所債券部的同意。 | F56: 營運風險上升 | G56: 募資及財務調度不順
A57: 600478 科力遠 | B57: 2017-11-10 | C57: G0100001 | D57: 7(2017/06) | E57: 2017年11月1日，湖南科力遠新能源股份有限公司（以下簡稱“公司”）收到了 | F57: 財務面問題 | G57: 交易所要求公司補充公告
A58: 600478 科力遠 | B58: 2017-11-10 | C58: G0100002 | D58: 7(2017/06) | E58: 上海證券交易所下發的《關於對湖南科力遠新能源股份有限公司相關信息披露事 | F58: 財務面問題 | G58: 交易所要求公司補充公告
A59: 600478 科力遠 | B59: 2017-11-10 | C59: G0100003 | D59: 7(2017/06) | E59: 項的問詢函》（上證公函【2017】2282號）（以下簡稱“《問詢函》”），根據 | F59: 財務面問題 | G59: 交易所要求公司補充公告
A60: 600478 科力遠 | B60: 2017-11-10 | C60: G0100004 | D60: 7(2017/06) | E60: 《問詢函》內容，公司進行了認真研究，現將相關情況回復如下：一、根據公告 | F60: 財務面問題 | G60: 交易所要求公司補充公告
A61: 600478 科力遠 | B61: 2017-11-10 | C61: G0100005 | D61: 7(2017/06) | E61: ，CHS公司將現有的專利和非專利專有技術許可給明恒公司使用，該使用權的評 | F61: 財務面問題 | G61: 交易所要求公司補充公告
A62: 600478 科力遠 | B62: 2017-11-10 | C62: G0100006 | D62: 7(2017/06) | E62: 估價值為3.15億元。請公司補充披露上述專利取得的時間，有效期限以及許可的 | F62: 財務面問題 | G62: 交易所要求公司補充公告
A63: 600478 科力遠 | B63: 2017-11-10 | C63: G0100007 | D63: 7(2017/06) | E63: 主要考慮，并就評估值的公允性作進一步補充說明。 | F63: 財務面問題 | G63: 交易所要求公司補充公告

Sheet Chart_Benchmarking_CCRI v.s S&P

Sheet Raw
B1: =B2&B3 -> 000002 萬科Ａ41639 | C1: =C2&C3 -> 000002 萬科Ａ41820 | D1: 000002 萬科Ａ42004 | E1: 000002 萬科Ａ42185 | F1: 000002 萬科Ａ42369 | G1: 000002 萬科Ａ42551 | H1: 000002 萬科Ａ42734 | I1: 000002 萬科Ａ42916 | M1: =A2 -> 000002 萬科Ａ
A2: 000002 萬科Ａ | B2: =A2 -> 000002 萬科Ａ | C2: =B2 -> 000002 萬科Ａ | D2: 000002 萬科Ａ | E2: 000002 萬科Ａ | F2: 000002 萬科Ａ | G2: 000002 萬科Ａ | H2: 000002 萬科Ａ | I2: 000002 萬科Ａ
A3: Data Field | B3: 2013-12-31 | C3: 2014-06-30 | D3: 2014-12-31 | E3: 2015-06-30 | F3: 2015-12-31 | G3: 2016-06-30 | H3: 2016-12-30 | I3: 2017-06-30 | M3: =M1&"_風險成因分析表" -> 000002 萬科Ａ_風險成因分析表
A4: 報表別F/M | B4: M | C4: M | D4: M | E4: M | F4: M | G4: M | H4: M | I4: M | M4: =M1&"_獲利能力相關指標" -> 000002 萬科Ａ_獲利能力相關指標
A5: CCRI數量模型等級 | B5: 6 | C5: 7 | D5: 6 | E5: 6 | F5: 6 | G5: 7 | H5: 6 | I5: 7 | M5: =M1&"_負債相關比率" -> 000002 萬科Ａ_負債相關比率
A6: 門檻等級 | B6: 6 | C6: 7 | D6: 6 | E6: 6 | F6: 6 | G6: 7 | H6: 6 | I6: 7 | M6: =M1&"_公司治理相關指標" -> 000002 萬科Ａ_公司治理相關指標
A7: 基本等級 | B7: 6 | C7: 7 | D7: 6 | E7: 6 | F7: 6 | G7: 7 | H7: 6 | I7: 7 | M7: =M1&"_企業活動力指標" -> 000002 萬科Ａ_企業活動力指標
A8: 總分 | B8: 52 | C8: 21 | D8: 54 | E8: 38 | F8: 56 | G8: 28 | H8: 38 | I8: 19
A9: 公司治理 | B9: 4 | C9: -2 | D9: -6 | E9: -15 | F9: -16 | G9: -20 | H9: -25 | I9: -27
A10: 獲利 | B10: 50 | C10: 26 | D10: 45 | E10: 35 | F10: 50 | G10: 27 | H10: 48 | I10: 39
A11: 安全 | B11: -17 | C11: -18 | D11: 0 | E11: 3 | F11: 1 | G11: -2 | H11: -7 | I11: -10
A12: 效率 | B12: 15 | C12: 15 | D12: 15 | E12: 15 | F12: 22 | G12: 24 | H12: 23 | I12: 17
A13: EPS | B13: 1.37 | C13: 0.44 | D13: 1.43 | E13: 0.44 | F13: 1.64 | G13: 0.48 | H13: 1.9 | I13: 0.66
A14: 總資產 | B14: 4792.05 | C14: 5017.74 | D14: 5084.09 | E14: 5369.38 | F14: 6112.96 | G14: 7123.07 | H14: 8306.74 | I14: 9292.66
A15: 主營業務收入 | B15: 1342.59 | C15: 407.85 | D15: 1463.88 | E15: 502.67 | F15: 1955.49 | G15: 747.95 | H15: 2404.77 | I15: 698.1
A16: 常續性利益 | B16: 182.97 | C16: 47.52 | D16: 178.75 | E16: 67.84 | F16: 261.18 | G16: 71.25 | H16: 285.47 | I16: 100.05
A17: 淨值報酬% | B17: 19.51 | C17: 4.5 | D17: 16.15 | E17: 5.81 | F17: 20.71 | G17: 5.19 | H17: 19.16 | I17: 6.2
A18: 資產報酬% | B18: 4.5 | C18: 1.08 | D18: 3.83 | E18: 1.4 | F18: 4.88 | G18: 1.18 | H18: 4.17 | I18: 1.26
A19: 營業利益% | B19: 17.2 | C19: 14.32 | D19: 14.65 | E19: 15.72 | F19: 15.36 | G19: 12.02 | H19: 14.86 | I19: 18.42
A20: 毛利率% | B20: 30.96 | C20: 30.81 | D20: 29.94 | E20: 30.45 | F20: 29.35 | G20: 26.31 | H20: 29.41 | I20: 32.65
A21: 調整後借款依存度% | B21: 105.15 | C21: 110.21 | D21: 59.52 | E21: 53.64 | F21: 58.32 | G21: 66.19 | H21: 79.71 | I21: 86.35
A22: 借款依存度% | B22: 105.15 | C22: 110.21 | D22: 59.52 | E22: 53.64 | F22: 58.32 | G22: 66.19 | H22: 79.71 | I22: 86.35
A23: 速動比率% | B23: 47.44 | C23: 57 | D23: 69.29 | E23: 66 | F23: 63.3 | G23: 66.94 | H23: 63.86 | I23: 73.5
A24: 保守速動比率% | B24: 13.07 | C24: 12.41 | D24: 17.85 | E24: 11.55 | F24: 12.35 | G24: 13.92 | H24: 13.78 | I24: 14.74
A25: 利息支出率% | B25: 1.13 | C25: 1.98 | D25: 1.08 | E25: 1.57 | F25: 0.96 | G25: 1.35 | H25: 0.96 | I25: 2.3
A26: 收款天數 | B26: 6.7 | C26: 5.36 | D26: 6.2 | E26: 4.81 | F26: 4.11 | G26: 3.45 | H26: 3.48 | I26: 3.07
A27: 售貨天數 | B27: 1154.35 | C27: 1274.3 | D27: 1154.64 | E27: 1126.61 | F27: 906.02 | G27: 876.8 | H27: 898.28 | I27: 1043.04
A28: 其他應收款% | B28: 7.27 | C28: 8.58 | D28: 9.62 | E28: 12.05 | F28: 12.35 | G28: 11.34 | H28: 12.69 | I28: 13.41
A29: 股東設質比% | B29: 0 | C29: 0 | D29: 0 | E29: 0 | F29: 0 | G29: 14.53 | H29: 14.61 | I29: 12.92
A30: 營收成長% | B30: 31.06 | C30: -1.05 | D30: 9.03 | E30: 23.25 | F30: 33.58 | G30: 48.8 | H30: 22.98 | I30: -6.66
A31: CFO | B31: 19.24 | C31: 34.33 | D31: 417.25 | E31: -68.08 | F31: 160.46 | G31: 257.97 | H31: 395.66 | I31: 218.5
A32: 營業利益 | B32: 230.94 | C32: 58.42 | D32: 214.5 | E32: 79.03 | F32: 300.39 | G32: 89.89 | H32: 357.43 | I32: 128.6
A33: 借款息% | B33: 1.45 | C33: 1.42 | D33: 1.76 | E33: 2.39 | F33: 2.53 | G33: 2.37 | H33: 2.22 | I33: 2.39
A34: 現有資金 | B34: 443.65 | C34: 428.62 | D34: 627.52 | E34: 446.13 | F34: 533.03 | G34: 719.51 | H34: 874.91 | I34: 1075.7
A35: 借款 | B35: 1108.7 | C35: 1165.16 | D35: 689.81 | E35: 631.83 | F35: 794.91 | G35: 914.62 | H35: 1288.64 | I35: 1391.59
A36: 股東權益 | B36: 1054.39 | C36: 1057.2 | D36: 1158.94 | E36: 1178 | F36: 1363.1 | G36: 1381.74 | H36: 1616.77 | I36: 1611.58
A37: 資料日 | B37: 2014-03-08 | C37: 2014-08-19 | D37: 2015-04-01 | E37: 2015-08-18 | F37: 2016-03-15 | G37: 2016-08-23 | H37: 2017-03-28 | I37: 2017-08-26
A38: 設立日 | B38: 1984-05-30 | C38: 1984-05-30 | D38: 1984-05-30 | E38: 1984-05-30 | F38: 1984-05-30 | G38: 1984-05-30 | H38: 1984-05-30 | I38: 1984-05-30
A39: 上市日 | B39: 1991-01-29 | C39: 1991-01-29 | D39: 1991-01-29 | E39: 1991-01-29 | F39: 1991-01-29 | G39: 1991-01-29 | H39: 1991-01-29 | I39: 1991-01-29
A40: CCRI數量模型等級 | B40: =IF(B6="D",10,B6) -> 6 | C40: =IF(C6="D",10,C6) -> 7 | D40: 6 | E40: 6 | F40: 6 | G40: 7 | H40: 6 | I40: 7

Sheet ROE
B1: CSRC分類-門類 | C1: CSRC分類-大類 | D1: 淨值報酬% | E1: 淨值報酬% | F1: 淨值報酬% | G1: 淨值報酬% | H1: 淨值報酬% | I1: 淨值報酬% | J1: 淨值報酬% | K1: 淨值報酬% | N1: CSRC分類-門類 | O1: CSRC分類-大類 | P1: =D2 -> 2013-12-31 | Q1: =E2 -> 2014-06-30 | R1: 2014-12-31 | S1: 2015-06-30 | T1: 2015-12-31 | U1: 2016-06-30 | V1: 2016-12-30 | W1: 2017-06-30
A2: 公司 | D2: 2013-12-31 | E2: 2014-06-30 | F2: 2014-12-31 | G2: 2015-06-30 | H2: 2015-12-31 | I2: 2016-06-30 | J2: 2016-12-30 | K2: 2017-06-30 | M2: =Raw!M1 -> 000002 萬科Ａ | N2: =IFERROR(VLOOKUP(M2,A:C,3,0),"") -> 70 房地產業 | O2: =N2&"-淨值報酬%" -> 70 房地產業-淨值報酬% | P2: =IFERROR(ROUND(AVERAGEIF($C:$C,$N2,D:D),2),"") -> 1900-01-04T12:14:24 | Q2: =IFERROR(ROUND(AVERAGEIF($C:$C,$N2,E:E),2),"") -> 23:31:12 | R2: -6.86 | S2: 1900-01-05T19:12:00 | T2: 1900-01-05T21:36:00 | U2: 1900-01-02 | V2: 1900-01-06T09:21:36 | W2: 1900-01-02T11:45:36
A3: 000001 平安銀行 | B3: J 金融業 | C3: 66 貨幣金融服務 | O3: =N$2&"-資產報酬%" -> 70 房地產業-資產報酬% | P3: =ROUND(AVERAGEIF(ROA!$C:$C,ROE!$N2,ROA!D:D),2) -> 2.33 | Q3: =ROUND(AVERAGEIF(ROA!$C:$C,ROE!$N2,ROA!E:E),2) -> 0.96 | R3: =ROUND(AVERAGEIF(ROA!$C:$C,ROE!$N2,ROA!F:F),2) -> -1.77 | S3: =ROUND(AVERAGEIF(ROA!$C:$C,ROE!$N2,ROA!G:G),2) -> 0.61 | T3: =ROUND(AVERAGEIF(ROA!$C:$C,ROE!$N2,ROA!H:H),2) -> 1.16 | U3: =ROUND(AVERAGEIF(ROA!$C:$C,ROE!$N2,ROA!I:I),2) -> 0.73 | V3: =ROUND(AVERAGEIF(ROA!$C:$C,ROE!$N2,ROA!J:J),2) -> 1.72 | W3: =ROUND(AVERAGEIF(ROA!$C:$C,ROE!$N2,ROA!K:K),2) -> 1.15
A4: 000002 萬科Ａ | B4: K 房地產業 | C4: 70 房地產業 | D4: 19.51 | E4: 4.5 | F4: 16.15 | G4: 5.81 | H4: 20.71 | I4: 5.19 | J4: 19.16 | K4: 6.2 | O4: =N$2&"-營業利益%." -> 70 房地產業-營業利益%. | P4: =ROUND(AVERAGEIF('Net Income'!$C:$C,ROE!$N2,'Net Income'!D:D),2) -> 1.92 | Q4: =ROUND(AVERAGEIF('Net Income'!$C:$C,ROE!$N2,'Net Income'!E:E),2) -> -22.22 | R4: =ROUND(AVERAGEIF('Net Income'!$C:$C,ROE!$N2,'Net Income'!F:F),2) -> -4.52 | S4: =ROUND(AVERAGEIF('Net Income'!$C:$C,ROE!$N2,'Net Income'!G:G),2) -> -6.33 | T4: =ROUND(AVERAGEIF('Net Income'!$C:$C,ROE!$N2,'Net Income'!H:H),2) -> -1.99 | U4: =ROUND(AVERAGEIF('Net Income'!$C:$C,ROE!$N2,'Net Income'!I:I),2) -> -19.65 | V4: =ROUND(AVERAGEIF('Net Income'!$C:$C,ROE!$N2,'Net Income'!J:J),2) -> -3.57 | W4: =ROUND(AVERAGEIF('Net Income'!$C:$C,ROE!$N2,'Net Income'!K:K),2) -> -7.14
A5: 000004 國農科技 | B5: C 製造業 | C5: 27 醫藥製造業 | D5: 3.96 | E5: -3.37 | F5: 10.39 | G5: 2.76 | H5: 3.24 | I5: 1.82 | J5: 7.71 | K5: -3.43 | O5: =N$2&"-毛利率%" -> 70 房地產業-毛利率% | P5: =ROUND(AVERAGEIF('Gross Margin'!$C:$C,ROE!$N2,'Gross Margin'!D:D),2) -> 36.37 | Q5: =ROUND(AVERAGEIF('Gross Margin'!$C:$C,ROE!$N2,'Gross Margin'!E:E),2) -> 37.12 | R5: =ROUND(AVERAGEIF('Gross Margin'!$C:$C,ROE!$N2,'Gross Margin'!F:F),2) -> 34.06 | S5: =ROUND(AVERAGEIF('Gross Margin'!$C:$C,ROE!$N2,'Gross Margin'!G:G),2) -> 25.86 | T5: =ROUND(AVERAGEIF('Gross Margin'!$C:$C,ROE!$N2,'Gross Margin'!H:H),2) -> 33.7 | U5: =ROUND(AVERAGEIF('Gross Margin'!$C:$C,ROE!$N2,'Gross Margin'!I:I),2) -> 32.05 | V5: =ROUND(AVERAGEIF('Gross Margin'!$C:$C,ROE!$N2,'Gross Margin'!J:J),2) -> 32.82 | W5: =ROUND(AVERAGEIF('Gross Margin'!$C:$C,ROE!$N2,'Gross Margin'!K:K),2) -> 32.18
A6: 000005 世紀星源 | B6: N 水利、環境和公共設施 | C6: 77 生態保護和環境治理 | D6: -6.48 | E6: -4.12 | F6: -10.65 | G6: -3.52 | H6: -5.74 | I6: 10.27 | J6: 9.11 | K6: -1.12 | O6: =N$2&"-借款依存度%" -> 70 房地產業-借款依存度% | P6: =ROUND(AVERAGEIF('Debt to Equity'!$C:$C,ROE!$N2,'Debt to Equity'!D:D),2) -> 145.84 | Q6: =ROUND(AVERAGEIF('Debt to Equity'!$C:$C,ROE!$N2,'Debt to Equity'!E:E),2) -> 185.76 | R6: =ROUND(AVERAGEIF('Debt to Equity'!$C:$C,ROE!$N2,'Debt to Equity'!F:F),2) -> 176.01 | S6: =ROUND(AVERAGEIF('Debt to Equity'!$C:$C,ROE!$N2,'Debt to Equity'!G:G),2) -> 127.91 | T6: =ROUND(AVERAGEIF('Debt to Equity'!$C:$C,ROE!$N2,'Debt to Equity'!H:H),2) -> 126.41 | U6: =ROUND(AVERAGEIF('Debt to Equity'!$C:$C,ROE!$N2,'Debt to Equity'!I:I),2) -> 131.24 | V6: =ROUND(AVERAGEIF('Debt to Equity'!$C:$C,ROE!$N2,'Debt to Equity'!J:J),2) -> 128.39 | W6: =ROUND(AVERAGEIF('Debt to Equity'!$C:$C,ROE!$N2,'Debt to Equity'!K:K),2) -> 130.69
A7: 000006 深振業Ａ | B7: K 房地產業 | C7: 70 房地產業 | D7: 17.82 | E7: 0.75 | F7: 11.77 | G7: 6.29 | H7: 10.07 | I7: 2.37 | J7: 16.6 | K7: 5.13 | O7: =N$2&"-速動比率%" -> 70 房地產業-速動比率% | P7: =ROUND(AVERAGEIF('ACID-1'!$C:$C,ROE!$N2,'ACID-1'!D:D),2) -> 77.12 | Q7: =ROUND(AVERAGEIF('ACID-1'!$C:$C,ROE!$N2,'ACID-1'!E:E),2) -> 70.75 | R7: =ROUND(AVERAGEIF('ACID-1'!$C:$C,ROE!$N2,'ACID-1'!F:F),2) -> 59.19 | S7: =ROUND(AVERAGEIF('ACID-1'!$C:$C,ROE!$N2,'ACID-1'!G:G),2) -> 67.73 | T7: =ROUND(AVERAGEIF('ACID-1'!$C:$C,ROE!$N2,'ACID-1'!H:H),2) -> 96.96 | U7: =ROUND(AVERAGEIF('ACID-1'!$C:$C,ROE!$N2,'ACID-1'!I:I),2) -> 117.46 | V7: =ROUND(AVERAGEIF('ACID-1'!$C:$C,ROE!$N2,'ACID-1'!J:J),2) -> 107.72 | W7: =ROUND(AVERAGEIF('ACID-1'!$C:$C,ROE!$N2,'ACID-1'!K:K),2) -> 119.29
A8: 000007 全新好 | B8: K 房地產業 | C8: 70 房地產業 | D8: 7.79 | E8: -2.74 | F8: -10.5 | G8: -2.75 | H8: -1.86 | I8: -6.95 | J8: -10.05 | K8: -1.71 | O8: =N$2&"-保守速動比率%" -> 70 房地產業-保守速動比率% | P8: =ROUND(AVERAGEIF('ACID-2'!$C:$C,ROE!$N2,'ACID-2'!D:D),2) -> 45.26 | Q8: =ROUND(AVERAGEIF('ACID-2'!$C:$C,ROE!$N2,'ACID-2'!E:E),2) -> 34.85 | R8: =ROUND(AVERAGEIF('ACID-2'!$C:$C,ROE!$N2,'ACID-2'!F:F),2) -> 29.99 | S8: =ROUND(AVERAGEIF('ACID-2'!$C:$C,ROE!$N2,'ACID-2'!G:G),2) -> 31.09 | T8: =ROUND(AVERAGEIF('ACID-2'!$C:$C,ROE!$N2,'ACID-2'!H:H),2) -> 57.73 | U8: =ROUND(AVERAGEIF('ACID-2'!$C:$C,ROE!$N2,'ACID-2'!I:I),2) -> 48.88 | V8: =ROUND(AVERAGEIF('ACID-2'!$C:$C,ROE!$N2,'ACID-2'!J:J),2) -> 52.88 | W8: =ROUND(AVERAGEIF('ACID-2'!$C:$C,ROE!$N2,'ACID-2'!K:K),2) -> 56.68
A9: 000008 神州高鐵 | B9: C 製造業 | C9: 37 鐵路、船舶、航空航太 | D9: 3.97 | E9: 1.22 | F9: 0.92 | G9: 3.77 | H9: 9.91 | I9: 0.98 | J9: 8.28 | K9: 0.77 | O9: =N$2&"-借款息%" -> 70 房地產業-借款息% | P9: =ROUND(AVERAGEIF('Interest Expense-to-Debts'!$C:$C,ROE!$N2,'Interest Expense-to-Debts'!D:D),2) -> 3.08 | Q9: =ROUND(AVERAGEIF('Interest Expense-to-Debts'!$C:$C,ROE!$N2,'Interest Expense-to-Debts'!E:E),2) -> 2.67 | R9: =ROUND(AVERAGEIF('Interest Expense-to-Debts'!$C:$C,ROE!$N2,'Interest Expense-to-Debts'!F:F),2) -> 3.29 | S9: =ROUND(AVERAGEIF('Interest Expense-to-Debts'!$C:$C,ROE!$N2,'Interest Expense-to-Debts'!G:G),2) -> 3.97 | T9: =ROUND(AVERAGEIF('Interest Expense-to-Debts'!$C:$C,ROE!$N2,'Interest Expense-to-Debts'!H:H),2) -> 3.14 | U9: =ROUND(AVERAGEIF('Interest Expense-to-Debts'!$C:$C,ROE!$N2,'Interest Expense-to-Debts'!I:I),2) -> 3.19 | V9: =ROUND(AVERAGEIF('Interest Expense-to-Debts'!$C:$C,ROE!$N2,'Interest Expense-to-Debts'!J:J),2) -> 3.48 | W9: =ROUND(AVERAGEIF('Interest Expense-to-Debts'!$C:$C,ROE!$N2,'Interest Expense-to-Debts'!K:K),2) -> 3.64
A10: 000009 中國寶安 | B10: S 綜合 | C10: 90 綜合 | D10: 0.35 | E10: -0.58 | F10: 2.01 | G10: 3 | H10: 0.74 | I10: 3.37 | J10: 2.4 | K10: 2.34 | O10: =N$2&"-股東設質比%" -> 70 房地產業-股東設質比% | P10: =ROUND(AVERAGEIF('Shareholder Pledge Ratio'!$C:$C,ROE!$N2,'Shareholder Pledge Ratio'!D:D),2) -> 29.43 | Q10: =ROUND(AVERAGEIF('Shareholder Pledge Ratio'!$C:$C,ROE!$N2,'Shareholder Pledge Ratio'!E:E),2) -> 31.12 | R10: =ROUND(AVERAGEIF('Shareholder Pledge Ratio'!$C:$C,ROE!$N2,'Shareholder Pledge Ratio'!F:F),2) -> 27.96 | S10: =ROUND(AVERAGEIF('Shareholder Pledge Ratio'!$C:$C,ROE!$N2,'Shareholder Pledge Ratio'!G:G),2) -> 26.22 | T10: =ROUND(AVERAGEIF('Shareholder Pledge Ratio'!$C:$C,ROE!$N2,'Shareholder Pledge Ratio'!H:H),2) -> 17.57 | U10: =ROUND(AVERAGEIF('Shareholder Pledge Ratio'!$C:$C,ROE!$N2,'Shareholder Pledge Ratio'!I:I),2) -> 30.35 | V10: =ROUND(AVERAGEIF('Shareholder Pledge Ratio'!$C:$C,ROE!$N2,'Shareholder Pledge Ratio'!J:J),2) -> 28.41 | W10: =ROUND(AVERAGEIF('Shareholder Pledge Ratio'!$C:$C,ROE!$N2,'Shareholder Pledge Ratio'!K:K),2) -> 29.97
A11: 000010 美麗生態 | B11: E 建築業 | C11: 48 土木工程建築業 | D11: -0.82 | E11: -1.13 | F11: -11.99 | G11: 0.17 | H11: 0.5 | I11: 1.17 | J11: 1.76 | K11: -2.08 | O11: =N$2&"-其他應收款%" -> 70 房地產業-其他應收款% | P11: =ROUND(AVERAGEIF('Other Receivable'!$C:$C,ROE!$N2,'Other Receivable'!D:D),2) -> 2.33 | Q11: =ROUND(AVERAGEIF('Other Receivable'!$C:$C,ROE!$N2,'Other Receivable'!E:E),2) -> 2.64 | R11: =ROUND(AVERAGEIF('Other Receivable'!$C:$C,ROE!$N2,'Other Receivable'!F:F),2) -> 2.75 | S11: =ROUND(AVERAGEIF('Other Receivable'!$C:$C,ROE!$N2,'Other Receivable'!G:G),2) -> 3.12 | T11: =ROUND(AVERAGEIF('Other Receivable'!$C:$C,ROE!$N2,'Other Receivable'!H:H),2) -> 3.32 | U11: =ROUND(AVERAGEIF('Other Receivable'!$C:$C,ROE!$N2,'Other Receivable'!I:I),2) -> 3.34 | V11: =ROUND(AVERAGEIF('Other Receivable'!$C:$C,ROE!$N2,'Other Receivable'!J:J),2) -> 3.96 | W11: =ROUND(AVERAGEIF('Other Receivable'!$C:$C,ROE!$N2,'Other Receivable'!K:K),2) -> 4.64
A12: 000011 深物業A | B12: K 房地產業 | C12: 70 房地產業 | D12: 18.19 | E12: 6.17 | F12: 10.74 | G12: 1.26 | H12: 7.26 | I12: -0.25 | J12: 15.74 | K12: 14.33 | O12: =N$2&"-收款天數" -> 70 房地產業-收款天數 | P12: =ROUND(AVERAGEIF('AR Turnover Days'!$C:$C,ROE!$N2,'AR Turnover Days'!D:D),2) -> 65.77 | Q12: =ROUND(AVERAGEIF('AR Turnover Days'!$C:$C,ROE!$N2,'AR Turnover Days'!E:E),2) -> 76.15 | R12: =ROUND(AVERAGEIF('AR Turnover Days'!$C:$C,ROE!$N2,'AR Turnover Days'!F:F),2) -> 88.82 | S12: =ROUND(AVERAGEIF('AR Turnover Days'!$C:$C,ROE!$N2,'AR Turnover Days'!G:G),2) -> 107.35 | T12: =ROUND(AVERAGEIF('AR Turnover Days'!$C:$C,ROE!$N2,'AR Turnover Days'!H:H),2) -> 111.55 | U12: =ROUND(AVERAGEIF('AR Turnover Days'!$C:$C,ROE!$N2,'AR Turnover Days'!I:I),2) -> 204.8 | V12: =ROUND(AVERAGEIF('AR Turnover Days'!$C:$C,ROE!$N2,'AR Turnover Days'!J:J),2) -> 94.72 | W12: =ROUND(AVERAGEIF('AR Turnover Days'!$C:$C,ROE!$N2,'AR Turnover Days'!K:K),2) -> 91.45
A13: 000012 南玻Ａ | B13: C 製造業 | C13: 30 非金屬礦物製品業 | D13: 12.1 | E13: 3.68 | F13: 7.74 | G13: 1.98 | H13: 4.19 | I13: 5.95 | J13: 11.55 | K13: 4.84 | O13: =N$2&"-售貨天數" -> 70 房地產業-售貨天數 | P13: =ROUND(AVERAGEIF('Inventory Turnover Days'!$C:$C,ROE!$N2,'Inventory Turnover Days'!D:D),2) -> 2219.27 | Q13: =ROUND(AVERAGEIF('Inventory Turnover Days'!$C:$C,ROE!$N2,'Inventory Turnover Days'!E:E),2) -> 2616.38 | R13: =ROUND(AVERAGEIF('Inventory Turnover Days'!$C:$C,ROE!$N2,'Inventory Turnover Days'!F:F),2) -> 2868.47 | S13: =ROUND(AVERAGEIF('Inventory Turnover Days'!$C:$C,ROE!$N2,'Inventory Turnover Days'!G:G),2) -> 2644.92 | T13: =ROUND(AVERAGEIF('Inventory Turnover Days'!$C:$C,ROE!$N2,'Inventory Turnover Days'!H:H),2) -> 2199.07 | U13: =ROUND(AVERAGEIF('Inventory Turnover Days'!$C:$C,ROE!$N2,'Inventory Turnover Days'!I:I),2) -> 2041.85 | V13: =ROUND(AVERAGEIF('Inventory Turnover Days'!$C:$C,ROE!$N2,'Inventory Turnover Days'!J:J),2) -> 1761.22 | W13: =ROUND(AVERAGEIF('Inventory Turnover Days'!$C:$C,ROE!$N2,'Inventory Turnover Days'!K:K),2) -> 1775.54
A14: 000014 沙河股份 | B14: K 房地產業 | C14: 70 房地產業 | D14: 5.44 | E14: 4.39 | F14: 9.03 | G14: 2.04 | H14: 7.06 | I14: -1.36 | J14: 3.71 | K14: 0.54
A15: 000016 深康佳Ａ | B15: C 製造業 | C15: 39 電子設備製造業 | D15: -0.08 | E15: -4.92 | F15: -11.37 | G15: -7.5 | H15: -34.04 | I15: 0.54 | J15: -0.62 | K15: 1
A16: 000017 深中華A | B16: C 製造業 | C16: 37 鐵路、船舶、航空航太 | D16: 18.58 | E16: 26.21 | F16: 54.25 | G16: 4.29 | H16: -0.79 | I16: 3.8 | J16: 25.44 | K16: -13.12
A17: 000018 神州長城 | B17: E 建築業 | C17: 50 建築裝飾和其他建築業 | D17: 4.94 | E17: 0.59 | F17: 42.2 | G17: -0.14 | H17: 33.9 | I17: 14.43 | J17: 30.39 | K17: 14.5
A18: 000019 深深寶Ａ | B18: C 製造業 | C18: 15 酒飲料和精製茶製造業 | D18: -2.28 | E18: -2.83 | F18: 1.07 | G18: -0.06 | H18: -4.8 | I18: -2.1 | J18: -7.87 | K18: -2.02
A19: 000020 深華發A | B19: C 製造業 | C19: 39 電子設備製造業 | D19: -2.39 | E19: 0.51 | F19: 1.84 | G19: -5.31 | H19: -1.56 | I19: 2.27 | J19: 1.7 | K19: 0.68
A20: 000021 深科技 | B20: C 製造業 | C20: 39 電子設備製造業 | D20: 2.72 | E20: 3.97 | F20: 5.85 | G20: 1.91 | H20: 5.41 | I20: 0.96 | J20: 1.34 | K20: 1.96
A21: 000022 深赤灣Ａ | B21: G 交通運輸、倉儲&郵政 | C21: 55 水上運輸業 | D21: 13.92 | E21: 6.09 | F21: 11.03 | G21: 6.29 | H21: 12.86 | I21: 6.24 | J21: 12.26 | K21: 5.52
A22: 000023 深天地Ａ | B22: C 製造業 | C22: 30 非金屬礦物製品業 | D22: 2.38 | E22: -0.29 | F22: 3.58 | G22: 2.52 | H22: 8.44 | I22: 2.2 | J22: 3.29 | K22: 3.08
A23: 000025 特力Ａ | B23: F 批發和零售業 | C23: 51 批發業 | D23: 1.24 | E23: 2.22 | F23: 3.62 | G23: 1.4 | H23: 6.86 | I23: 1.76 | J23: 2.66 | K23: 1.8
A24: 000026 飛亞達Ａ | B24: F 批發和零售業 | C24: 52 零售業 | D24: 8.68 | E24: 5.65 | F24: 9.21 | G24: 4.42 | H24: 6.19 | I24: 2.61 | J24: 4.75 | K24: 3.61
A25: 000027 深圳能源 | B25: D 電力、熱力、燃氣及水 | C25: 44 電力熱力生產和供應 | D25: 9.18 | E25: 6.33 | F25: 11.45 | G25: 5.29 | H25: 8.71 | I25: 3.47 | J25: 5.21 | K25: 1.6
A26: 000028 國藥一致 | B26: F 批發和零售業 | C26: 51 批發業 | D26: 25.94 | E26: 10.42 | F26: 19.43 | G26: 7.97 | H26: 16.58 | I26: 6.22 | J26: 14.08 | K26: 6.56
A27: 000029 深深房Ａ | B27: K 房地產業 | C27: 70 房地產業 | D27: 13.73 | E27: 1.98 | F27: 15.83 | G27: 8.77 | H27: 14.2 | I27: 5.91 | J27: 13.18 | K27: 5.28
A28: 000030 富奧股份 | B28: C 製造業 | C28: 36 汽車製造業 | D28: 15.07 | E28: 7.98 | F28: 15.58 | G28: 6.34 | H28: 10.44 | I28: 6.94 | J28: 12.84 | K28: 7.36
A29: 000031 中糧地產 | B29: K 房地產業 | C29: 70 房地產業 | D29: 9.59 | E29: 2.56 | F29: 4.41 | G29: -3.97 | H29: 1.39 | I29: 4.72 | J29: 11.89 | K29: 3.16
A30: 000032 深桑達Ａ | B30: F 批發和零售業 | C30: 51 批發業 | D30: 0.76 | E30: -1.28 | F30: 4.8 | G30: -0.56 | H30: 3.36 | I30: 2.32 | J30: 3 | K30: 1.12
A31: 000034 神州數碼 | B31: F 批發和零售業 | C31: 51 批發業 | D31: 17.88 | E31: 1.11 | F31: -2.42 | G31: 8.92 | H31: 3.75 | I31: 3.12 | J31: 9.94 | K31: 10.12
A32: 000035 中國天楹 | B32: N 水利、環境和公共設施 | C32: 77 生態保護和環境治理 | D32: -16.83 | E32: 6.56 | F32: 13.95 | G32: 4.06 | H32: 12.49 | I32: 3.82 | J32: 10.63 | K32: 3.44
A33: 000036 華聯控股 | B33: K 房地產業 | C33: 70 房地產業 | D33: -0.42 | E33: 0.15 | F33: -1.43 | G33: -0.71 | H33: 3.6 | I33: -5.43 | J33: 14 | K33: 24.09
A34: 000037 深南電A | B34: D 電力、熱力、燃氣及水 | C34: 44 電力熱力生產和供應 | D34: 0.81 | E34: -5.81 | F34: -25.85 | G34: -9.81 | H34: -75.43 | I34: -15.57 | J34: -30.08 | K34: -1.52
A35: 000038 深大通 | B35: L 租賃和商務服務業 | C35: 72 商務服務業 | D35: 1.47 | E35: -6.22 | F35: -31.54 | G35: -0.56 | H35: 5.33 | I35: 2.81 | J35: 8.41 | K35: 3.3
A36: 000039 中集集團 | B36: C 製造業 | C36: 33 金屬製品業 | D36: 7.98 | E36: 6.65 | F36: 12.25 | G36: 3.64 | H36: 7.34 | I36: 0.94 | J36: -0.51 | K36: 2.97
A37: 000040 東旭藍天 | B37: E 建築業 | C37: 48 土木工程建築業 | D37: 5.48 | E37: 0.64 | F37: 2.85 | G37: 1.6 | H37: 4.77 | I37: 1.32 | J37: 1.94 | K37: 1.37
A38: 000042 中洲控股 | B38: K 房地產業 | C38: 70 房地產業 | D38: 7.98 | E38: 8.54 | F38: 9.33 | G38: 12.04 | H38: 9.06 | I38: 0.3 | J38: 3.91 | K38: 2.34
A39: 000043 中航地產 | B39: K 房地產業 | C39: 70 房地產業 | D39: 11.29 | E39: -2.72 | F39: 0.67 | G39: -3.35 | H39: -0.57 | I39: -2.5 | J39: -10.49 | K39: -2.53
A40: 000045 深紡織Ａ | B40: C 製造業 | C40: 39 電子設備製造業 | D40: -11.75 | E40: -1.7 | F40: -6.01 | G40: -1.78 | H40: -3.4 | I40: -1.47 | J40: -3.24 | K40: 0.35
A41: 000046 泛海控股 | B41: K 房地產業 | C41: 70 房地產業 | D41: 11.43 | E41: 1.5 | F41: 9.11 | G41: 6 | H41: 13.87 | I41: 4.62 | J41: 8.21 | K41: 1.41
A42: 000048 康達爾 | B42: C 製造業 | C42: 13 農副食品加工業 | D42: 3.19 | E42: 0.92 | F42: 23.94 | G42: 21.21 | H42: 30.49 | I42: 2.16 | J42: 0.73 | K42: -3.9
A43: 000049 德賽電池 | B43: C 製造業 | C43: 38 電氣機械及器材製造業 | D43: 47.58 | E43: 16.22 | F43: 37.17 | G43: 14.87 | H43: 27.08 | I43: 7.18 | J43: 25.61 | K43: 9.11
A44: 000050 深天馬Ａ | B44: C 製造業 | C44: 39 電子設備製造業 | D44: 21.33 | E44: 3.41 | F44: 6.6 | G44: 2.99 | H44: 4.93 | I44: 1.95 | J44: 4.15 | K44: 3.21
A45: 000055 方大集團 | B45: C 製造業 | C45: 33 金屬製品業 | D45: 5.49 | E45: 3.31 | F45: 5.03 | G45: 0.7 | H45: -1.13 | I45: 3.09 | J45: 38.01 | K45: 9.64
A46: 000056 皇庭國際 | B46: K 房地產業 | C46: 70 房地產業 | D46: -103.55 | E46: -4.76 | F46: -17.24 | G46: 0.3 | H46: -1.19 | I46: 1.01 | J46: 2.09 | K46: 2.16
A47: 000058 深賽格 | B47: L 租賃和商務服務業 | C47: 72 商務服務業 | D47: 5.15 | E47: 3.55
A48: 000059 華錦股份 | B48: C 製造業 | C48: 25 石油加工煉焦及核燃料 | D48: -1.78 | E48: -11.16 | F48: -17.71 | G48: 1.94 | H48: 3.8 | I48: 9.36 | J48: 24.27 | K48: 7.15
A49: 000060 中金嶺南 | B49: C 製造業 | C49: 32 有色金屬冶煉和壓延 | D49: 5.88 | E49: 2.52 | F49: 8.82 | G49: 2.14 | H49: -0.99 | I49: 0.77 | J49: 5.97 | K49: 5.87
A50: 000061 農產品 | B50: L 租賃和商務服務業 | C50: 72 商務服務業 | D50: 2.88 | E50: 1.46 | F50: 1.2 | G50: 1.2 | H50: 0.58 | I50: 0.6 | J50: -3.43 | K50: -0.35
A51: 000062 深圳華強 | B51: F 批發和零售業 | C51: 51 批發業 | D51: 26.94 | E51: 16.63 | F51: 19.38 | G51: 3.46 | H51: 5.87 | I51: 3.52 | J51: 11.29 | K51: 5.11
A52: 000063 中興通訊 | B52: C 製造業 | C52: 39 電子設備製造業 | D52: 0.8 | E52: 5.54 | F52: 9.74 | G52: 4.59 | H52: 9.59 | I52: 4.24 | J52: -7.04 | K52: 6.08
A53: 000065 北方國際 | B53: E 建築業 | C53: 48 土木工程建築業 | D53: 22.79 | E53: 6.29 | F53: 20.82 | G53: 3.85 | H53: 16.62 | I53: 4.09 | J53: 15.61 | K53: 5.46
A54: 000066 中國長城 | B54: C 製造業 | C54: 39 電子設備製造業 | D54: -11.87 | E54: -4.71 | F54: -7.13 | G54: -9.48 | H54: -13.91 | I54: 5.13 | J54: 3.33 | K54: 3.81
A55: 000068 華控賽格 | B55: C 製造業 | C55: 39 電子設備製造業 | D55: -17.51 | E55: -16.08 | F55: -67.5 | G55: -7.87 | H55: -0.07 | I55: -4.03 | J55: 1.2 | K55: -1.89
A56: 000069 華僑城Ａ | B56: N 水利、環境和公共設施 | C56: 78 公共設施管理業 | D56: 19.12 | E56: 8.04 | F56: 17.93 | G56: 4.94 | H56: 14.16 | I56: 4.05 | J56: 16.34 | K56: 3.71
A57: 000070 特發信息 | B57: C 製造業 | C57: 38 電氣機械及器材製造業 | D57: 4.71 | E57: 2.6 | F57: 5.56 | G57: 3.61 | H57: 7.36 | I57: 4.77 | J57: 11.83 | K57: 5.89
A58: 000078 海王生物 | B58: F 批發和零售業 | C58: 52 零售業 | D58: 15.66 | E58: 4.69 | F58: 4.24 | G58: 4.49 | H58: 7.15 | I58: 3.55 | J58: 12.25 | K58: 5.42
A59: 000088 鹽田港 | B59: G 交通運輸、倉儲&郵政 | C59: 54 道路運輸業 | D59: 8.47 | E59: 4.63 | F59: 7.72 | G59: 2.96 | H59: 5.02 | I59: 2.85 | J59: 6.14 | K59: 2.57
A60: 000089 深圳機場 | B60: G 交通運輸、倉儲&郵政 | C60: 56 航空運輸業 | D60: 6.73 | E60: 1.66 | F60: 3.39 | G60: 2.48 | H60: 5.95 | I60: 2.6 | J60: 5.51 | K60: 2.97
A61: 000090 天健集團 | B61: E 建築業 | C61: 48 土木工程建築業 | D61: 11.06 | E61: 0.79 | F61: 7.6 | G61: 5.71 | H61: 7.9 | I61: 0.76 | J61: 4.97 | K61: 5.33
A62: 000096 廣聚能源 | B62: F 批發和零售業 | C62: 51 批發業 | D62: 3.68 | E62: 2.49 | F62: 0.98 | G62: 0.95 | H62: -1.16 | I62: 3.9 | J62: 13.28 | K62: 4.01
A63: 000099 中信海直 | B63: G 交通運輸、倉儲&郵政 | C63: 56 航空運輸業 | D63: 7.78 | E63: 3.49 | F63: 7.96 | G63: 3.07 | H63: 6.19 | I63: 1.49 | J63: 1.51 | K63: 1.34
A64: 000100 TCL集團 | B64: C 製造業 | C64: 39 電子設備製造業 | D64: 11.69 | E64: 6.5 | G64: -192.08 | H64: -228.77 | I64: 0.99 | J64: -80.33 | K64: -170.63
A65: 000150 宜華健康 | B65: Q 衛生和社會工作 | C65: 83 衛生 | D65: 12.24 | E65: -0.76 | F65: -4.35 | G65: 0.17 | H65: -1.79 | I65: -5.56 | J65: -14.43 | K65: 3.91
A66: 000151 中成股份 | B66: F 批發和零售業 | C66: 51 批發業 | D66: 9.74 | E66: 8.61 | F66: 11.04 | G66: 7.21 | H66: 13.29 | I66: 5.46 | J66: 9.94 | K66: 5.26
A67: 000153 豐原藥業 | B67: C 製造業 | C67: 27 醫藥製造業 | D67: 2.47 | E67: 1.74 | F67: 2.66 | G67: 1.5 | H67: 2.34 | I67: 1.97 | J67: 9.32 | K67: 3.54
A68: 000155 *ST川化 | B68: C 製造業 | C68: 26 化學原料及化學製品 | D68: -42.48 | E68: -37.06 | F68: 1022.91 | G68: 12.71 | H68: 23.86 | I68: 11.14 | J68: -19.93 | K68: 2.84
A69: 000156 華數傳媒 | B69: R 文化、體育和娛樂業 | C69: 86 廣播電視電影影視 | D69: 19.69 | E69: 8.81 | F69: 19.68 | G69: 4.59 | H69: 9.96 | I69: 3.15 | J69: 6.26 | K69: 2.89
A70: 000157 中聯重科 | B70: C 製造業 | C70: 35 專用設備製造業 | D70: 10.67 | E70: 2.43 | F70: 1.4 | G70: -0.76 | H70: -0.08 | I70: -1.94 | J70: -3.82 | K70: -22.63
A71: 000158 常山北明 | B71: C 製造業 | C71: 17 紡織業 | D71: -0.32 | E71: -2.44 | F71: 1.27 | G71: -0.88 | H71: 7.99 | I71: -0.39 | J71: 6.18 | K71: 0.89
A72: 000159 國際實業 | B72: F 批發和零售業 | C72: 51 批發業 | D72: 2.73 | E72: -1.33 | F72: -5.41 | G72: -3.46 | H72: -2.56 | I72: -0.45 | J72: -1.15 | K72: -1.52
A73: 000166 申萬宏源 | B73: J 金融業 | C73: 67 資本市場服務
A74: 000301 東方市場 | B74: D 電力、熱力、燃氣及水 | C74: 44 電力熱力生產和供應 | D74: 5.98 | E74: 3.39 | F74: 6.98 | G74: 2.67 | H74: 5.05 | I74: 2.66 | J74: 4.34 | K74: 2.5
A75: 000333 美的集團 | B75: C 製造業 | C75: 38 電氣機械及器材製造業 | D75: 19.36 | E75: 19.57 | F75: 26.49 | G75: 16.43 | H75: 23.94 | I75: 17.37 | J75: 23.58 | K75: 14.34
A76: 000338 濰柴動力 | B76: C 製造業 | C76: 36 汽車製造業 | D76: 11.24 | E76: 11.22 | F76: 15.6 | G76: 3.05 | H76: 5.05 | I76: 4 | J76: 9.25 | K76: 8.21
A77: 000400 許繼電氣 | B77: C 製造業 | C77: 38 電氣機械及器材製造業 | D77: 25.19 | E77: 8.35 | F77: 23.51 | G77: 1.5 | H77: 12.34 | I77: 1.62 | J77: 12.94 | K77: 2.15
A78: 000401 冀東水泥 | B78: C 製造業 | C78: 30 非金屬礦物製品業 | D78: 1.77 | E78: -2.37 | F78: -3.55 | G78: -5.27 | H78: -19.31 | I78: -7.71 | J78: -6.03 | K78: 0.37
A79: 000402 金融街 | B79: K 房地產業 | C79: 70 房地產業 | D79: 13.81 | E79: 2.01 | F79: 8.04 | G79: -1.16 | H79: 0.25 | I79: 2.57 | J79: 2.1 | K79: 3.66
A80: 000403 ST生化 | B80: C 製造業 | C80: 27 醫藥製造業 | D80: 23.81 | E80: 24.31 | F80: 21.91 | G80: 10.25 | H80: 13.59 | I80: 7 | J80: 6.04 | K80: 7.41
A81: 000404 華意壓縮 | B81: C 製造業 | C81: 34 通用設備製造業 | D81: 14.28 | E81: 8.2 | F81: 10.83 | G81: 6.74 | H81: 10.66 | I81: 5.66 | J81: 11.14 | K81: 5.37
A82: 000407 勝利股份 | B82: D 電力、熱力、燃氣及水 | C82: 45 燃氣生產和供應業 | D82: 3.84 | E82: -2.64 | F82: 0.71 | G82: 0.65 | H82: 2.15 | I82: -0.4 | J82: -12.23 | K82: 3.11
A83: 000408 藏格控股 | B83: C 製造業 | C83: 26 化學原料及化學製品 | D83: 8.85 | E83: -4.62 | F83: -40.41 | G83: -2.08 | H83: 64.84 | J83: 20.36 | K83: 5
A84: 000409 山東地礦 | B84: S 綜合 | C84: 90 綜合 | D84: 11.3 | E84: 2.38 | F84: -2.58 | G84: -3.95 | H84: 10 | I84: 1.19 | J84: -13.09 | K84: -5.58
A85: 000410 *ST 瀋機 | B85: C 製造業 | C85: 34 通用設備製造業 | D85: -1.83 | E85: -2.62 | F85: -0.23 | G85: -10.48 | H85: -25.96 | I85: -22.48 | J85: -91.46 | K85: -85.9
A86: 000411 英特集團 | B86: F 批發和零售業 | C86: 51 批發業 | D86: 11.21 | E86: 5.5 | F86: 9.55 | G86: 5.48 | H86: 10.67 | I86: 5.59 | J86: 11.97 | K86: 5.56
A87: 000413 東旭光電 | B87: C 製造業 | C87: 39 電子設備製造業 | D87: 12.63 | E87: 7.21 | F87: 6.9 | G87: 5.61 | H87: 11.67 | I87: 3.86 | J87: 7.04 | K87: 2.98
A88: 000415 渤海金控 | B88: L 租賃和商務服務業 | C88: 71 租賃業 | D88: 12.52 | E88: 6.65 | F88: 12.26 | G88: 6.86 | H88: 9.07 | I88: 3.98 | J88: 8.28 | K88: 3.72
A89: 000416 民生控股 | B89: J 金融業 | C89: 69 其他金融業 | D89: 3.7 | E89: 1.71 | F89: -0.2 | G89: -0.72 | H89: -1.41 | I89: -5.49 | J89: -3.78 | K89: 0.75
A90: 000417 合肥百貨 | B90: F 批發和零售業 | C90: 52 零售業 | D90: 13.74 | E90: 7.06 | F90: 12.14 | G90: 5.24 | H90: 8.89 | I90: 5.55 | J90: 8.17 | K90: 4.45
A91: 000418 小天鵝Ａ | B91: C 製造業 | C91: 38 電氣機械及器材製造業 | D91: 7.93 | E91: 8.08 | F91: 13.14 | G91: 8.15 | H91: 15.33 | I91: 9.75 | J91: 17.71 | K91: 9.08
A92: 000419 通程控股 | B92: F 批發和零售業 | C92: 52 零售業 | D92: 7.51 | E92: 3.77 | F92: 6.72 | G92: 3.6 | H92: 5.06 | I92: 3.54 | J92: 5.33 | K92: 3.27
A93: 000420 吉林化纖 | B93: C 製造業 | C93: 28 化學纖維製造業 | D93: -110.95 | E93: 47.94 | F93: -27.9 | G93: -1.06 | H93: -0.17 | I93: 0.14 | J93: 0.87 | K93: 1.96
A94: 000421 南京公用 | B94: D 電力、熱力、燃氣及水 | C94: 45 燃氣生產和供應業 | D94: 5.95 | E94: 2.93 | F94: 15.06 | G94: 4.83 | H94: 12.85 | I94: 4.63 | J94: 9.5 | K94: 3.78
A95: 000422 湖北宜化 | B95: C 製造業 | C95: 26 化學原料及化學製品 | D95: 2.57 | E95: 0.88 | F95: 1.02 | G95: 0.36 | H95: 0.76 | I95: -0.56 | J95: -16.85 | K95: 0.63
A96: 000423 東阿阿膠 | B96: C 製造業 | C96: 27 醫藥製造業 | D96: 25.08 | E96: 10.57 | F96: 23.14 | G96: 11.3 | H96: 22.94 | I96: 11.06 | J96: 22.67 | K96: 9.78
A97: 000425 徐工機械 | B97: C 製造業 | C97: 35 專用設備製造業 | D97: 8.75 | E97: 3.98 | F97: 1.84 | G97: -1.42 | H97: -4.51 | I97: 0.35 | J97: 0.27 | K97: 2.36
A98: 000426 興業礦業 | B98: B 採礦業 | C98: 09 有色金屬礦採選業 | D98: 1.5 | E98: -0.02 | F98: 0.66 | G98: 0.43 | H98: -0.1 | I98: 0.84 | J98: 2.28 | K98: 4.1
A99: 000428 華天酒店 | B99: H 住宿和餐飲業 | C99: 61 住宿業 | D99: 5.76 | E99: -2.03 | F99: -4.4 | G99: 1.38 | H99: -10.54 | I99: -4.01 | J99: -13.66 | K99: -5.1
A100: 000429 粵高速Ａ | B100: G 交通運輸、倉儲&郵政 | C100: 54 道路運輸業 | D100: 2.1 | E100: 3.19 | F100: 5.8 | G100: 3.74 | H100: 12.32 | I100: 7.27 | J100: 14.01 | K100: 10.83
A101: 000430 張家界 | B101: N 水利、環境和公共設施 | C101: 78 公共設施管理業 | D101: 12.84 | E101: 4.43 | F101: 13.15 | G101: 9.28 | H101: 21.02 | I101: 5.56 | J101: 9.56 | K101: 1.8
A102: 000488 晨鳴紙業 | B102: C 製造業 | C102: 22 造紙及紙製品業 | D102: 4.83 | E102: 1.12 | F102: 2.62 | G102: 1.75 | H102: 5.99 | I102: 5.12 | J102: 11.32 | K102: 7.45
A103: 000498 山東路橋 | B103: E 建築業 | C103: 48 土木工程建築業 | D103: 12.11 | E103: 3.89 | F103: 12.11 | G103: 4.38 | H103: 13.25 | I103: 4.18 | J103: 12.47 | K103: 7.2
A104: 000501 鄂武商Ａ | B104: F 批發和零售業 | C104: 52 零售業 | D104: 21.53 | E104: 11.94 | F104: 19.09 | G104: 11.35 | H104: 20.03 | I104: 10.43 | J104: 19.28 | K104: 9.86
A105: 000502 綠景控股 | B105: K 房地產業 | C105: 70 房地產業 | D105: 3.36 | E105: 0.67 | F105: 1.68 | G105: -2.28 | H105: -13.25 | I105: -11.66 | J105: 16.58 | K105: -17.36
A106: 000503 海虹控股 | B106: I 信息傳輸&軟體 | C106: 64 互聯網和相關服務 | D106: 0.83 | E106: -0.04 | F106: 1.18 | G106: -4.3 | H106: -6.74 | I106: -4.88 | J106: -6.91 | K106: -6.2
A107: 000504 南華生物 | B107: R 文化、體育和娛樂業 | C107: 85 新聞和出版業 | D107: 304.96 | E107: -223.64 | F107: -429.12 | G107: -224.62 | H107: 585.13 | I107: 59.65 | J107: -42.56 | K107: -18.61
A108: 000505 珠江控股 | B108: K 房地產業 | C108: 70 房地產業 | D108: -93.51 | E108: -91.02 | F108: -248.73 | G108: 309.21 | H108: 238.56 | I108: 38.05 | J108: 184.91 | K108: 30.58
A109: 000506 中潤資源 | B109: B 採礦業 | C109: 09 有色金屬礦採選業 | D109: -7.57 | E109: -8.33 | F109: -13.2 | G109: -0.37 | H109: 2.16 | I109: 0.43 | J109: 0.64 | K109: -9.55
A110: 000507 珠海港 | B110: G 交通運輸、倉儲&郵政 | C110: 55 水上運輸業 | D110: -2.19 | E110: -1.07 | F110: -2.06 | G110: -0.36 | H110: -0.78 | I110: 0.89 | J110: 2.42 | K110: 1.54
A111: 000509 華塑控股 | B111: C 製造業 | C111: 29 橡膠和塑膠製品業 | D111: 145.61 | E111: -46.67 | F111: -270.25 | G111: -1455.81 | H111: -726.01 | I111: -122.42 | J111: -924.07 | K111: -63.55
A112: 000510 金路集團 | B112: C 製造業 | C112: 26 化學原料及化學製品 | D112: -18.66 | E112: -6.09 | F112: -12.36 | G112: -12.13 | H112: -20.13 | I112: 0.12 | J112: 6.21 | K112: 2.86
A113: 000511 *ST 烯碳 | B113: C 製造業 | C113: 30 非金屬礦物製品業 | D113: 1.96 | E113: 0.81 | F113: -4.65 | G113: -3.2 | H113: -7.73 | I113: -3.96 | J113: -23.61 | K113: -8.93
A114: 000513 麗珠集團 | B114: C 製造業 | C114: 27 醫藥製造業 | D114: 15.44 | E114: 8.27 | F114: 14.5 | G114: 8.64 | H114: 16.36 | I114: 9.34 | J114: 14.66 | K114: 7.57
A115: 000514 渝開發 | B115: K 房地產業 | C115: 70 房地產業 | D115: -1.03 | E115: 1.23 | F115: 3.13 | G115: -2.88 | H115: -3.18 | I115: -0.87 | J115: -3.33 | K115: 0.99
A116: 000516 國際醫學 | B116: F 批發和零售業 | C116: 52 零售業 | D116: 11.48 | E116: 9.98 | F116: 15.61 | G116: 5.08 | H116: 8.71 | I116: 3.64 | J116: 6.44 | K116: 3.65
A117: 000517 榮安地產 | B117: K 房地產業 | C117: 70 房地產業 | D117: 14.93 | E117: 3.18 | F117: 5.02 | G117: 0.58 | H117: 2.41 | I117: -0.47 | J117: 2.45 | K117: 10.87
A118: 000518 四環生物 | B118: C 製造業 | C118: 27 醫藥製造業 | D118: -4.66 | E118: 2.86 | F118: 3.14 | G118: 0.31 | H118: -7.44 | I118: -0.84 | J118: 2.53 | K118: -0.47
A119: 000519 中兵紅箭 | B119: C 製造業 | C119: 35 專用設備製造業 | D119: 13.76 | E119: 5.2 | F119: 10.19 | G119: 3.37 | H119: 7.83 | I119: 0.63 | J119: 1.98 | K119: -0.01
A120: 000520 長航鳳凰 | B120: G 交通運輸、倉儲&郵政 | C120: 55 水上運輸業 | D120: 84.94 | E120: -0.08 | F120: 2.42 | G120: 60.9 | H120: 66.26 | I120: -4.82 | J120: 4.04 | K120: 9
A121: 000521 美菱電器 | B121: C 製造業 | C121: 38 電氣機械及器材製造業 | D121: 9.11 | E121: 4.87 | F121: 8.36 | G121: 4.6 | H121: 0.79 | I121: 3.2 | J121: 4.47 | K121: 1.79
A122: 000523 廣州浪奇 | B122: C 製造業 | C122: 26 化學原料及化學製品 | D122: 3.19 | E122: 1.13 | F122: 3.77 | G122: 0.94 | H122: 2.73 | I122: 0.83 | J122: 2.7 | K122: 0.65
A123: 000524 嶺南控股 | B123: H 住宿和餐飲業 | C123: 61 住宿業 | D123: 5.37 | E123: 1.09 | F123: 4.82 | G123: 2.9 | H123: 4.9 | I123: 2.47 | J123: 3.16 | K123: 4.69
A124: 000525 紅太陽 | B124: C 製造業 | C124: 26 化學原料及化學製品 | D124: 10.39 | E124: 7.79 | F124: 10.69 | G124: 3.17 | H124: 1.64 | I124: 1.31 | J124: 2.72 | K124: 6.97
A125: 000526 *ST 紫學 | B125: P 教育 | C125: 82 教育 | D125: -4.19 | E125: -0.78 | F125: 1.29 | G125: 1.39 | H125: -8.93 | I125: -9.03 | J125: -102.43 | K125: 104.5
A126: 000528 柳工 | B126: C 製造業 | C126: 35 專用設備製造業 | D126: 4.59 | E126: 2.18 | F126: 1.65 | G126: 0.58 | H126: 0.54 | I126: 0.63 | J126: 0.57 | K126: 2.76
A127: 000529 廣弘控股 | B127: C 製造業 | C127: 13 農副食品加工業 | D127: 9.08 | E127: 4.28 | F127: 7.03 | G127: 3.88 | H127: 6.68 | I127: 3.9 | J127: 8.81 | K127: 3.95
A128: 000530 大冷股份 | B128: C 製造業 | C128: 34 通用設備製造業 | D128: 6.15 | E128: 3.41 | F128: 5.5 | G128: 2.55 | H128: 5.38 | I128: 1.78 | J128: 5.29 | K128: 1.77
A129: 000531 穗恒運Ａ | B129: D 電力、熱力、燃氣及水 | C129: 44 電力熱力生產和供應 | D129: 17.18 | E129: 18.33 | F129: 27.26 | G129: 8.39 | H129: 13.11 | I129: 5.81 | J129: 14.24 | K129: 3.06
A130: 000532 華金資本 | B130: S 綜合 | C130: 90 綜合 | D130: 1.84 | E130: -0.02 | F130: -2.76 | G130: -1.03 | H130: -2.48 | I130: 2.07 | J130: 6.8 | K130: 2.42
A131: 000533 萬家樂 | B131: C 製造業 | C131: 38 電氣機械及器材製造業 | D131: 6.2 | E131: 3.71 | F131: 7.34 | G131: 3.31 | H131: 6.43 | I131: 2.82 | J131: 1.11 | K131: 2.01
A132: 000534 萬澤股份 | B132: K 房地產業 | C132: 70 房地產業 | D132: 9.94 | E132: 1.84 | F132: 2.34 | G132: 2.17 | H132: -1.87 | I132: -6.74 | J132: -4.65 | K132: 0.26
A133: 000536 華映科技 | B133: C 製造業 | C133: 39 電子設備製造業 | D133: 9.69 | E133: 4.18 | F133: 8.32 | G133: 1.86 | H133: 6.3 | I133: -6.4 | J133: -2.06 | K133: 0.49
A134: 000537 廣宇發展 | B134: K 房地產業 | C134: 70 房地產業 | D134: 30.83 | E134: 12.51 | F134: 18.93 | G134: 6.03 | H134: 9.27 | I134: 5.02 | J134: 17.86 | K134: 1.4
A135: 000538 雲南白藥 | B135: C 製造業 | C135: 27 醫藥製造業 | D135: 20.64 | E135: 11.78 | F135: 24.29 | G135: 10.31 | H135: 21.59 | I135: 9.51 | J135: 18.93 | K135: 9.03
A136: 000539 粵電力Ａ | B136: D 電力、熱力、燃氣及水 | C136: 44 電力熱力生產和供應 | D136: 19.39 | E136: 9.09 | F136: 16.86 | G136: 7.96 | H136: 15.23 | I136: 3.53 | J136: 6.71 | K136: 0.95
A137: 000540 中天金融 | B137: K 房地產業 | C137: 70 房地產業 | D137: 34.24 | E137: 24.22 | F137: 28.26 | G137: 17.42 | H137: 25.27 | I137: 12.43 | J137: 19.53 | K137: 7.45
A138: 000541 佛山照明 | B138: C 製造業 | C138: 38 電氣機械及器材製造業 | D138: 8.43 | E138: 6.34 | F138: 8.04 | G138: 3.06 | H138: 2.13 | I138: 3.69 | J138: 3.94 | K138: 4.59
A139: 000543 皖能電力 | B139: D 電力、熱力、燃氣及水 | C139: 44 電力熱力生產和供應 | D139: 22.22 | E139: 8.06 | F139: 14.84 | G139: 8.16 | H139: 14.32 | I139: 4.87 | J139: 7.88 | K139: -1.69
A140: 000544 中原環保 | B140: D 電力、熱力、燃氣及水 | C140: 46 水的生產和供應業 | D140: 7.39 | E140: 4.28 | F140: 7.3 | G140: 3.18 | H140: 0.44 | I140: 3.15 | J140: 6.31 | K140: 3.12
A141: 000545 金浦鈦業 | B141: C 製造業 | C141: 26 化學原料及化學製品 | D141: 8.36 | E141: 2.63 | F141: 2.95 | G141: 0.81 | H141: 1.52 | I141: 1.08 | J141: 2.27 | K141: 5.94
A142: 000546 金圓股份 | B142: C 製造業 | C142: 30 非金屬礦物製品業 | D142: 23.44 | E142: -0.66 | F142: 15.4 | G142: -1.36 | H142: 12.69 | I142: 4.35 | J142: 15.49 | K142: 3.63
A143: 000547 航天發展 | B143: C 製造業 | C143: 39 電子設備製造業 | D143: 4.45 | E143: 0.71 | F143: 9.87 | G143: -4.44 | H143: 7.68 | I143: 2.09 | J143: 4.98 | K143: 2.3
A144: 000548 湖南投資 | B144: G 交通運輸、倉儲&郵政 | C144: 54 道路運輸業 | D144: 1.46 | E144: 0.92 | F144: 1.55 | G144: -0.14 | H144: 0.31 | I144: 2.86 | J144: 3.7 | K144: 7.52
A145: 000550 江鈴汽車 | B145: C 製造業 | C145: 36 汽車製造業 | D145: 20.31 | E145: 12.38 | F145: 22.35 | G145: 10.15 | H145: 19.79 | I145: 5.93 | J145: 10.75 | K145: 4.49
A146: 000551 創元科技 | B146: S 綜合 | C146: 90 綜合 | D146: 5.72 | E146: 3.07 | F146: 5.74 | G146: 2.06 | H146: 4.94 | I146: 3.45 | J146: 7.23 | K146: 3.8
A147: 000552 靖遠煤電 | B147: B 採礦業 | C147: 06 煤炭開採和洗選業 | D147: 17.9 | E147: 6.7 | F147: 12.41 | G147: 2.82 | H147: 3.81 | I147: 1.25 | J147: 3.51 | K147: 4.25
A148: 000553 沙隆達Ａ | B148: C 製造業 | C148: 26 化學原料及化學製品 | D148: 23.26 | E148: 17.18 | F148: 27.55 | G148: 5.77 | H148: 6.83 | I148: 0.31 | J148: -2.37 | K148: 8.12
A149: 000554 泰山石油 | B149: F 批發和零售業 | C149: 51 批發業 | D149: 1.6 | E149: 0.48 | F149: 0.87 | G149: 0.4 | H149: 0.49 | I149: 0.15 | J149: 0.8 | K149: 0.1
A150: 000555 神州信息 | B150: I 信息傳輸&軟體 | C150: 65 軟體和資訊技術服務業 | D150: 13 | E150: 4.3 | F150: 12.42 | G150: 2.96 | H150: 11.42 | I150: 2.25 | J150: 5.94 | K150: 1.91
A151: 000557 西部創業 | B151: G 交通運輸、倉儲&郵政 | C151: 53 鐵路運輸業 | D151: 2.56 | E151: 0.28 | F151: -1.04 | G151: -1.08 | H151: 2.6 | I151: -1.51 | J151: 0.36 | K151: 0.63
A152: 000558 萊茵體育 | B152: K 房地產業 | C152: 70 房地產業 | D152: 5.64 | E152: 4.18 | F152: 9.08 | G152: -0.63 | H152: -22.99 | I152: 3.11 | J152: 3.65 | K152: 0.79
A153: 000559 萬向錢潮 | B153: C 製造業 | C153: 36 汽車製造業 | D153: 14.3 | E153: 10 | F153: 18.13 | G153: 10.84 | H153: 18.01 | I153: 10.27 | J153: 18.36 | K153: 8.97
A154: 000560 昆百大Ａ | B154: F 批發和零售業 | C154: 52 零售業 | D154: 6.62 | E154: 6.29 | F154: 5.02 | G154: 0.15 | H154: 0.56 | I154: 1.26 | J154: 1.88 | K154: 1.04
A155: 000561 烽火電子 | B155: C 製造業 | C155: 39 電子設備製造業 | D155: 3.08 | E155: 1.1 | F155: 4.12 | G155: 0.79 | H155: 8.67 | I155: 3.71 | J155: 8.9 | K155: 1.85
A156: 000563 陝國投Ａ | B156: J 金融業 | C156: 69 其他金融業
A157: 000564 供銷大集 | B157: F 批發和零售業 | C157: 52 零售業 | D157: 3.59 | E157: 2.08 | F157: 3.58 | G157: 1.82 | H157: -5.64 | I157: 0.64 | J157: 2.28 | K157: 0.94
A158: 000565 渝三峽Ａ | B158: C 製造業 | C158: 26 化學原料及化學製品 | D158: 6.24 | E158: 3.54 | F158: 5.49 | G158: 3.72 | H158: 2.59 | I158: 4.32 | J158: 5.92 | K158: 4.04
A159: 000566 海南海藥 | B159: C 製造業 | C159: 27 醫藥製造業 | D159: 3.92 | E159: 5.14 | F159: 8.83 | G159: 4.81 | H159: 9.33 | I159: 4.37 | J159: 4.05 | K159: 1.8
A160: 000567 海德股份 | B160: K 房地產業 | C160: 70 房地產業 | D160: 1.21 | E160: 2.26 | F160: 2.08 | G160: 1.91 | H160: -2.02 | I160: 0.52 | J160: 1.34 | K160: 14.23
A161: 000568 瀘州老窖 | B161: C 製造業 | C161: 15 酒飲料和精製茶製造業 | D161: 34.62 | E161: 9.85 | F161: 9.53 | G161: 10.7 | H161: 15.37 | I161: 11.11 | J161: 18.24 | K161: 13.44
A162: 000570 蘇常柴Ａ | B162: C 製造業 | C162: 34 通用設備製造業 | D162: 3.27 | E162: 2.06 | F162: 3.32 | G162: 1.7 | H162: 3.46 | I162: 1.59 | J162: 2.89 | K162: 0.68
A163: 000571 新大洲Ａ | B163: B 採礦業 | C163: 06 煤炭開採和洗選業 | D163: 6.09 | E163: 2.46 | F163: 3.68 | G163: 1.81 | H163: 1.29 | I163: 0.56 | J163: 0.99 | K163: -3.52
A164: 000572 海馬汽車 | B164: C 製造業 | C164: 36 汽車製造業 | D164: 6.09 | E164: 1.6 | F164: 2.74 | G164: 2.1 | H164: 0.92 | I164: 1.11 | J164: 0.3 | K164: 0.33
A165: 000573 粵宏遠Ａ | B165: K 房地產業 | C165: 70 房地產業 | D165: 7.18 | E165: 0.91 | F165: 0.39 | G165: -1.9 | H165: -6.26 | I165: 0.99 | J165: 11.9 | K165: 3.95
A166: 000576 廣東甘化 | B166: C 製造業 | C166: 22 造紙及紙製品業 | D166: 3.35 | E166: 0.5 | F166: -0.48 | G166: -2.4 | H166: -12.18 | I166: -3.76 | J166: -16.02 | K166: -2.25
A167: 000581 威孚高科 | B167: C 製造業 | C167: 36 汽車製造業 | D167: 11.3 | E167: 8.3 | F167: 13.59 | G167: 7.54 | H167: 10.9 | I167: 6.9 | J167: 11.85 | K167: 9.07
A168: 000582 北部灣港 | B168: G 交通運輸、倉儲&郵政 | C168: 55 水上運輸業 | D168: 16.55 | E168: 8.63 | F168: 14.88 | G168: 4.85 | H168: 7.22 | I168: 3.9 | J168: 6.75 | K168: 4.19
A169: 000584 哈工智能 | B169: C 製造業 | C169: 28 化學纖維製造業 | D169: 20.26 | E169: 6.87 | F169: 10.61 | G169: 1.83 | H169: 0.13 | I169: -2.58 | J169: -8.47 | K169: -0.47
A170: 000585 東北電氣 | B170: C 製造業 | C170: 38 電氣機械及器材製造業 | D170: 1.18 | E170: -0.67 | F170: 1.89 | G170: -0.75 | H170: 1.36 | I170: -4.58 | J170: -21.83 | K170: -10.51
A171: 000586 匯源通信 | B171: C 製造業 | C171: 39 電子設備製造業 | D171: 1.61 | E171: 0.47 | F171: 4.15 | G171: -0.3 | H171: 7.21 | I171: 0.03 | J171: 1.46 | K171: -0.9
A172: 000587 金洲慈航 | B172: C 製造業 | C172: 41 其他製造業 | D172: 13.16 | E172: 5.48 | F172: 11.13 | G172: 4.89 | H172: 6.47 | I172: 6.35 | J172: 13.05 | K172: 0.73
A173: 000589 黔輪胎Ａ | B173: C 製造業 | C173: 29 橡膠和塑膠製品業 | D173: 7.03 | E173: 2.86 | F173: 4.96 | G173: 1.36 | H173: -8.08 | I173: -1.93 | J173: -5.94 | K173: -4.74
A174: 000590 啟迪古漢 | B174: C 製造業 | C174: 27 醫藥製造業 | D174: -33.3 | E174: -0.06 | F174: -35.5 | G174: 5.58 | H174: 9.98 | I174: 5.33 | J174: 1.47 | K174: 2.95
A175: 000591 太陽能 | B175: D 電力、熱力、燃氣及水 | C175: 44 電力熱力生產和供應 | D175: -2.92 | E175: 2.13 | F175: 12.31 | G175: 0.27 | H175: 7.95 | I175: 2.7 | J175: 7.32 | K175: 3.19
A176: 000592 平潭發展 | B176: A 農、林、牧、漁業 | C176: 02 林業 | D176: 3.66 | E176: 2.33 | F176: 4.96 | G176: 2.41 | H176: 1.56 | I176: 0.46 | J176: 0.47 | K176: -0.08
A177: 000593 大通燃氣 | B177: D 電力、熱力、燃氣及水 | C177: 45 燃氣生產和供應業 | D177: 2.88 | E177: 0.32 | F177: 2.46 | G177: 1.01 | H177: 2.66 | I177: 0.78 | J177: 1.35 | K177: 0.94
A178: 000595 *ST 寶實 | B178: C 製造業 | C178: 34 通用設備製造業 | D178: -47.88 | E178: -11.91 | F178: -50.98 | G178: -7.7 | H178: -23.75 | I178: -3.93 | J178: -12.05 | K178: 1.9
A179: 000596 古井貢酒 | B179: C 製造業 | C179: 15 酒飲料和精製茶製造業 | D179: 17.23 | E179: 7.93 | F179: 12.48 | G179: 7.88 | H179: 14.36 | I179: 7.61 | J179: 14.15 | K179: 8.22
A180: 000597 東北製藥 | B180: C 製造業 | C180: 27 醫藥製造業 | D180: -10.52 | E180: -0.4 | F180: 0.38 | G180: -3.16 | H180: -13.43 | I180: 0.28 | J180: 1.23 | K180: 1.4
A181: 000598 興蓉環境 | B181: D 電力、熱力、燃氣及水 | C181: 46 水的生產和供應業 | D181: 13.4 | E181: 5.73 | F181: 10.61 | G181: 4.96 | H181: 10.05 | I181: 5.49 | J181: 10.02 | K181: 4.85
A182: 000599 青島雙星 | B182: C 製造業 | C182: 29 橡膠和塑膠製品業 | D182: 2.32 | E182: 1.64 | F182: 3.17 | G182: 0.6 | H182: 1.76 | I182: 1.99 | J182: 2.64 | K182: 1.95
A183: 000600 建投能源 | B183: D 電力、熱力、燃氣及水 | C183: 44 電力熱力生產和供應 | D183: 23.65 | E183: 16.82 | F183: 31.01 | G183: 12.91 | H183: 22.64 | I183: 12.04 | J183: 14.72 | K183: 2.53
A184: 000601 韶能股份 | B184: D 電力、熱力、燃氣及水 | C184: 44 電力熱力生產和供應 | D184: 6.6 | E184: 4.94 | F184: 7 | G184: 3.74 | H184: 7.42 | I184: 9.1 | J184: 10.93 | K184: 7.25
A185: 000603 盛達礦業 | B185: B 採礦業 | C185: 09 有色金屬礦採選業 | D185: 69.91 | E185: 24.07 | F185: 56.25 | G185: 24.57 | H185: 40.59 | I185: 8.98 | J185: 17.38 | K185: 4.55
A186: 000605 渤海股份 | B186: D 電力、熱力、燃氣及水 | C186: 46 水的生產和供應業 | D186: 22.45 | E186: 0.96 | F186: 4.29 | G186: 0.96 | H186: 4.35 | I186: 0.96 | J186: 3.85 | K186: 2.75
A187: 000606 神州易橋 | B187: C 製造業 | C187: 27 醫藥製造業 | D187: -6.22 | E187: -2.91 | F187: -11.98 | G187: -5.52 | H187: -23.42 | I187: -0.01 | J187: 0.74 | K187: -1.6
A188: 000607 華媒控股 | B188: R 文化、體育和娛樂業 | C188: 85 新聞和出版業 | D188: 25.34 | E188: 1.43 | F188: 18.81 | G188: 5.07 | H188: 15.95 | I188: 4.04 | J188: 15.41 | K188: 2.1
A189: 000608 陽光股份 | B189: K 房地產業 | C189: 70 房地產業 | D189: 4.1 | E189: -1 | F189: -1220.9 | G189: -1.73 | H189: 0.25 | I189: -4.18 | J189: -9.7 | K189: -2.53
A190: 000609 綿石投資 | B190: S 綜合 | C190: 90 綜合 | D190: 0.32 | E190: -2.96 | F190: 4.32 | G190: -3.16 | H190: -1.14 | I190: 9.17 | J190: 4.13 | K190: -1.2
A191: 000610 西安旅遊 | B191: N 水利、環境和公共設施 | C191: 78 公共設施管理業 | D191: -6.69 | E191: -2.85 | F191: -5.71 | G191: -1.82 | H191: -6.21 | I191: -2.08 | J191: -6.61 | K191: -2.07
A192: 000611 天首發展 | B192: C 製造業 | C192: 17 紡織業 | D192: -0.63 | E192: -2.08 | F192: -8.81 | G192: -2.78 | H192: -96.93 | I192: -2.24 | J192: -0.25 | K192: -2.36
A193: 000612 焦作萬方 | B193: C 製造業 | C193: 32 有色金屬冶煉和壓延 | D193: 7.44 | E193: 2.54 | F193: 7.49 | G193: 1.3 | H193: -0.26 | I193: 2.73 | J193: 1.88 | K193: 2.34
A194: 000613 *ST 東海A | B194: H 住宿和餐飲業 | C194: 61 住宿業 | D194: -2.6 | E194: -1.04 | F194: -5.57 | G194: -4.1 | H194: -8.17 | I194: 0.22 | J194: -4.02 | K194: 2.29
A195: 000615 京漢股份 | B195: K 房地產業 | C195: 70 房地產業 | D195: -7.06 | F195: 8.56 | G195: -2.31 | H195: 6.58 | I195: 0.69 | J195: 14.14 | K195: -1.34
A196: 000616 海航投資 | B196: K 房地產業 | C196: 70 房地產業 | D196: 2.49 | E196: -5.48 | F196: -6.9 | G196: 1.45 | H196: -5.05 | I196: 0.11 | J196: -1.87 | K196: -1.58
A197: 000617 中油資本 | B197: J 金融業 | C197: 67 資本市場服務 | D197: 1.45 | E197: -4.06 | F197: -17.51 | G197: 1 | H197: 13.85 | I197: -34.89 | J197: 10.35 | K197: 4.51
A198: 000619 海螺型材 | B198: C 製造業 | C198: 29 橡膠和塑膠製品業 | D198: 6.53 | E198: 2.84 | F198: 4.63 | G198: 1.7 | H198: 4.33 | I198: 2.35 | J198: 2.53 | K198: -0.3
A199: 000620 新華聯 | B199: K 房地產業 | C199: 70 房地產業 | D199: 8.47 | E199: 2.65 | F199: 5.6 | G199: 1.41 | H199: 4.18 | I199: 1.17 | J199: 6.4 | K199: 0.38
A200: 000622 恒立實業 | B200: C 製造業 | C200: 35 專用設備製造業 | D200: 4.28 | E200: -3.87 | F200: -15.03 | G200: -7.85 | H200: -27.35 | I200: -7.6 | J200: 1.04 | K200: -4.09
... 3357 more rows

Sheet ROA
B1: CSRC分類-門類 | C1: CSRC分類-大類 | D1: 資產報酬% | E1: 資產報酬% | F1: 資產報酬% | G1: 資產報酬% | H1: 資產報酬% | I1: 資產報酬% | J1: 資產報酬% | K1: 資產報酬%
A2: 公司 | D2: 2013-12-31 | E2: 2014-06-30 | F2: 2014-12-31 | G2: 2015-06-30 | H2: 2015-12-31 | I2: 2016-06-30 | J2: 2016-12-30 | K2: 2017-06-30
A3: 000001 平安銀行 | B3: J 金融業 | C3: 66 貨幣金融服務
A4: 000002 萬科Ａ | B4: K 房地產業 | C4: 70 房地產業 | D4: 4.5 | E4: 1.08 | F4: 3.83 | G4: 1.4 | H4: 4.88 | I4: 1.18 | J4: 4.17 | K4: 1.26
A5: 000004 國農科技 | B5: C 製造業 | C5: 27 醫藥製造業 | D5: 2.66 | E5: -1.83 | F5: 5.41 | G5: 1.28 | H5: 1.45 | I5: 1.17 | J5: 4.97 | K5: -2.66
A6: 000005 世紀星源 | B6: N 水利、環境和公共設施 | C6: 77 生態保護和環境治理 | D6: -3 | E6: -1.62 | F6: -4.31 | G6: -1.5 | H6: -2.59 | I6: 5.93 | J6: 5.61 | K6: -0.18
A7: 000006 深振業Ａ | B7: K 房地產業 | C7: 70 房地產業 | D7: 7.51 | E7: 0.63 | F7: 5.36 | G7: 2.95 | H7: 4.88 | I7: 1.3 | J7: 7.02 | K7: 2.35
A8: 000007 全新好 | B8: K 房地產業 | C8: 70 房地產業 | D8: 5.15 | E8: -0.86 | F8: -3.64 | G8: -1.29 | H8: -1.04 | I8: -5.26 | J8: -8.1 | K8: -1.48
A9: 000008 神州高鐵 | B9: C 製造業 | C9: 37 鐵路、船舶、航空航太 | D9: 3.54 | E9: 1.1 | F9: 0.82 | G9: 3.33 | H9: 8.3 | I9: 0.84 | J9: 6.45 | K9: 0.66
A10: 000009 中國寶安 | B10: S 綜合 | C10: 90 綜合 | D10: 1.32 | E10: 0.37 | F10: 1.8 | G10: 1.71 | H10: 1.45 | I10: 1.95 | J10: 2.22 | K10: 1.42
A11: 000010 美麗生態 | B11: E 建築業 | C11: 48 土木工程建築業 | D11: -0.22 | E11: -0.79 | F11: -7.92 | G11: 0.26 | H11: 0.97 | I11: 1.25 | J11: 1.99 | K11: -0.58
A12: 000011 深物業A | B12: K 房地產業 | C12: 70 房地產業 | D12: 7.69 | E12: 2.96 | F12: 5.38 | G12: 0.67 | H12: 3.67 | I12: -0.1 | J12: 6.44 | K12: 5.78
A13: 000012 南玻Ａ | B13: C 製造業 | C13: 30 非金屬礦物製品業 | D13: 7.51 | E13: 2.5 | F13: 5.33 | G13: 1.62 | H13: 3.37 | I13: 3.39 | J13: 6.68 | K13: 2.84
A14: 000014 沙河股份 | B14: K 房地產業 | C14: 70 房地產業 | D14: 2.37 | E14: 2.29 | F14: 3.4 | G14: 0.78 | H14: 2.6 | I14: -0.41 | J14: 1.6 | K14: 0.33
A15: 000016 深康佳Ａ | B15: C 製造業 | C15: 39 電子設備製造業 | D15: 0.63 | E15: -1.07 | F15: -2.41 | G15: -1.57 | H15: -7.37 | I15: 0.65 | J15: 0.72 | K15: 0.76
A16: 000017 深中華A | B16: C 製造業 | C16: 37 鐵路、船舶、航空航太 | D16: -100.65 | E16: 2.09 | F16: 5.66 | G16: 1.1 | H16: -0.22 | I16: 0.99 | J16: 7.81 | K16: -4.13
A17: 000018 神州長城 | B17: E 建築業 | C17: 50 建築裝飾和其他建築業 | D17: 3.8 | E17: 0.38 | F17: 15.22 | G17: -0.06 | H17: 11.76 | I17: 5.01 | J17: 9.55 | K17: 3.95
A18: 000019 深深寶Ａ | B18: C 製造業 | C18: 15 酒飲料和精製茶製造業 | D18: -1.81 | E18: -2.16 | F18: 1.13 | G18: -0.05 | H18: -4.22 | I18: -1.83 | J18: -6.99 | K18: -1.81
A19: 000020 深華發A | B19: C 製造業 | C19: 39 電子設備製造業 | D19: 0.93 | E19: 0.95 | F19: 3.43 | G19: 0.34 | H19: 2.67 | I19: 1.21 | J19: 1.3 | K19: 0.76
A20: 000021 深科技 | B20: C 製造業 | C20: 39 電子設備製造業 | D20: 1.7 | E20: 1.63 | F20: 2.55 | G20: 1.02 | H20: 2.38 | I20: 0.68 | J20: 1.07 | K20: 1.21
A21: 000022 深赤灣Ａ | B21: G 交通運輸、倉儲&郵政 | C21: 55 水上運輸業 | D21: 9.67 | E21: 4.23 | F21: 8.18 | G21: 4.89 | H21: 10 | I21: 5.07 | J21: 10.19 | K21: 4.72
A22: 000023 深天地Ａ | B22: C 製造業 | C22: 30 非金屬礦物製品業 | D22: 1.56 | E22: 0.32 | F22: 1.92 | G22: 1.18 | H22: 3.29 | I22: 1.02 | J22: 1.7 | K22: 1.23
A23: 000025 特力Ａ | B23: F 批發和零售業 | C23: 51 批發業 | D23: 1.96 | E23: 1.38 | F23: 2.54 | G23: 1.15 | H23: 4.22 | I23: 1.43 | J23: 2.21 | K23: 1.46
A24: 000026 飛亞達Ａ | B24: F 批發和零售業 | C24: 52 零售業 | D24: 5.49 | E24: 3.32 | F24: 5.85 | G24: 2.77 | H24: 4.55 | I24: 1.97 | J24: 3.69 | K24: 2.6
A25: 000027 深圳能源 | B25: D 電力、熱力、燃氣及水 | C25: 44 電力熱力生產和供應 | D25: 6.11 | E25: 4.01 | F25: 7.38 | G25: 3.26 | H25: 5.05 | I25: 1.98 | J25: 3.25 | K25: 1.29
A26: 000028 國藥一致 | B26: F 批發和零售業 | C26: 51 批發業 | D26: 6.5 | E26: 3.52 | F26: 6.69 | G26: 3.34 | H26: 6.99 | I26: 2.67 | J26: 6.11 | K26: 2.94
A27: 000029 深深房Ａ | B27: K 房地產業 | C27: 70 房地產業 | D27: 5.66 | E27: 1.04 | F27: 7.57 | G27: 4.64 | H27: 7.66 | I27: 3.28 | J27: 7.83 | K27: 3.68
A28: 000030 富奧股份 | B28: C 製造業 | C28: 36 汽車製造業 | D28: 9.14 | E28: 4.89 | F28: 9.95 | G28: 4.27 | H28: 6.92 | I28: 4.55 | J28: 8.34 | K28: 4.7
A29: 000031 中糧地產 | B29: K 房地產業 | C29: 70 房地產業 | D29: 2.98 | E29: 0.94 | F29: 1.65 | G29: -0.52 | H29: 0.98 | I29: 1.25 | J29: 3 | K29: 0.95
A30: 000032 深桑達Ａ | B30: F 批發和零售業 | C30: 51 批發業 | D30: 0.55 | E30: -0.86 | F30: 3.11 | G30: -0.32 | H30: 2.42 | I30: 1.81 | J30: 2.38 | K30: 0.94
A31: 000034 神州數碼 | B31: F 批發和零售業 | C31: 51 批發業 | D31: 6.32 | E31: 0.44 | F31: -0.69 | G31: 3.52 | H31: 1.5 | I31: 1.18 | J31: 3.35 | K31: 2.32
A32: 000035 中國天楹 | B32: N 水利、環境和公共設施 | C32: 77 生態保護和環境治理 | D32: 9.77 | E32: 3.58 | F32: 7.73 | G32: 2.65 | H32: 7.23 | I32: 2.37 | J32: 5.52 | K32: 1.95
A33: 000036 華聯控股 | B33: K 房地產業 | C33: 70 房地產業 | D33: 0.14 | E33: 0.36 | F33: -0.48 | G33: -0.16 | H33: 1.95 | I33: -2 | J33: 5.95 | K33: 11.89
A34: 000037 深南電A | B34: D 電力、熱力、燃氣及水 | C34: 44 電力熱力生產和供應 | D34: 3.19 | E34: -0.59 | F34: -4.74 | G34: -0.98 | H34: -11.81 | I34: -0.28 | J34: -5.88 | K34: -0.12
A35: 000038 深大通 | B35: L 租賃和商務服務業 | C35: 72 商務服務業 | D35: 0.64 | E35: -1.79 | F35: -8.06 | G35: -0.13 | H35: 1.13 | I35: 1.97 | J35: 6.21 | K35: 2.74
A36: 000039 中集集團 | B36: C 製造業 | C36: 33 金屬製品業 | D36: 3.27 | E36: 2.39 | F36: 4.58 | G36: 1.4 | H36: 2.72 | I36: 0.49 | J36: 0.36 | K36: 1.2
A37: 000040 東旭藍天 | B37: E 建築業 | C37: 48 土木工程建築業 | D37: 2.34 | E37: 0.47 | F37: 1.63 | G37: 0.94 | H37: 1.84 | I37: 0.81 | J37: 2.13 | K37: 1.22
A38: 000042 中洲控股 | B38: K 房地產業 | C38: 70 房地產業 | D38: 3.67 | E38: 2.9 | F38: 3.09 | G38: 2.64 | H38: 2.77 | I38: 0.43 | J38: 2.07 | K38: 0.87
A39: 000043 中航地產 | B39: K 房地產業 | C39: 70 房地產業 | D39: 3.99 | E39: -0.03 | F39: 1.31 | G39: -0.16 | H39: 1.05 | I39: 0.06 | J39: -0.79 | K39: 0.11
A40: 000045 深紡織Ａ | B40: C 製造業 | C40: 39 電子設備製造業 | D40: -8.66 | E40: -1.25 | F40: -4.49 | G40: -1.27 | H40: -2.38 | I40: -1.02 | J40: -2.48 | K40: 0.33
A41: 000046 泛海控股 | B41: K 房地產業 | C41: 70 房地產業 | D41: 3.09 | E41: 0.41 | F41: 2.24 | G41: 1.23 | H41: 3.08 | I41: 1.28 | J41: 2.25 | K41: 0.59
A42: 000048 康達爾 | B42: C 製造業 | C42: 13 農副食品加工業 | D42: 1.81 | E42: 0.53 | F42: 8.28 | G42: 7.26 | H42: 11.24 | I42: 0.98 | J42: 0.53 | K42: -1.39
A43: 000049 德賽電池 | B43: C 製造業 | C43: 38 電氣機械及器材製造業 | D43: 10.5 | E43: 4.16 | F43: 7.88 | G43: 3.66 | H43: 7.53 | I43: 3.02 | J43: 8.46 | K43: 3.39
A44: 000050 深天馬Ａ | B44: C 製造業 | C44: 39 電子設備製造業 | D44: 9.7 | E44: 1.78 | F44: 4.08 | G44: 1.8 | H44: 3.21 | I44: 1.37 | J44: 2.78 | K44: 2.11
A45: 000055 方大集團 | B45: C 製造業 | C45: 33 金屬製品業 | D45: 3.31 | E45: 1.7 | F45: 2.69 | G45: 0.67 | H45: 0.49 | I45: 1.14 | J45: 12.72 | K45: 3.68
A46: 000056 皇庭國際 | B46: K 房地產業 | C46: 70 房地產業 | D46: -30.9 | E46: -0.93 | F46: -4.53 | G46: 0.98 | H46: 0.84 | I46: 1.03 | J46: 2.39 | K46: 1.67
A47: 000058 深賽格 | B47: L 租賃和商務服務業 | C47: 72 商務服務業 | D47: 3.74 | E47: 2.29
A48: 000059 華錦股份 | B48: C 製造業 | C48: 25 石油加工煉焦及核燃料 | D48: 1.43 | E48: -1.65 | F48: -2.7 | G48: 1.27 | H48: 2.53 | I48: 3.79 | J48: 9.52 | K48: 3.29
A49: 000060 中金嶺南 | B49: C 製造業 | C49: 32 有色金屬冶煉和壓延 | D49: 3.66 | E49: 1.63 | F49: 4.96 | G49: 1.51 | H49: 0.31 | I49: 0.76 | J49: 3.69 | K49: 3.44
A50: 000061 農產品 | B50: L 租賃和商務服務業 | C50: 72 商務服務業 | D50: 2.51 | E50: 1.15 | F50: 1.77 | G50: 1.06 | H50: 1.44 | I50: 0.75 | J50: -0.15 | K50: 0.41
A51: 000062 深圳華強 | B51: F 批發和零售業 | C51: 51 批發業 | D51: 11.07 | E51: 8.12 | F51: 10.13 | G51: 2.39 | H51: 3.97 | I51: 2.39 | J51: 7.16 | K51: 3.15
A52: 000063 中興通訊 | B52: C 製造業 | C52: 39 電子設備製造業 | D52: 1.24 | E52: 1.88 | F52: 3.37 | G52: 1.73 | H52: 3.63 | I52: 1.77 | J52: -1.64 | K52: 2.05
A53: 000065 北方國際 | B53: E 建築業 | C53: 48 土木工程建築業 | D53: 5.6 | E53: 1.54 | F53: 5.07 | G53: 1.12 | H53: 5.24 | I53: 1.27 | J53: 5.06 | K53: 1.67
A54: 000066 中國長城 | B54: C 製造業 | C54: 39 電子設備製造業 | D54: -1.75 | E54: -0.53 | F54: -0.72 | G54: -1.7 | H54: -2.32 | I54: 1.43 | J54: 1.21 | K54: 1.24
A55: 000068 華控賽格 | B55: C 製造業 | C55: 39 電子設備製造業 | D55: -3.49 | E55: -3.57 | F55: -17.41 | G55: -5.29 | H55: 0.05 | I55: -3.58 | J55: 0.95 | K55: -0.56
A56: 000069 華僑城Ａ | B56: N 水利、環境和公共設施 | C56: 78 公共設施管理業 | D56: 6.44 | E56: 2.8 | F56: 6.47 | G56: 1.91 | H56: 5.58 | I56: 1.68 | J56: 6.14 | K56: 1.43
A57: 000070 特發信息 | B57: C 製造業 | C57: 38 電氣機械及器材製造業 | D57: 2.77 | E57: 1.46 | F57: 3.03 | G57: 1.83 | H57: 3.67 | I57: 2.36 | J57: 5.76 | K57: 2.72
A58: 000078 海王生物 | B58: F 批發和零售業 | C58: 52 零售業 | D58: 4.9 | E58: 1.82 | F58: 2.71 | G58: 1.62 | H58: 2.77 | I58: 1.65 | J58: 4.25 | K58: 2.11
A59: 000088 鹽田港 | B59: G 交通運輸、倉儲&郵政 | C59: 54 道路運輸業 | D59: 7.9 | E59: 4.24 | F59: 6.69 | G59: 2.48 | H59: 4.2 | I59: 2.29 | J59: 4.95 | K59: 2.04
A60: 000089 深圳機場 | B60: G 交通運輸、倉儲&郵政 | C60: 56 航空運輸業 | D60: 4.76 | E60: 1.45 | F60: 3.01 | G60: 2.04 | H60: 4.73 | I60: 2.23 | J60: 4.73 | K60: 2.54
A61: 000090 天健集團 | B61: E 建築業 | C61: 48 土木工程建築業 | D61: 4.15 | E61: 0.47 | F61: 3.02 | G61: 2.19 | H61: 3.45 | I61: 0.74 | J61: 2.44 | K61: 1.95
A62: 000096 廣聚能源 | B62: F 批發和零售業 | C62: 51 批發業 | D62: 3.35 | E62: 2.3 | F62: 0.91 | G62: 0.86 | H62: -1.07 | I62: 3.59 | J62: 12.36 | K62: 3.8
A63: 000099 中信海直 | B63: G 交通運輸、倉儲&郵政 | C63: 56 航空運輸業 | D63: 5.14 | E63: 2.5 | F63: 5.39 | G63: 2.1 | H63: 4.4 | I63: 1.11 | J63: 1.91 | K63: 1.24
A64: 000100 TCL集團 | B64: C 製造業 | C64: 39 電子設備製造業 | D64: 3.75 | E64: 2.17 | G64: -57.99 | H64: -71.23 | I64: 0.67 | J64: -25.14 | K64: -54.26
A65: 000150 宜華健康 | B65: Q 衛生和社會工作 | C65: 83 衛生 | D65: 4.26 | E65: -0.02 | F65: -0.57 | G65: 0.61 | H65: 0.65 | I65: -1.74 | J65: -3.69 | K65: 1.99
A66: 000151 中成股份 | B66: F 批發和零售業 | C66: 51 批發業 | D66: 4.42 | E66: 2.98 | F66: 4.05 | G66: 2.47 | H66: 5.03 | I66: 2.52 | J66: 4.46 | K66: 2.46
A67: 000153 豐原藥業 | B67: C 製造業 | C67: 27 醫藥製造業 | D67: 2.18 | E67: 1.55 | F67: 2.41 | G67: 1.27 | H67: 2.15 | I67: 1.38 | J67: 5.34 | K67: 1.98
A68: 000155 *ST川化 | B68: C 製造業 | C68: 26 化學原料及化學製品 | D68: -13.11 | E68: -6.71 | F68: -32.19 | G68: -6.78 | H68: -22.79 | I68: -22.29 | J68: -6.05 | K68: 2.68
A69: 000156 華數傳媒 | B69: R 文化、體育和娛樂業 | C69: 86 廣播電視電影影視 | D69: 6.9 | E69: 3.5 | F69: 7.68 | G69: 2.93 | H69: 6.29 | I69: 2.3 | J69: 4.54 | K69: 2.07
A70: 000157 中聯重科 | B70: C 製造業 | C70: 35 專用設備製造業 | D70: 5.71 | E70: 1.55 | F70: 1.56 | G70: 0.26 | H70: 1.19 | I70: -0.23 | J70: -0.45 | K70: -8.94
A71: 000158 常山北明 | B71: C 製造業 | C71: 17 紡織業 | D71: 1.23 | E71: -0.37 | F71: 2.09 | G71: 0.06 | H71: 4.97 | I71: 0.36 | J71: 4.07 | K71: 1.04
A72: 000159 國際實業 | B72: F 批發和零售業 | C72: 51 批發業 | D72: 2.94 | E72: -0.48 | F72: -3.09 | G72: -2.2 | H72: -1.35 | I72: -0.11 | J72: -0.36 | K72: -0.81
A73: 000166 申萬宏源 | B73: J 金融業 | C73: 67 資本市場服務
A74: 000301 東方市場 | B74: D 電力、熱力、燃氣及水 | C74: 44 電力熱力生產和供應 | D74: 4.89 | E74: 2.88 | F74: 5.96 | G74: 2.26 | H74: 3.57 | I74: 2.05 | J74: 3.02 | K74: 2.21
A75: 000333 美的集團 | B75: C 製造業 | C75: 38 電氣機械及器材製造業 | D75: 8.05 | E75: 7.44 | F75: 10.46 | G75: 6.19 | H75: 9.9 | I75: 7.08 | J75: 10.01 | K75: 5.3
A76: 000338 濰柴動力 | B76: C 製造業 | C76: 36 汽車製造業 | D76: 5.57 | E76: 4.24 | F76: 6.5 | G76: 1.4 | H76: 2.45 | I76: 1.8 | J76: 3.47 | K76: 2.46
A77: 000400 許繼電氣 | B77: C 製造業 | C77: 38 電氣機械及器材製造業 | D77: 12.03 | E77: 4.35 | F77: 12.53 | G77: 1.04 | H77: 7.23 | I77: 1.01 | J77: 7.22 | K77: 1.25
A78: 000401 冀東水泥 | B78: C 製造業 | C78: 30 非金屬礦物製品業 | D78: 2.86 | E78: 0.36 | F78: 1.27 | G78: -0.53 | H78: -3.33 | I78: -1.01 | J78: 0.4 | K78: 1.08
A79: 000402 金融街 | B79: K 房地產業 | C79: 70 房地產業 | D79: 4.64 | E79: 0.82 | F79: 3.16 | G79: 0.01 | H79: 0.76 | I79: 0.95 | J79: 1.18 | K79: 1.35
A80: 000403 ST生化 | B80: C 製造業 | C80: 27 醫藥製造業 | D80: 10.95 | E80: 8.84 | F80: 9.54 | G80: 4.98 | H80: 7.14 | I80: 3.96 | J80: 4.23 | K80: 4.04
A81: 000404 華意壓縮 | B81: C 製造業 | C81: 34 通用設備製造業 | D81: 5.05 | E81: 3.34 | F81: 4.63 | G81: 2.8 | H81: 4.61 | I81: 2.39 | J81: 4.92 | K81: 2.43
A82: 000407 勝利股份 | B82: D 電力、熱力、燃氣及水 | C82: 45 燃氣生產和供應業 | D82: 3.43 | E82: -0.18 | F82: 1.87 | G82: 0.92 | H82: 2.45 | I82: 0.29 | J82: -5.78 | K82: 2.2
A83: 000408 藏格控股 | B83: C 製造業 | C83: 26 化學原料及化學製品 | D83: 3.26 | E83: -1.57 | F83: -12.51 | G83: -0.53 | H83: 36.79 | J83: 15.05 | K83: 4.39
A84: 000409 山東地礦 | B84: S 綜合 | C84: 90 綜合 | D84: 7.95 | E84: 1.58 | F84: -0.62 | G84: -0.97 | H84: 4.54 | I84: 1.24 | J84: -1.07 | K84: -0.53
A85: 000410 *ST 瀋機 | B85: C 製造業 | C85: 34 通用設備製造業 | D85: 1.93 | E85: 0.82 | F85: 2.54 | G85: -0.19 | H85: -0.32 | I85: -0.74 | J85: -3.43 | K85: -0.65
A86: 000411 英特集團 | B86: F 批發和零售業 | C86: 51 批發業 | D86: 4.42 | E86: 2.11 | F86: 4.09 | G86: 2.03 | H86: 4.11 | I86: 1.96 | J86: 4.09 | K86: 1.81
A87: 000413 東旭光電 | B87: C 製造業 | C87: 39 電子設備製造業 | D87: 7.42 | E87: 4.59 | F87: 4.2 | G87: 3.2 | H87: 6.89 | I87: 2.25 | J87: 4.48 | K87: 2.21
A88: 000415 渤海金控 | B88: L 租賃和商務服務業 | C88: 71 租賃業 | D88: 4.15 | E88: 1.76 | F88: 3.11 | G88: 1.86 | H88: 3.17 | I88: 1.61 | J88: 3.21 | K88: 1.46
A89: 000416 民生控股 | B89: J 金融業 | C89: 69 其他金融業 | D89: 3.28 | E89: 1.53 | F89: -0.18 | G89: -0.62 | H89: -0.65 | I89: -2.9 | J89: -2.11 | K89: 0.76
A90: 000417 合肥百貨 | B90: F 批發和零售業 | C90: 52 零售業 | D90: 6.37 | E90: 3.33 | F90: 5.72 | G90: 2.56 | H90: 4.25 | I90: 2.66 | J90: 3.82 | K90: 2.05
A91: 000418 小天鵝Ａ | B91: C 製造業 | C91: 38 電氣機械及器材製造業 | D91: 3.99 | E91: 3.96 | F91: 6.26 | G91: 3.81 | H91: 6.69 | I91: 4.06 | J91: 6.96 | K91: 3.47
A92: 000419 通程控股 | B92: F 批發和零售業 | C92: 52 零售業 | D92: 3.92 | E92: 2.05 | F92: 3.5 | G92: 1.99 | H92: 2.7 | I92: 1.94 | J92: 2.86 | K92: 1.8
A93: 000420 吉林化纖 | B93: C 製造業 | C93: 28 化學纖維製造業 | D93: -9.32 | E93: 3.74 | F93: -2.77 | G93: 0.51 | H93: 1.47 | I93: 0.52 | J93: 1.42 | K93: 1.57
A94: 000421 南京公用 | B94: D 電力、熱力、燃氣及水 | C94: 45 燃氣生產和供應業 | D94: 3.34 | E94: 1.93 | F94: 9.03 | G94: 2.95 | H94: 7.31 | I94: 2.54 | J94: 5.26 | K94: 1.94
A95: 000422 湖北宜化 | B95: C 製造業 | C95: 26 化學原料及化學製品 | D95: 2.86 | E95: 1.57 | F95: 2.88 | G95: 1.28 | H95: 2.04 | I95: 0.61 | J95: -1.59 | K95: 0.83
A96: 000423 東阿阿膠 | B96: C 製造業 | C96: 27 醫藥製造業 | D96: 20.89 | E96: 9.09 | F96: 19.14 | G96: 9.38 | H96: 18.74 | I96: 9.12 | J96: 18.93 | K96: 7.75
A97: 000425 徐工機械 | B97: C 製造業 | C97: 35 專用設備製造業 | D97: 4.43 | E97: 2.2 | F97: 1.93 | G97: -0.17 | H97: -0.96 | I97: 0.64 | J97: 0.88 | K97: 1.35
A98: 000426 興業礦業 | B98: B 採礦業 | C98: 09 有色金屬礦採選業 | D98: 1.78 | E98: 0.3 | F98: 1.04 | G98: 0.66 | H98: 0.47 | I98: 0.64 | J98: 1.54 | K98: 2.88
A99: 000428 華天酒店 | B99: H 住宿和餐飲業 | C99: 61 住宿業 | D99: 2.39 | E99: 0.09 | F99: 0.01 | G99: 0.84 | H99: -2.02 | I99: -0.87 | J99: -2.74 | K99: -0.94
A100: 000429 粵高速Ａ | B100: G 交通運輸、倉儲&郵政 | C100: 54 道路運輸業 | D100: 3.09 | E100: 2.42 | F100: 4.75 | G100: 2.8 | H100: 8.16 | I100: 4.58 | J100: 8.72 | K100: 6.64
A101: 000430 張家界 | B101: N 水利、環境和公共設施 | C101: 78 公共設施管理業 | D101: 10.25 | E101: 3.52 | F101: 10.31 | G101: 7.11 | H101: 15.72 | I101: 3.62 | J101: 4.99 | K101: 0.95
A102: 000488 晨鳴紙業 | B102: C 製造業 | C102: 22 造紙及紙製品業 | D102: 3.22 | E102: 1.19 | F102: 2.47 | G102: 1.3 | H102: 3.12 | I102: 1.9 | J102: 4.45 | K102: 2.44
A103: 000498 山東路橋 | B103: E 建築業 | C103: 48 土木工程建築業 | D103: 4.08 | E103: 1.52 | F103: 4.09 | G103: 1.64 | H103: 4.49 | I103: 1.49 | J103: 3.86 | K103: 1.98
A104: 000501 鄂武商Ａ | B104: F 批發和零售業 | C104: 52 零售業 | D104: 5.59 | E104: 3.36 | F104: 4.97 | G104: 2.88 | H104: 5.13 | I104: 3.01 | J104: 5.77 | K104: 3.68
A105: 000502 綠景控股 | B105: K 房地產業 | C105: 70 房地產業 | D105: 2.78 | E105: 0.55 | F105: 1.37 | G105: -1.84 | H105: -8.58 | I105: -5.24 | J105: 7.48 | K105: -6.99
A106: 000503 海虹控股 | B106: I 信息傳輸&軟體 | C106: 64 互聯網和相關服務 | D106: 0.93 | E106: 0.07 | F106: 1.27 | G106: -4 | H106: -6.23 | I106: -4.58 | J106: -6.49 | K106: -5.92
A107: 000504 南華生物 | B107: R 文化、體育和娛樂業 | C107: 85 新聞和出版業 | D107: -25.09 | E107: -8.26 | F107: -19.13 | G107: -7.3 | H107: -18.47 | I107: -9.97 | J107: -5.52 | K107: -3.42
A108: 000505 珠江控股 | B108: K 房地產業 | C108: 70 房地產業 | D108: -9.56 | E108: -4.11 | F108: -8.93 | G108: -4.32 | H108: -11.1 | I108: -3.8 | J108: -7.09 | K108: 2.03
A109: 000506 中潤資源 | B109: B 採礦業 | C109: 09 有色金屬礦採選業 | D109: -2.74 | E109: -4.32 | F109: -6.68 | G109: -0.1 | H109: 1.22 | I109: 0.44 | J109: 1.32 | K109: -3.85
A110: 000507 珠海港 | B110: G 交通運輸、倉儲&郵政 | C110: 55 水上運輸業 | D110: 0.11 | E110: -0.09 | F110: 0.14 | G110: 0.51 | H110: 0.98 | I110: 1.05 | J110: 2.51 | K110: 1.41
A111: 000509 華塑控股 | B111: C 製造業 | C111: 29 橡膠和塑膠製品業 | D111: -13.05 | E111: -2.91 | F111: -15.02 | G111: -3.25 | H111: -26.29 | I111: -4.3 | J111: -55.75 | K111: -3.05
A112: 000510 金路集團 | B112: C 製造業 | C112: 26 化學原料及化學製品 | D112: -8 | E112: -2.3 | F112: -4.2 | G112: -4.6 | H112: -8 | I112: 0.53 | J112: 4.44 | K112: 2.23
A113: 000511 *ST 烯碳 | B113: C 製造業 | C113: 30 非金屬礦物製品業 | D113: 0.94 | E113: 0.41 | F113: -0.57 | G113: -0.24 | H113: -0.83 | I113: -0.52 | J113: -5.83 | K113: -1.74
A114: 000513 麗珠集團 | B114: C 製造業 | C114: 27 醫藥製造業 | D114: 8.69 | E114: 4.62 | F114: 8.29 | G114: 5.11 | H114: 9.73 | I114: 5.67 | J114: 9.58 | K114: 4.25
A115: 000514 渝開發 | B115: K 房地產業 | C115: 70 房地產業 | D115: 0.37 | E115: 1.01 | F115: 2.35 | G115: -0.71 | H115: -0.19 | I115: 0.14 | J115: -0.54 | K115: 0.88
A116: 000516 國際醫學 | B116: F 批發和零售業 | C116: 52 零售業 | D116: 5.18 | E116: 4.46 | F116: 7.32 | G116: 3.27 | H116: 5.63 | I116: 2.57 | J116: 4.61 | K116: 2.59
A117: 000517 榮安地產 | B117: K 房地產業 | C117: 70 房地產業 | D117: 4.82 | E117: 1.61 | F117: 2.65 | G117: 0.45 | H117: 1.83 | I117: 0.22 | J117: 1.65 | K117: 4.22
A118: 000518 四環生物 | B118: C 製造業 | C118: 27 醫藥製造業 | D118: -3.72 | E118: 2.59 | F118: 3.14 | G118: 0.49 | H118: -5.51 | I118: -0.37 | J118: 2.63 | K118: -0.24
A119: 000519 中兵紅箭 | B119: C 製造業 | C119: 35 專用設備製造業 | D119: 10.28 | E119: 4.23 | F119: 8.27 | G119: 2.96 | H119: 5.92 | I119: 0.59 | J119: 1.56 | K119: 0.08
A120: 000520 長航鳳凰 | B120: G 交通運輸、倉儲&郵政 | C120: 55 水上運輸業 | D120: -77.54 | E120: 2.09 | F120: -8.88 | G120: 20.29 | H120: 24.71 | I120: -2.35 | J120: 2.03 | K120: 4.67
A121: 000521 美菱電器 | B121: C 製造業 | C121: 38 電氣機械及器材製造業 | D121: 3.29 | E121: 1.55 | F121: 3.1 | G121: 1.71 | H121: 0.48 | I121: 1.08 | J121: 1.88 | K121: 0.74
A122: 000523 廣州浪奇 | B122: C 製造業 | C122: 26 化學原料及化學製品 | D122: 2.33 | E122: 0.86 | F122: 2.24 | G122: 0.73 | H122: 1.64 | I122: 0.62 | J122: 1.47 | K122: 0.54
A123: 000524 嶺南控股 | B123: H 住宿和餐飲業 | C123: 61 住宿業 | D123: 4.12 | E123: 0.86 | F123: 3.44 | G123: 2.09 | H123: 3.53 | I123: 1.83 | J123: 2.31 | K123: 2.99
A124: 000525 紅太陽 | B124: C 製造業 | C124: 26 化學原料及化學製品 | D124: 5.01 | E124: 3.48 | F124: 5.41 | G124: 2.02 | H124: 1.76 | I124: 1.01 | J124: 2.08 | K124: 3.66
A125: 000526 *ST 紫學 | B125: P 教育 | C125: 82 教育 | D125: -3.32 | E125: -0.61 | F125: 1.02 | G125: 1.1 | H125: -4.98 | I125: -0.16 | J125: -3.09 | K125: 3.52
A126: 000528 柳工 | B126: C 製造業 | C126: 35 專用設備製造業 | D126: 2.61 | E126: 1.3 | F126: 1.48 | G126: 0.68 | H126: 1.08 | I126: 0.65 | J126: 0.99 | K126: 1.49
A127: 000529 廣弘控股 | B127: C 製造業 | C127: 13 農副食品加工業 | D127: 6.44 | E127: 2.96 | F127: 5.16 | G127: 2.76 | H127: 5.11 | I127: 2.95 | J127: 6.95 | K127: 2.92
A128: 000530 大冷股份 | B128: C 製造業 | C128: 34 通用設備製造業 | D128: 4.16 | E128: 2.34 | F128: 3.81 | G128: 1.84 | H128: 3.7 | I128: 1.22 | J128: 3.6 | K128: 1.19
A129: 000531 穗恒運Ａ | B129: D 電力、熱力、燃氣及水 | C129: 44 電力熱力生產和供應 | D129: 7.14 | E129: 7.26 | F129: 12.22 | G129: 4.8 | H129: 7.64 | I129: 3.4 | J129: 8.03 | K129: 2.01
A130: 000532 華金資本 | B130: S 綜合 | C130: 90 綜合 | D130: 1.71 | E130: 0.06 | F130: -2.06 | G130: -0.74 | H130: -1.35 | I130: 1.59 | J130: 4.41 | K130: 1.62
A131: 000533 萬家樂 | B131: C 製造業 | C131: 38 電氣機械及器材製造業 | D131: 3.74 | E131: 2.19 | F131: 4.29 | G131: 1.98 | H131: 3.82 | I131: 1.61 | J131: 1.1 | K131: 1.51
A132: 000534 萬澤股份 | B132: K 房地產業 | C132: 70 房地產業 | D132: 5.09 | E132: 0.97 | F132: 1.96 | G132: 1.14 | H132: -0.31 | I132: -2.85 | J132: -1.29 | K132: 0.59
A133: 000536 華映科技 | B133: C 製造業 | C133: 39 電子設備製造業 | D133: 5.4 | E133: 2.43 | F133: 4.9 | G133: 1.59 | H133: 3.93 | I133: -1.36 | J133: -0.15 | K133: 0.65
A134: 000537 廣宇發展 | B134: K 房地產業 | C134: 70 房地產業 | D134: 14.85 | E134: 6.43 | F134: 9.64 | G134: 3.14 | H134: 3.8 | I134: 1.44 | J134: 4.08 | K134: 0.27
A135: 000538 雲南白藥 | B135: C 製造業 | C135: 27 醫藥製造業 | D135: 14.19 | E135: 8.47 | F135: 17.1 | G135: 7.39 | H135: 15.33 | I135: 6.64 | J135: 13.06 | K135: 6.07
A136: 000539 粵電力Ａ | B136: D 電力、熱力、燃氣及水 | C136: 44 電力熱力生產和供應 | D136: 8.64 | E136: 4.35 | F136: 8.24 | G136: 3.97 | H136: 7.7 | I136: 2.13 | J136: 4.03 | K136: 1.03
A137: 000540 中天金融 | B137: K 房地產業 | C137: 70 房地產業 | D137: 3.85 | E137: 2.64 | F137: 4.17 | G137: 3.39 | H137: 5.49 | I137: 3.44 | J137: 5.63 | K137: 2.57
A138: 000541 佛山照明 | B138: C 製造業 | C138: 38 電氣機械及器材製造業 | D138: 7.32 | E138: 5.31 | F138: 6.81 | G138: 2.53 | H138: 1.77 | I138: 3.07 | J138: 3.26 | K138: 3.76
A139: 000543 皖能電力 | B139: D 電力、熱力、燃氣及水 | C139: 44 電力熱力生產和供應 | D139: 10.64 | E139: 4.46 | F139: 8.88 | G139: 5.12 | H139: 9.1 | I139: 3.15 | J139: 5.23 | K139: -0.52
A140: 000544 中原環保 | B140: D 電力、熱力、燃氣及水 | C140: 46 水的生產和供應業 | D140: 5.12 | E140: 2.6 | F140: 4.94 | G140: 2.33 | H140: 1.69 | I140: 2.71 | J140: 5.66 | K140: 2.82
A141: 000545 金浦鈦業 | B141: C 製造業 | C141: 26 化學原料及化學製品 | D141: 5.66 | E141: 1.83 | F141: 2.33 | G141: 0.71 | H141: 1.37 | I141: 0.87 | J141: 1.89 | K141: 4.47
A142: 000546 金圓股份 | B142: C 製造業 | C142: 30 非金屬礦物製品業 | D142: 11.5 | E142: -0.25 | F142: 7.29 | G142: -0.02 | H142: 6.9 | I142: 2.77 | J142: 8.59 | K142: 2.4
A143: 000547 航天發展 | B143: C 製造業 | C143: 39 電子設備製造業 | D143: 3.72 | E143: 0.84 | F143: 6.44 | G143: -2.31 | H143: 6.48 | I143: 1.86 | J143: 4.27 | K143: 1.77
A144: 000548 湖南投資 | B144: G 交通運輸、倉儲&郵政 | C144: 54 道路運輸業 | D144: 1.8 | E144: 0.99 | F144: 1.75 | G144: -0.02 | H144: 0.4 | I144: 2.04 | J144: 2.59 | K144: 5.41
A145: 000550 江鈴汽車 | B145: C 製造業 | C145: 36 汽車製造業 | D145: 11.94 | E145: 6.8 | F145: 12.28 | G145: 6.08 | H145: 10.92 | I145: 3.33 | J145: 5.71 | K145: 2.27
A146: 000551 創元科技 | B146: S 綜合 | C146: 90 綜合 | D146: 3.69 | E146: 1.93 | F146: 3.7 | G146: 1.45 | H146: 3.25 | I146: 2.04 | J146: 4.17 | K146: 2.18
A147: 000552 靖遠煤電 | B147: B 採礦業 | C147: 06 煤炭開採和洗選業 | D147: 8.76 | E147: 3.54 | F147: 6.37 | G147: 1.91 | H147: 2.52 | I147: 0.93 | J147: 2.61 | K147: 2.93
A148: 000553 沙隆達Ａ | B148: C 製造業 | C148: 26 化學原料及化學製品 | D148: 14.18 | E148: 10.33 | F148: 17.98 | G148: 4.08 | H148: 5.5 | I148: 0.51 | J148: -1.11 | K148: 5.79
A149: 000554 泰山石油 | B149: F 批發和零售業 | C149: 51 批發業 | D149: 1.36 | E149: 0.41 | F149: 0.78 | G149: 0.42 | H149: 0.53 | I149: 0.18 | J149: 0.77 | K149: 0.13
A150: 000555 神州信息 | B150: I 信息傳輸&軟體 | C150: 65 軟體和資訊技術服務業 | D150: 4.31 | E150: 1.59 | F150: 5.23 | G150: 1.42 | H150: 5.44 | I150: 1.25 | J150: 3.26 | K150: 1.19
A151: 000557 西部創業 | B151: G 交通運輸、倉儲&郵政 | C151: 53 鐵路運輸業 | D151: 1.22 | E151: 0.14 | F151: -0.52 | G151: -0.55 | H151: 2.29 | I151: -1.01 | J151: 0.47 | K151: 0.55
A152: 000558 萊茵體育 | B152: K 房地產業 | C152: 70 房地產業 | D152: 1.62 | E152: 0.89 | F152: 2.61 | G152: -0.06 | H152: -8.97 | I152: 2.47 | J152: 3.03 | K152: 0.89
A153: 000559 萬向錢潮 | B153: C 製造業 | C153: 36 汽車製造業 | D153: 7.63 | E153: 4.32 | F153: 8.18 | G153: 4.87 | H153: 7.66 | I153: 4.24 | J153: 8.04 | K153: 4.21
A154: 000560 昆百大Ａ | B154: F 批發和零售業 | C154: 52 零售業 | D154: 3.35 | E154: 2.57 | F154: 3.03 | G154: 0.65 | H154: 1.07 | I154: 0.94 | J154: 1.7 | K154: 1.06
A155: 000561 烽火電子 | B155: C 製造業 | C155: 39 電子設備製造業 | D155: 2.08 | E155: 0.72 | F155: 2.65 | G155: 0.54 | H155: 4.68 | I155: 1.91 | J155: 4.67 | K155: 1.05
A156: 000563 陝國投Ａ | B156: J 金融業 | C156: 69 其他金融業
A157: 000564 供銷大集 | B157: F 批發和零售業 | C157: 52 零售業 | D157: 2.9 | E157: 1.46 | F157: 3.02 | G157: 1.2 | H157: 0.04 | I157: 0.57 | J157: 1.87 | K157: 0.85
A158: 000565 渝三峽Ａ | B158: C 製造業 | C158: 26 化學原料及化學製品 | D158: 4.66 | E158: 2.67 | F158: 4.35 | G158: 2.92 | H158: 2.41 | I158: 3.19 | J158: 5.1 | K158: 3.09
A159: 000566 海南海藥 | B159: C 製造業 | C159: 27 醫藥製造業 | D159: 3.65 | E159: 3.37 | F159: 6.04 | G159: 3.32 | H159: 6.39 | I159: 3.07 | J159: 3.4 | K159: 1.5
A160: 000567 海德股份 | B160: K 房地產業 | C160: 70 房地產業 | D160: 1.03 | E160: 1.89 | F160: 1.78 | G160: 1.64 | H160: -1.65 | I160: 0.41 | J160: 1.12 | K160: 3.45
A161: 000568 瀘州老窖 | B161: C 製造業 | C161: 15 酒飲料和精製茶製造業 | D161: 24.01 | E161: 7.24 | F161: 7.2 | G161: 7.91 | H161: 11.76 | I161: 8.7 | J161: 14.67 | K161: 11.04
A162: 000570 蘇常柴Ａ | B162: C 製造業 | C162: 34 通用設備製造業 | D162: 2 | E162: 1.28 | F162: 2.05 | G162: 1.08 | H162: 2.17 | I162: 1.03 | J162: 1.83 | K162: 0.47
A163: 000571 新大洲Ａ | B163: B 採礦業 | C163: 06 煤炭開採和洗選業 | D163: 4.76 | E163: 1.88 | F163: 2.83 | G163: 1.26 | H163: 1.35 | I163: 0.57 | J163: 1.2 | K163: -1.69
A164: 000572 海馬汽車 | B164: C 製造業 | C164: 36 汽車製造業 | D164: 4.17 | E164: 1.07 | F164: 1.74 | G164: 1.32 | H164: 0.55 | I164: 0.64 | J164: 0.17 | K164: 0.2
A165: 000573 粵宏遠Ａ | B165: K 房地產業 | C165: 70 房地產業 | D165: 4.74 | E165: 0.95 | F165: 1.34 | G165: -0.33 | H165: -1.7 | I165: 0.89 | J165: 7.4 | K165: 2.51
A166: 000576 廣東甘化 | B166: C 製造業 | C166: 22 造紙及紙製品業 | D166: 2.26 | E166: 0.46 | F166: 0.19 | G166: -1.08 | H166: -7 | I166: -2.09 | J166: -10.79 | K166: -1.66
A167: 000581 威孚高科 | B167: C 製造業 | C167: 36 汽車製造業 | D167: 9 | E167: 6.29 | F167: 10.61 | G167: 5.91 | H167: 8.56 | I167: 5.32 | J167: 9.26 | K167: 6.93
A168: 000582 北部灣港 | B168: G 交通運輸、倉儲&郵政 | C168: 55 水上運輸業 | D168: 8.58 | E168: 4.35 | F168: 8.01 | G168: 2.98 | H168: 5.11 | I168: 2.8 | J168: 4.93 | K168: 3.01
A169: 000584 哈工智能 | B169: C 製造業 | C169: 28 化學纖維製造業 | D169: 11.31 | E169: 4.14 | F169: 6.65 | G169: 1.26 | H169: 0.3 | I169: -1.81 | J169: -5.8 | K169: -0.21
A170: 000585 東北電氣 | B170: C 製造業 | C170: 38 電氣機械及器材製造業 | D170: 0.77 | E170: -0.36 | F170: 1.23 | G170: -0.39 | H170: 0.91 | I170: -2.81 | J170: -12.33 | K170: -5.4
A171: 000586 匯源通信 | B171: C 製造業 | C171: 39 電子設備製造業 | D171: 1.23 | E171: 0.44 | F171: 2.27 | G171: -0.02 | H171: 3.52 | I171: 0.1 | J171: 0.89 | K171: -0.26
A172: 000587 金洲慈航 | B172: C 製造業 | C172: 41 其他製造業 | D172: 8.75 | E172: 3.17 | F172: 7.35 | G172: 3.11 | H172: 3.21 | I172: 2.45 | J172: 4.73 | K172: 0.45
A173: 000589 黔輪胎Ａ | B173: C 製造業 | C173: 29 橡膠和塑膠製品業 | D173: 4.2 | E173: 1.87 | F173: 3.41 | G173: 1.23 | H173: -1.22 | I173: 0.13 | J173: -0.54 | K173: -1.04
A174: 000590 啟迪古漢 | B174: C 製造業 | C174: 27 醫藥製造業 | D174: -19.78 | E174: 0.04 | F174: -13.72 | G174: 2.13 | H174: 3.79 | I174: 2.1 | J174: 0.87 | K174: 1.69
A175: 000591 太陽能 | B175: D 電力、熱力、燃氣及水 | C175: 44 電力熱力生產和供應 | D175: 1.06 | E175: 0.97 | F175: 6.14 | G175: 0.25 | H175: 3.93 | I175: 1.61 | J175: 3.9 | K175: 1.92
A176: 000592 平潭發展 | B176: A 農、林、牧、漁業 | C176: 02 林業 | D176: 3.39 | E176: 2.08 | F176: 4.18 | G176: 1.98 | H176: 2 | I176: 0.42 | J176: 0.43 | K176: 0.03
A177: 000593 大通燃氣 | B177: D 電力、熱力、燃氣及水 | C177: 45 燃氣生產和供應業 | D177: 2.72 | E177: 0.41 | F177: 2.1 | G177: 0.89 | H177: 2.27 | I177: 0.69 | J177: 1.45 | K177: 0.99
A178: 000595 *ST 寶實 | B178: C 製造業 | C178: 34 通用設備製造業 | D178: -10.44 | E178: -1.7 | F178: -10.99 | G178: -3.09 | H178: -10.18 | I178: -2.21 | J178: -6.77 | K178: 1.11
A179: 000596 古井貢酒 | B179: C 製造業 | C179: 15 酒飲料和精製茶製造業 | D179: 11.03 | E179: 5.19 | F179: 8.09 | G179: 5.16 | H179: 9.52 | I179: 4.95 | J179: 9.59 | K179: 5.44
A180: 000597 東北製藥 | B180: C 製造業 | C180: 27 醫藥製造業 | D180: -0.99 | E180: 0.63 | F180: 1.48 | G180: -0.42 | H180: -2.82 | I180: 0.7 | J180: 1.38 | K180: 0.83
A181: 000598 興蓉環境 | B181: D 電力、熱力、燃氣及水 | C181: 46 水的生產和供應業 | D181: 8.79 | E181: 4.11 | F181: 7.37 | G181: 3.46 | H181: 6.7 | I181: 3.47 | J181: 6.09 | K181: 2.94
A182: 000599 青島雙星 | B182: C 製造業 | C182: 29 橡膠和塑膠製品業 | D182: 2.02 | E182: 1.15 | F182: 2.47 | G182: 0.71 | H182: 1.74 | I182: 1.23 | J182: 1.7 | K182: 1.1
A183: 000600 建投能源 | B183: D 電力、熱力、燃氣及水 | C183: 44 電力熱力生產和供應 | D183: 8.43 | E183: 6.44 | F183: 13.04 | G183: 6.57 | H183: 11.84 | I183: 6.36 | J183: 7.86 | K183: 1.65
A184: 000601 韶能股份 | B184: D 電力、熱力、燃氣及水 | C184: 44 電力熱力生產和供應 | D184: 4.62 | E184: 3.09 | F184: 4.99 | G184: 2.54 | H184: 5.12 | I184: 5.17 | J184: 6.71 | K184: 4.24
A185: 000603 盛達礦業 | B185: B 採礦業 | C185: 09 有色金屬礦採選業 | D185: 50.46 | E185: 17.08 | F185: 39.64 | G185: 17.15 | H185: 29.6 | I185: 6.7 | J185: 15.22 | K185: 4.11
A186: 000605 渤海股份 | B186: D 電力、熱力、燃氣及水 | C186: 46 水的生產和供應業 | D186: 8.86 | E186: 0.81 | F186: 2.59 | G186: 0.8 | H186: 2.74 | I186: 0.86 | J186: 2.19 | K186: 1.78
A187: 000606 神州易橋 | B187: C 製造業 | C187: 27 醫藥製造業 | D187: -3.25 | E187: -1.42 | F187: -6.85 | G187: -2.95 | H187: -14.52 | I187: 0.32 | J187: 0.83 | K187: -1.41
A188: 000607 華媒控股 | B188: R 文化、體育和娛樂業 | C188: 85 新聞和出版業 | D188: 10.13 | E188: 1.32 | F188: 11.83 | G188: 3.46 | H188: 11.15 | I188: 2.79 | J188: 10.67 | K188: 1.46
A189: 000608 陽光股份 | B189: K 房地產業 | C189: 70 房地產業 | D189: 1.97 | E189: -0.22 | F189: -522.17 | G189: 0.23 | H189: 1.98 | I189: -0.73 | J189: -1.8 | K189: -0.05
A190: 000609 綿石投資 | B190: S 綜合 | C190: 90 綜合 | D190: 0.21 | E190: -1.84 | F190: 2.89 | G190: -2.12 | H190: -0.77 | I190: 6.13 | J190: 2.76 | K190: -0.92
A191: 000610 西安旅遊 | B191: N 水利、環境和公共設施 | C191: 78 公共設施管理業 | D191: -4.76 | E191: -2.07 | F191: -4.21 | G191: -1.35 | H191: -4.23 | I191: -1.1 | J191: -3.66 | K191: -0.85
A192: 000611 天首發展 | B192: C 製造業 | C192: 17 紡織業 | D192: -0.51 | E192: -1.68 | F192: -6.94 | G192: -2.11 | H192: -64.12 | I192: -1.03 | J192: -0.07 | K192: -1.48
A193: 000612 焦作萬方 | B193: C 製造業 | C193: 32 有色金屬冶煉和壓延 | D193: 4.99 | E193: 2.05 | F193: 5.23 | G193: 1.37 | H193: 1.17 | I193: 2.11 | J193: 2.01 | K193: 1.88
A194: 000613 *ST 東海A | B194: H 住宿和餐飲業 | C194: 61 住宿業 | D194: -1.88 | E194: -0.75 | F194: -4.07 | G194: -3.03 | H194: -6.02 | I194: 0.16 | J194: -2.89 | K194: 1.7
A195: 000615 京漢股份 | B195: K 房地產業 | C195: 70 房地產業 | D195: -2.12 | F195: 3.19 | G195: -0.55 | H195: 1.96 | I195: 0.24 | J195: 4.21 | K195: -0.08
A196: 000616 海航投資 | B196: K 房地產業 | C196: 70 房地產業 | D196: 1.44 | E196: -1.8 | F196: -2.19 | G196: 1.14 | H196: -1.95 | I196: 0.68 | J196: 0.22 | K196: -0.05
A197: 000617 中油資本 | B197: J 金融業 | C197: 67 資本市場服務 | D197: 1.32 | E197: -0.6 | F197: -3.7 | G197: 0.95 | H197: 1.9 | I197: -6.86 | J197: 1.52 | K197: 0.72
A198: 000619 海螺型材 | B198: C 製造業 | C198: 29 橡膠和塑膠製品業 | D198: 4.84 | E198: 2.24 | F198: 3.89 | G198: 1.55 | H198: 3.69 | I198: 1.95 | J198: 2.48 | K198: 0.15
A199: 000620 新華聯 | B199: K 房地產業 | C199: 70 房地產業 | D199: 2.13 | E199: 0.56 | F199: 1.06 | G199: 0.32 | H199: 1.21 | I199: 0.32 | J199: 1.51 | K199: 0.5
A200: 000622 恒立實業 | B200: C 製造業 | C200: 35 專用設備製造業 | D200: 2.8 | E200: -2.37 | F200: -9.06 | G200: -4.67 | H200: -15.77 | I200: -4.19 | J200: 0.54 | K200: -1.96
... 3357 more rows

Sheet Net Income
B1: CSRC分類-門類 | C1: CSRC分類-大類 | D1: 營業利益% | E1: 營業利益% | F1: 營業利益% | G1: 營業利益% | H1: 營業利益% | I1: 營業利益% | J1: 營業利益% | K1: 營業利益%
A2: 公司 | D2: 2013-12-31 | E2: 2014-06-30 | F2: 2014-12-31 | G2: 2015-06-30 | H2: 2015-12-31 | I2: 2016-06-30 | J2: 2016-12-30 | K2: 2017-06-30
A3: 000001 平安銀行 | B3: J 金融業 | C3: 66 貨幣金融服務
A4: 000002 萬科Ａ | B4: K 房地產業 | C4: 70 房地產業 | D4: 17.2 | E4: 14.32 | F4: 14.65 | G4: 15.72 | H4: 15.36 | I4: 12.02 | J4: 14.86 | K4: 18.42
A5: 000004 國農科技 | B5: C 製造業 | C5: 27 醫藥製造業 | D5: 15.02 | E5: -13.87 | F5: 4.13 | G5: 10.63 | H5: 7.53 | I5: 6.94 | J5: 9.63 | K5: -22.22
A6: 000005 世紀星源 | B6: N 水利、環境和公共設施 | C6: 77 生態保護和環境治理 | D6: -63.63 | E6: -91.62 | F6: -56.72 | G6: -54.89 | H6: -57.26 | I6: 0.92 | J6: 4.69 | K6: 1.1
A7: 000006 深振業Ａ | B7: K 房地產業 | C7: 70 房地產業 | D7: 20.6 | E7: 18.68 | F7: 20.36 | G7: 23.58 | H7: 22.58 | I7: 27.65 | J7: 17.89 | K7: 21.79
A8: 000007 全新好 | B8: K 房地產業 | C8: 70 房地產業 | D8: -7.78 | E8: -12.68 | F8: -3.67 | G8: -12.57 | H8: -4.12 | I8: -89.7 | J8: -76.65 | K8: -49.02
A9: 000008 神州高鐵 | B9: C 製造業 | C9: 37 鐵路、船舶、航空航太 | D9: 9.65 | E9: 7.46 | F9: 5.54 | G9: 14.06 | H9: 14.33 | I9: 5.19 | J9: 21.77 | K9: 4.94
A10: 000009 中國寶安 | B10: S 綜合 | C10: 90 綜合 | D10: 2.5 | E10: 4.04 | F10: 6.05 | G10: 8.95 | H10: 7.28 | I10: 9.7 | J10: 6.63 | K10: 9.84
A11: 000010 美麗生態 | B11: E 建築業 | C11: 48 土木工程建築業 | D11: -1.27 | E11: -9.9 | F11: -23.01 | G11: 2.9 | H11: 5.33 | I11: 14.98 | J11: 12.58 | K11: -8.83
A12: 000011 深物業A | B12: K 房地產業 | C12: 70 房地產業 | D12: 24.19 | E12: 26.22 | F12: 27.39 | G12: 9.32 | H12: 3.01 | I12: -3.12 | J12: 22.83 | K12: 34.43
A13: 000012 南玻Ａ | B13: C 製造業 | C13: 30 非金屬礦物製品業 | D13: 15.72 | E13: 12.09 | F13: 11.64 | G13: 7.26 | H13: 8.18 | I13: 15.17 | J13: 13.72 | K13: 11.83
A14: 000014 沙河股份 | B14: K 房地產業 | C14: 70 房地產業 | D14: 10.73 | E14: 24.65 | F14: 18.37 | G14: -1.64 | H14: 13.84 | I14: -17.15 | J14: 4.32 | K14: -0.49
A15: 000016 深康佳Ａ | B15: C 製造業 | C15: 39 電子設備製造業 | D15: -1.18 | E15: -2.26 | F15: -2.89 | G15: -3.66 | H15: -6.51 | I15: -0.71 | J15: -2.01 | K15: 0.18
A16: 000017 深中華A | B16: C 製造業 | C16: 37 鐵路、船舶、航空航太 | D16: -33.02 | E16: -3.03 | F16: -3.25 | G16: 0.22 | H16: -0.62 | I16: -0.26 | J16: 2.56 | K16: -5.33
A17: 000018 神州長城 | B17: E 建築業 | C17: 50 建築裝飾和其他建築業 | D17: 29.05 | E17: -3.47 | F17: 9.86 | G17: -13.48 | H17: 12.13 | I17: 14.49 | J17: 14.61 | K17: 15.58
A18: 000019 深深寶Ａ | B18: C 製造業 | C18: 15 酒飲料和精製茶製造業 | D18: -6.15 | E18: -25.56 | F18: 1.87 | G18: -1.79 | H18: -15.53 | I18: -15.99 | J18: -24.2 | K18: -16.75
A19: 000020 深華發A | B19: C 製造業 | C19: 39 電子設備製造業 | D19: -2.9 | E19: -1.79 | F19: 6.27 | G19: 5.58 | H19: 4.05 | I19: 3.4 | J19: 2.11 | K19: 1.57
A20: 000021 深科技 | B20: C 製造業 | C20: 39 電子設備製造業 | D20: -0.78 | E20: 1.14 | F20: 1.03 | G20: 1.05 | H20: 1.35 | I20: 1.35 | J20: 1.38 | K20: 1.54
A21: 000022 深赤灣Ａ | B21: G 交通運輸、倉儲&郵政 | C21: 55 水上運輸業 | D21: 37.12 | E21: 35.9 | F21: 36.41 | G21: 37.36 | H21: 36.68 | I21: 36.17 | J21: 34.89 | K21: 34.22
A22: 000023 深天地Ａ | B22: C 製造業 | C22: 30 非金屬礦物製品業 | D22: 2.52 | E22: 1.12 | F22: 3.69 | G22: 6.23 | H22: 7.04 | I22: 5.43 | J22: 3.78 | K22: 2.14
A23: 000025 特力Ａ | B23: F 批發和零售業 | C23: 51 批發業 | D23: -2.87 | E23: 1.84 | F23: 0.21 | G23: 7.83 | H23: 9.97 | I23: 8.73 | J23: 8.08 | K23: 8.76
A24: 000026 飛亞達Ａ | B24: F 批發和零售業 | C24: 52 零售業 | D24: 7.4 | E24: 9.01 | F24: 8.1 | G24: 8.59 | H24: 6.9 | I24: 7.47 | J24: 6.54 | K24: 8.6
A25: 000027 深圳能源 | B25: D 電力、熱力、燃氣及水 | C25: 44 電力熱力生產和供應 | D25: 13.08 | E25: 20.45 | F25: 20.02 | G25: 24.02 | H25: 22.02 | I25: 25.5 | J25: 21.25 | K25: 17.96
A26: 000028 國藥一致 | B26: F 批發和零售業 | C26: 51 批發業 | D26: 3.4 | E26: 3.76 | F26: 3.68 | G26: 4 | H26: 3.53 | I26: 3.8 | J26: 3.46 | K26: 3.15
A27: 000029 深深房Ａ | B27: K 房地產業 | C27: 70 房地產業 | D27: 13.88 | E27: 10.39 | F27: 20.32 | G27: 23.89 | H27: 20.42 | I27: 15.32 | J27: 17.27 | K27: 24.74
A28: 000030 富奧股份 | B28: C 製造業 | C28: 36 汽車製造業 | D28: 1.25 | E28: 3.18 | F28: 4.08 | G28: 4.52 | H28: 2.14 | I28: 3.54 | J28: 3.38 | K28: 5.68
A29: 000031 中糧地產 | B29: K 房地產業 | C29: 70 房地產業 | D29: 8.98 | E29: 10.44 | F29: 13.24 | G29: -2.26 | H29: 6.41 | I29: 16.27 | J29: 14.94 | K29: 17.93
A30: 000032 深桑達Ａ | B30: F 批發和零售業 | C30: 51 批發業 | D30: 1.76 | E30: -2.03 | F30: 2.6 | G30: -2.16 | H30: 0.81 | I30: 3.41 | J30: 2.15 | K30: 3.41
A31: 000034 神州數碼 | B31: F 批發和零售業 | C31: 51 批發業 | D31: 3.91 | E31: -2.33 | F31: -0.46 | G31: -7.2 | H31: -4.86 | I31: 1.77 | J31: 1.51 | K31: 1.64
A32: 000035 中國天楹 | B32: N 水利、環境和公共設施 | C32: 77 生態保護和環境治理 | D32: 50.05 | E32: 48.56 | F32: 41.09 | G32: 41.59 | H32: 38.19 | I32: 33.19 | J32: 31.39 | K32: 25.65
A33: 000036 華聯控股 | B33: K 房地產業 | C33: 70 房地產業 | D33: 8.01 | E33: 12.98 | F33: 2.64 | G33: -7.78 | H33: 29.37 | I33: -24.66 | J33: 40.53 | K33: 41.28
A34: 000037 深南電A | B34: D 電力、熱力、燃氣及水 | C34: 44 電力熱力生產和供應 | D34: -56.95 | E34: -52.56 | F34: -54.51 | G34: -22.33 | H34: -66.51 | I34: 1.08 | J34: -0.14 | K34: -0.05
A35: 000038 深大通 | B35: L 租賃和商務服務業 | C35: 72 商務服務業 | D35: 8.1 | E35: -18.51 | F35: -23.85 | G35: 3.69 | H35: 6.48 | I35: 23.6 | J35: 26.28 | K35: 24.11
A36: 000039 中集集團 | B36: C 製造業 | C36: 33 金屬製品業 | D36: 4.38 | E36: 4.94 | F36: 5.45 | G36: 4.48 | H36: 5.1 | I36: 3.56 | J36: 1.49 | K36: 6.39
A37: 000040 東旭藍天 | B37: E 建築業 | C37: 48 土木工程建築業 | D37: 17.93 | E37: 8.96 | F37: 11.85 | G37: 13.61 | H37: 10.41 | I37: 12.2 | J37: 8.19 | K37: 7.86
A38: 000042 中洲控股 | B38: K 房地產業 | C38: 70 房地產業 | D38: 21.15 | E38: 31.13 | F38: 18.91 | G38: 29.2 | H38: 16.28 | I38: 8.38 | J38: 10.81 | K38: 12.38
A39: 000043 中航地產 | B39: K 房地產業 | C39: 70 房地產業 | D39: 12.93 | E39: 5.02 | F39: 9.29 | G39: 2.33 | H39: 6.29 | I39: 4.31 | J39: 1.51 | K39: 5.47
A40: 000045 深紡織Ａ | B40: C 製造業 | C40: 39 電子設備製造業 | D40: -18.16 | E40: -8.75 | F40: -11.3 | G40: -6.68 | H40: -7.37 | I40: -3.88 | J40: -8.33 | K40: -2.76
A41: 000046 泛海控股 | B41: K 房地產業 | C41: 70 房地產業 | D41: 7.78 | E41: 20.57 | F41: 9.7 | G41: -16.25 | H41: 1.42 | I41: 11.38 | J41: 5.25 | K41: -51.96
A42: 000048 康達爾 | B42: C 製造業 | C42: 13 農副食品加工業 | D42: -0.94 | E42: 1.11 | F42: 8.16 | G42: 15.84 | H42: 10.76 | I42: 3.49 | J42: -1.23 | K42: -5.34
A43: 000049 德賽電池 | B43: C 製造業 | C43: 38 電氣機械及器材製造業 | D43: 7.69 | E43: 6.24 | F43: 5.88 | G43: 4.66 | H43: 3.92 | I43: 3.55 | J43: 4.71 | K43: 4.07
A44: 000050 深天馬Ａ | B44: C 製造業 | C44: 39 電子設備製造業 | D44: 3.54 | E44: 6.59 | F44: 3.77 | G44: 1.37 | H44: 0.04 | I44: 1.24 | J44: 1.96 | K44: 6.59
A45: 000055 方大集團 | B45: C 製造業 | C45: 33 金屬製品業 | D45: 5.75 | E45: 5.02 | F45: 5.29 | G45: 5.32 | H45: 2.32 | I45: 6.16 | J45: 20.23 | K45: 22
A46: 000056 皇庭國際 | B46: K 房地產業 | C46: 70 房地產業 | D46: -253.64 | E46: -49.92 | F46: -213.52 | G46: 53.87 | H46: 40.86 | I46: 49.54 | J46: 45.49 | K46: 59.56
A47: 000058 深賽格 | B47: L 租賃和商務服務業 | C47: 72 商務服務業 | D47: 10.91 | E47: 17.62
A48: 000059 華錦股份 | B48: C 製造業 | C48: 25 石油加工煉焦及核燃料 | D48: 1.25 | E48: -1.57 | F48: -1.2 | G48: 3.84 | H48: 2.71 | I48: 10.69 | J48: 11.66 | K48: 9.61
A49: 000060 中金嶺南 | B49: C 製造業 | C49: 32 有色金屬冶煉和壓延 | D49: 1.87 | E49: 3.3 | F49: 1.94 | G49: 4.44 | H49: 0.13 | I49: 2.21 | J49: 4.38 | K49: 7.64
A50: 000061 農產品 | B50: L 租賃和商務服務業 | C50: 72 商務服務業 | D50: 10.4 | E50: 19.91 | F50: 8.62 | G50: 17.9 | H50: 7.66 | I50: 12.44 | J50: 2.01 | K50: 9.4
A51: 000062 深圳華強 | B51: F 批發和零售業 | C51: 51 批發業 | D51: 30.11 | E51: 24.99 | F51: 21.43 | G51: 19.36 | H51: 13.25 | I51: 9.68 | J51: 9.1 | K51: 9.54
A52: 000063 中興通訊 | B52: C 製造業 | C52: 39 電子設備製造業 | D52: -0.55 | E52: 0.76 | F52: 2.31 | G52: 1.56 | H52: 1.25 | I52: 0.16 | J52: -0.25 | K52: 4.09
A53: 000065 北方國際 | B53: E 建築業 | C53: 48 土木工程建築業 | D53: 7.24 | E53: 4.52 | F53: 7.68 | G53: 3.9 | H53: 3.81 | I53: 3.74 | J53: 5.12 | K53: 4.95
A54: 000066 中國長城 | B54: C 製造業 | C54: 39 電子設備製造業 | D54: -1.3 | E54: -0.65 | F54: 0.61 | G54: -0.69 | H54: 0.55 | I54: 1.03 | J54: 1.08 | K54: 6.76
A55: 000068 華控賽格 | B55: C 製造業 | C55: 39 電子設備製造業 | D55: -2.94 | E55: -108.12 | F55: -121.84 | G55: -157.67 | H55: -5.24 | I55: -62.89 | J55: 6.05 | K55: -3.2
A56: 000069 華僑城Ａ | B56: N 水利、環境和公共設施 | C56: 78 公共設施管理業 | D56: 23.71 | E56: 25.18 | F56: 25.1 | G56: 21.82 | H56: 22.79 | I56: 19.82 | J56: 25.24 | K56: 22.89
A57: 000070 特發信息 | B57: C 製造業 | C57: 38 電氣機械及器材製造業 | D57: 1.72 | E57: 2.61 | F57: 4.54 | G57: 4.83 | H57: 5.37 | I57: 6.05 | J57: 6.33 | K57: 6.79
A58: 000078 海王生物 | B58: F 批發和零售業 | C58: 52 零售業 | D58: 3.1 | E58: 4.24 | F58: 3.43 | G58: 3.65 | H58: 4.16 | I58: 4.5 | J58: 5.89 | K58: 5.85
A59: 000088 鹽田港 | B59: G 交通運輸、倉儲&郵政 | C59: 54 道路運輸業 | D59: 38.84 | E59: 35.77 | F59: 33.85 | G59: 23.78 | H59: 17.94 | I59: 28.59 | J59: 23.71 | K59: 21.81
A60: 000089 深圳機場 | B60: G 交通運輸、倉儲&郵政 | C60: 56 航空運輸業 | D60: 26.85 | E60: 15.25 | F60: 15.65 | G60: 22.52 | H60: 26.24 | I60: 22.06 | J60: 22.17 | K60: 24.38
A61: 000090 天健集團 | B61: E 建築業 | C61: 48 土木工程建築業 | D61: 10.37 | E61: 4.21 | F61: 8.94 | G61: 10.85 | H61: 9.84 | I61: 9.69 | J61: 11.04 | K61: 17.87
A62: 000096 廣聚能源 | B62: F 批發和零售業 | C62: 51 批發業 | D62: -0.64 | E62: 1.86 | F62: 1.37 | G62: 3.7 | H62: 3.53 | I62: 7.33 | J62: 7.17 | K62: 5.36
A63: 000099 中信海直 | B63: G 交通運輸、倉儲&郵政 | C63: 56 航空運輸業 | D63: 16.48 | E63: 23.49 | F63: 19.55 | G63: 21.55 | H63: 23.47 | I63: 17.23 | J63: 10.14 | K63: 6.33
A64: 000100 TCL集團 | B64: C 製造業 | C64: 39 電子設備製造業 | D64: 0.48 | E64: 1.65 | F64: 2.01 | G64: 1.86 | H64: 0.62 | I64: -1.31 | J64: -1.09 | K64: 3.68
A65: 000150 宜華健康 | B65: Q 衛生和社會工作 | C65: 83 衛生 | D65: 15.72 | E65: 5.95 | F65: -4.45 | G65: 7.03 | H65: 5.43 | I65: 17.58 | J65: 9.04 | K65: 21.25
A66: 000151 中成股份 | B66: F 批發和零售業 | C66: 51 批發業 | D66: 9.05 | E66: 11.3 | F66: 6.09 | G66: 16.21 | H66: 9.21 | I66: 8.07 | J66: 3.6 | K66: 6.84
A67: 000153 豐原藥業 | B67: C 製造業 | C67: 27 醫藥製造業 | D67: 2.53 | E67: 4.54 | F67: 3.8 | G67: 4.31 | H67: 3.67 | I67: 4.84 | J67: 4.03 | K67: 4.81
A68: 000155 *ST川化 | B68: C 製造業 | C68: 26 化學原料及化學製品 | D68: -18.14 | E68: -32.91 | F68: -69.51 | G68: -58.62 | H68: -67.24 | I68: -73.19 | J68: 0.58 | K68: 2.76
A69: 000156 華數傳媒 | B69: R 文化、體育和娛樂業 | C69: 86 廣播電視電影影視 | D69: 12.69 | E69: 16.95 | F69: 14.5 | G69: 18.56 | H69: 17.73 | I69: 17.28 | J69: 15.43 | K69: 16.15
A70: 000157 中聯重科 | B70: C 製造業 | C70: 35 專用設備製造業 | D70: 12.69 | E70: 11.42 | F70: 5.21 | G70: -0.09 | H70: 2.77 | I70: -2.96 | J70: -3.89 | K70: -60.35
A71: 000158 常山北明 | B71: C 製造業 | C71: 17 紡織業 | D71: -2.34 | E71: -4.97 | F71: -3.02 | G71: 0.36 | H71: 1.73 | I71: 1.42 | J71: 1.06 | K71: 1.11
A72: 000159 國際實業 | B72: F 批發和零售業 | C72: 51 批發業 | D72: 6.28 | E72: -6.77 | F72: -3.54 | G72: -14.52 | H72: -4.31 | I72: -10.46 | J72: -5.98 | K72: -25.86
A73: 000166 申萬宏源 | B73: J 金融業 | C73: 67 資本市場服務
A74: 000301 東方市場 | B74: D 電力、熱力、燃氣及水 | C74: 44 電力熱力生產和供應 | D74: 23.2 | E74: 28.78 | F74: 30.79 | G74: 30.05 | H74: 34.09 | I74: 31.44 | J74: 25.44 | K74: 16.59
A75: 000333 美的集團 | B75: C 製造業 | C75: 38 電氣機械及器材製造業 | D75: 5.73 | E75: 9.98 | F75: 8.94 | G75: 11.14 | H75: 9.12 | I75: 12.98 | J75: 9.23 | K75: 8.85
A76: 000338 濰柴動力 | B76: C 製造業 | C76: 36 汽車製造業 | D76: 7.73 | E76: 8.62 | F76: 6.28 | G76: 4.71 | H76: 4.11 | I76: 4.62 | J76: 4.97 | K76: 6.71
A77: 000400 許繼電氣 | B77: C 製造業 | C77: 38 電氣機械及器材製造業 | D77: 11.94 | E77: 14.61 | F77: 16.38 | G77: 4.76 | H77: 11.34 | I77: 4.96 | J77: 10.5 | K77: 6.69
A78: 000401 冀東水泥 | B78: C 製造業 | C78: 30 非金屬礦物製品業 | D78: 7.22 | E78: 2.87 | F78: 3.84 | G78: -14.65 | H78: -12.01 | I78: -6.54 | J78: 4.22 | K78: 8.64
A79: 000402 金融街 | B79: K 房地產業 | C79: 70 房地產業 | D79: 23 | E79: 18.04 | F79: 16.84 | G79: 9.29 | H79: 12.22 | I79: 23.54 | J79: 14.57 | K79: 21.1
A80: 000403 ST生化 | B80: C 製造業 | C80: 27 醫藥製造業 | D80: 26.04 | E80: 25.68 | F80: 24.36 | G80: 31.11 | H80: 19.87 | I80: 25.04 | J80: 14.59 | K80: 25.41
A81: 000404 華意壓縮 | B81: C 製造業 | C81: 34 通用設備製造業 | D81: 3.07 | E81: 5.75 | F81: 4.24 | G81: 5.32 | H81: 3.36 | I81: 4.81 | J81: 3.92 | K81: 4.61
A82: 000407 勝利股份 | B82: D 電力、熱力、燃氣及水 | C82: 45 燃氣生產和供應業 | D82: -1.55 | E82: 0.27 | F82: -1.81 | G82: 2.25 | H82: -1.39 | I82: 0.25 | J82: -7.15 | K82: 7.01
A83: 000408 藏格控股 | B83: C 製造業 | C83: 26 化學原料及化學製品 | D83: -11.22 | E83: -24.4 | F83: -68 | G83: 1.43 | H83: 39.79 | J83: 43.68 | K83: 33.85
A84: 000409 山東地礦 | B84: S 綜合 | C84: 90 綜合 | D84: 38.44 | E84: 26.53 | F84: -1.18 | G84: -15.46 | H84: 14.16 | I84: 8.31 | J84: 0.06 | K84: -0.91
A85: 000410 *ST 瀋機 | B85: C 製造業 | C85: 34 通用設備製造業 | D85: 1.76 | E85: 3.87 | F85: 8.95 | G85: 1.56 | H85: 0.41 | I85: -3.49 | J85: -10.52 | K85: -0.97
A86: 000411 英特集團 | B86: F 批發和零售業 | C86: 51 批發業 | D86: 2.15 | E86: 2.18 | F86: 2.11 | G86: 2.21 | H86: 2.1 | I86: 2.21 | J86: 2.16 | K86: 2.21
A87: 000413 東旭光電 | B87: C 製造業 | C87: 39 電子設備製造業 | D87: 42.97 | E87: 41.52 | F87: 15.7 | G87: 32.77 | H87: 29.32 | I87: 22.6 | J87: 22.23 | K87: 22.28
A88: 000415 渤海金控 | B88: L 租賃和商務服務業 | C88: 71 租賃業 | D88: 43.01 | E88: 39.93 | F88: 34.35 | G88: 37.32 | H88: 38.15 | I88: 27.17 | J88: 28.66 | K88: 27.6
A89: 000416 民生控股 | B89: J 金融業 | C89: 69 其他金融業 | D89: -0.04 | E89: -0.14 | F89: -1.73 | G89: -69.18 | H89: -26.02 | I89: -52.88 | J89: -22.29 | K89: -438.51
A90: 000417 合肥百貨 | B90: F 批發和零售業 | C90: 52 零售業 | D90: 2.52 | E90: 2.55 | F90: 5.39 | G90: 4.83 | H90: 4.39 | I90: 5.84 | J90: 4.81 | K90: 4.72
A91: 000418 小天鵝Ａ | B91: C 製造業 | C91: 38 電氣機械及器材製造業 | D91: 4.36 | E91: 7.21 | F91: 6.88 | G91: 7.95 | H91: 6.85 | I91: 8.07 | J91: 7.35 | K91: 7.06
A92: 000419 通程控股 | B92: F 批發和零售業 | C92: 52 零售業 | D92: -1.61 | E92: -0.72 | F92: 2.06 | G92: 2.25 | H92: 1.03 | I92: 1.75 | J92: 0.72 | K92: 1.78
A93: 000420 吉林化纖 | B93: C 製造業 | C93: 28 化學纖維製造業 | D93: -16.72 | E93: -12.41 | F93: -11.88 | G93: -2.93 | H93: 0.91 | I93: 4.84 | J93: 3.58 | K93: 8.17
A94: 000421 南京公用 | B94: D 電力、熱力、燃氣及水 | C94: 45 燃氣生產和供應業 | D94: -14.86 | E94: -13.77 | F94: 2.12 | G94: -1.31 | H94: 1.43 | I94: -2.35 | J94: 4.47 | K94: 10.07
A95: 000422 湖北宜化 | B95: C 製造業 | C95: 26 化學原料及化學製品 | D95: 6.09 | E95: 6.78 | F95: 7.71 | G95: 7.66 | H95: 5.78 | I95: 4.81 | J95: -2.42 | K95: 6.85
A96: 000423 東阿阿膠 | B96: C 製造業 | C96: 27 醫藥製造業 | D96: 33.01 | E96: 37.8 | F96: 36.17 | G96: 33.4 | H96: 32.13 | I96: 34.97 | J96: 32.29 | K96: 33.54
A97: 000425 徐工機械 | B97: C 製造業 | C97: 35 專用設備製造業 | D97: 8.36 | E97: 7.65 | F97: 4.4 | G97: 1.81 | H97: 0.36 | I97: 0.69 | J97: -0.8 | K97: 5.2
A98: 000426 興業礦業 | B98: B 採礦業 | C98: 09 有色金屬礦採選業 | D98: 15.17 | E98: 0.56 | F98: 4.45 | G98: 8.13 | H98: 5.64 | I98: 22.09 | J98: 23.42 | K98: 46.88
A99: 000428 華天酒店 | B99: H 住宿和餐飲業 | C99: 61 住宿業 | D99: 16.32 | E99: -2.3 | F99: 0.86 | G99: -16.86 | H99: -7.61 | I99: -11.21 | J99: -13.81 | K99: -11.34
A100: 000429 粵高速Ａ | B100: G 交通運輸、倉儲&郵政 | C100: 54 道路運輸業 | D100: 12.94 | E100: 31.85 | F100: 27.12 | G100: 37.07 | H100: 42.66 | I100: 49.63 | J100: 46.5 | K100: 57.06
A101: 000430 張家界 | B101: N 水利、環境和公共設施 | C101: 78 公共設施管理業 | D101: 16.07 | E101: 18.85 | F101: 19.42 | G101: 27.51 | H101: 25.01 | I101: 22.2 | J101: 18.46 | K101: 12.73
A102: 000488 晨鳴紙業 | B102: C 製造業 | C102: 22 造紙及紙製品業 | D102: 6.14 | E102: 6.29 | F102: 6.91 | G102: 10.87 | H102: 13.38 | I102: 18.5 | J102: 17.71 | K102: 18.66
A103: 000498 山東路橋 | B103: E 建築業 | C103: 48 土木工程建築業 | D103: 4.14 | E103: 5.6 | F103: 6.42 | G103: 7.4 | H103: 7.89 | I103: 11.04 | J103: 7.93 | K103: 9.06
A104: 000501 鄂武商Ａ | B104: F 批發和零售業 | C104: 52 零售業 | D104: 3.69 | E104: 3.17 | F104: 5.45 | G104: 6.8 | H104: 6.47 | I104: 8.19 | J104: 7.56 | K104: 9.34
A105: 000502 綠景控股 | B105: K 房地產業 | C105: 70 房地產業 | D105: -35.74 | E105: -20.97 | F105: 3.79 | G105: -42.88 | H105: -148.34 | I105: -331.86 | J105: 14.25 | K105: -462.38
A106: 000503 海虹控股 | B106: I 信息傳輸&軟體 | C106: 64 互聯網和相關服務 | D106: 9.08 | E106: 4.75 | F106: -24.99 | G106: -70.61 | H106: -42.39 | I106: -73.16 | J106: -47.63 | K106: -101.21
A107: 000504 南華生物 | B107: R 文化、體育和娛樂業 | C107: 85 新聞和出版業 | D107: -104.56 | E107: -128.81 | F107: -114.42 | G107: -120.3 | H107: -153.51 | I107: -210.45 | J107: -10.9 | K107: -64.27
A108: 000505 珠江控股 | B108: K 房地產業 | C108: 70 房地產業 | D108: -37.96 | E108: -25.07 | F108: -37.47 | G108: -17.93 | H108: -43.1 | I108: -30.01 | J108: -1.01 | K108: 9.45
A109: 000506 中潤資源 | B109: B 採礦業 | C109: 09 有色金屬礦採選業 | D109: -13.86 | E109: -90.18 | F109: -60.08 | G109: -0.94 | H109: 3.92 | I109: 4.74 | J109: 6.05 | K109: -39.32
A110: 000507 珠海港 | B110: G 交通運輸、倉儲&郵政 | C110: 55 水上運輸業 | D110: 3.35 | E110: 3.22 | F110: 5.14 | G110: 7.57 | H110: 5.4 | I110: 8.02 | J110: 8.78 | K110: 11.15
A111: 000509 華塑控股 | B111: C 製造業 | C111: 29 橡膠和塑膠製品業 | D111: -32.32 | E111: -28.42 | F111: -24.36 | G111: -24.37 | H111: -81.87 | I111: -33.76 | J111: -243.35 | K111: -0.16
A112: 000510 金路集團 | B112: C 製造業 | C112: 26 化學原料及化學製品 | D112: -8.64 | E112: -5.45 | F112: -4.99 | G112: -9.25 | H112: -7.08 | I112: 1.55 | J112: 4.41 | K112: 3.76
A113: 000511 *ST 烯碳 | B113: C 製造業 | C113: 30 非金屬礦物製品業 | D113: 1.74 | E113: -0.26 | F113: -1.27 | G113: -1.23 | H113: -2.89 | I113: -9.29 | J113: -7.29 | K113: -5.64
A114: 000513 麗珠集團 | B114: C 製造業 | C114: 27 醫藥製造業 | D114: 12.36 | E114: 12.74 | F114: 10.87 | G114: 12.61 | H114: 11.75 | I114: 13.59 | J114: 12.16 | K114: 13.76
A115: 000514 渝開發 | B115: K 房地產業 | C115: 70 房地產業 | D115: 8.47 | E115: 12.62 | F115: 12.69 | G115: -12.54 | H115: 4.55 | I115: 7.78 | J115: 1.56 | K115: 13.56
A116: 000516 國際醫學 | B116: F 批發和零售業 | C116: 52 零售業 | D116: 4.58 | E116: 7.34 | F116: 9.08 | G116: 9.16 | H116: 7.8 | I116: 8.62 | J116: 7.7 | K116: 8.58
A117: 000517 榮安地產 | B117: K 房地產業 | C117: 70 房地產業 | D117: 10.43 | E117: 5.9 | F117: 6.83 | G117: 15.28 | H117: 10.82 | I117: 5.68 | J117: 13.15 | K117: 16.6
A118: 000518 四環生物 | B118: C 製造業 | C118: 27 醫藥製造業 | D118: -15.61 | E118: 16.49 | F118: 11.99 | G118: 4.22 | H118: -12.35 | I118: -0.26 | J118: 10.29 | K118: -1.36
A119: 000519 中兵紅箭 | B119: C 製造業 | C119: 35 專用設備製造業 | D119: 23.9 | E119: 24.68 | F119: 23.51 | G119: 22.33 | H119: 10.88 | I119: 6.66 | J119: 3.68 | K119: 1.04
A120: 000520 長航鳳凰 | B120: G 交通運輸、倉儲&郵政 | C120: 55 水上運輸業 | D120: -48.08 | E120: 0.53 | F120: 3.48 | G120: 2.99 | H120: 2.39 | I120: -2.54 | J120: 3.19 | K120: 3.88
A121: 000521 美菱電器 | B121: C 製造業 | C121: 38 電氣機械及器材製造業 | D121: 1.62 | E121: 1.97 | F121: 1.82 | G121: 1.93 | H121: 0.17 | I121: 0.97 | J121: 0.25 | K121: 0.56
A122: 000523 廣州浪奇 | B122: C 製造業 | C122: 26 化學原料及化學製品 | D122: 1.1 | E122: 1.35 | F122: 1.43 | G122: 1.19 | H122: 0.9 | I122: 0.59 | J122: 0.69 | K122: 0.62
A123: 000524 嶺南控股 | B123: H 住宿和餐飲業 | C123: 61 住宿業 | D123: 14.34 | E123: 7.52 | F123: 14.13 | G123: 16.23 | H123: 13.48 | I123: 14.42 | J123: 10.02 | K123: 3.8
A124: 000525 紅太陽 | B124: C 製造業 | C124: 26 化學原料及化學製品 | D124: 8.34 | E124: 12.75 | F124: 9.79 | G124: 6.4 | H124: 4.22 | I124: 3.68 | J124: 4.87 | K124: 18.22
A125: 000526 *ST 紫學 | B125: P 教育 | C125: 82 教育 | D125: -59.49 | E125: -15.36 | F125: 19.36 | G125: 29.19 | H125: -39.64 | I125: 3.61 | J125: -4.07 | K125: 11.08
A126: 000528 柳工 | B126: C 製造業 | C126: 35 專用設備製造業 | D126: 5.06 | E126: 5.48 | F126: 3.07 | G126: 4.42 | H126: 1.46 | I126: 2.16 | J126: 1.2 | K126: 5.58
A127: 000529 廣弘控股 | B127: C 製造業 | C127: 13 農副食品加工業 | D127: 3.49 | E127: 4.23 | F127: 3.37 | G127: 4.19 | H127: 3.16 | I127: 6.2 | J127: 6.06 | K127: 5.15
A128: 000530 大冷股份 | B128: C 製造業 | C128: 34 通用設備製造業 | D128: 2.46 | E128: 0.98 | F128: -0.05 | G128: 2.44 | H128: 0.05 | I128: -1.2 | J128: 0.17 | K128: 1.32
A129: 000531 穗恒運Ａ | B129: D 電力、熱力、燃氣及水 | C129: 44 電力熱力生產和供應 | D129: 21.33 | E129: 24.14 | F129: 23.14 | G129: 25.51 | H129: 22.76 | I129: 23.23 | J129: 24.53 | K129: 14.02
A130: 000532 華金資本 | B130: S 綜合 | C130: 90 綜合 | D130: 11.47 | E130: 2.6 | F130: -1.31 | G130: 5.01 | H130: 3.22 | I130: 15.56 | J130: 18.05 | K130: 23.27
A131: 000533 萬家樂 | B131: C 製造業 | C131: 38 電氣機械及器材製造業 | D131: 1.77 | E131: 5.36 | F131: 5.97 | G131: 5.73 | H131: 5.1 | I131: 4.99 | J131: 1.68 | K131: 2.16
A132: 000534 萬澤股份 | B132: K 房地產業 | C132: 70 房地產業 | D132: 25.87 | E132: 26.88 | F132: 25.74 | G132: 24.9 | H132: 9.93 | I132: -213.13 | J132: -5.65 | K132: 14.82
A133: 000536 華映科技 | B133: C 製造業 | C133: 39 電子設備製造業 | D133: 16.65 | E133: 8.36 | F133: 8.01 | G133: 6.17 | H133: 7.7 | I133: 1.44 | J133: 3.6 | K133: 5.85
A134: 000537 廣宇發展 | B134: K 房地產業 | C134: 70 房地產業 | D134: 27.43 | E134: 28.2 | F134: 25.35 | G134: 26.33 | H134: 20.21 | I134: 19.02 | J134: 15.48 | K134: 4.85
A135: 000538 雲南白藥 | B135: C 製造業 | C135: 27 醫藥製造業 | D135: 12.35 | E135: 14.63 | F135: 14.57 | G135: 14.59 | H135: 14.48 | I135: 14.59 | J135: 14.35 | K135: 14.22
A136: 000539 粵電力Ａ | B136: D 電力、熱力、燃氣及水 | C136: 44 電力熱力生產和供應 | D136: 22.2 | E136: 23.17 | F136: 24.01 | G136: 25.16 | H136: 25.33 | I136: 19.95 | J136: 16.79 | K136: 6.96
A137: 000540 中天金融 | B137: K 房地產業 | C137: 70 房地產業 | D137: 20.52 | E137: 17.82 | F137: 15.49 | G137: 20.41 | H137: 18.23 | I137: 20.55 | J137: 20.52 | K137: 23.84
A138: 000541 佛山照明 | B138: C 製造業 | C138: 38 電氣機械及器材製造業 | D138: 10.14 | E138: 12.9 | F138: 11.19 | G138: 9.39 | H138: 6.78 | I138: 13.06 | J138: 11.04 | K138: 12.46
A139: 000543 皖能電力 | B139: D 電力、熱力、燃氣及水 | C139: 44 電力熱力生產和供應 | D139: 17.56 | E139: 16 | F139: 18.59 | G139: 24.4 | H139: 21.69 | I139: 16.21 | J139: 10.5 | K139: -1.1
A140: 000544 中原環保 | B140: D 電力、熱力、燃氣及水 | C140: 46 水的生產和供應業 | D140: 15.06 | E140: 20.12 | F140: 19.26 | G140: 22.57 | H140: 12.38 | I140: 28.33 | J140: 27.47 | K140: 29.84
A141: 000545 金浦鈦業 | B141: C 製造業 | C141: 26 化學原料及化學製品 | D141: 8.02 | E141: 2.5 | F141: 1.92 | G141: 4.93 | H141: 1.65 | I141: 5.97 | J141: 5.49 | K141: 15.3
A142: 000546 金圓股份 | B142: C 製造業 | C142: 30 非金屬礦物製品業 | D142: 17.47 | E142: -3.15 | F142: 19.89 | G142: 0.81 | H142: 19.26 | I142: 19.53 | J142: 22.23 | K142: 15.56
A143: 000547 航天發展 | B143: C 製造業 | C143: 39 電子設備製造業 | D143: 4.52 | E143: 5.57 | F143: 32.31 | G143: -4.2 | H143: 19.55 | I143: 18.18 | J143: 15.68 | K143: 16.53
A144: 000548 湖南投資 | B144: G 交通運輸、倉儲&郵政 | C144: 54 道路運輸業 | D144: 21.7 | E144: 23.14 | F144: 19.92 | G144: 5.12 | H144: 11.96 | I144: -0.31 | J144: 9.54 | K144: 19.04
A145: 000550 江鈴汽車 | B145: C 製造業 | C145: 36 汽車製造業 | D145: 7.63 | E145: 7.65 | F145: 6.58 | G145: 7.62 | H145: 6.31 | I145: 3.99 | J145: 2.77 | K145: 1.82
A146: 000551 創元科技 | B146: S 綜合 | C146: 90 綜合 | D146: 4.52 | E146: 4.79 | F146: 5.53 | G146: 4.77 | H146: 3.85 | I146: 5.83 | J146: 5.95 | K146: 6.6
A147: 000552 靖遠煤電 | B147: B 採礦業 | C147: 06 煤炭開採和洗選業 | D147: 15.4 | E147: 16.32 | F147: 13.15 | G147: 13.55 | H147: 7.14 | I147: 5.6 | J147: 7.82 | K147: 16.42
A148: 000553 沙隆達Ａ | B148: C 製造業 | C148: 26 化學原料及化學製品 | D148: 16.24 | E148: 24.07 | F148: 22.11 | G148: 13.88 | H148: 9.03 | I148: 1.3 | J148: -4.38 | K148: 16.24
A149: 000554 泰山石油 | B149: F 批發和零售業 | C149: 51 批發業 | D149: 1.06 | E149: 0.65 | F149: 0.53 | G149: 0.72 | H149: 0.66 | I149: 0.59 | J149: 1.05 | K149: 0.48
A150: 000555 神州信息 | B150: I 信息傳輸&軟體 | C150: 65 軟體和資訊技術服務業 | D150: 2.68 | E150: 2.53 | F150: 5 | G150: 2.67 | H150: 6.55 | I150: 2.36 | J150: 4.33 | K150: 2.46
A151: 000557 西部創業 | B151: G 交通運輸、倉儲&郵政 | C151: 53 鐵路運輸業 | D151: -4 | E151: -50.34 | F151: -64.81 | G151: -60.31 | H151: 13.89 | I151: -35 | J151: -3.73 | K151: 13.94
A152: 000558 萊茵體育 | B152: K 房地產業 | C152: 70 房地產業 | D152: 5.42 | E152: 4.37 | F152: 4.69 | G152: 0.79 | H152: -9.91 | I152: 8.98 | J152: 4.09 | K152: 2.37
A153: 000559 萬向錢潮 | B153: C 製造業 | C153: 36 汽車製造業 | D153: 6.34 | E153: 7.73 | F153: 8.33 | G153: 9.4 | H153: 8.26 | I153: 9.71 | J153: 8.65 | K153: 8.42
A154: 000560 昆百大Ａ | B154: F 批發和零售業 | C154: 52 零售業 | D154: 8.01 | E154: 14.78 | F154: 9.66 | G154: 5.8 | H154: 2.71 | I154: 5.16 | J154: 5.55 | K154: 10.37
A155: 000561 烽火電子 | B155: C 製造業 | C155: 39 電子設備製造業 | D155: 3.59 | E155: 3.87 | F155: 5.71 | G155: 3.34 | H155: 9.08 | I155: 8.96 | J155: 9.54 | K155: 7.01
A156: 000563 陝國投Ａ | B156: J 金融業 | C156: 69 其他金融業
A157: 000564 供銷大集 | B157: F 批發和零售業 | C157: 52 零售業 | D157: -3.27 | E157: -3.34 | F157: 5.33 | G157: 6.33 | H157: -0.3 | I157: 4.34 | J157: 4.77 | K157: 5.27
A158: 000565 渝三峽Ａ | B158: C 製造業 | C158: 26 化學原料及化學製品 | D158: 3.38 | E158: 5.26 | F158: 4.45 | G158: 8.91 | H158: 2.51 | I158: 2.94 | J158: 2.54 | K158: 1.43
A159: 000566 海南海藥 | B159: C 製造業 | C159: 27 醫藥製造業 | D159: 9.6 | E159: 17.35 | F159: 15.24 | G159: 18.98 | H159: 15.41 | I159: 17.09 | J159: 13.94 | K159: 17.35
A160: 000567 海德股份 | B160: K 房地產業 | C160: 70 房地產業 | D160: -63.17 | E160: -322.08 | F160: -100.02 | G160: -68.02 | H160: -116.46 | I160: -299.28 | J160: 16.69 | K160: 77.26
A161: 000568 瀘州老窖 | B161: C 製造業 | C161: 15 酒飲料和精製茶製造業 | D161: 41.03 | E161: 30.76 | F161: 17.86 | G161: 29.12 | H161: 22.83 | I161: 33.2 | J161: 27.17 | K161: 35.92
A162: 000570 蘇常柴Ａ | B162: C 製造業 | C162: 34 通用設備製造業 | D162: 1.99 | E162: 1.96 | F162: 2.47 | G162: 2.45 | H162: 2.34 | I162: 2.47 | J162: 2.38 | K162: 1.63
A163: 000571 新大洲Ａ | B163: B 採礦業 | C163: 06 煤炭開採和洗選業 | D163: 11.05 | E163: 6.21 | F163: 5.85 | G163: 1.63 | H163: -0.93 | I163: 1.73 | J163: -6.34 | K163: -10.34
A164: 000572 海馬汽車 | B164: C 製造業 | C164: 36 汽車製造業 | D164: 5.06 | E164: 2.86 | F164: 2.49 | G164: 4.15 | H164: -1.64 | I164: 1.75 | J164: -2.05 | K164: -2.8
A165: 000573 粵宏遠Ａ | B165: K 房地產業 | C165: 70 房地產業 | D165: 11.78 | E165: 7.34 | F165: 7.5 | G165: -2.45 | H165: -11.12 | I165: -0.75 | J165: 6.46 | K165: 5.74
A166: 000576 廣東甘化 | B166: C 製造業 | C166: 22 造紙及紙製品業 | D166: 2.31 | E166: 0.84 | F166: -3.98 | G166: -7.87 | H166: -19.08 | I166: -20.79 | J166: -30.15 | K166: -6.94
A167: 000581 威孚高科 | B167: C 製造業 | C167: 36 汽車製造業 | D167: 9.86 | E167: 10.3 | F167: 10.23 | G167: 10.37 | H167: 4.52 | I167: 9.26 | J167: 6.59 | K167: 10.45
A168: 000582 北部灣港 | B168: G 交通運輸、倉儲&郵政 | C168: 55 水上運輸業 | D168: 23.59 | E168: 23.12 | F168: 21.49 | G168: 27.26 | H168: 23.05 | I168: 29.45 | J168: 24.38 | K168: 30.01
A169: 000584 哈工智能 | B169: C 製造業 | C169: 28 化學纖維製造業 | D169: 19.48 | E169: 19.82 | F169: 15.48 | G169: 9.21 | H169: 0.09 | I169: -12.89 | J169: -18.58 | K169: -0.28
A170: 000585 東北電氣 | B170: C 製造業 | C170: 38 電氣機械及器材製造業 | D170: 3.21 | E170: -2.27 | F170: 4.5 | G170: -2.55 | H170: 4.49 | I170: -38.84 | J170: -75.07 | K170: -114.35
A171: 000586 匯源通信 | B171: C 製造業 | C171: 39 電子設備製造業 | D171: -0.01 | E171: -1.7 | F171: 1.26 | G171: -2.06 | H171: 0.04 | I171: -0.64 | J171: -0.54 | K171: -1.94
A172: 000587 金洲慈航 | B172: C 製造業 | C172: 41 其他製造業 | D172: 2.3 | E172: 2.14 | F172: 1.95 | G172: 2.14 | H172: 4.22 | I172: 13.12 | J172: 14.71 | K172: 5.54
A173: 000589 黔輪胎Ａ | B173: C 製造業 | C173: 29 橡膠和塑膠製品業 | D173: 6.09 | E173: 6.94 | F173: 5.38 | G173: 7.08 | H173: -4.74 | I173: -0.46 | J173: -3.51 | K173: -2.76
A174: 000590 啟迪古漢 | B174: C 製造業 | C174: 27 醫藥製造業 | D174: -35.88 | E174: 0.38 | F174: -30.75 | G174: 9.26 | H174: 9.77 | I174: 9.88 | J174: 5.76 | K174: 8.32
A175: 000591 太陽能 | B175: D 電力、熱力、燃氣及水 | C175: 44 電力熱力生產和供應 | D175: 1.06 | E175: 0.41 | F175: 20.24 | G175: 1.52 | H175: 26.95 | I175: 22.99 | J175: 27.11 | K175: 30.09
A176: 000592 平潭發展 | B176: A 農、林、牧、漁業 | C176: 02 林業 | D176: 2.51 | E176: 1.85 | F176: 5.43 | G176: 6.95 | H176: 5.01 | I176: -2.14 | J176: -4.54 | K176: -4
A177: 000593 大通燃氣 | B177: D 電力、熱力、燃氣及水 | C177: 45 燃氣生產和供應業 | D177: 3.24 | E177: -1.98 | F177: 5.11 | G177: 3.61 | H177: 5.27 | I177: 5.67 | J177: 3.74 | K177: 11.06
A178: 000595 *ST 寶實 | B178: C 製造業 | C178: 34 通用設備製造業 | D178: -31.91 | E178: -18.17 | F178: -27.63 | G178: -26.17 | H178: -43.34 | I178: -24.97 | J178: -19.82 | K178: -1.1
A179: 000596 古井貢酒 | B179: C 製造業 | C179: 15 酒飲料和精製茶製造業 | D179: 16.82 | E179: 16.25 | F179: 13.62 | G179: 16.86 | H179: 16.01 | I179: 17.16 | J179: 16.45 | K179: 17.44
A180: 000597 東北製藥 | B180: C 製造業 | C180: 27 醫藥製造業 | D180: -1.53 | E180: 3.61 | F180: 3.71 | G180: -0.98 | H180: -6.81 | I180: 3.24 | J180: 2.61 | K180: 3.71
A181: 000598 興蓉環境 | B181: D 電力、熱力、燃氣及水 | C181: 46 水的生產和供應業 | D181: 36.88 | E181: 41.49 | F181: 32.28 | G181: 32.98 | H181: 30.11 | I181: 34.86 | J181: 30.52 | K181: 30.9
A182: 000599 青島雙星 | B182: C 製造業 | C182: 29 橡膠和塑膠製品業 | D182: 1.87 | E182: 2.13 | F182: 3.44 | G182: 2.87 | H182: 3.56 | I182: 4.02 | J182: 2.42 | K182: 4.16
A183: 000600 建投能源 | B183: D 電力、熱力、燃氣及水 | C183: 44 電力熱力生產和供應 | D183: 18.19 | E183: 27.88 | F183: 28.65 | G183: 34.88 | H183: 31.81 | I183: 38.37 | J183: 23.69 | K183: 12.88
A184: 000601 韶能股份 | B184: D 電力、熱力、燃氣及水 | C184: 44 電力熱力生產和供應 | D184: 22.59 | E184: 24.46 | F184: 18.31 | G184: 20.48 | H184: 19.93 | I184: 34.69 | J184: 23.63 | K184: 26.69
A185: 000603 盛達礦業 | B185: B 採礦業 | C185: 09 有色金屬礦採選業 | D185: 71.04 | E185: 65.26 | F185: 67.82 | G185: 67.91 | H185: 66.22 | I185: 61.82 | J185: 65.12 | K185: 49.33
A186: 000605 渤海股份 | B186: D 電力、熱力、燃氣及水 | C186: 46 水的生產和供應業 | D186: 12.85 | E186: 9.56 | F186: 9.62 | G186: 7.87 | H186: 9.94 | I186: 9.22 | J186: 10.85 | K186: 14.95
A187: 000606 神州易橋 | B187: C 製造業 | C187: 27 醫藥製造業 | D187: -9.64 | E187: -9.17 | F187: -23.47 | G187: -23.54 | H187: -56.41 | I187: 8.11 | J187: 5.44 | K187: -20.07
A188: 000607 華媒控股 | B188: R 文化、體育和娛樂業 | C188: 85 新聞和出版業 | D188: 8.33 | E188: 0.2 | F188: 11.01 | G188: 8.89 | H188: 12.49 | I188: 8.02 | J188: 14.05 | K188: 5.12
A189: 000608 陽光股份 | B189: K 房地產業 | C189: 70 房地產業 | D189: 29.33 | E189: -1.17 | F189: -23.33 | G189: 28.71 | H189: 33.54 | I189: 9.32 | J189: 6.04 | K189: 16.26
A190: 000609 綿石投資 | B190: S 綜合 | C190: 90 綜合 | D190: 5.86 | E190: -169.03 | F190: 17.29 | G190: -123.88 | H190: -0.55 | I190: -2444.37 | J190: -129.3 | K190: 6.94
A191: 000610 西安旅遊 | B191: N 水利、環境和公共設施 | C191: 78 公共設施管理業 | D191: -4.54 | E191: -4.54 | F191: -3.61 | G191: -3.94 | H191: -5.06 | I191: -2.6 | J191: -4.68 | K191: -3.56
A192: 000611 天首發展 | B192: C 製造業 | C192: 17 紡織業 | D192: 0.08 | E192: -41.63 | F192: -56.69 | G192: -95.06 | H192: -966.89 | I192: -28.4 | J192: -62.77 | K192: -24.26
A193: 000612 焦作萬方 | B193: C 製造業 | C193: 32 有色金屬冶煉和壓延 | D193: 1.15 | E193: 2.85 | F193: 5.83 | G193: 4.78 | H193: -0.79 | I193: 10.37 | J193: 7.92 | K193: -0.85
A194: 000613 *ST 東海A | B194: H 住宿和餐飲業 | C194: 61 住宿業 | D194: -9.41 | E194: -7.36 | F194: -23.22 | G194: -55.75 | H194: -55.33 | I194: -0.44 | J194: -19.65 | K194: 10.19
A195: 000615 京漢股份 | B195: K 房地產業 | C195: 70 房地產業 | D195: -6.82 | E195: 1.22 | F195: 8.28 | G195: 4.06 | H195: 9.91 | I195: 0.57 | J195: 7.78 | K195: -1.21
A196: 000616 海航投資 | B196: K 房地產業 | C196: 70 房地產業 | D196: 8.69 | E196: -3 | F196: -0.24 | G196: 51.13 | H196: -2.87 | I196: 25.47 | J196: 8.23 | K196: -37.65
A197: 000617 中油資本 | B197: J 金融業 | C197: 67 資本市場服務 | D197: 0.19 | E197: -3.05 | F197: -9.05 | G197: 3.41 | H197: -238.37 | I197: -53.89 | J197: -477.03 | K197: -654.13
A198: 000619 海螺型材 | B198: C 製造業 | C198: 29 橡膠和塑膠製品業 | D198: 5.86 | E198: 5.8 | F198: 5.12 | G198: 4.75 | H198: 4.49 | I198: 5.27 | J198: 3.21 | K198: -0.98
A199: 000620 新華聯 | B199: K 房地產業 | C199: 70 房地產業 | D199: 15.31 | E199: 3.44 | F199: 4.66 | G199: -1.14 | H199: 4.04 | I199: -0.56 | J199: 8.71 | K199: 5.68
A200: 000622 恒立實業 | B200: C 製造業 | C200: 35 專用設備製造業 | D200: -8.14 | E200: -36.93 | F200: -81.42 | G200: -69.88 | H200: -131.16 | I200: -79.54 | J200: -93.74 | K200: -48.15
... 3357 more rows

Sheet Gross Margin
B1: CSRC分類-門類 | C1: CSRC分類-大類 | D1: 毛利率% | E1: 毛利率% | F1: 毛利率% | G1: 毛利率% | H1: 毛利率% | I1: 毛利率% | J1: 毛利率% | K1: 毛利率%
A2: 公司 | D2: 2013-12-31 | E2: 2014-06-30 | F2: 2014-12-31 | G2: 2015-06-30 | H2: 2015-12-31 | I2: 2016-06-30 | J2: 2016-12-30 | K2: 2017-06-30
A3: 000001 平安銀行 | B3: J 金融業 | C3: 66 貨幣金融服務
A4: 000002 萬科Ａ | B4: K 房地產業 | C4: 70 房地產業 | D4: 30.96 | E4: 30.81 | F4: 29.94 | G4: 30.45 | H4: 29.35 | I4: 26.31 | J4: 29.41 | K4: 32.65
A5: 000004 國農科技 | B5: C 製造業 | C5: 27 醫藥製造業 | D5: 52.5 | E5: 58.98 | F5: 38.75 | G5: 35.95 | H5: 35.28 | I5: 27.83 | J5: 34.62 | K5: 24.68
A6: 000005 世紀星源 | B6: N 水利、環境和公共設施 | C6: 77 生態保護和環境治理 | D6: 24.58 | E6: 16.88 | F6: 26.24 | G6: 29.92 | H6: 31.52 | I6: 31.2 | J6: 30.16 | K6: 30.46
A7: 000006 深振業Ａ | B7: K 房地產業 | C7: 70 房地產業 | D7: 33.21 | E7: 39.45 | F7: 36.56 | G7: 33.74 | H7: 34.64 | I7: 42.58 | J7: 29.13 | K7: 28.19
A8: 000007 全新好 | B8: K 房地產業 | C8: 70 房地產業 | D8: 75.43 | E8: 77.93 | F8: 51.95 | G8: 81.23 | H8: 78.13 | I8: 69.79 | J8: 66.19 | K8: 69.35
A9: 000008 神州高鐵 | B9: C 製造業 | C9: 37 鐵路、船舶、航空航太 | D9: 45.2 | E9: 44.46 | F9: 44.74 | G9: 43.9 | H9: 47.48 | I9: 48.81 | J9: 52.77 | K9: 46.27
A10: 000009 中國寶安 | B10: S 綜合 | C10: 90 綜合 | D10: 35.52 | E10: 35.06 | F10: 32.11 | G10: 35.41 | H10: 33.45 | I10: 33.36 | J10: 30.66 | K10: 34.79
A11: 000010 美麗生態 | B11: E 建築業 | C11: 48 土木工程建築業 | D11: 29.56 | E11: 21.1 | F11: 17.79 | G11: 14.46 | H11: 20.91 | I11: 27.94 | J11: 27.55 | K11: 25.91
A12: 000011 深物業A | B12: K 房地產業 | C12: 70 房地產業 | D12: 53.39 | E12: 53.96 | F12: 58.97 | G12: 41.24 | H12: 39.8 | I12: 20.71 | J12: 57.63 | K12: 62.15
A13: 000012 南玻Ａ | B13: C 製造業 | C13: 30 非金屬礦物製品業 | D13: 28.61 | E13: 24.92 | F13: 24.43 | G13: 20.37 | H13: 21.61 | I13: 27.23 | J13: 26.88 | K13: 24.41
A14: 000014 沙河股份 | B14: K 房地產業 | C14: 70 房地產業 | D14: 40.65 | E14: 61.87 | F14: 52.94 | G14: 30.24 | H14: 42.6 | I14: 19.86 | J14: 20.91 | K14: 14.86
A15: 000016 深康佳Ａ | B15: C 製造業 | C15: 39 電子設備製造業 | D15: 16.67 | E15: 16.11 | F15: 13.85 | G15: 12.89 | H15: 12.72 | I15: 16.63 | J15: 13.7 | K15: 11.36
A16: 000017 深中華A | B16: C 製造業 | C16: 37 鐵路、船舶、航空航太 | D16: 5.12 | E16: 5.67 | F16: 6.18 | G16: 8.55 | H16: 6.78 | I16: 8.29 | J16: 11.08 | K16: 6.63
A17: 000018 神州長城 | B17: E 建築業 | C17: 50 建築裝飾和其他建築業 | D17: 64.96 | E17: 71.52 | F17: 18.33 | G17: 65.48 | H17: 21.08 | I17: 25.23 | J17: 25.84 | K17: 23.32
A18: 000019 深深寶Ａ | B18: C 製造業 | C18: 15 酒飲料和精製茶製造業 | D18: 16.05 | E18: 18.4 | F18: 37.78 | G18: 35.37 | H18: 26.84 | I18: 21.63 | J18: 25.14 | K18: 24.43
A19: 000020 深華發A | B19: C 製造業 | C19: 39 電子設備製造業 | D19: 6.74 | E19: 6.32 | F19: 14.51 | G19: 16.59 | H19: 16.31 | I19: 14.62 | J19: 13.64 | K19: 9.23
A20: 000021 深科技 | B20: C 製造業 | C20: 39 電子設備製造業 | D20: 2.21 | E20: 3.09 | F20: 3.19 | G20: 3.84 | H20: 4.33 | I20: 5.19 | J20: 5.67 | K20: 5.92
A21: 000022 深赤灣Ａ | B21: G 交通運輸、倉儲&郵政 | C21: 55 水上運輸業 | D21: 47.23 | E21: 45.67 | F21: 45.48 | G21: 47.38 | H21: 46.45 | I21: 45.61 | J21: 44.86 | K21: 42.34
A22: 000023 深天地Ａ | B22: C 製造業 | C22: 30 非金屬礦物製品業 | D22: 12.52 | E22: 10.06 | F22: 12.53 | G22: 16.15 | H22: 18.02 | I22: 14.75 | J22: 12.98 | K22: 9.58
A23: 000025 特力Ａ | B23: F 批發和零售業 | C23: 51 批發業 | D23: 13.85 | E23: 14.19 | F23: 16.25 | G23: 26.22 | H23: 28.23 | I23: 28.21 | J23: 29.36 | K23: 26.69
A24: 000026 飛亞達Ａ | B24: F 批發和零售業 | C24: 52 零售業 | D24: 35.69 | E24: 36.5 | F24: 37.32 | G24: 38.35 | H24: 38.98 | I24: 40.41 | J24: 40.79 | K24: 41.14
A25: 000027 深圳能源 | B25: D 電力、熱力、燃氣及水 | C25: 44 電力熱力生產和供應 | D25: 19.26 | E25: 25.63 | F25: 25.99 | G25: 30.09 | H25: 29.95 | I25: 32.38 | J25: 28.93 | K25: 24.27
A26: 000028 國藥一致 | B26: F 批發和零售業 | C26: 51 批發業 | D26: 8.09 | E26: 8.27 | F26: 8.15 | G26: 7.9 | H26: 11.6 | I26: 7.44 | J26: 11.15 | K26: 10.53
A27: 000029 深深房Ａ | B27: K 房地產業 | C27: 70 房地產業 | D27: 26.92 | E27: 24.48 | F27: 33.89 | G27: 39.21 | H27: 35.77 | I27: 25.67 | J27: 29.05 | K27: 32.32
A28: 000030 富奧股份 | B28: C 製造業 | C28: 36 汽車製造業 | D28: 16.83 | E28: 17.86 | F28: 18.64 | G28: 18.2 | H28: 18.4 | I28: 17.56 | J28: 18.61 | K28: 18.44
A29: 000031 中糧地產 | B29: K 房地產業 | C29: 70 房地產業 | D29: 27.22 | E29: 36.59 | F29: 37.68 | G29: 19.45 | H29: 26.4 | I29: 32.55 | J29: 34.26 | K29: 33.81
A30: 000032 深桑達Ａ | B30: F 批發和零售業 | C30: 51 批發業 | D30: 15.16 | E30: 9.9 | F30: 11.32 | G30: 13.4 | H30: 14.42 | I30: 12.83 | J30: 13.97 | K30: 17.65
A31: 000034 神州數碼 | B31: F 批發和零售業 | C31: 51 批發業 | D31: 11.75 | E31: 11.09 | F31: 12.48 | G31: 10.02 | H31: 10.7 | I31: 5.61 | J31: 4.88 | K31: 5.28
A32: 000035 中國天楹 | B32: N 水利、環境和公共設施 | C32: 77 生態保護和環境治理 | D32: 63.16 | E32: 58.73 | F32: 51.77 | G32: 57.33 | H32: 49.48 | I32: 52.49 | J32: 44.84 | K32: 41.8
A33: 000036 華聯控股 | B33: K 房地產業 | C33: 70 房地產業 | D33: 54.91 | E33: 59.99 | F33: 53.47 | G33: 47.12 | H33: 63.79 | I33: 48.73 | J33: 71.73 | K33: 69.15
A34: 000037 深南電A | B34: D 電力、熱力、燃氣及水 | C34: 44 電力熱力生產和供應 | D34: -45.69 | E34: -43.4 | F34: -41.07 | G34: -14.81 | H34: -10.99 | I34: 8.28 | J34: 8.33 | K34: 5.18
A35: 000038 深大通 | B35: L 租賃和商務服務業 | C35: 72 商務服務業 | D35: 26.98 | E35: 0.32 | F35: 4.51 | G35: 19.18 | H35: 24.05 | I35: 42.01 | J35: 40.08 | K35: 34.08
A36: 000039 中集集團 | B36: C 製造業 | C36: 33 金屬製品業 | D36: 15.9 | E36: 15.58 | F36: 16.13 | G36: 15.68 | H36: 18.12 | I36: 18.76 | J36: 18.84 | K36: 18.41
A37: 000040 東旭藍天 | B37: E 建築業 | C37: 48 土木工程建築業 | D37: 42.55 | E37: 32.16 | F37: 33.18 | G37: 40.06 | H37: 33.16 | I37: 24.32 | J37: 16.6 | K37: 13.91
A38: 000042 中洲控股 | B38: K 房地產業 | C38: 70 房地產業 | D38: 48.51 | E38: 51.73 | F38: 42.53 | G38: 52.11 | H38: 39.87 | I38: 25.03 | J38: 29.21 | K38: 25.18
A39: 000043 中航地產 | B39: K 房地產業 | C39: 70 房地產業 | D39: 30.17 | E39: 28.42 | F39: 27.28 | G39: 27.55 | H39: 24.19 | I39: 21.27 | J39: 20.18 | K39: 20.65
A40: 000045 深紡織Ａ | B40: C 製造業 | C40: 39 電子設備製造業 | D40: 3.83 | E40: 7.97 | F40: 4.64 | G40: 5.29 | H40: 6.87 | I40: 7.41 | J40: 5.85 | K40: 8.35
A41: 000046 泛海控股 | B41: K 房地產業 | C41: 70 房地產業 | D41: 54.94 | E41: 57.01 | F41: 56.53 | G41: 57.98 | H41: 48.21 | I41: 45.16 | J41: 41.5 | K41: 38.96
A42: 000048 康達爾 | B42: C 製造業 | C42: 13 農副食品加工業 | D42: 10.51 | E42: 11.92 | F42: 24.85 | G42: 37.5 | H42: 31.42 | I42: 20.86 | J42: 17.69 | K42: 13.25
A43: 000049 德賽電池 | B43: C 製造業 | C43: 38 電氣機械及器材製造業 | D43: 14.49 | E43: 11.88 | F43: 10.69 | G43: 9.96 | H43: 8.92 | I43: 9.61 | J43: 9.71 | K43: 8.94
A44: 000050 深天馬Ａ | B44: C 製造業 | C44: 39 電子設備製造業 | D44: 18.75 | E44: 19.56 | F44: 18.65 | G44: 16.5 | H44: 16.34 | I44: 19.89 | J44: 20.18 | K44: 22.13
A45: 000055 方大集團 | B45: C 製造業 | C45: 33 金屬製品業 | D45: 18.44 | E45: 17.64 | F45: 17.93 | G45: 18.23 | H45: 14.86 | I45: 17.65 | J45: 38.27 | K45: 35.46
A46: 000056 皇庭國際 | B46: K 房地產業 | C46: 70 房地產業 | D46: 30.62 | E46: 39.15 | F46: 36.87 | G46: 76.25 | H46: 72.48 | I46: 71.34 | J46: 69.92 | K46: 76.07
A47: 000058 深賽格 | B47: L 租賃和商務服務業 | C47: 72 商務服務業 | D47: 22.42 | E47: 26.35
A48: 000059 華錦股份 | B48: C 製造業 | C48: 25 石油加工煉焦及核燃料 | D48: 10.2 | E48: 6.58 | F48: 6.95 | G48: 14.91 | H48: 15.89 | I48: 30.36 | J48: 28.19 | K48: 22.51
A49: 000060 中金嶺南 | B49: C 製造業 | C49: 32 有色金屬冶煉和壓延 | D49: 6.81 | E49: 8.44 | F49: 6.09 | G49: 10.31 | H49: 6.01 | I49: 9.44 | J49: 11.13 | K49: 12.67
A50: 000061 農產品 | B50: L 租賃和商務服務業 | C50: 72 商務服務業 | D50: 38.13 | E50: 49.82 | F50: 46.05 | G50: 51.41 | H50: 48.56 | I50: 41.42 | J50: 34.92 | K50: 34.05
A51: 000062 深圳華強 | B51: F 批發和零售業 | C51: 51 批發業 | D51: 55.34 | E51: 44.33 | F51: 43.07 | G51: 47.84 | H51: 33.88 | I51: 20.02 | J51: 19.16 | K51: 18.08
A52: 000063 中興通訊 | B52: C 製造業 | C52: 39 電子設備製造業 | D52: 29.23 | E52: 32.1 | F52: 31.56 | G52: 33.71 | H52: 31.03 | I52: 33.36 | J52: 30.75 | K52: 32.52
A53: 000065 北方國際 | B53: E 建築業 | C53: 48 土木工程建築業 | D53: 13.99 | E53: 12.31 | F53: 11.39 | G53: 10.65 | H53: 9.14 | I53: 9.61 | J53: 11.87 | K53: 9.83
A54: 000066 中國長城 | B54: C 製造業 | C54: 39 電子設備製造業 | D54: 8.25 | E54: 9.57 | F54: 9.83 | G54: 8.36 | H54: 9.15 | I54: 11.08 | J54: 9.8 | K54: 21.85
A55: 000068 華控賽格 | B55: C 製造業 | C55: 39 電子設備製造業 | D55: 1.85 | E55: 3.2 | F55: 38.11 | G55: 19.22 | H55: 37.89 | I55: 30.63 | J55: 42.41 | K55: 37.97
A56: 000069 華僑城Ａ | B56: N 水利、環境和公共設施 | C56: 78 公共設施管理業 | D56: 53 | E56: 58.84 | F56: 56.96 | G56: 51.87 | H56: 53.19 | I56: 45.9 | J56: 53.26 | K56: 48.48
A57: 000070 特發信息 | B57: C 製造業 | C57: 38 電氣機械及器材製造業 | D57: 17.57 | E57: 18.42 | F57: 18.75 | G57: 16.63 | H57: 18.25 | I57: 15.76 | J57: 17.31 | K57: 16.63
A58: 000078 海王生物 | B58: F 批發和零售業 | C58: 52 零售業 | D58: 15.11 | E58: 14.55 | F58: 14.59 | G58: 13.59 | H58: 14.65 | I58: 12.81 | J58: 14.87 | K58: 12.97
A59: 000088 鹽田港 | B59: G 交通運輸、倉儲&郵政 | C59: 54 道路運輸業 | D59: 58.92 | E59: 56.85 | F59: 55.82 | G59: 51.97 | H59: 50 | I59: 55.96 | J59: 50.09 | K59: 48.6
A60: 000089 深圳機場 | B60: G 交通運輸、倉儲&郵政 | C60: 56 航空運輸業 | D60: 32.5 | E60: 21.3 | F60: 20.82 | G60: 27.8 | H60: 30.26 | I60: 27.62 | J60: 27.26 | K60: 30.84
A61: 000090 天健集團 | B61: E 建築業 | C61: 48 土木工程建築業 | D61: 23.86 | E61: 16.99 | F61: 20.12 | G61: 21.4 | H61: 21.14 | I61: 20.02 | J61: 22.18 | K61: 35.11
A62: 000096 廣聚能源 | B62: F 批發和零售業 | C62: 51 批發業 | D62: 8.29 | E62: 10.23 | F62: 10.5 | G62: 12.84 | H62: 13.88 | I62: 18.67 | J62: 18.79 | K62: 15.06
A63: 000099 中信海直 | B63: G 交通運輸、倉儲&郵政 | C63: 56 航空運輸業 | D63: 26.1 | E63: 32.86 | F63: 29.13 | G63: 31.36 | H63: 33.34 | I63: 24.02 | J63: 19.15 | K63: 14.64
A64: 000100 TCL集團 | B64: C 製造業 | C64: 39 電子設備製造業 | D64: 17.19 | E64: 17.45 | F64: 17.57 | G64: 17.94 | H64: 16.54 | I64: 15.11 | J64: 16.91 | K64: 20.85
A65: 000150 宜華健康 | B65: Q 衛生和社會工作 | C65: 83 衛生 | D65: 33.22 | E65: 30.13 | F65: 23.75 | G65: 25.55 | H65: 23.7 | I65: 38.07 | J65: 25.92 | K65: 34.32
A66: 000151 中成股份 | B66: F 批發和零售業 | C66: 51 批發業 | D66: 16.13 | E66: 15.45 | F66: 12.34 | G66: 23.16 | H66: 19.47 | I66: 16.54 | J66: 11.62 | K66: 14.8
A67: 000153 豐原藥業 | B67: C 製造業 | C67: 27 醫藥製造業 | D67: 25.95 | E67: 25.15 | F67: 26.5 | G67: 26.51 | H67: 27.13 | I67: 27.26 | J67: 26.61 | K67: 27.26
A68: 000155 *ST川化 | B68: C 製造業 | C68: 26 化學原料及化學製品 | D68: 5.75 | E68: 0.67 | F68: 0.45 | G68: 7.21 | H68: 7.46 | I68: 5.3 | J68: 3.17 | K68: 3.18
A69: 000156 華數傳媒 | B69: R 文化、體育和娛樂業 | C69: 86 廣播電視電影影視 | D69: 44.15 | E69: 42.49 | F69: 42.14 | G69: 45.6 | H69: 44.25 | I69: 45.22 | J69: 44.89 | K69: 44.38
A70: 000157 中聯重科 | B70: C 製造業 | C70: 35 專用設備製造業 | D70: 29.54 | E70: 29.02 | F70: 27.89 | G70: 23.92 | H70: 27.02 | I70: 24.69 | J70: 23.86 | K70: 19.47
A71: 000158 常山北明 | B71: C 製造業 | C71: 17 紡織業 | D71: 3.47 | E71: 1 | F71: 1.2 | G71: 3.42 | H71: 6.84 | I71: 6.73 | J71: 7.6 | K71: 7.44
A72: 000159 國際實業 | B72: F 批發和零售業 | C72: 51 批發業 | D72: 21.24 | E72: 6.37 | F72: 10.91 | G72: 13.24 | H72: 22.17 | I72: 16.72 | J72: 17.32 | K72: 13.91
A73: 000166 申萬宏源 | B73: J 金融業 | C73: 67 資本市場服務
A74: 000301 東方市場 | B74: D 電力、熱力、燃氣及水 | C74: 44 電力熱力生產和供應 | D74: 40.51 | E74: 42.9 | F74: 46.97 | G74: 44.89 | H74: 49.24 | I74: 48.96 | J74: 43.79 | K74: 29.98
A75: 000333 美的集團 | B75: C 製造業 | C75: 38 電氣機械及器材製造業 | D75: 23.45 | E75: 26.26 | F75: 25.41 | G75: 27.43 | H75: 25.84 | I75: 29.23 | J75: 27.31 | K75: 25.23
A76: 000338 濰柴動力 | B76: C 製造業 | C76: 36 汽車製造業 | D76: 21.1 | E76: 20.83 | F76: 21.37 | G76: 23.11 | H76: 23.06 | I76: 22.85 | J76: 22.63 | K76: 21.19
A77: 000400 許繼電氣 | B77: C 製造業 | C77: 38 電氣機械及器材製造業 | D77: 29.79 | E77: 28.87 | F77: 34.38 | G77: 23.23 | H77: 27.96 | I77: 18.65 | J77: 23.27 | K77: 19.45
A78: 000401 冀東水泥 | B78: C 製造業 | C78: 30 非金屬礦物製品業 | D78: 23.2 | E78: 18.39 | F78: 20.96 | G78: 11.18 | H78: 15.32 | I78: 13.8 | J78: 24.17 | K78: 28.7
A79: 000402 金融街 | B79: K 房地產業 | C79: 70 房地產業 | D79: 37.52 | E79: 36.39 | F79: 30.62 | G79: 27.55 | H79: 30.05 | I79: 40.5 | J79: 30.03 | K79: 31.95
A80: 000403 ST生化 | B80: C 製造業 | C80: 27 醫藥製造業 | D80: 59.51 | E80: 60.04 | F80: 57.09 | G80: 56.78 | H80: 52.94 | I80: 52.88 | J80: 56.02 | K80: 60.95
A81: 000404 華意壓縮 | B81: C 製造業 | C81: 34 通用設備製造業 | D81: 15.97 | E81: 15.58 | F81: 16.62 | G81: 15.75 | H81: 15.22 | I81: 14.46 | J81: 13.72 | K81: 12.7
A82: 000407 勝利股份 | B82: D 電力、熱力、燃氣及水 | C82: 45 燃氣生產和供應業 | D82: 9.87 | E82: 9.54 | F82: 8.32 | G82: 10.97 | H82: 9.91 | I82: 13.23 | J82: 12.97 | K82: 14.91
A83: 000408 藏格控股 | B83: C 製造業 | C83: 26 化學原料及化學製品 | D83: 1.25 | E83: -1.42 | F83: -0.91 | G83: 1.87 | H83: 68.88 | J83: 71.66 | K83: 70.24
A84: 000409 山東地礦 | B84: S 綜合 | C84: 90 綜合 | D84: 61.66 | E84: 50.21 | F84: 34.09 | G84: 20.93 | H84: 22.59 | I84: 15.18 | J84: 11.97 | K84: 10.71
A85: 000410 *ST 瀋機 | B85: C 製造業 | C85: 34 通用設備製造業 | D85: 23.45 | E85: 24.93 | F85: 26.76 | G85: 22.47 | H85: 26.54 | I85: 23.02 | J85: 23.03 | K85: 26.75
A86: 000411 英特集團 | B86: F 批發和零售業 | C86: 51 批發業 | D86: 5.93 | E86: 5.41 | F86: 5.79 | G86: 5.15 | H86: 5.56 | I86: 5.48 | J86: 5.66 | K86: 5.58
A87: 000413 東旭光電 | B87: C 製造業 | C87: 39 電子設備製造業 | D87: 56.98 | E87: 52.54 | F87: 34.65 | G87: 44.29 | H87: 39.78 | I87: 32.75 | J87: 30.14 | K87: 28.06
A88: 000415 渤海金控 | B88: L 租賃和商務服務業 | C88: 71 租賃業 | D88: 54.59 | E88: 51.96 | F88: 46.43 | G88: 49.1 | H88: 49.62 | I88: 34.6 | J88: 36.66 | K88: 34.67
A89: 000416 民生控股 | B89: J 金融業 | C89: 69 其他金融業 | D89: 14.87 | E89: 13.94 | F89: 20.77 | G89: 99.48 | H89: 99.82 | I89: 99.92 | J89: 99.94 | K89: 99.62
A90: 000417 合肥百貨 | B90: F 批發和零售業 | C90: 52 零售業 | D90: 15.35 | E90: 15.8 | F90: 20.42 | G90: 18.44 | H90: 19.87 | I90: 20.13 | J90: 19.89 | K90: 18.6
A91: 000418 小天鵝Ａ | B91: C 製造業 | C91: 38 電氣機械及器材製造業 | D91: 26.34 | E91: 28.01 | F91: 25.89 | G91: 26.95 | H91: 26.54 | I91: 27.2 | J91: 25.86 | K91: 25.61
A92: 000419 通程控股 | B92: F 批發和零售業 | C92: 52 零售業 | D92: 16.5 | E92: 16.23 | F92: 19.34 | G92: 19.03 | H92: 18.91 | I92: 20.14 | J92: 19.98 | K92: 20.24
A93: 000420 吉林化纖 | B93: C 製造業 | C93: 28 化學纖維製造業 | D93: -0.54 | E93: 4.79 | F93: 6.04 | G93: 15.26 | H93: 14.55 | I93: 14.05 | J93: 11.68 | K93: 12.47
A94: 000421 南京公用 | B94: D 電力、熱力、燃氣及水 | C94: 45 燃氣生產和供應業 | D94: -1.35 | E94: -0.33 | F94: 17.4 | G94: 12.79 | H94: 16.09 | I94: 12.73 | J94: 20.13 | K94: 24.46
A95: 000422 湖北宜化 | B95: C 製造業 | C95: 26 化學原料及化學製品 | D95: 14.29 | E95: 15.17 | F95: 17.65 | G95: 17.66 | H95: 15.34 | I95: 14.45 | J95: 11.9 | K95: 17.82
A96: 000423 東阿阿膠 | B96: C 製造業 | C96: 27 醫藥製造業 | D96: 63.45 | E96: 65.07 | F96: 65.54 | G96: 65.19 | H96: 64.61 | I96: 69 | J96: 66.95 | K96: 66.13
A97: 000425 徐工機械 | B97: C 製造業 | C97: 35 專用設備製造業 | D97: 22.38 | E97: 20.76 | F97: 22.62 | G97: 19.97 | H97: 20.57 | I97: 19.98 | J97: 19.44 | K97: 19.13
A98: 000426 興業礦業 | B98: B 採礦業 | C98: 09 有色金屬礦採選業 | D98: 43.23 | E98: 19.81 | F98: 22.42 | G98: 26.6 | H98: 31.78 | I98: 49.82 | J98: 44.69 | K98: 63.33
A99: 000428 華天酒店 | B99: H 住宿和餐飲業 | C99: 61 住宿業 | D99: 63.72 | E99: 48.38 | F99: 51.16 | G99: 54.85 | H99: 54.26 | I99: 54.78 | J99: 56.55 | K99: 59.99
A100: 000429 粵高速Ａ | B100: G 交通運輸、倉儲&郵政 | C100: 54 道路運輸業 | D100: 30.45 | E100: 46.33 | F100: 41.68 | G100: 50.21 | H100: 53.69 | I100: 58.08 | J100: 54.65 | K100: 62.94
A101: 000430 張家界 | B101: N 水利、環境和公共設施 | C101: 78 公共設施管理業 | D101: 33.42 | E101: 39.42 | F101: 37.9 | G101: 45.06 | H101: 43.25 | I101: 39.53 | J101: 39.48 | K101: 37.12
A102: 000488 晨鳴紙業 | B102: C 製造業 | C102: 22 造紙及紙製品業 | D102: 18.16 | E102: 18.31 | F102: 19.78 | G102: 24.16 | H102: 27.06 | I102: 31.51 | J102: 31.08 | K102: 30.69
A103: 000498 山東路橋 | B103: E 建築業 | C103: 48 土木工程建築業 | D103: 14.32 | E103: 15.27 | F103: 15.67 | G103: 16.01 | H103: 14.81 | I103: 14.65 | J103: 14.3 | K103: 14.19
A104: 000501 鄂武商Ａ | B104: F 批發和零售業 | C104: 52 零售業 | D104: 19 | E104: 17.79 | F104: 20.82 | G104: 21.12 | H104: 21.76 | I104: 22.7 | J104: 22.21 | K104: 22.56
A105: 000502 綠景控股 | B105: K 房地產業 | C105: 70 房地產業 | D105: 43.57 | E105: 44.03 | F105: 58.71 | G105: 41.59 | H105: 36.8 | I105: 30.08 | J105: 53.94 | K105: 13.14
A106: 000503 海虹控股 | B106: I 信息傳輸&軟體 | C106: 64 互聯網和相關服務 | D106: 57.67 | E106: 61.65 | F106: 48.21 | G106: 54.12 | H106: 43.2 | I106: 46.54 | J106: 32.09 | K106: 21.58
A107: 000504 南華生物 | B107: R 文化、體育和娛樂業 | C107: 85 新聞和出版業 | D107: -9.38 | E107: 23.32 | F107: 26.81 | G107: 9.07 | H107: 10.79 | I107: 7.85 | J107: 32.22 | K107: 27.95
A108: 000505 珠江控股 | B108: K 房地產業 | C108: 70 房地產業 | D108: 25.69 | E108: 25.63 | F108: 21.78 | G108: 25.99 | H108: 21.94 | I108: 18.12 | J108: 27.17 | K108: 26.72
A109: 000506 中潤資源 | B109: B 採礦業 | C109: 09 有色金屬礦採選業 | D109: 9.1 | E109: -20.12 | F109: -5.79 | G109: 34.88 | H109: 25.13 | I109: 41.56 | J109: 37.53 | K109: 11.26
A110: 000507 珠海港 | B110: G 交通運輸、倉儲&郵政 | C110: 55 水上運輸業 | D110: 15.45 | E110: 11.9 | F110: 14.9 | G110: 19.7 | H110: 19.27 | I110: 21.43 | J110: 22.4 | K110: 23.66
A111: 000509 華塑控股 | B111: C 製造業 | C111: 29 橡膠和塑膠製品業 | D111: 3.32 | E111: 14.38 | F111: 10.83 | G111: 13.01 | H111: 17.52 | I111: 8.39 | J111: 6.92 | K111: 1.24
A112: 000510 金路集團 | B112: C 製造業 | C112: 26 化學原料及化學製品 | D112: 0.01 | E112: 1.75 | F112: 3.55 | G112: 2.14 | H112: 5.53 | I112: 12.97 | J112: 17.05 | K112: 15.24
A113: 000511 *ST 烯碳 | B113: C 製造業 | C113: 30 非金屬礦物製品業 | D113: 14.92 | E113: 3.17 | F113: 1.59 | G113: 0.87 | H113: 1.52 | I113: 0.36 | J113: 0.27 | K113: -0.01
A114: 000513 麗珠集團 | B114: C 製造業 | C114: 27 醫藥製造業 | D114: 63.82 | E114: 62.71 | F114: 61.35 | G114: 61.17 | H114: 61.1 | I114: 64.19 | J114: 64.09 | K114: 64.84
A115: 000514 渝開發 | B115: K 房地產業 | C115: 70 房地產業 | D115: 25.62 | E115: 21.76 | F115: 24.57 | G115: 7.35 | H115: 23.21 | I115: 27.15 | J115: 34.97 | K115: 22.12
A116: 000516 國際醫學 | B116: F 批發和零售業 | C116: 52 零售業 | D116: 18.1 | E116: 18.42 | F116: 20.65 | G116: 19.85 | H116: 20.23 | I116: 20.2 | J116: 20.25 | K116: 19.47
A117: 000517 榮安地產 | B117: K 房地產業 | C117: 70 房地產業 | D117: 23.64 | E117: 15.84 | F117: 19.44 | G117: 37.62 | H117: 29.03 | I117: 22.43 | J117: 24.31 | K117: 23.57
A118: 000518 四環生物 | B118: C 製造業 | C118: 27 醫藥製造業 | D118: 49.4 | E118: 57.92 | F118: 59.29 | G118: 63.11 | H118: 62.15 | I118: 62.42 | J118: 65.42 | K118: 65.77
A119: 000519 中兵紅箭 | B119: C 製造業 | C119: 35 專用設備製造業 | D119: 37.15 | E119: 37.84 | F119: 36.24 | G119: 36.84 | H119: 26.25 | I119: 21.16 | J119: 21.07 | K119: 16.76
A120: 000520 長航鳳凰 | B120: G 交通運輸、倉儲&郵政 | C120: 55 水上運輸業 | D120: -18.51 | E120: 12.5 | F120: 12.57 | G120: 13.17 | H120: 14 | I120: 13.64 | J120: 18.9 | K120: 13.38
A121: 000521 美菱電器 | B121: C 製造業 | C121: 38 電氣機械及器材製造業 | D121: 24.89 | E121: 25.49 | F121: 23.51 | G121: 20.89 | H121: 19.78 | I121: 20.89 | J121: 19.94 | K121: 17.86
A122: 000523 廣州浪奇 | B122: C 製造業 | C122: 26 化學原料及化學製品 | D122: 6.24 | E122: 5.23 | F122: 5.29 | G122: 4.01 | H122: 3.72 | I122: 2.52 | J122: 3.07 | K122: 2.73
A123: 000524 嶺南控股 | B123: H 住宿和餐飲業 | C123: 61 住宿業 | D123: 56.44 | E123: 54.64 | F123: 56.62 | G123: 60.32 | H123: 56.94 | I123: 58.84 | J123: 54.76 | K123: 17.7
A124: 000525 紅太陽 | B124: C 製造業 | C124: 26 化學原料及化學製品 | D124: 13.88 | E124: 19.76 | F124: 16.92 | G124: 12.88 | H124: 12.86 | I124: 14.23 | J124: 18.39 | K124: 30.2
A125: 000526 *ST 紫學 | B125: P 教育 | C125: 82 教育 | D125: 64.99 | E125: 72.34 | F125: 69.57 | G125: 63.94 | H125: 64.15 | I125: 31.56 | J125: 25.09 | K125: 34.77
A126: 000528 柳工 | B126: C 製造業 | C126: 35 專用設備製造業 | D126: 20.77 | E126: 22.27 | F126: 21.94 | G126: 25.02 | H126: 25.53 | I126: 24.73 | J126: 24.87 | K126: 23.44
A127: 000529 廣弘控股 | B127: C 製造業 | C127: 13 農副食品加工業 | D127: 12.94 | E127: 12.67 | F127: 11.33 | G127: 11.82 | H127: 12.1 | I127: 14.77 | J127: 13.91 | K127: 14.24
A128: 000530 大冷股份 | B128: C 製造業 | C128: 34 通用設備製造業 | D128: 24.25 | E128: 21.54 | F128: 23.79 | G128: 20.99 | H128: 18.52 | I128: 18.81 | J128: 18.03 | K128: 18.47
A129: 000531 穗恒運Ａ | B129: D 電力、熱力、燃氣及水 | C129: 44 電力熱力生產和供應 | D129: 28.74 | E129: 33.63 | F129: 32.61 | G129: 33.59 | H129: 31.9 | I129: 32.81 | J129: 32.66 | K129: 21.69
A130: 000532 華金資本 | B130: S 綜合 | C130: 90 綜合 | D130: 39.25 | E130: 37.56 | F130: 38.61 | G130: 43.09 | H130: 40.25 | I130: 45.6 | J130: 43.6 | K130: 41.23
A131: 000533 萬家樂 | B131: C 製造業 | C131: 38 電氣機械及器材製造業 | D131: 27.92 | E131: 30.72 | F131: 32.67 | G131: 32.55 | H131: 31.76 | I131: 32.79 | J131: 32.57 | K131: 10.25
A132: 000534 萬澤股份 | B132: K 房地產業 | C132: 70 房地產業 | D132: 48.74 | E132: 58.38 | F132: 52.42 | G132: 59.55 | H132: 51.37 | I132: 21.87 | J132: 35.67 | K132: 47.51
A133: 000536 華映科技 | B133: C 製造業 | C133: 39 電子設備製造業 | D133: 27.84 | E133: 13.51 | F133: 11.51 | G133: 10.75 | H133: 13.63 | I133: 12.77 | J133: 15.14 | K133: 14.35
A134: 000537 廣宇發展 | B134: K 房地產業 | C134: 70 房地產業 | D134: 51.8 | E134: 50.28 | F134: 49.07 | G134: 55.77 | H134: 52.01 | I134: 50.82 | J134: 33.02 | K134: 20.91
A135: 000538 雲南白藥 | B135: C 製造業 | C135: 27 醫藥製造業 | D135: 29.68 | E135: 29.93 | F135: 30.16 | G135: 30.6 | H135: 30.53 | I135: 30.11 | J135: 29.86 | K135: 31.78
A136: 000539 粵電力Ａ | B136: D 電力、熱力、燃氣及水 | C136: 44 電力熱力生產和供應 | D136: 26.09 | E136: 26.4 | F136: 27.91 | G136: 28.89 | H136: 29.82 | I136: 24.1 | J136: 21.55 | K136: 10.16
A137: 000540 中天金融 | B137: K 房地產業 | C137: 70 房地產業 | D137: 42.98 | E137: 32.35 | F137: 31.29 | G137: 33.88 | H137: 35.44 | I137: 33.91 | J137: 33.77 | K137: 39.14
A138: 000541 佛山照明 | B138: C 製造業 | C138: 38 電氣機械及器材製造業 | D138: 25.19 | E138: 25.08 | F138: 26.77 | G138: 23.51 | H138: 24.02 | I138: 24.65 | J138: 25.2 | K138: 23.57
A139: 000543 皖能電力 | B139: D 電力、熱力、燃氣及水 | C139: 44 電力熱力生產和供應 | D139: 18.4 | E139: 16.7 | F139: 19.52 | G139: 25.72 | H139: 22.95 | I139: 17.48 | J139: 11.8 | K139: 0.1
A140: 000544 中原環保 | B140: D 電力、熱力、燃氣及水 | C140: 46 水的生產和供應業 | D140: 28.73 | E140: 30.35 | F140: 31.78 | G140: 32.64 | H140: 15.21 | I140: 40.99 | J140: 40.77 | K140: 42.32
A141: 000545 金浦鈦業 | B141: C 製造業 | C141: 26 化學原料及化學製品 | D141: 19.39 | E141: 12.47 | F141: 13.64 | G141: 16.17 | H141: 15.45 | I141: 18.92 | J141: 17.91 | K141: 26.29
A142: 000546 金圓股份 | B142: C 製造業 | C142: 30 非金屬礦物製品業 | D142: 25.03 | E142: 8.39 | F142: 28.76 | G142: 12.16 | H142: 33.35 | I142: 37.76 | J142: 36.96 | K142: 27.85
A143: 000547 航天發展 | B143: C 製造業 | C143: 39 電子設備製造業 | D143: 33.5 | E143: 28.67 | F143: 62.62 | G143: 36.69 | H143: 43.59 | I143: 44.15 | J143: 38.81 | K143: 42.17
A144: 000548 湖南投資 | B144: G 交通運輸、倉儲&郵政 | C144: 54 道路運輸業 | D144: 65.08 | E144: 66.27 | F144: 64.62 | G144: 58.96 | H144: 60.69 | I144: 55.4 | J144: 58.86 | K144: 32.9
A145: 000550 江鈴汽車 | B145: C 製造業 | C145: 36 汽車製造業 | D145: 25.91 | E145: 24.96 | F145: 25.21 | G145: 24.85 | H145: 26.08 | I145: 22.71 | J145: 22.61 | K145: 21.03
A146: 000551 創元科技 | B146: S 綜合 | C146: 90 綜合 | D146: 23.96 | E146: 24.37 | F146: 25.47 | G146: 24.27 | H146: 25.12 | I146: 26.82 | J146: 26.24 | K146: 25.89
A147: 000552 靖遠煤電 | B147: B 採礦業 | C147: 06 煤炭開採和洗選業 | D147: 28.42 | E147: 32.83 | F147: 26.43 | G147: 27.02 | H147: 21.79 | I147: 19.83 | J147: 20.68 | K147: 32.13
A148: 000553 沙隆達Ａ | B148: C 製造業 | C148: 26 化學原料及化學製品 | D148: 23.79 | E148: 30.81 | F148: 29.99 | G148: 23.76 | H148: 20.3 | I148: 14.57 | J148: 13.67 | K148: 24.87
A149: 000554 泰山石油 | B149: F 批發和零售業 | C149: 51 批發業 | D149: 5.46 | E149: 5.79 | F149: 6.13 | G149: 6.76 | H149: 7.86 | I149: 8.48 | J149: 9.04 | K149: 8.33
A150: 000555 神州信息 | B150: I 信息傳輸&軟體 | C150: 65 軟體和資訊技術服務業 | D150: 15.36 | E150: 17.26 | F150: 18.32 | G150: 19.84 | H150: 20.66 | I150: 16.64 | J150: 19.54 | K150: 18.95
A151: 000557 西部創業 | B151: G 交通運輸、倉儲&郵政 | C151: 53 鐵路運輸業 | D151: 72.21 | E151: 59.44 | F151: 61.67 | G151: 51.9 | H151: 40.77 | I151: 0.89 | J151: 28.25 | K151: 37.06
A152: 000558 萊茵體育 | B152: K 房地產業 | C152: 70 房地產業 | D152: 19.3 | E152: 14.28 | F152: 15.95 | G152: 13.16 | H152: 11.42 | I152: 14.39 | J152: 7.41 | K152: 6.27
A153: 000559 萬向錢潮 | B153: C 製造業 | C153: 36 汽車製造業 | D153: 19.71 | E153: 21.24 | F153: 22.2 | G153: 21.04 | H153: 21.27 | I153: 22.55 | J153: 21.95 | K153: 20.92
A154: 000560 昆百大Ａ | B154: F 批發和零售業 | C154: 52 零售業 | D154: 36.34 | E154: 41.27 | F154: 37.05 | G154: 30.89 | H154: 29.54 | I154: 24 | J154: 23.81 | K154: 31.11
A155: 000561 烽火電子 | B155: C 製造業 | C155: 39 電子設備製造業 | D155: 40.65 | E155: 41.04 | F155: 40.07 | G155: 41.3 | H155: 41.1 | I155: 42.37 | J155: 43.46 | K155: 42.3
A156: 000563 陝國投Ａ | B156: J 金融業 | C156: 69 其他金融業
A157: 000564 供銷大集 | B157: F 批發和零售業 | C157: 52 零售業 | D157: 16.95 | E157: 17 | F157: 24.01 | G157: 24.64 | H157: 23.8 | I157: 21.69 | J157: 22.99 | K157: 16.49
A158: 000565 渝三峽Ａ | B158: C 製造業 | C158: 26 化學原料及化學製品 | D158: 23.11 | E158: 23.8 | F158: 22.73 | G158: 29.08 | H158: 22.68 | I158: 7.11 | J158: 7.58 | K158: 3.83
A159: 000566 海南海藥 | B159: C 製造業 | C159: 27 醫藥製造業 | D159: 41.81 | E159: 35.88 | F159: 41.04 | G159: 40.19 | H159: 42.41 | I159: 39.85 | J159: 52.38 | K159: 41.97
A160: 000567 海德股份 | B160: K 房地產業 | C160: 70 房地產業 | D160: 52.03 | E160: 59.55 | F160: 8.71 | G160: 3.86 | H160: 3.85 | I160: 60.86 | J160: 47.51 | K160: 100
A161: 000568 瀘州老窖 | B161: C 製造業 | C161: 15 酒飲料和精製茶製造業 | D161: 55.94 | E161: 48.2 | F161: 47.61 | G161: 52.67 | H161: 49.42 | I161: 59.24 | J161: 62.43 | K161: 68.57
A162: 000570 蘇常柴Ａ | B162: C 製造業 | C162: 34 通用設備製造業 | D162: 13.28 | E162: 11.18 | F162: 15.44 | G162: 13.3 | H162: 16.25 | I162: 15.39 | J162: 18.24 | K162: 12.74
A163: 000571 新大洲Ａ | B163: B 採礦業 | C163: 06 煤炭開採和洗選業 | D163: 41.09 | E163: 35.75 | F163: 34.15 | G163: 34.5 | H163: 31.83 | I163: 29.76 | J163: 27.5 | K163: 20.53
A164: 000572 海馬汽車 | B164: C 製造業 | C164: 36 汽車製造業 | D164: 17.55 | E164: 16.11 | F164: 15.61 | G164: 17.42 | H164: 13.49 | I164: 15.13 | J164: 13.62 | K164: 13.46
A165: 000573 粵宏遠Ａ | B165: K 房地產業 | C165: 70 房地產業 | D165: 38.24 | E165: 27.11 | F165: 30.23 | G165: 29.78 | H165: 27.98 | I165: 24.33 | J165: 27.66 | K165: 22.17
A166: 000576 廣東甘化 | B166: C 製造業 | C166: 22 造紙及紙製品業 | D166: 7.94 | E166: 8.9 | F166: 6.96 | G166: 7.53 | H166: 4 | I166: -1.75 | J166: -8.68 | K166: -0.17
A167: 000581 威孚高科 | B167: C 製造業 | C167: 36 汽車製造業 | D167: 26.6 | E167: 24.86 | F167: 25.4 | G167: 22.03 | H167: 23.45 | I167: 21.78 | J167: 23.95 | K167: 20.98
A168: 000582 北部灣港 | B168: G 交通運輸、倉儲&郵政 | C168: 55 水上運輸業 | D168: 30.2 | E168: 28.38 | F168: 27.13 | G168: 35.83 | H168: 31.12 | I168: 38.93 | J168: 34.35 | K168: 39.14
A169: 000584 哈工智能 | B169: C 製造業 | C169: 28 化學纖維製造業 | D169: 32.01 | E169: 33.04 | F169: 29.02 | G169: 27.52 | H169: 19.86 | I169: 12.8 | J169: 7.6 | K169: 18.15
A170: 000585 東北電氣 | B170: C 製造業 | C170: 38 電氣機械及器材製造業 | D170: 29.34 | E170: 28.85 | F170: 24.48 | G170: 27.37 | H170: 26.7 | I170: 19.42 | J170: 15.06 | K170: 24.17
A171: 000586 匯源通信 | B171: C 製造業 | C171: 39 電子設備製造業 | D171: 17.51 | E171: 17.88 | F171: 18.48 | G171: 16.35 | H171: 16.71 | I171: 19.85 | J171: 17.71 | K171: 19.75
A172: 000587 金洲慈航 | B172: C 製造業 | C172: 41 其他製造業 | D172: 5.26 | E172: 5.44 | F172: 4.85 | G172: 5.17 | H172: 7.84 | I172: 17.98 | J172: 18.59 | K172: 9.27
A173: 000589 黔輪胎Ａ | B173: C 製造業 | C173: 29 橡膠和塑膠製品業 | D173: 19.41 | E173: 21.26 | F173: 20.14 | G173: 27.92 | H173: 11.83 | I173: 14.57 | J173: 10.7 | K173: 8.88
A174: 000590 啟迪古漢 | B174: C 製造業 | C174: 27 醫藥製造業 | D174: 50.98 | E174: 50.31 | F174: 51.64 | G174: 55.68 | H174: 55.23 | I174: 52.42 | J174: 52.57 | K174: 54.19
A175: 000591 太陽能 | B175: D 電力、熱力、燃氣及水 | C175: 44 電力熱力生產和供應 | D175: 14.32 | E175: 13.6 | F175: 28.03 | G175: 16.13 | H175: 34.45 | I175: 29.06 | J175: 32.86 | K175: 36.02
A176: 000592 平潭發展 | B176: A 農、林、牧、漁業 | C176: 02 林業 | D176: 15.3 | E176: 17.19 | F176: 19.13 | G176: 17.8 | H176: 17.64 | I176: 13.37 | J176: 14.77 | K176: 14.72
A177: 000593 大通燃氣 | B177: D 電力、熱力、燃氣及水 | C177: 45 燃氣生產和供應業 | D177: 26.74 | E177: 24.81 | F177: 29.57 | G177: 28.94 | H177: 31.14 | I177: 28 | J177: 27.11 | K177: 28.79
A178: 000595 *ST 寶實 | B178: C 製造業 | C178: 34 通用設備製造業 | D178: 1.09 | E178: 4.26 | F178: 1.92 | G178: 1.68 | H178: -0.96 | I178: 5.51 | J178: 3.9 | K178: 14.65
A179: 000596 古井貢酒 | B179: C 製造業 | C179: 15 酒飲料和精製茶製造業 | D179: 70.31 | E179: 69.86 | F179: 68.63 | G179: 69.5 | H179: 71.27 | I179: 74.37 | J179: 74.68 | K179: 75.12
A180: 000597 東北製藥 | B180: C 製造業 | C180: 27 醫藥製造業 | D180: 31.1 | E180: 33.6 | F180: 31.53 | G180: 28.77 | H180: 26.53 | I180: 31.63 | J180: 31.56 | K180: 35.03
A181: 000598 興蓉環境 | B181: D 電力、熱力、燃氣及水 | C181: 46 水的生產和供應業 | D181: 47.98 | E181: 50.56 | F181: 44.15 | G181: 43.97 | H181: 42.32 | I181: 45 | J181: 41.95 | K181: 41
A182: 000599 青島雙星 | B182: C 製造業 | C182: 29 橡膠和塑膠製品業 | D182: 9.54 | E182: 11.12 | F182: 14.47 | G182: 15.31 | H182: 19.49 | I182: 14.45 | J182: 14.64 | K182: 16.35
A183: 000600 建投能源 | B183: D 電力、熱力、燃氣及水 | C183: 44 電力熱力生產和供應 | D183: 26.24 | E183: 34.45 | F183: 37.33 | G183: 42.43 | H183: 41.01 | I183: 44.49 | J183: 31.4 | K183: 17.59
A184: 000601 韶能股份 | B184: D 電力、熱力、燃氣及水 | C184: 44 電力熱力生產和供應 | D184: 33.45 | E184: 33.71 | F184: 27.54 | G184: 30.23 | H184: 30.88 | I184: 43.42 | J184: 34.76 | K184: 34.13
A185: 000603 盛達礦業 | B185: B 採礦業 | C185: 09 有色金屬礦採選業 | D185: 82.63 | E185: 79.05 | F185: 80.35 | G185: 80.67 | H185: 79.23 | I185: 75.59 | J185: 78.35 | K185: 62.42
A186: 000605 渤海股份 | B186: D 電力、熱力、燃氣及水 | C186: 46 水的生產和供應業 | D186: 24.85 | E186: 23.01 | F186: 22.68 | G186: 22.35 | H186: 24.23 | I186: 23.07 | J186: 22.91 | K186: 27.8
A187: 000606 神州易橋 | B187: C 製造業 | C187: 27 醫藥製造業 | D187: 19.54 | E187: 5.41 | F187: -1.51 | G187: -2.69 | H187: -14.07 | I187: 31.97 | J187: 31.16 | K187: 35.3
A188: 000607 華媒控股 | B188: R 文化、體育和娛樂業 | C188: 85 新聞和出版業 | D188: 28.31 | E188: 28.69 | F188: 27.45 | G188: 28.11 | H188: 27.77 | I188: 28.85 | J188: 30.99 | K188: 26.35
A189: 000608 陽光股份 | B189: K 房地產業 | C189: 70 房地產業 | D189: 105.18 | E189: 91.9 | F189: 45.95 | G189: 66.71 | H189: 62.27 | I189: 57.74 | J189: 46.91 | K189: 42.57
A190: 000609 綿石投資 | B190: S 綜合 | C190: 90 綜合 | D190: 34.86 | E190: 67.76 | F190: 41.46 | G190: 23.28 | H190: 40.35 | I190: 31.75 | J190: 35.21 | K190: 32.44
A191: 000610 西安旅遊 | B191: N 水利、環境和公共設施 | C191: 78 公共設施管理業 | D191: 8.66 | E191: 18 | F191: 7.53 | G191: 6.72 | H191: 6.37 | I191: 6.16 | J191: 6.28 | K191: 7.48
A192: 000611 天首發展 | B192: C 製造業 | C192: 17 紡織業 | D192: 2.04 | E192: -13.42 | F192: -10.09 | G192: -4.2 | H192: 2.37 | I192: 1.97 | J192: 2.16 | K192: 3.54
A193: 000612 焦作萬方 | B193: C 製造業 | C193: 32 有色金屬冶煉和壓延 | D193: 4.45 | E193: 5.39 | F193: 8.93 | G193: 7.11 | H193: 4.19 | I193: 13.41 | J193: 11.89 | K193: 1.84
A194: 000613 *ST 東海A | B194: H 住宿和餐飲業 | C194: 61 住宿業 | D194: 99.97 | E194: 99.96 | F194: 98.33 | G194: 96.78 | H194: 50.44 | I194: 95.4 | J194: 52.75 | K194: 65.18
A195: 000615 京漢股份 | B195: K 房地產業 | C195: 70 房地產業 | D195: 8.63 | E195: 9.35 | F195: 22.56 | G195: 15.01 | H195: 25.91 | I195: 18.74 | J195: 17.75 | K195: 18.98
A196: 000616 海航投資 | B196: K 房地產業 | C196: 70 房地產業 | D196: 27.49 | E196: 34.06 | F196: 21.96 | G196: 22.87 | H196: 21.69 | I196: 43.17 | J196: 40.1 | K196: 54.78
A197: 000617 中油資本 | B197: J 金融業 | C197: 67 資本市場服務 | D197: 11.37 | E197: 12.25 | F197: 11.3 | G197: 15.4 | H197: 20.32 | I197: -11.23 | J197: 1.45 | K197: 15.47
A198: 000619 海螺型材 | B198: C 製造業 | C198: 29 橡膠和塑膠製品業 | D198: 13.81 | E198: 13.96 | F198: 14.19 | G198: 14.98 | H198: 15.72 | I198: 17.55 | J198: 14.6 | K198: 10.43
A199: 000620 新華聯 | B199: K 房地產業 | C199: 70 房地產業 | D199: 39.12 | E199: 29.93 | F199: 25.44 | G199: 30.05 | H199: 26.5 | I199: 24.13 | J199: 28.71 | K199: 26.42
A200: 000622 恒立實業 | B200: C 製造業 | C200: 35 專用設備製造業 | D200: 9.31 | E200: 11.1 | F200: 11.55 | G200: 6.33 | H200: 6.36 | I200: 7.81 | J200: 12.46 | K200: 13.56
... 3357 more rows

Sheet Debt to Equity
B1: CSRC分類-門類 | C1: CSRC分類-大類 | D1: 借款依存度% | E1: 借款依存度% | F1: 借款依存度% | G1: 借款依存度% | H1: 借款依存度% | I1: 借款依存度% | J1: 借款依存度% | K1: 借款依存度%
A2: 公司 | D2: 2013-12-31 | E2: 2014-06-30 | F2: 2014-12-31 | G2: 2015-06-30 | H2: 2015-12-31 | I2: 2016-06-30 | J2: 2016-12-30 | K2: 2017-06-30
A3: 000001 平安銀行 | B3: J 金融業 | C3: 66 貨幣金融服務
A4: 000002 萬科Ａ | B4: K 房地產業 | C4: 70 房地產業 | D4: 105.15 | E4: 110.21 | F4: 59.52 | G4: 53.64 | H4: 58.32 | I4: 66.19 | J4: 79.71 | K4: 86.35
A5: 000004 國農科技 | B5: C 製造業 | C5: 27 醫藥製造業 | D5: 15.22 | E5: 21.9 | F5: 19.06 | G5: 18.54 | H5: 24.5 | I5: 24.05 | J5: 0 | K5: 0
A6: 000005 世紀星源 | B6: N 水利、環境和公共設施 | C6: 77 生態保護和環境治理 | D6: 14.95 | E6: 32.24 | F6: 19.04 | G6: 15.93 | H6: 11.91 | I6: 11.94 | J6: 23.17 | K6: 52.84
A7: 000006 深振業Ａ | B7: K 房地產業 | C7: 70 房地產業 | D7: 74 | E7: 94.61 | F7: 82.95 | G7: 106.46 | H7: 113.52 | I7: 101.86 | J7: 81.93 | K7: 78.59
A8: 000007 全新好 | B8: K 房地產業 | C8: 70 房地產業 | D8: 57.3 | E8: 10.44 | F8: 11.17 | G8: 0 | H8: 0 | I8: 0 | J8: 0 | K8: 0
A9: 000008 神州高鐵 | B9: C 製造業 | C9: 37 鐵路、船舶、航空航太 | D9: 0 | E9: 0 | F9: 0 | G9: 2.05 | H9: 3.74 | I9: 2.45 | J9: 6.23 | K9: 13.25
A10: 000009 中國寶安 | B10: S 綜合 | C10: 90 綜合 | D10: 106.67 | E10: 105.27 | F10: 106.43 | G10: 112.44 | H10: 119.71 | I10: 116.28 | J10: 112.61 | K10: 117.62
A11: 000010 美麗生態 | B11: E 建築業 | C11: 48 土木工程建築業 | D11: 4.82 | E11: 0 | F11: 9.79 | G11: 60.88 | H11: 85.02 | I11: 52.88 | J11: 67.81 | K11: 39.29
A12: 000011 深物業A | B12: K 房地產業 | C12: 70 房地產業 | D12: 29.03 | E12: 24.09 | F12: 13.62 | G12: 16.42 | H12: 13.05 | I12: 0 | J12: 0 | K12: 0
A13: 000012 南玻Ａ | B13: C 製造業 | C13: 30 非金屬礦物製品業 | D13: 49.02 | E13: 53.46 | F13: 51.54 | G13: 76.94 | H13: 73.94 | I13: 83.38 | J13: 79.75 | K13: 60.93
A14: 000014 沙河股份 | B14: K 房地產業 | C14: 70 房地產業 | D14: 88.92 | E14: 125.34 | F14: 135.48 | G14: 124.49 | H14: 112.56 | I14: 109.26 | J14: 78.03 | K14: 26.4
A15: 000016 深康佳Ａ | B15: C 製造業 | C15: 39 電子設備製造業 | D15: 123.27 | E15: 126.04 | F15: 142.79 | G15: 154.16 | H15: 155.36 | I15: 162.87 | J15: 200.78 | K15: 323.86
A16: 000017 深中華A | B16: C 製造業 | C16: 37 鐵路、船舶、航空航太 | D16: 84.43 | E16: 64.61 | F16: 0 | G16: 0 | H16: 0 | I16: 0 | J16: 0 | K16: 0
A17: 000018 神州長城 | B17: E 建築業 | C17: 50 建築裝飾和其他建築業 | D17: 16.14 | E17: 10.96 | F17: 37.09 | G17: 0.74 | H17: 20.51 | I17: 147.63 | J17: 160.01 | K17: 203.11
A18: 000019 深深寶Ａ | B18: C 製造業 | C18: 15 酒飲料和精製茶製造業 | D18: 0.62 | E18: 9.45 | F18: 4.03 | G18: 0 | H18: 0 | I18: 0 | J18: 0.48 | K18: 0.99
A19: 000020 深華發A | B19: C 製造業 | C19: 39 電子設備製造業 | D19: 119.2 | E19: 280.02 | F19: 257.12 | G19: 244.28 | H19: 214.75 | I19: 42.63 | J19: 56.68 | K19: 59.69
A20: 000021 深科技 | B20: C 製造業 | C20: 39 電子設備製造業 | D20: 139.95 | E20: 158.49 | F20: 146.43 | G20: 136.13 | H20: 142.64 | I20: 68.07 | J20: 74.63 | K20: 121.26
A21: 000022 深赤灣Ａ | B21: G 交通運輸、倉儲&郵政 | C21: 55 水上運輸業 | D21: 43.23 | E21: 40.91 | F21: 28.61 | G21: 22.71 | H21: 21.79 | I21: 9.39 | J21: 9.73 | K21: 5.29
A22: 000023 深天地Ａ | B22: C 製造業 | C22: 30 非金屬礦物製品業 | D22: 56.7 | E22: 68.62 | F22: 66.35 | G22: 73.38 | H22: 66.74 | I22: 64.96 | J22: 67.11 | K22: 61.89
A23: 000025 特力Ａ | B23: F 批發和零售業 | C23: 51 批發業 | D23: 160.83 | E23: 183.29 | F23: 184.86 | G23: 11.11 | H23: 0 | I23: 0 | J23: 6.82 | K23: 8.25
A24: 000026 飛亞達Ａ | B24: F 批發和零售業 | C24: 52 零售業 | D24: 106.14 | E24: 96.68 | F24: 93.38 | G24: 102.4 | H24: 68.96 | I24: 61.35 | J24: 52.21 | K24: 42.83
A25: 000027 深圳能源 | B25: D 電力、熱力、燃氣及水 | C25: 44 電力熱力生產和供應 | D25: 51.67 | E25: 62.1 | F25: 61.08 | G25: 67.86 | H25: 100.37 | I25: 105.41 | J25: 104.57 | K25: 131.55
A26: 000028 國藥一致 | B26: F 批發和零售業 | C26: 51 批發業 | D26: 118.82 | E26: 31.73 | F26: 32.19 | G26: 39.45 | H26: 21.87 | I26: 22.65 | J26: 17.38 | K26: 17.51
A27: 000029 深深房Ａ | B27: K 房地產業 | C27: 70 房地產業 | D27: 72.74 | E27: 64.05 | F27: 53.22 | G27: 42.98 | H27: 31.51 | I27: 25.34 | J27: 11.33 | K27: 11.36
A28: 000030 富奧股份 | B28: C 製造業 | C28: 36 汽車製造業 | D28: 10.9 | E28: 10.38 | F28: 7.48 | G28: 7.17 | H28: 5.17 | I28: 4.48 | J28: 4.37 | K28: 3.61
A29: 000031 中糧地產 | B29: K 房地產業 | C29: 70 房地產業 | D29: 218.95 | E29: 238.14 | F29: 195.2 | G29: 198.76 | H29: 226.85 | I29: 255.74 | J29: 214.21 | K29: 230.33
A30: 000032 深桑達Ａ | B30: F 批發和零售業 | C30: 51 批發業 | D30: 3.72 | E30: 3.7 | F30: 11.44 | G30: 2.38 | H30: 6.24 | I30: 3.27 | J30: 1.92 | K30: 5.53
A31: 000034 神州數碼 | B31: F 批發和零售業 | C31: 51 批發業 | D31: 8.09 | E31: 4.46 | F31: 3.2 | G31: 1.95 | H31: 1.09 | I31: 274.61 | J31: 233.18 | K31: 277.96
A32: 000035 中國天楹 | B32: N 水利、環境和公共設施 | C32: 77 生態保護和環境治理 | D32: 97.98 | E32: 103.99 | F32: 71.9 | G32: 103.93 | H32: 97.99 | I32: 85.32 | J32: 145.36 | K32: 164.48
A33: 000036 華聯控股 | B33: K 房地產業 | C33: 70 房地產業 | D33: 27.2 | E33: 22.43 | F33: 51.42 | G33: 87.35 | H33: 83.13 | I33: 53.53 | J33: 30.33 | K33: 12.63
A34: 000037 深南電A | B34: D 電力、熱力、燃氣及水 | C34: 44 電力熱力生產和供應 | D34: 178.43 | E34: 184.99 | F34: 200.84 | G34: 229.1 | H34: 561.35 | I34: 658.7 | J34: 79.24 | K34: 33.18
A35: 000038 深大通 | B35: L 租賃和商務服務業 | C35: 72 商務服務業 | D35: 13.59 | E35: 0 | F35: 0 | G35: 0 | H35: 0 | I35: 0 | J35: 3.58 | K35: 1.9
A36: 000039 中集集團 | B36: C 製造業 | C36: 33 金屬製品業 | D36: 100.3 | E36: 125.69 | F36: 115.53 | G36: 116.26 | H36: 130.91 | I36: 140.78 | J36: 144.33 | K36: 144.41
A37: 000040 東旭藍天 | B37: E 建築業 | C37: 48 土木工程建築業 | D37: 111.32 | E37: 120.92 | F37: 100.18 | G37: 89.96 | H37: 235.53 | I37: 55.84 | J37: 35.91 | K37: 49.66
A38: 000042 中洲控股 | B38: K 房地產業 | C38: 70 房地產業 | D38: 76.93 | E38: 148.8 | F38: 152.61 | G38: 203.52 | H38: 149.54 | I38: 204.65 | J38: 169.59 | K38: 249.37
A39: 000043 中航地產 | B39: K 房地產業 | C39: 70 房地產業 | D39: 167.47 | E39: 272.44 | F39: 233.59 | G39: 277.65 | H39: 234.82 | I39: 231.41 | J39: 211.3 | K39: 183.42
A40: 000045 深紡織Ａ | B40: C 製造業 | C40: 39 電子設備製造業 | D40: 8.7 | E40: 9.26 | F40: 10.23 | G40: 8.39 | H40: 9.83 | I40: 6.82 | J40: 3.85 | K40: 3.42
A41: 000046 泛海控股 | B41: K 房地產業 | C41: 70 房地產業 | D41: 202.32 | E41: 332.39 | F41: 317.05 | G41: 430.1 | H41: 387.25 | I41: 369.63 | J41: 416.25 | K41: 449.16
A42: 000048 康達爾 | B42: C 製造業 | C42: 13 農副食品加工業 | D42: 46.86 | E42: 46.97 | F42: 31.84 | G42: 23.54 | H42: 13.05 | I42: 11.42 | J42: 21.69 | K42: 83.1
A43: 000049 德賽電池 | B43: C 製造業 | C43: 38 電氣機械及器材製造業 | D43: 93.03 | E43: 45.64 | F43: 181.76 | G43: 71.83 | H43: 20.67 | I43: 22.8 | J43: 30.34 | K43: 28.68
A44: 000050 深天馬Ａ | B44: C 製造業 | C44: 39 電子設備製造業 | D44: 72.95 | E44: 65.72 | F44: 28.63 | G44: 49.87 | H44: 16.05 | I44: 13.11 | J44: 9.55 | K44: 34.82
A45: 000055 方大集團 | B45: C 製造業 | C45: 33 金屬製品業 | D45: 30.34 | E45: 58.82 | F45: 85.04 | G45: 110.69 | H45: 108.57 | I45: 110.66 | J45: 65.72 | K45: 71.77
A46: 000056 皇庭國際 | B46: K 房地產業 | C46: 70 房地產業 | D46: 68.09 | E46: 86.29 | F46: 77.33 | G46: 73.82 | H46: 23.04 | I46: 59.4 | J46: 59.09 | K46: 76.02
A47: 000058 深賽格 | B47: L 租賃和商務服務業 | C47: 72 商務服務業 | D47: 4.88 | E47: 17.81
A48: 000059 華錦股份 | B48: C 製造業 | C48: 25 石油加工煉焦及核燃料 | D48: 247.85 | E48: 302.5 | F48: 206.19 | G48: 163.73 | H48: 182.73 | I48: 162 | J48: 143.71 | K48: 130.9
A49: 000060 中金嶺南 | B49: C 製造業 | C49: 32 有色金屬冶煉和壓延 | D49: 86.46 | E49: 79.24 | F49: 73.88 | G49: 59.78 | H49: 64.47 | I49: 64.63 | J49: 64.28 | K49: 46.22
A50: 000061 農產品 | B50: L 租賃和商務服務業 | C50: 72 商務服務業 | D50: 67.01 | E50: 74.85 | F50: 64.65 | G50: 75.82 | H50: 102.22 | I50: 106.57 | J50: 100.2 | K50: 110.05
A51: 000062 深圳華強 | B51: F 批發和零售業 | C51: 51 批發業 | D51: 34.62 | E51: 30.07 | F51: 25.15 | G51: 22.93 | H51: 29.62 | I51: 31.65 | J51: 39.46 | K51: 51.27
A52: 000063 中興通訊 | B52: C 製造業 | C52: 39 電子設備製造業 | D52: 152.01 | E52: 116.96 | F52: 122.05 | G52: 66.67 | H52: 49.39 | I52: 56.13 | J52: 62.95 | K52: 70.2
A53: 000065 北方國際 | B53: E 建築業 | C53: 48 土木工程建築業 | D53: 7.03 | E53: 17.58 | F53: 30.84 | G53: 15.78 | H53: 19.45 | I53: 23.89 | J53: 13.76 | K53: 27.21
A54: 000066 中國長城 | B54: C 製造業 | C54: 39 電子設備製造業 | D54: 53.23 | E54: 65.5 | F54: 51.77 | G54: 64.18 | H54: 59.41 | I54: 57.98 | J54: 15.31 | K54: 28.31
A55: 000068 華控賽格 | B55: C 製造業 | C55: 39 電子設備製造業 | D55: 0 | E55: 223.05 | F55: 0 | G55: 0 | H55: 0.08 | I55: 0 | J55: 34.96 | K55: 50.36
A56: 000069 華僑城Ａ | B56: N 水利、環境和公共設施 | C56: 78 公共設施管理業 | D56: 73.91 | E56: 100.63 | F56: 91.3 | G56: 93.27 | H56: 83.04 | I56: 89.79 | J56: 87.79 | K56: 130.39
A57: 000070 特發信息 | B57: C 製造業 | C57: 38 電氣機械及器材製造業 | D57: 16.27 | E57: 15.16 | F57: 15.27 | G57: 16.17 | H57: 32.05 | I57: 45.21 | J57: 30.29 | K57: 44.43
A58: 000078 海王生物 | B58: F 批發和零售業 | C58: 52 零售業 | D58: 142.41 | E58: 154.94 | F58: 157.13 | G58: 161.3 | H58: 128.93 | I58: 29.35 | J58: 38.58 | K58: 87.13
A59: 000088 鹽田港 | B59: G 交通運輸、倉儲&郵政 | C59: 54 道路運輸業 | D59: 6.07 | E59: 6.88 | F59: 19.38 | G59: 22.34 | H59: 19.98 | I59: 22.3 | J59: 21.06 | K59: 20.51
A60: 000089 深圳機場 | B60: G 交通運輸、倉儲&郵政 | C60: 56 航空運輸業 | D60: 30.22 | E60: 36.54 | F60: 36.73 | G60: 6.03 | H60: 0 | I60: 0 | J60: 0 | K60: 0
A61: 000090 天健集團 | B61: E 建築業 | C61: 48 土木工程建築業 | D61: 81.08 | E61: 95.49 | F61: 77.16 | G61: 77.52 | H61: 101.06 | I61: 99.38 | J61: 119.71 | K61: 120.86
A62: 000096 廣聚能源 | B62: F 批發和零售業 | C62: 51 批發業 | D62: 5.36 | E62: 2.8 | F62: 0 | G62: 0 | H62: 0 | I62: 0 | J62: 0 | K62: 0
A63: 000099 中信海直 | B63: G 交通運輸、倉儲&郵政 | C63: 56 航空運輸業 | D63: 47.43 | E63: 46.83 | F63: 46.42 | G63: 48 | H63: 57.57 | I63: 54.18 | J63: 53.06 | K63: 54.77
A64: 000100 TCL集團 | B64: C 製造業 | C64: 39 電子設備製造業 | D64: 122.29 | E64: 115.73 | F64: 105.67 | G64: 95.89 | H64: 83.03 | I64: 105.35 | J64: 103.31 | K64: 101.19
A65: 000150 宜華健康 | B65: Q 衛生和社會工作 | C65: 83 衛生 | D65: 169.77 | E65: 154.79 | F65: 149.97 | G65: 68.28 | H65: 86.5 | I65: 63.65 | J65: 103.02 | K65: 108.42
A66: 000151 中成股份 | B66: F 批發和零售業 | C66: 51 批發業 | D66: 0 | E66: 0.05 | F66: 0.04 | G66: 0 | H66: 0.04 | I66: 0.04 | J66: 0.04 | K66: 0.04
A67: 000153 豐原藥業 | B67: C 製造業 | C67: 27 醫藥製造業 | D67: 44.17 | E67: 50.87 | F67: 46.3 | G67: 45.09 | H67: 46.73 | I67: 46.95 | J67: 49.71 | K67: 43.67
A68: 000155 *ST川化 | B68: C 製造業 | C68: 26 化學原料及化學製品 | D68: 209.12 | E68: 297.73 | F68: -105.09 | G68: -91.34 | H68: -58.78 | I68: -75.77 | J68: 0 | K68: 0
A69: 000156 華數傳媒 | B69: R 文化、體育和娛樂業 | C69: 86 廣播電視電影影視 | D69: 36.31 | E69: 12.04 | F69: 11.53 | G69: 0 | H69: 0 | I69: 0 | J69: 0 | K69: 0
A70: 000157 中聯重科 | B70: C 製造業 | C70: 35 專用設備製造業 | D70: 52.95 | E70: 63.59 | F70: 78.21 | G70: 91.92 | H70: 87.47 | I70: 89.13 | J70: 86.39 | K70: 81.59
A71: 000158 常山北明 | B71: C 製造業 | C71: 17 紡織業 | D71: 91.08 | E71: 95.29 | F71: 89.61 | G71: 57.12 | H71: 68.36 | I71: 87.38 | J71: 75.95 | K71: 72.12
A72: 000159 國際實業 | B72: F 批發和零售業 | C72: 51 批發業 | D72: 34.84 | E72: 30.27 | F72: 17.86 | G72: 21.01 | H72: 19.25 | I72: 23.31 | J72: 19.06 | K72: 21.47
A73: 000166 申萬宏源 | B73: J 金融業 | C73: 67 資本市場服務
A74: 000301 東方市場 | B74: D 電力、熱力、燃氣及水 | C74: 44 電力熱力生產和供應 | D74: 6.15 | E74: 15.85 | F74: 16.84 | G74: 18.73 | H74: 20.43 | I74: 24.04 | J74: 20.01 | K74: 17.97
A75: 000333 美的集團 | B75: C 製造業 | C75: 38 電氣機械及器材製造業 | D75: 29.28 | E75: 49.4 | F75: 14.99 | G75: 20.05 | H75: 7.16 | I75: 33.96 | J75: 14.87 | K75: 54.96
A76: 000338 濰柴動力 | B76: C 製造業 | C76: 36 汽車製造業 | D76: 41.5 | E76: 82.16 | F76: 63.61 | G76: 64.94 | H76: 66.95 | I76: 77.24 | J76: 112.53 | K76: 105.09
A77: 000400 許繼電氣 | B77: C 製造業 | C77: 38 電氣機械及器材製造業 | D77: 23 | E77: 12.95 | F77: 11.12 | G77: 10.97 | H77: 10.11 | I77: 10.13 | J77: 10.82 | K77: 9.69
A78: 000401 冀東水泥 | B78: C 製造業 | C78: 30 非金屬礦物製品業 | D78: 177.56 | E78: 187.73 | F78: 191.08 | G78: 192.42 | H78: 227.05 | I78: 252 | J78: 226.72 | K78: 227.11
A79: 000402 金融街 | B79: K 房地產業 | C79: 70 房地產業 | D79: 123.5 | E79: 155.98 | F79: 143.11 | G79: 142.44 | H79: 191.64 | I79: 213.35 | J79: 162.34 | K79: 173.91
A80: 000403 ST生化 | B80: C 製造業 | C80: 27 醫藥製造業 | D80: 107.61 | E80: 73.03 | F80: 61.47 | G80: 52.73 | H80: 54.61 | I80: 43.84 | J80: 45.16 | K80: 39.69
A81: 000404 華意壓縮 | B81: C 製造業 | C81: 34 通用設備製造業 | D81: 23.65 | E81: 40.98 | F81: 13.12 | G81: 22.03 | H81: 14.61 | I81: 50.59 | J81: 38.89 | K81: 40.1
A82: 000407 勝利股份 | B82: D 電力、熱力、燃氣及水 | C82: 45 燃氣生產和供應業 | D82: 71.19 | E82: 70.51 | F82: 51.96 | G82: 72.67 | H82: 65.47 | I82: 20.6 | J82: 32.91 | K82: 34
A83: 000408 藏格控股 | B83: C 製造業 | C83: 26 化學原料及化學製品 | D83: 27.91 | E83: 3.89 | F83: 2.18 | G83: 2.23 | H83: 49.33 | J83: 8.13 | K83: 5.33
A84: 000409 山東地礦 | B84: S 綜合 | C84: 90 綜合 | D84: 33.79 | E84: 75.7 | F84: 77.62 | G84: 118.05 | H84: 177.57 | I84: 171.84 | J84: 215.4 | K84: 296.52
A85: 000410 *ST 瀋機 | B85: C 製造業 | C85: 34 通用設備製造業 | D85: 333.24 | E85: 370.51 | F85: 409.18 | G85: 534.02 | H85: 649.95 | I85: 961.79 | J85: 2142.86 | K85: 5704.93
A86: 000411 英特集團 | B86: F 批發和零售業 | C86: 51 批發業 | D86: 72 | E86: 103.99 | F86: 63.91 | G86: 104.05 | H86: 77.15 | I86: 91.21 | J86: 77.92 | K86: 141.46
A87: 000413 東旭光電 | B87: C 製造業 | C87: 39 電子設備製造業 | D87: 49.03 | E87: 56.07 | F87: 83.91 | G87: 114.12 | H87: 82.1 | I87: 101.69 | J87: 90.08 | K87: 88.35
A88: 000415 渤海金控 | B88: L 租賃和商務服務業 | C88: 71 租賃業 | D88: 554.66 | E88: 421.04 | F88: 384.76 | G88: 539.59 | H88: 275.8 | I88: 413.51 | J88: 428.96 | K88: 644.84
A89: 000416 民生控股 | B89: J 金融業 | C89: 69 其他金融業 | D89: 0.71 | E89: 0.18 | F89: 0 | G89: 0 | H89: 33.93 | I89: 34.64 | J89: 0 | K89: 0
A90: 000417 合肥百貨 | B90: F 批發和零售業 | C90: 52 零售業 | D90: 2.25 | E90: 5.49 | F90: 2.1 | G90: 4.03 | H90: 2.16 | I90: 4.84 | J90: 8.87 | K90: 13.92
A91: 000418 小天鵝Ａ | B91: C 製造業 | C91: 38 電氣機械及器材製造業 | D91: 0 | E91: 1.07 | F91: 0 | G91: 0.28 | H91: 0 | I91: 0 | J91: 2.64 | K91: 2.33
A92: 000419 通程控股 | B92: F 批發和零售業 | C92: 52 零售業 | D92: 12.02 | E92: 9.7 | F92: 5.17 | G92: 8.99 | H92: 11.77 | I92: 13.73 | J92: 9.2 | K92: 19.62
A93: 000420 吉林化纖 | B93: C 製造業 | C93: 28 化學纖維製造業 | D93: 1113.48 | E93: 533.47 | F93: 118.99 | G93: 65.01 | H93: 91.83 | I93: 39.05 | J93: 37.53 | K93: 51.08
A94: 000421 南京公用 | B94: D 電力、熱力、燃氣及水 | C94: 45 燃氣生產和供應業 | D94: 19.65 | E94: 5.85 | F94: 25.8 | G94: 20.86 | H94: 28.48 | I94: 28.02 | J94: 42.47 | K94: 43.92
A95: 000422 湖北宜化 | B95: C 製造業 | C95: 26 化學原料及化學製品 | D95: 274.79 | E95: 284.77 | F95: 280.32 | G95: 251.36 | H95: 257.5 | I95: 249.16 | J95: 311.71 | K95: 270.64
A96: 000423 東阿阿膠 | B96: C 製造業 | C96: 27 醫藥製造業 | D96: 0 | E96: 0.27 | F96: 0 | G96: 0 | H96: 1.13 | I96: 0.3 | J96: 0 | K96: 0
A97: 000425 徐工機械 | B97: C 製造業 | C97: 35 專用設備製造業 | D97: 78.12 | E97: 74.89 | F97: 67.49 | G97: 54.74 | H97: 57.82 | I97: 62.52 | J97: 57.42 | K97: 48.26
A98: 000426 興業礦業 | B98: B 採礦業 | C98: 09 有色金屬礦採選業 | D98: 28.78 | E98: 21.3 | F98: 20.63 | G98: 20.87 | H98: 100.99 | I98: 43.07 | J98: 63.18 | K98: 48.62
A99: 000428 華天酒店 | B99: H 住宿和餐飲業 | C99: 61 住宿業 | D99: 202.9 | E99: 276.38 | F99: 203.1 | G99: 186.21 | H99: 88.63 | I99: 111.4 | J99: 121.89 | K99: 140.31
A100: 000429 粵高速Ａ | B100: G 交通運輸、倉儲&郵政 | C100: 54 道路運輸業 | D100: 135.54 | E100: 130.57 | F100: 101.2 | G100: 92.09 | H100: 87.26 | I100: 73.94 | J100: 71.92 | K100: 68.26
A101: 000430 張家界 | B101: N 水利、環境和公共設施 | C101: 78 公共設施管理業 | D101: 28.95 | E101: 29.69 | F101: 25.23 | G101: 29.19 | H101: 22.77 | I101: 71.23 | J101: 76.27 | K101: 92.16
A102: 000488 晨鳴紙業 | B102: C 製造業 | C102: 22 造紙及紙製品業 | D102: 167.15 | E102: 188.14 | F102: 221.11 | G102: 261.14 | H102: 288.68 | I102: 285.71 | J102: 215.37 | K102: 246.2
A103: 000498 山東路橋 | B103: E 建築業 | C103: 48 土木工程建築業 | D103: 107.49 | E103: 107.18 | F103: 93.83 | G103: 94.2 | H103: 58.2 | I103: 102.28 | J103: 102.88 | K103: 100.29
A104: 000501 鄂武商Ａ | B104: F 批發和零售業 | C104: 52 零售業 | D104: 35.16 | E104: 27.1 | F104: 66.4 | G104: 83.08 | H104: 115.87 | I104: 73.16 | J104: 53.42 | K104: 44.97
A105: 000502 綠景控股 | B105: K 房地產業 | C105: 70 房地產業 | D105: 5.23 | E105: 1.13 | F105: 0.12 | G105: 0.12 | H105: 0.12 | I105: 0.14 | J105: 0.1 | K105: 0.13
A106: 000503 海虹控股 | B106: I 信息傳輸&軟體 | C106: 64 互聯網和相關服務 | D106: 5.22 | E106: 5.08 | F106: 1.86 | G106: 0.17 | H106: 0.11 | I106: 0.09 | J106: 0.06 | K106: 0.03
A107: 000504 南華生物 | B107: R 文化、體育和娛樂業 | C107: 85 新聞和出版業 | D107: 1453.26 | E107: 153.92 | F107: 0 | G107: 0 | H107: -344.71 | I107: -184.03 | J107: 170.02 | K107: 272.24
A108: 000505 珠江控股 | B108: K 房地產業 | C108: 70 房地產業 | D108: 496.63 | E108: 1821.64 | F108: 3126.61 | G108: -982.45 | H108: -318.88 | I108: -181.96 | J108: 249.84 | K108: 6.91
A109: 000506 中潤資源 | B109: B 採礦業 | C109: 09 有色金屬礦採選業 | D109: 5.99 | E109: 7.5 | F109: 3 | G109: 12.24 | H109: 12.44 | I109: 28.86 | J109: 27.09 | K109: 38.1
A110: 000507 珠海港 | B110: G 交通運輸、倉儲&郵政 | C110: 55 水上運輸業 | D110: 44.98 | E110: 48.84 | F110: 59.84 | G110: 74.36 | H110: 71.2 | I110: 76.28 | J110: 75.24 | K110: 74.56
A111: 000509 華塑控股 | B111: C 製造業 | C111: 29 橡膠和塑膠製品業 | D111: 77.87 | E111: 100.38 | F111: 64.91 | G111: -86.85 | H111: 0 | I111: 0 | J111: 0 | K111: 0
A112: 000510 金路集團 | B112: C 製造業 | C112: 26 化學原料及化學製品 | D112: 46.45 | E112: 52.12 | F112: 58.44 | G112: 59.08 | H112: 36.47 | I112: 30.56 | J112: 6.91 | K112: 12.13
A113: 000511 *ST 烯碳 | B113: C 製造業 | C113: 30 非金屬礦物製品業 | D113: 59.57 | E113: 58.35 | F113: 68.55 | G113: 58.38 | H113: 55.85 | I113: 76.66 | J113: 72.33 | K113: 75.76
A114: 000513 麗珠集團 | B114: C 製造業 | C114: 27 醫藥製造業 | D114: 28.89 | E114: 31.91 | F114: 20.65 | G114: 24.77 | H114: 13.54 | I114: 16.7 | J114: 4.94 | K114: 0.01
A115: 000514 渝開發 | B115: K 房地產業 | C115: 70 房地產業 | D115: 73.42 | E115: 64.52 | F115: 67.58 | G115: 70.24 | H115: 62.15 | I115: 57.9 | J115: 53.41 | K115: 48.41
A116: 000516 國際醫學 | B116: F 批發和零售業 | C116: 52 零售業 | D116: 91.11 | E116: 59.85 | F116: 55.8 | G116: 26.99 | H116: 30.7 | I116: 30.06 | J116: 29.54 | K116: 26.17
A117: 000517 榮安地產 | B117: K 房地產業 | C117: 70 房地產業 | D117: 17.12 | E117: 29.87 | F117: 25.28 | G117: 33.97 | H117: 54.48 | I117: 44.45 | J117: 54.45 | K117: 65.56
A118: 000518 四環生物 | B118: C 製造業 | C118: 27 醫藥製造業 | D118: 4.25 | E118: 3.8 | F118: 0.23 | G118: 4.84 | H118: 5.75 | I118: 1.66 | J118: 8.67 | K118: 0
A119: 000519 中兵紅箭 | B119: C 製造業 | C119: 35 專用設備製造業 | D119: 25.03 | E119: 13.61 | F119: 13.99 | G119: 11.53 | H119: 13.54 | I119: 11.51 | J119: 9.21 | K119: 5.71
A120: 000520 長航鳳凰 | B120: G 交通運輸、倉儲&郵政 | C120: 55 水上運輸業 | D120: -63.84 | E120: -35.17 | F120: 1.1 | G120: 0.57 | H120: 0.54 | I120: 0.58 | J120: 0.52 | K120: 0.49
A121: 000521 美菱電器 | B121: C 製造業 | C121: 38 電氣機械及器材製造業 | D121: 5.8 | E121: 27.25 | F121: 12.4 | G121: 11.41 | H121: 8.59 | I121: 29.07 | J121: 11.42 | K121: 33.2
A122: 000523 廣州浪奇 | B122: C 製造業 | C122: 26 化學原料及化學製品 | D122: 36.14 | E122: 34 | F122: 40.7 | G122: 60.01 | H122: 54.04 | I122: 19.13 | J122: 36.71 | K122: 59.79
A123: 000524 嶺南控股 | B123: H 住宿和餐飲業 | C123: 61 住宿業 | D123: 0 | E123: 0 | F123: 0 | G123: 0 | H123: 0 | I123: 0 | J123: 0 | K123: 17.61
A124: 000525 紅太陽 | B124: C 製造業 | C124: 26 化學原料及化學製品 | D124: 97.91 | E124: 87.19 | F124: 77.73 | G124: 47.41 | H124: 51.83 | I124: 46.54 | J124: 67.57 | K124: 70.59
A125: 000526 *ST 紫學 | B125: P 教育 | C125: 82 教育 | D125: 0 | E125: 0 | F125: 0 | G125: 0 | H125: 97.12 | I125: 1833.62 | J125: 4136.3 | K125: 1329.03
A126: 000528 柳工 | B126: C 製造業 | C126: 35 專用設備製造業 | D126: 72.3 | E126: 72.78 | F126: 66.08 | G126: 63.01 | H126: 80.06 | I126: 91.27 | J126: 82.38 | K126: 64.04
A127: 000529 廣弘控股 | B127: C 製造業 | C127: 13 農副食品加工業 | D127: 6.51 | E127: 9.71 | F127: 4.06 | G127: 1.01 | H127: 0.17 | I127: 0 | J127: 0 | K127: 0
A128: 000530 大冷股份 | B128: C 製造業 | C128: 34 通用設備製造業 | D128: 1.87 | E128: 2.52 | F128: 2.91 | G128: 2.01 | H128: 3.04 | I128: 10.25 | J128: 6.18 | K128: 11.09
A129: 000531 穗恒運Ａ | B129: D 電力、熱力、燃氣及水 | C129: 44 電力熱力生產和供應 | D129: 113.27 | E129: 114.6 | F129: 86.55 | G129: 67.56 | H129: 92.11 | I129: 94.13 | J129: 87.94 | K129: 92.39
A130: 000532 華金資本 | B130: S 綜合 | C130: 90 綜合 | D130: 8.94 | E130: 9.66 | F130: 11 | G130: 9.07 | H130: 41.4 | I130: 89.67 | J130: 105.22 | K130: 150.63
A131: 000533 萬家樂 | B131: C 製造業 | C131: 38 電氣機械及器材製造業 | D131: 30.17 | E131: 26.51 | F131: 24.01 | G131: 18.22 | H131: 17.79 | I131: 14.78 | J131: 14.88 | K131: 15.81
A132: 000534 萬澤股份 | B132: K 房地產業 | C132: 70 房地產業 | D132: 44.78 | E132: 42.6 | F132: 28.77 | G132: 16.79 | H132: 35.54 | I132: 46.6 | J132: 42.4 | K132: 31.87
A133: 000536 華映科技 | B133: C 製造業 | C133: 39 電子設備製造業 | D133: 112.07 | E133: 113.37 | F133: 103.84 | G133: 121.2 | H133: 158.08 | I133: 125.35 | J133: 36.01 | K133: 40.8
A134: 000537 廣宇發展 | B134: K 房地產業 | C134: 70 房地產業 | D134: 0 | E134: 0 | F134: 0 | G134: 2.64 | H134: 80.17 | I134: 153.74 | J134: 278.13 | K134: 261.99
A135: 000538 雲南白藥 | B135: C 製造業 | C135: 27 醫藥製造業 | D135: 0.18 | E135: 1.73 | F135: 8.17 | G135: 7.36 | H135: 6.82 | I135: 13.54 | J135: 11.43 | K135: 10.4
A136: 000539 粵電力Ａ | B136: D 電力、熱力、燃氣及水 | C136: 44 電力熱力生產和供應 | D136: 130.32 | E136: 131.91 | F136: 127.67 | G136: 130.34 | H136: 115.3 | I136: 121.3 | J136: 110.89 | K136: 117.15
A137: 000540 中天金融 | B137: K 房地產業 | C137: 70 房地產業 | D137: 394.41 | E137: 337.56 | F137: 170.89 | G137: 195.23 | H137: 156.25 | I137: 139.02 | J137: 239.37 | K137: 249.68
A138: 000541 佛山照明 | B138: C 製造業 | C138: 38 電氣機械及器材製造業 | D138: 0 | E138: 0 | F138: 0 | G138: 0 | H138: 0 | I138: 0 | J138: 0 | K138: 0
A139: 000543 皖能電力 | B139: D 電力、熱力、燃氣及水 | C139: 44 電力熱力生產和供應 | D139: 93.41 | E139: 85.09 | F139: 56.9 | G139: 48.25 | H139: 49.77 | I139: 59.95 | J139: 51.88 | K139: 61.36
A140: 000544 中原環保 | B140: D 電力、熱力、燃氣及水 | C140: 46 水的生產和供應業 | D140: 85.63 | E140: 106.48 | F140: 109.4 | G140: 133.45 | H140: 28.62 | I140: 28.14 | J140: 11.3 | K140: 10.74
A141: 000545 金浦鈦業 | B141: C 製造業 | C141: 26 化學原料及化學製品 | D141: 14.59 | E141: 20.12 | F141: 1.85 | G141: 9.4 | H141: 10.2 | I141: 13.53 | J141: 17.59 | K141: 15.42
A142: 000546 金圓股份 | B142: C 製造業 | C142: 30 非金屬礦物製品業 | D142: 64.59 | E142: 3.42 | F142: 68.08 | G142: 74.57 | H142: 62.46 | I142: 67.91 | J142: 80.64 | K142: 94.85
A143: 000547 航天發展 | B143: C 製造業 | C143: 39 電子設備製造業 | D143: 28.2 | E143: 23.5 | F143: 0 | G143: 16.36 | H143: 9.04 | I143: 9.36 | J143: 9.9 | K143: 9.27
A144: 000548 湖南投資 | B144: G 交通運輸、倉儲&郵政 | C144: 54 道路運輸業 | D144: 18.35 | E144: 17.19 | F144: 7.25 | G144: 6.05 | H144: 6.02 | I144: 0.33 | J144: 0.06 | K144: 0.06
A145: 000550 江鈴汽車 | B145: C 製造業 | C145: 36 汽車製造業 | D145: 0.06 | E145: 0.06 | F145: 0.1 | G145: 0.09 | H145: 0.08 | I145: 0.08 | J145: 0.08 | K145: 0.04
A146: 000551 創元科技 | B146: S 綜合 | C146: 90 綜合 | D146: 31.78 | E146: 32.11 | F146: 28.96 | G146: 32.39 | H146: 30.88 | I146: 27.22 | J146: 28.61 | K146: 28.43
A147: 000552 靖遠煤電 | B147: B 採礦業 | C147: 06 煤炭開採和洗選業 | D147: 39.4 | E147: 43.63 | F147: 56.74 | G147: 9.44 | H147: 8.88 | I147: 8.83 | J147: 8.42 | K147: 9.45
A148: 000553 沙隆達Ａ | B148: C 製造業 | C148: 26 化學原料及化學製品 | D148: 47.42 | E148: 40.08 | F148: 25.26 | G148: 36.99 | H148: 28.97 | I148: 25.88 | J148: 17.14 | K148: 15.68
A149: 000554 泰山石油 | B149: F 批發和零售業 | C149: 51 批發業 | D149: 0.68 | E149: 0.55 | F149: 5.96 | G149: 5.9 | H149: 4.84 | I149: 4.73 | J149: 4.7 | K149: 4.66
A150: 000555 神州信息 | B150: I 信息傳輸&軟體 | C150: 65 軟體和資訊技術服務業 | D150: 63.65 | E150: 64.04 | F150: 33.86 | G150: 47.14 | H150: 38.12 | I150: 31.64 | J150: 28.95 | K150: 38.72
A151: 000557 西部創業 | B151: G 交通運輸、倉儲&郵政 | C151: 53 鐵路運輸業 | D151: 0 | E151: 0 | F151: 0 | G151: 0 | H151: 12.42 | I151: 6.43 | J151: 5.57 | K151: 4.79
A152: 000558 萊茵體育 | B152: K 房地產業 | C152: 70 房地產業 | D152: 187.46 | E152: 166.23 | F152: 65.64 | G152: 72.48 | H152: 65.92 | I152: 40.55 | J152: 41.58 | K152: 44.76
A153: 000559 萬向錢潮 | B153: C 製造業 | C153: 36 汽車製造業 | D153: 55.65 | E153: 84.64 | F153: 41.47 | G153: 45.71 | H153: 79.93 | I153: 82.21 | J153: 45.74 | K153: 32.24
A154: 000560 昆百大Ａ | B154: F 批發和零售業 | C154: 52 零售業 | D154: 142.09 | E154: 132.65 | F154: 108.61 | G154: 12.99 | H154: 12.91 | I154: 27.81 | J154: 37.04 | K154: 33.08
A155: 000561 烽火電子 | B155: C 製造業 | C155: 39 電子設備製造業 | D155: 13.43 | E155: 14.61 | F155: 10.59 | G155: 9.35 | H155: 8.88 | I155: 8.3 | J155: 8.47 | K155: 8.99
A156: 000563 陝國投Ａ | B156: J 金融業 | C156: 69 其他金融業
A157: 000564 供銷大集 | B157: F 批發和零售業 | C157: 52 零售業 | D157: 145.54 | E157: 183.1 | F157: 142.63 | G157: 162.93 | H157: 84.05 | I157: 135.24 | J157: 25.47 | K157: 34.1
A158: 000565 渝三峽Ａ | B158: C 製造業 | C158: 26 化學原料及化學製品 | D158: 34.98 | E158: 32.08 | F158: 27.46 | G158: 19.03 | H158: 19.29 | I158: 47.37 | J158: 21.07 | K158: 42.92
A159: 000566 海南海藥 | B159: C 製造業 | C159: 27 醫藥製造業 | D159: 88.84 | E159: 94.81 | F159: 85.02 | G159: 72.91 | H159: 65.25 | I159: 62.38 | J159: 46.02 | K159: 77.23
A160: 000567 海德股份 | B160: K 房地產業 | C160: 70 房地產業 | D160: 4.89 | E160: 11.3 | F160: 0 | G160: 0 | H160: 0 | I160: 0 | J160: 22.84 | K160: 158.03
A161: 000568 瀘州老窖 | B161: C 製造業 | C161: 15 酒飲料和精製茶製造業 | D161: 0 | E161: 0 | F161: 0 | G161: 0 | H161: 0 | I161: 0 | J161: 0 | K161: 0
A162: 000570 蘇常柴Ａ | B162: C 製造業 | C162: 34 通用設備製造業 | D162: 1.64 | E162: 1.62 | F162: 1.02 | G162: 0.7 | H162: 0.84 | I162: 0.5 | J162: 0.43 | K162: 0.99
A163: 000571 新大洲Ａ | B163: B 採礦業 | C163: 06 煤炭開採和洗選業 | D163: 26.22 | E163: 28.21 | F163: 35.78 | G163: 48.16 | H163: 47.34 | I163: 51.06 | J163: 49.23 | K163: 32.31
A164: 000572 海馬汽車 | B164: C 製造業 | C164: 36 汽車製造業 | D164: 0.31 | E164: 0.81 | F164: 0.02 | G164: 0.02 | H164: 0.02 | I164: 1.04 | J164: 2.09 | K164: 5.1
A165: 000573 粵宏遠Ａ | B165: K 房地產業 | C165: 70 房地產業 | D165: 51.6 | E165: 67.2 | F165: 72.44 | G165: 69.37 | H165: 72.09 | I165: 58.04 | J165: 26.87 | K165: 57.6
A166: 000576 廣東甘化 | B166: C 製造業 | C166: 22 造紙及紙製品業 | D166: 31.2 | E166: 33.68 | F166: 26.79 | G166: 38.74 | H166: 47.59 | I166: 6.46 | J166: 4.51 | K166: 11.68
A167: 000581 威孚高科 | B167: C 製造業 | C167: 36 汽車製造業 | D167: 4.83 | E167: 3.7 | F167: 4.38 | G167: 3.23 | H167: 3.44 | I167: 2.56 | J167: 1.57 | K167: 1.72
A168: 000582 北部灣港 | B168: G 交通運輸、倉儲&郵政 | C168: 55 水上運輸業 | D168: 85.86 | E168: 109.24 | F168: 93.98 | G168: 78.36 | H168: 57.12 | I168: 50.97 | J168: 48.62 | K168: 45.18
A169: 000584 哈工智能 | B169: C 製造業 | C169: 28 化學纖維製造業 | D169: 4.23 | E169: 7.73 | F169: 12.14 | G169: 7.61 | H169: 8.21 | I169: 3.97 | J169: 5.74 | K169: 21.06
A170: 000585 東北電氣 | B170: C 製造業 | C170: 38 電氣機械及器材製造業 | D170: 2.85 | E170: 3.14 | F170: 3.14 | G170: 3.16 | H170: 3.03 | I170: 3.14 | J170: 13.95 | K170: 4.27
A171: 000586 匯源通信 | B171: C 製造業 | C171: 39 電子設備製造業 | D171: 19.37 | E171: 22.18 | F171: 14.81 | G171: 10.21 | H171: 8.6 | I171: 5.08 | J171: 11.5 | K171: 26.31
A172: 000587 金洲慈航 | B172: C 製造業 | C172: 41 其他製造業 | D172: 62.11 | E172: 46.11 | F172: 25.2 | G172: 33.07 | H172: 105.9 | I172: 152.29 | J172: 207.52 | K172: 234.87
A173: 000589 黔輪胎Ａ | B173: C 製造業 | C173: 29 橡膠和塑膠製品業 | D173: 156.81 | E173: 103.21 | F173: 104.84 | G173: 106.57 | H173: 156.24 | I173: 159.41 | J173: 132.25 | K173: 110.32
A174: 000590 啟迪古漢 | B174: C 製造業 | C174: 27 醫藥製造業 | D174: 4.48 | E174: 17.77 | F174: 42.11 | G174: 47.96 | H174: 31.07 | I174: 32.15 | J174: 29.66 | K174: 6.02
A175: 000591 太陽能 | B175: D 電力、熱力、燃氣及水 | C175: 44 電力熱力生產和供應 | D175: 125.39 | E175: 117.86 | F175: 155.68 | G175: 129.21 | H175: 198.37 | I175: 117.28 | J175: 118.12 | K175: 126.53
A176: 000592 平潭發展 | B176: A 農、林、牧、漁業 | C176: 02 林業 | D176: 22.73 | E176: 20.34 | F176: 25.31 | G176: 37.01 | H176: 2.37 | I176: 1.18 | J176: 6.09 | K176: 12.12
A177: 000593 大通燃氣 | B177: D 電力、熱力、燃氣及水 | C177: 45 燃氣生產和供應業 | D177: 17.21 | E177: 0.11 | F177: 0.11 | G177: 0.11 | H177: 4.72 | I177: 18 | J177: 27.46 | K177: 36.76
A178: 000595 *ST 寶實 | B178: C 製造業 | C178: 34 通用設備製造業 | D178: 163.58 | E178: 188.32 | F178: 25.4 | G178: 7.07 | H178: 8.47 | I178: 14.68 | J178: 24.37 | K178: 44.27
A179: 000596 古井貢酒 | B179: C 製造業 | C179: 15 酒飲料和精製茶製造業 | D179: 0 | E179: 0 | F179: 0 | G179: 0 | H179: 0 | I179: 0 | J179: 0 | K179: 0
A180: 000597 東北製藥 | B180: C 製造業 | C180: 27 醫藥製造業 | D180: 217.49 | E180: 269.51 | F180: 123.86 | G180: 165.53 | H180: 142.43 | I180: 177.42 | J180: 149.66 | K180: 156.69
A181: 000598 興蓉環境 | B181: D 電力、熱力、燃氣及水 | C181: 46 水的生產和供應業 | D181: 17.92 | E181: 25.9 | F181: 36.45 | G181: 29.01 | H181: 42.51 | I181: 33.79 | J181: 46.64 | K181: 45.7
A182: 000599 青島雙星 | B182: C 製造業 | C182: 29 橡膠和塑膠製品業 | D182: 120.64 | E182: 103.6 | F182: 50.59 | G182: 57.4 | H182: 57.75 | I182: 82.18 | J182: 59.14 | K182: 96.21
A183: 000600 建投能源 | B183: D 電力、熱力、燃氣及水 | C183: 44 電力熱力生產和供應 | D183: 211.31 | E183: 124.47 | F183: 94.64 | G183: 84.15 | H183: 73.28 | I183: 74.22 | J183: 81.41 | K183: 93.63
A184: 000601 韶能股份 | B184: D 電力、熱力、燃氣及水 | C184: 44 電力熱力生產和供應 | D184: 105.97 | E184: 104.46 | F184: 96.56 | G184: 91.26 | H184: 84.1 | I184: 74.9 | J184: 71.9 | K184: 71.83
A185: 000603 盛達礦業 | B185: B 採礦業 | C185: 09 有色金屬礦採選業 | D185: 2.16 | E185: 1.84 | F185: 0.22 | G185: 21.39 | H185: 16.56 | I185: 23.58 | J185: 0 | K185: 0
A186: 000605 渤海股份 | B186: D 電力、熱力、燃氣及水 | C186: 46 水的生產和供應業 | D186: 82.46 | E186: 57.33 | F186: 38.95 | G186: 40.63 | H186: 54.69 | I186: 51.88 | J186: 56.86 | K186: 72.53
A187: 000606 神州易橋 | B187: C 製造業 | C187: 27 醫藥製造業 | D187: 29.99 | E187: 34.58 | F187: 34.89 | G187: 28.98 | H187: 20.01 | I187: 6.9 | J187: 0.51 | K187: 0.46
A188: 000607 華媒控股 | B188: R 文化、體育和娛樂業 | C188: 85 新聞和出版業 | D188: 26.22 | E188: 81.26 | F188: 0 | G188: 0.09 | H188: 0.45 | I188: 0.71 | J188: 1.28 | K188: 3.71
A189: 000608 陽光股份 | B189: K 房地產業 | C189: 70 房地產業 | D189: 67.08 | E189: 80.71 | F189: 102.33 | G189: 113.82 | H189: 98.74 | I189: 95.04 | J189: 112.71 | K189: 84.78
A190: 000609 綿石投資 | B190: S 綜合 | C190: 90 綜合 | D190: 0 | E190: 0.22 | F190: 4.61 | G190: 4.08 | H190: 0 | I190: 0 | J190: 0 | K190: 0
A191: 000610 西安旅遊 | B191: N 水利、環境和公共設施 | C191: 78 公共設施管理業 | D191: 6.47 | E191: 0 | F191: 0 | G191: 10.09 | H191: 21.63 | I191: 34.69 | J191: 35.49 | K191: 43.26
A192: 000611 天首發展 | B192: C 製造業 | C192: 17 紡織業 | D192: 0 | E192: 0 | F192: 0 | G192: 0.65 | H192: 0 | I192: 0 | J192: 0 | K192: 0
A193: 000612 焦作萬方 | B193: C 製造業 | C193: 32 有色金屬冶煉和壓延 | D193: 45.28 | E193: 44.68 | F193: 55.66 | G193: 59.66 | H193: 66.23 | I193: 54.97 | J193: 46.45 | K193: 46.34
A194: 000613 *ST 東海A | B194: H 住宿和餐飲業 | C194: 61 住宿業 | D194: 0.98 | E194: 0.99 | F194: 0 | G194: 0 | H194: 0 | I194: 0 | J194: 0 | K194: 0
A195: 000615 京漢股份 | B195: K 房地產業 | C195: 70 房地產業 | D195: 30.14 | E195: 101.61 | F195: 109.2 | G195: 14.66 | H195: 92.34 | I195: 75.68 | J195: 39.37 | K195: 45.65
A196: 000616 海航投資 | B196: K 房地產業 | C196: 70 房地產業 | D196: 97.34 | E196: 81.95 | F196: 62.03 | G196: 53.48 | H196: 82.25 | I196: 74.42 | J196: 81.73 | K196: 108.19
A197: 000617 中油資本 | B197: J 金融業 | C197: 67 資本市場服務 | D197: 101.33 | E197: 120.28 | F197: 125.21 | G197: 123.81 | H197: 131.48 | I197: 215.99 | J197: 123.08 | K197: 116.94
A198: 000619 海螺型材 | B198: C 製造業 | C198: 29 橡膠和塑膠製品業 | D198: 55.62 | E198: 52.14 | F198: 39.77 | G198: 39.44 | H198: 31.97 | I198: 31.84 | J198: 31.86 | K198: 32.29
A199: 000620 新華聯 | B199: K 房地產業 | C199: 70 房地產業 | D199: 268.84 | E199: 297.55 | F199: 310.34 | G199: 212.32 | H199: 264.72 | I199: 322.84 | J199: 351.09 | K199: 315.92
A200: 000622 恒立實業 | B200: C 製造業 | C200: 35 專用設備製造業 | D200: 0 | E200: 0 | F200: 1.08 | G200: 1.17 | H200: 1.42 | I200: 1.53 | J200: 1.13 | K200: 1.18
... 3357 more rows

Sheet ACID-1
B1: CSRC分類-門類 | C1: CSRC分類-大類 | D1: 速動比率% | E1: 速動比率% | F1: 速動比率% | G1: 速動比率% | H1: 速動比率% | I1: 速動比率% | J1: 速動比率% | K1: 速動比率%
A2: 公司 | D2: 2013-12-31 | E2: 2014-06-30 | F2: 2014-12-31 | G2: 2015-06-30 | H2: 2015-12-31 | I2: 2016-06-30 | J2: 2016-12-30 | K2: 2017-06-30
A3: 000001 平安銀行 | B3: J 金融業 | C3: 66 貨幣金融服務
A4: 000002 萬科Ａ | B4: K 房地產業 | C4: 70 房地產業 | D4: 47.44 | E4: 57 | F4: 69.29 | G4: 66 | H4: 63.3 | I4: 66.94 | J4: 63.86 | K4: 73.5
A5: 000004 國農科技 | B5: C 製造業 | C5: 27 醫藥製造業 | D5: 147.39 | E5: 102.5 | F5: 63.42 | G5: 47.55 | H5: 52.18 | I5: 144.8 | J5: 358.99 | K5: 288.34
A6: 000005 世紀星源 | B6: N 水利、環境和公共設施 | C6: 77 生態保護和環境治理 | D6: 70.31 | E6: 29.7 | F6: 51.68 | G6: 46.52 | H6: 64.6 | I6: 61.2 | J6: 53.43 | K6: 55.48
A7: 000006 深振業Ａ | B7: K 房地產業 | C7: 70 房地產業 | D7: 82.76 | E7: 85.01 | F7: 36.09 | G7: 30.78 | H7: 55.69 | I7: 96.99 | J7: 105.73 | K7: 82.13
A8: 000007 全新好 | B8: K 房地產業 | C8: 70 房地產業 | D8: 104.14 | E8: 49.56 | F8: 60.25 | G8: 113.81 | H8: 258.32 | I8: 267.93 | J8: 323.48 | K8: 399.62
A9: 000008 神州高鐵 | B9: C 製造業 | C9: 37 鐵路、船舶、航空航太 | D9: 448.77 | E9: 407.62 | F9: 418.56 | G9: 259.32 | H9: 240.38 | I9: 236.6 | J9: 164.16 | K9: 148.15
A10: 000009 中國寶安 | B10: S 綜合 | C10: 90 綜合 | D10: 52.84 | E10: 80.21 | F10: 65.97 | G10: 65 | H10: 75.17 | I10: 69.85 | J10: 54.4 | K10: 62.22
A11: 000010 美麗生態 | B11: E 建築業 | C11: 48 土木工程建築業 | D11: 212.98 | E11: 324.9 | F11: 286.65 | G11: 41.38 | H11: 81.06 | I11: 63.34 | J11: 48.49 | K11: 55.33
A12: 000011 深物業A | B12: K 房地產業 | C12: 70 房地產業 | D12: 60.3 | E12: 42.75 | F12: 57.48 | G12: 36.61 | H12: 73.95 | I12: 194.97 | J12: 155.3 | K12: 142.5
A13: 000012 南玻Ａ | B13: C 製造業 | C13: 30 非金屬礦物製品業 | D13: 22.61 | E13: 24.68 | F13: 12.01 | G13: 13.33 | H13: 31.22 | I13: 26.12 | J13: 25.02 | K13: 34.08
A14: 000014 沙河股份 | B14: K 房地產業 | C14: 70 房地產業 | D14: 41.42 | E14: 79.08 | F14: 36.55 | G14: 20.7 | H14: 19.56 | I14: 19.23 | J14: 40.05 | K14: 43.71
A15: 000016 深康佳Ａ | B15: C 製造業 | C15: 39 電子設備製造業 | D15: 81 | E15: 78.96 | F15: 73.84 | G15: 74.7 | H15: 65.11 | I15: 68.25 | J15: 66.54 | K15: 47.82
A16: 000017 深中華A | B16: C 製造業 | C16: 37 鐵路、船舶、航空航太 | D16: 100.79 | E16: 76.27 | F16: 112.06 | G16: 95.67 | H16: 119.34 | I16: 95.53 | J16: 120.87 | K16: 99.25
A17: 000018 神州長城 | B17: E 建築業 | C17: 50 建築裝飾和其他建築業 | D17: 192.49 | E17: 156.37 | F17: 139.85 | G17: 197.97 | H17: 132.85 | I17: 132.25 | J17: 142.85 | K17: 129.27
A18: 000019 深深寶Ａ | B18: C 製造業 | C18: 15 酒飲料和精製茶製造業 | D18: 387.35 | E18: 122.85 | F18: 279.21 | G18: 321.13 | H18: 293.54 | I18: 256 | J18: 397.6 | K18: 312.14
A19: 000020 深華發A | B19: C 製造業 | C19: 39 電子設備製造業 | D19: 130.73 | E19: 236.46 | F19: 290.9 | G19: 79.53 | H19: 296.38 | I19: 120.16 | J19: 93.43 | K19: 96.91
A20: 000021 深科技 | B20: C 製造業 | C20: 39 電子設備製造業 | D20: 118.72 | E20: 113.79 | F20: 114.89 | G20: 109.35 | H20: 106.3 | I20: 114.75 | J20: 99.74 | K20: 100.97
A21: 000022 深赤灣Ａ | B21: G 交通運輸、倉儲&郵政 | C21: 55 水上運輸業 | D21: 63.87 | E21: 69.96 | F21: 76.93 | G21: 51.52 | H21: 85.44 | I21: 107.56 | J21: 113.26 | K21: 139.1
A22: 000023 深天地Ａ | B22: C 製造業 | C22: 30 非金屬礦物製品業 | D22: 87.66 | E22: 91.08 | F22: 89.3 | G22: 90.8 | H22: 88.94 | I22: 96.79 | J22: 107.31 | K22: 107.04
A23: 000025 特力Ａ | B23: F 批發和零售業 | C23: 51 批發業 | D23: 27.67 | E23: 19.93 | F23: 24.92 | G23: 55.35 | H23: 68.24 | I23: 87.25 | J23: 99.33 | K23: 78.81
A24: 000026 飛亞達Ａ | B24: F 批發和零售業 | C24: 52 零售業 | D24: 33.4 | E24: 44.86 | F24: 35.15 | G24: 43.13 | H24: 69.25 | I24: 57.35 | J24: 51.95 | K24: 57.73
A25: 000027 深圳能源 | B25: D 電力、熱力、燃氣及水 | C25: 44 電力熱力生產和供應 | D25: 70.45 | E25: 72.42 | F25: 69.89 | G25: 72.26 | H25: 78.38 | I25: 75.63 | J25: 62.66 | K25: 59.73
A26: 000028 國藥一致 | B26: F 批發和零售業 | C26: 51 批發業 | D26: 89.46 | E26: 111.88 | F26: 111.59 | G26: 115.87 | H26: 101.02 | I26: 125.85 | J26: 109.87 | K26: 112.95
A27: 000029 深深房Ａ | B27: K 房地產業 | C27: 70 房地產業 | D27: 44.35 | E27: 54.7 | F27: 55.27 | G27: 99.04 | H27: 123.6 | I27: 183.36 | J27: 183.49 | K27: 181.88
A28: 000030 富奧股份 | B28: C 製造業 | C28: 36 汽車製造業 | D28: 115.86 | E28: 120.86 | F28: 136.62 | G28: 149.82 | H28: 161.43 | I28: 160.08 | J28: 146.98 | K28: 159.71
A29: 000031 中糧地產 | B29: K 房地產業 | C29: 70 房地產業 | D29: 43.19 | E29: 51.84 | F29: 52.09 | G29: 64.4 | H29: 68.19 | I29: 111.1 | J29: 117.09 | K29: 115.52
A30: 000032 深桑達Ａ | B30: F 批發和零售業 | C30: 51 批發業 | D30: 154.02 | E30: 155.08 | F30: 137.97 | G30: 193.75 | H30: 225.59 | I30: 302.09 | J30: 306.67 | K30: 282.5
A31: 000034 神州數碼 | B31: F 批發和零售業 | C31: 51 批發業 | D31: 107.86 | E31: 99.42 | F31: 58.95 | G31: 111.23 | H31: 208.18 | I31: 67.47 | J31: 70.79 | K31: 70.39
A32: 000035 中國天楹 | B32: N 水利、環境和公共設施 | C32: 77 生態保護和環境治理 | D32: 87.3 | E32: 101.6 | F32: 53.09 | G32: 38.55 | H32: 45.27 | I32: 32.37 | J32: 20.62 | K32: 18.65
A33: 000036 華聯控股 | B33: K 房地產業 | C33: 70 房地產業 | D33: 100.52 | E33: 119.61 | F33: 43.29 | G33: 127.89 | H33: 124.98 | I33: 296.69 | J33: 103.96 | K33: 73.12
A34: 000037 深南電A | B34: D 電力、熱力、燃氣及水 | C34: 44 電力熱力生產和供應 | D34: 41.11 | E34: 43.37 | F34: 32.18 | G34: 36.26 | H34: 44.91 | I34: 50.7 | J34: 102.9 | K34: 69.11
A35: 000038 深大通 | B35: L 租賃和商務服務業 | C35: 72 商務服務業 | D35: 10.1 | E35: 13.72 | F35: 12.76 | G35: 15.92 | H35: 32.47 | I35: 270.52 | J35: 388.45 | K35: 396.31
A36: 000039 中集集團 | B36: C 製造業 | C36: 33 金屬製品業 | D36: 70.79 | E36: 60.39 | F36: 54.97 | G36: 48.77 | H36: 53.67 | I36: 55.24 | J36: 77.4 | K36: 72.94
A37: 000040 東旭藍天 | B37: E 建築業 | C37: 48 土木工程建築業 | D37: 26.72 | E37: 26.68 | F37: 34.89 | G37: 18.89 | H37: 113.58 | I37: 662.41 | J37: 326.23 | K37: 159.43
A38: 000042 中洲控股 | B38: K 房地產業 | C38: 70 房地產業 | D38: 53.86 | E38: 42.78 | F38: 22.33 | G38: 18.24 | H38: 57.22 | I38: 76.64 | J38: 66.86 | K38: 103.46
A39: 000043 中航地產 | B39: K 房地產業 | C39: 70 房地產業 | D39: 41.19 | E39: 34.92 | F39: 26.51 | G39: 35.83 | H39: 32.17 | I39: 32.86 | J39: 81.15 | K39: 71.47
A40: 000045 深紡織Ａ | B40: C 製造業 | C40: 39 電子設備製造業 | D40: 595.61 | E40: 628.3 | F40: 304.57 | G40: 235.81 | H40: 191.95 | I40: 222.1 | J40: 276.59 | K40: 351.61
A41: 000046 泛海控股 | B41: K 房地產業 | C41: 70 房地產業 | D41: 59.47 | E41: 42.4 | F41: 60.59 | G41: 86.33 | H41: 93.62 | I41: 115.44 | J41: 93.04 | K41: 58.7
A42: 000048 康達爾 | B42: C 製造業 | C42: 13 農副食品加工業 | D42: 40.68 | E42: 65.8 | F42: 74.22 | G42: 92.05 | H42: 91.96 | I42: 42.63 | J42: 35.98 | K42: 42.57
A43: 000049 德賽電池 | B43: C 製造業 | C43: 38 電氣機械及器材製造業 | D43: 91.93 | E43: 122.3 | F43: 85.17 | G43: 98.26 | H43: 98.7 | I43: 107.74 | J43: 89.72 | K43: 85.68
A44: 000050 深天馬Ａ | B44: C 製造業 | C44: 39 電子設備製造業 | D44: 68.01 | E44: 63 | F44: 72.66 | G44: 114.15 | H44: 160.13 | I44: 203.01 | J44: 157.65 | K44: 86.98
A45: 000055 方大集團 | B45: C 製造業 | C45: 33 金屬製品業 | D45: 113.46 | E45: 81.12 | F45: 67.49 | G45: 78.42 | H45: 75.48 | I45: 84.33 | J45: 114.87 | K45: 110.05
A46: 000056 皇庭國際 | B46: K 房地產業 | C46: 70 房地產業 | D46: 1.04 | E46: 4.25 | F46: 5.41 | G46: 5.2 | H46: 46.45 | I46: 153.25 | J46: 163.66 | K46: 55.69
A47: 000058 深賽格 | B47: L 租賃和商務服務業 | C47: 72 商務服務業 | D47: 83.17 | E47: 83.56
A48: 000059 華錦股份 | B48: C 製造業 | C48: 25 石油加工煉焦及核燃料 | D48: 23.23 | E48: 21.9 | F48: 30.12 | G48: 30.11 | H48: 21.81 | I48: 21.47 | J48: 23.94 | K48: 31.19
A49: 000060 中金嶺南 | B49: C 製造業 | C49: 32 有色金屬冶煉和壓延 | D49: 40.89 | E49: 35.44 | F49: 33.97 | G49: 33.64 | H49: 39.28 | I49: 36.97 | J49: 47.65 | K49: 87.38
A50: 000061 農產品 | B50: L 租賃和商務服務業 | C50: 72 商務服務業 | D50: 52.43 | E50: 64.84 | F50: 38.52 | G50: 33.28 | H50: 29.11 | I50: 33.48 | J50: 33.83 | K50: 39.35
A51: 000062 深圳華強 | B51: F 批發和零售業 | C51: 51 批發業 | D51: 100.1 | E51: 89.41 | F51: 103.84 | G51: 138.23 | H51: 130.89 | I51: 106.05 | J51: 106.63 | K51: 107.22
A52: 000063 中興通訊 | B52: C 製造業 | C52: 39 電子設備製造業 | D52: 93.71 | E52: 73.77 | F52: 81.85 | G52: 94.25 | H52: 96.94 | I52: 113.57 | J52: 85.33 | K52: 85.74
A53: 000065 北方國際 | B53: E 建築業 | C53: 48 土木工程建築業 | D53: 123.39 | E53: 115.96 | F53: 113.63 | G53: 115.25 | H53: 116.81 | I53: 122.49 | J53: 120 | K53: 137.67
A54: 000066 中國長城 | B54: C 製造業 | C54: 39 電子設備製造業 | D54: 72.63 | E54: 68.19 | F54: 69.74 | G54: 68.21 | H54: 76.02 | I54: 79.29 | J54: 3.9 | K54: 125.8
A55: 000068 華控賽格 | B55: C 製造業 | C55: 39 電子設備製造業 | D55: 84.4 | E55: 73.64 | F55: 50.2 | G55: 1298.03 | H55: 385.18 | I55: 563.11 | J55: 142.21 | K55: 139.42
A56: 000069 華僑城Ａ | B56: N 水利、環境和公共設施 | C56: 78 公共設施管理業 | D56: 34.19 | E56: 35.64 | F56: 45.16 | G56: 49.57 | H56: 46.82 | I56: 42.32 | J56: 32.61 | K56: 33.71
A57: 000070 特發信息 | B57: C 製造業 | C57: 38 電氣機械及器材製造業 | D57: 108 | E57: 102.2 | F57: 101.58 | G57: 93.61 | H57: 87.47 | I57: 76.05 | J57: 82.55 | K57: 83.85
A58: 000078 海王生物 | B58: F 批發和零售業 | C58: 52 零售業 | D58: 90.55 | E58: 89.65 | F58: 85.63 | G58: 88.93 | H58: 94.45 | I58: 126.94 | J58: 117.89 | K58: 99.52
A59: 000088 鹽田港 | B59: G 交通運輸、倉儲&郵政 | C59: 54 道路運輸業 | D59: 603.29 | E59: 775.38 | F59: 1242.05 | G59: 534.62 | H59: 288.8 | I59: 542.4 | J59: 395.6 | K59: 238.58
A60: 000089 深圳機場 | B60: G 交通運輸、倉儲&郵政 | C60: 56 航空運輸業 | D60: 79.19 | E60: 98.22 | F60: 85.24 | G60: 102.91 | H60: 128.59 | I60: 146.06 | J60: 168.45 | K60: 187.92
A61: 000090 天健集團 | B61: E 建築業 | C61: 48 土木工程建築業 | D61: 60.2 | E61: 48.55 | F61: 62.04 | G61: 51.21 | H61: 63.42 | I61: 65.88 | J61: 54.29 | K61: 47.22
A62: 000096 廣聚能源 | B62: F 批發和零售業 | C62: 51 批發業 | D62: 600.86 | E62: 1007.53 | F62: 914.4 | G62: 565.87 | H62: 797.7 | I62: 1147.19 | J62: 1436.51 | K62: 1347.6
A63: 000099 中信海直 | B63: G 交通運輸、倉儲&郵政 | C63: 56 航空運輸業 | D63: 106.36 | E63: 117.91 | F63: 123.44 | G63: 117.14 | H63: 114.21 | I63: 102.17 | J63: 97.46 | K63: 141.09
A64: 000100 TCL集團 | B64: C 製造業 | C64: 39 電子設備製造業 | D64: 89.3 | E64: 96.42 | F64: 85.16 | G64: 81 | H64: 69.98 | I64: 72.86 | J64: 79 | K64: 71.23
A65: 000150 宜華健康 | B65: Q 衛生和社會工作 | C65: 83 衛生 | D65: 26.07 | E65: 2.31 | F65: 2.54 | G65: 31.03 | H65: 67.7 | I65: 95.29 | J65: 67.88 | K65: 65.27
A66: 000151 中成股份 | B66: F 批發和零售業 | C66: 51 批發業 | D66: 524.06 | E66: 760.67 | F66: 620.63 | G66: 391.9 | H66: 407.96 | I66: 356.58 | J66: 272.54 | K66: 265.21
A67: 000153 豐原藥業 | B67: C 製造業 | C67: 27 醫藥製造業 | D67: 106.57 | E67: 100.72 | F67: 72.97 | G67: 65.16 | H67: 65.92 | I67: 59.62 | J67: 68.26 | K67: 71.31
A68: 000155 *ST川化 | B68: C 製造業 | C68: 26 化學原料及化學製品 | D68: 34.31 | E68: 25.35 | F68: 15.06 | G68: 13.51 | H68: 8.98 | I68: 32.33 | J68: 3211.12 | K68: 1224.72
A69: 000156 華數傳媒 | B69: R 文化、體育和娛樂業 | C69: 86 廣播電視電影影視 | D69: 83.48 | E69: 97 | F69: 101.66 | G69: 748.61 | H69: 676.05 | I69: 689.35 | J69: 609.99 | K69: 365.97
A70: 000157 中聯重科 | B70: C 製造業 | C70: 35 專用設備製造業 | D70: 184.7 | E70: 189.5 | F70: 253.89 | G70: 186.66 | H70: 199.12 | I70: 172.69 | J70: 206.88 | K70: 211.83
A71: 000158 常山北明 | B71: C 製造業 | C71: 17 紡織業 | D71: 29.77 | E71: 23.91 | F71: 17.73 | G71: 49.52 | H71: 57.18 | I71: 58.97 | J71: 78.77 | K71: 71.95
A72: 000159 國際實業 | B72: F 批發和零售業 | C72: 51 批發業 | D72: 158.26 | E72: 162.25 | F72: 216.62 | G72: 197.16 | H72: 157.61 | I72: 130.24 | J72: 123.37 | K72: 108.7
A73: 000166 申萬宏源 | B73: J 金融業 | C73: 67 資本市場服務
A74: 000301 東方市場 | B74: D 電力、熱力、燃氣及水 | C74: 44 電力熱力生產和供應 | D74: 205.7 | E74: 119.51 | F74: 198.15 | G74: 269.11 | H74: 129.1 | I74: 121.7 | J74: 60.45 | K74: 239.91
A75: 000333 美的集團 | B75: C 製造業 | C75: 38 電氣機械及器材製造業 | D75: 81.66 | E75: 97.45 | F75: 54.17 | G75: 69.51 | H75: 62.5 | I75: 63.07 | J75: 62.84 | K75: 54.22
A76: 000338 濰柴動力 | B76: C 製造業 | C76: 36 汽車製造業 | D76: 137.43 | E76: 112.11 | F76: 106.54 | G76: 105.57 | H76: 117.91 | I76: 113.55 | J76: 107.15 | K76: 103.48
A77: 000400 許繼電氣 | B77: C 製造業 | C77: 38 電氣機械及器材製造業 | D77: 158.79 | E77: 176.47 | F77: 211.98 | G77: 215.94 | H77: 190.11 | I77: 169.78 | J77: 176.23 | K77: 154.5
A78: 000401 冀東水泥 | B78: C 製造業 | C78: 30 非金屬礦物製品業 | D78: 46.64 | E78: 45.18 | F78: 35.54 | G78: 37.84 | H78: 29.94 | I78: 34.97 | J78: 38.6 | K78: 37.02
A79: 000402 金融街 | B79: K 房地產業 | C79: 70 房地產業 | D79: 68.69 | E79: 76.04 | F79: 42.59 | G79: 65.61 | H79: 60.1 | I79: 115.16 | J79: 122.87 | K79: 106.58
A80: 000403 ST生化 | B80: C 製造業 | C80: 27 醫藥製造業 | D80: 7.91 | E80: 8.8 | F80: 12.71 | G80: 17.63 | H80: 14.25 | I80: 13.62 | J80: 41.24 | K80: 38.9
A81: 000404 華意壓縮 | B81: C 製造業 | C81: 34 通用設備製造業 | D81: 95.05 | E81: 99.11 | F81: 94.1 | G81: 92.97 | H81: 81.88 | I81: 95.72 | J81: 90.55 | K81: 96.56
A82: 000407 勝利股份 | B82: D 電力、熱力、燃氣及水 | C82: 45 燃氣生產和供應業 | D82: 56.73 | E82: 77.09 | F82: 80.06 | G82: 70.09 | H82: 71.55 | I82: 105.15 | J82: 90.63 | K82: 113.5
A83: 000408 藏格控股 | B83: C 製造業 | C83: 26 化學原料及化學製品 | D83: 81.18 | E83: 100.32 | F83: 135.04 | G83: 122.7 | H83: 69.38 | J83: 275.35 | K83: 400.65
A84: 000409 山東地礦 | B84: S 綜合 | C84: 90 綜合 | D84: 76.07 | E84: 50.38 | F84: 20.72 | G84: 32.77 | H84: 33.76 | I84: 29.28 | J84: 23.16 | K84: 26.5
A85: 000410 *ST 瀋機 | B85: C 製造業 | C85: 34 通用設備製造業 | D85: 59.44 | E85: 65.8 | F85: 72.08 | G85: 89.22 | H85: 80.82 | I85: 74.55 | J85: 61.77 | K85: 55.06
A86: 000411 英特集團 | B86: F 批發和零售業 | C86: 51 批發業 | D86: 87.14 | E86: 88.36 | F86: 83.8 | G86: 84.25 | H86: 81.08 | I86: 82.8 | J86: 84.1 | K86: 81.17
A87: 000413 東旭光電 | B87: C 製造業 | C87: 39 電子設備製造業 | D87: 433.2 | E87: 234.48 | F87: 135.34 | G87: 151.46 | H87: 206.4 | I87: 218.25 | J87: 322.96 | K87: 274.44
A88: 000415 渤海金控 | B88: L 租賃和商務服務業 | C88: 71 租賃業 | D88: 25.39 | E88: 59.46 | F88: 65.92 | G88: 59.35 | H88: 126.43 | I88: 86.15 | J88: 84.25 | K88: 79.63
A89: 000416 民生控股 | B89: J 金融業 | C89: 69 其他金融業 | D89: 886.78 | E89: 743.45 | F89: 1445.01 | G89: 428.57 | H89: 84.98 | I89: 102.99 | J89: 3260.38 | K89: 3922.06
A90: 000417 合肥百貨 | B90: F 批發和零售業 | C90: 52 零售業 | D90: 277.49 | E90: 283.34 | F90: 204.2 | G90: 229.37 | H90: 142.64 | I90: 125.7 | J90: 134.81 | K90: 111.68
A91: 000418 小天鵝Ａ | B91: C 製造業 | C91: 38 電氣機械及器材製造業 | D91: 135.2 | E91: 119.05 | F91: 133.06 | G91: 107.69 | H91: 92.94 | I91: 61.61 | J91: 79.69 | K91: 72.44
A92: 000419 通程控股 | B92: F 批發和零售業 | C92: 52 零售業 | D92: 88.47 | E92: 79.95 | F92: 95.76 | G92: 100.89 | H92: 100.8 | I92: 73.75 | J92: 91.9 | K92: 62.81
A93: 000420 吉林化纖 | B93: C 製造業 | C93: 28 化學纖維製造業 | D93: 25.33 | E93: 21.6 | F93: 37.36 | G93: 52.46 | H93: 39.44 | I93: 78.68 | J93: 66.18 | K93: 30.83
A94: 000421 南京公用 | B94: D 電力、熱力、燃氣及水 | C94: 45 燃氣生產和供應業 | D94: 75.54 | E94: 130.05 | F94: 74.33 | G94: 87.13 | H94: 58.86 | I94: 43.06 | J94: 41.26 | K94: 78.8
A95: 000422 湖北宜化 | B95: C 製造業 | C95: 26 化學原料及化學製品 | D95: 35.33 | E95: 36.8 | F95: 30.43 | G95: 31.26 | H95: 30.02 | I95: 32.34 | J95: 32.12 | K95: 29.09
A96: 000423 東阿阿膠 | B96: C 製造業 | C96: 27 醫藥製造業 | D96: 555.45 | E96: 678.84 | F96: 307.57 | G96: 218.37 | H96: 200.63 | I96: 190.28 | J96: 146.92 | K96: 109.59
A97: 000425 徐工機械 | B97: C 製造業 | C97: 35 專用設備製造業 | D97: 147.52 | E97: 157.72 | F97: 145.73 | G97: 144.85 | H97: 141.07 | I97: 142.08 | J97: 124.44 | K97: 121.34
A98: 000426 興業礦業 | B98: B 採礦業 | C98: 09 有色金屬礦採選業 | D98: 50.61 | E98: 88.87 | F98: 21.7 | G98: 16.72 | H98: 24.87 | I98: 53.82 | J98: 65.06 | K98: 17.68
A99: 000428 華天酒店 | B99: H 住宿和餐飲業 | C99: 61 住宿業 | D99: 11.94 | E99: 20.46 | F99: 14.1 | G99: 14.83 | H99: 26.6 | I99: 19.22 | J99: 17.03 | K99: 16.86
A100: 000429 粵高速Ａ | B100: G 交通運輸、倉儲&郵政 | C100: 54 道路運輸業 | D100: 69.04 | E100: 64.16 | F100: 54.76 | G100: 95.59 | H100: 69.01 | I100: 80.35 | J100: 174.66 | K100: 180.11
A101: 000430 張家界 | B101: N 水利、環境和公共設施 | C101: 78 公共設施管理業 | D101: 107.84 | E101: 63.74 | F101: 63.25 | G101: 79.18 | H101: 68.02 | I101: 20.62 | J101: 11.95 | K101: 18.87
A102: 000488 晨鳴紙業 | B102: C 製造業 | C102: 22 造紙及紙製品業 | D102: 52.28 | E102: 46.86 | F102: 52.67 | G102: 49.88 | H102: 43.95 | I102: 48.08 | J102: 49.16 | K102: 46.4
A103: 000498 山東路橋 | B103: E 建築業 | C103: 48 土木工程建築業 | D103: 80.28 | E103: 60.98 | F103: 87.97 | G103: 89.87 | H103: 85.52 | I103: 79.15 | J103: 84.11 | K103: 88.56
A104: 000501 鄂武商Ａ | B104: F 批發和零售業 | C104: 52 零售業 | D104: 40.78 | E104: 35.93 | F104: 28.59 | G104: 18.69 | H104: 25.48 | I104: 31.64 | J104: 34.87 | K104: 33.55
A105: 000502 綠景控股 | B105: K 房地產業 | C105: 70 房地產業 | D105: 64.98 | E105: 159 | F105: 145.9 | G105: 148.16 | H105: 68.81 | I105: 70.33 | J105: 99.54 | K105: 76.66
A106: 000503 海虹控股 | B106: I 信息傳輸&軟體 | C106: 64 互聯網和相關服務 | D106: 658.06 | E106: 916.99 | F106: 1072.88 | G106: 1873.86 | H106: 1303.95 | I106: 1376.1 | J106: 1777.97 | K106: 1961.15
A107: 000504 南華生物 | B107: R 文化、體育和娛樂業 | C107: 85 新聞和出版業 | D107: 42.66 | E107: 24 | F107: 38.08 | G107: 27.17 | H107: 43.65 | I107: 30.14 | J107: 70.16 | K107: 54.83
A108: 000505 珠江控股 | B108: K 房地產業 | C108: 70 房地產業 | D108: 38.56 | E108: 31.54 | F108: 27.93 | G108: 34.5 | H108: 42.46 | I108: 36.11 | J108: 69.69 | K108: 60.08
A109: 000506 中潤資源 | B109: B 採礦業 | C109: 09 有色金屬礦採選業 | D109: 184.34 | E109: 170.37 | F109: 160.95 | G109: 148.66 | H109: 134.72 | I109: 124.17 | J109: 118.2 | K109: 95.67
A110: 000507 珠海港 | B110: G 交通運輸、倉儲&郵政 | C110: 55 水上運輸業 | D110: 179.69 | E110: 82.52 | F110: 57.46 | G110: 83.27 | H110: 71.59 | I110: 83.3 | J110: 84.72 | K110: 92.1
A111: 000509 華塑控股 | B111: C 製造業 | C111: 29 橡膠和塑膠製品業 | D111: 47.5 | E111: 43.5 | F111: 36.19 | G111: 25.95 | H111: 45.5 | I111: 37.52 | J111: 47.79 | K111: 46.76
A112: 000510 金路集團 | B112: C 製造業 | C112: 26 化學原料及化學製品 | D112: 29.51 | E112: 30.18 | F112: 37 | G112: 17.91 | H112: 44.01 | I112: 36.23 | J112: 35.48 | K112: 44.67
A113: 000511 *ST 烯碳 | B113: C 製造業 | C113: 30 非金屬礦物製品業 | D113: 41.68 | E113: 27.91 | F113: 45.2 | G113: 41.11 | H113: 40.16 | I113: 41.78 | J113: 66.33 | K113: 47.53
A114: 000513 麗珠集團 | B114: C 製造業 | C114: 27 醫藥製造業 | D114: 94.21 | E114: 84.31 | F114: 82.37 | G114: 77.82 | H114: 80 | I114: 91.18 | J114: 126.68 | K114: 280.91
A115: 000514 渝開發 | B115: K 房地產業 | C115: 70 房地產業 | D115: 49.02 | E115: 31.98 | F115: 43.92 | G115: 36.01 | H115: 27.44 | I115: 23.93 | J115: 71.58 | K115: 95.59
A116: 000516 國際醫學 | B116: F 批發和零售業 | C116: 52 零售業 | D116: 76.55 | E116: 75.91 | F116: 95.61 | G116: 176.67 | H116: 169.68 | I116: 177.77 | J116: 170.99 | K116: 178.41
A117: 000517 榮安地產 | B117: K 房地產業 | C117: 70 房地產業 | D117: 51.63 | E117: 40.16 | F117: 48.14 | G117: 60.41 | H117: 59.99 | I117: 159.54 | J117: 43.7 | K117: 160.22
A118: 000518 四環生物 | B118: C 製造業 | C118: 27 醫藥製造業 | D118: 456.88 | E118: 523.67 | F118: 332.97 | G118: 172.15 | H118: 102.04 | I118: 43.23 | J118: 52.85 | K118: 68.52
A119: 000519 中兵紅箭 | B119: C 製造業 | C119: 35 專用設備製造業 | D119: 158.43 | E119: 174.52 | F119: 147.34 | G119: 140.25 | H119: 104.96 | I119: 136.86 | J119: 165.37 | K119: 188.22
A120: 000520 長航鳳凰 | B120: G 交通運輸、倉儲&郵政 | C120: 55 水上運輸業 | D120: 5.12 | E120: 6 | F120: 112.89 | G120: 149.17 | H120: 178.17 | I120: 170.51 | J120: 182.43 | K120: 211.31
A121: 000521 美菱電器 | B121: C 製造業 | C121: 38 電氣機械及器材製造業 | D121: 109.9 | E121: 107.59 | F121: 107.47 | G121: 108.65 | H121: 102.87 | I121: 105.09 | J121: 104.05 | K121: 93.28
A122: 000523 廣州浪奇 | B122: C 製造業 | C122: 26 化學原料及化學製品 | D122: 73.15 | E122: 65.47 | F122: 67.54 | G122: 68.61 | H122: 76.31 | I122: 100.1 | J122: 108.63 | K122: 103.78
A123: 000524 嶺南控股 | B123: H 住宿和餐飲業 | C123: 61 住宿業 | D123: 230.27 | E123: 189.19 | F123: 153.76 | G123: 167.64 | H123: 364.43 | I123: 169.55 | J123: 175.26 | K123: 335.24
A124: 000525 紅太陽 | B124: C 製造業 | C124: 26 化學原料及化學製品 | D124: 25.27 | E124: 26.7 | F124: 28.2 | G124: 45.4 | H124: 39.95 | I124: 52.89 | J124: 56.39 | K124: 62.23
A125: 000526 *ST 紫學 | B125: P 教育 | C125: 82 教育 | D125: 195.11 | E125: 35.78 | F125: 32.3 | G125: 52.13 | H125: 86.96 | I125: 47.17 | J125: 45.14 | K125: 34.51
A126: 000528 柳工 | B126: C 製造業 | C126: 35 專用設備製造業 | D126: 147.01 | E126: 148.24 | F126: 143.9 | G126: 138.06 | H126: 140.8 | I126: 115.43 | J126: 109.09 | K126: 111.41
A127: 000529 廣弘控股 | B127: C 製造業 | C127: 13 農副食品加工業 | D127: 154.54 | E127: 209.11 | F127: 394.67 | G127: 248.91 | H127: 463.11 | I127: 166.78 | J127: 222.03 | K127: 184.5
A128: 000530 大冷股份 | B128: C 製造業 | C128: 34 通用設備製造業 | D128: 133.38 | E128: 131.74 | F128: 125.21 | G128: 126.97 | H128: 88.26 | I128: 146.4 | J128: 131.22 | K128: 105.78
A129: 000531 穗恒運Ａ | B129: D 電力、熱力、燃氣及水 | C129: 44 電力熱力生產和供應 | D129: 89.38 | E129: 68.66 | F129: 71.56 | G129: 67.01 | H129: 50.52 | I129: 56.87 | J129: 57.94 | K129: 58.73
A130: 000532 華金資本 | B130: S 綜合 | C130: 90 綜合 | D130: 184.37 | E130: 231.04 | F130: 217.65 | G130: 240.41 | H130: 64.9 | I130: 119.41 | J130: 47.63 | K130: 35.31
A131: 000533 萬家樂 | B131: C 製造業 | C131: 38 電氣機械及器材製造業 | D131: 185.5 | E131: 195.85 | F131: 160.88 | G131: 132.14 | H131: 126.51 | I131: 136.93 | J131: 164.07 | K131: 170.11
A132: 000534 萬澤股份 | B132: K 房地產業 | C132: 70 房地產業 | D132: 81.48 | E132: 55.03 | F132: 23.17 | G132: 28.45 | H132: 45.18 | I132: 87.51 | J132: 110.82 | K132: 100.08
A133: 000536 華映科技 | B133: C 製造業 | C133: 39 電子設備製造業 | D133: 116.86 | E133: 110.83 | F133: 118.49 | G133: 102.67 | H133: 95.34 | I133: 96.04 | J133: 177.22 | K133: 151.94
A134: 000537 廣宇發展 | B134: K 房地產業 | C134: 70 房地產業 | D134: 263.09 | E134: 332.13 | F134: 91.13 | G134: 108.92 | H134: 46.5 | I134: 86.59 | J134: 38.67 | K134: 31.68
A135: 000538 雲南白藥 | B135: C 製造業 | C135: 27 醫藥製造業 | D135: 176.71 | E135: 194.55 | F135: 249.1 | G135: 266.33 | H135: 246.32 | I135: 249.66 | J135: 182.53 | K135: 215.78
A136: 000539 粵電力Ａ | B136: D 電力、熱力、燃氣及水 | C136: 44 電力熱力生產和供應 | D136: 36.94 | E136: 40.63 | F136: 44.19 | G136: 55.75 | H136: 48.43 | I136: 48.69 | J136: 46.97 | K136: 43.8
A137: 000540 中天金融 | B137: K 房地產業 | C137: 70 房地產業 | D137: 51.46 | E137: 40.96 | F137: 48.85 | G137: 41.48 | H137: 55.79 | I137: 37.67 | J137: 108.33 | K137: 105.47
A138: 000541 佛山照明 | B138: C 製造業 | C138: 38 電氣機械及器材製造業 | D138: 380.41 | E138: 259.33 | F138: 332.33 | G138: 268.75 | H138: 294.48 | I138: 236.89 | J138: 256.13 | K138: 218.35
A139: 000543 皖能電力 | B139: D 電力、熱力、燃氣及水 | C139: 44 電力熱力生產和供應 | D139: 54.71 | E139: 50.32 | F139: 48.59 | G139: 51.22 | H139: 36.51 | I139: 40.85 | J139: 41.19 | K139: 37.31
A140: 000544 中原環保 | B140: D 電力、熱力、燃氣及水 | C140: 46 水的生產和供應業 | D140: 84.11 | E140: 66.79 | F140: 58.89 | G140: 58.84 | H140: 64.9 | I140: 105.88 | J140: 400.72 | K140: 493.83
A141: 000545 金浦鈦業 | B141: C 製造業 | C141: 26 化學原料及化學製品 | D141: 131.69 | E141: 124.3 | F141: 85.32 | G141: 41.96 | H141: 62.52 | I141: 56.5 | J141: 61.03 | K141: 53.99
A142: 000546 金圓股份 | B142: C 製造業 | C142: 30 非金屬礦物製品業 | D142: 17.87 | E142: 140.1 | F142: 12.29 | G142: 15.21 | H142: 65.16 | I142: 76.37 | J142: 81.93 | K142: 73.2
A143: 000547 航天發展 | B143: C 製造業 | C143: 39 電子設備製造業 | D143: 251.87 | E143: 313.32 | F143: 294.31 | G143: 221.85 | H143: 422.8 | I143: 411.79 | J143: 349.7 | K143: 211.28
A144: 000548 湖南投資 | B144: G 交通運輸、倉儲&郵政 | C144: 54 道路運輸業 | D144: 77.4 | E144: 74.69 | F144: 72.1 | G144: 65.66 | H144: 156.79 | I144: 547.71 | J144: 345.66 | K144: 165.24
A145: 000550 江鈴汽車 | B145: C 製造業 | C145: 36 汽車製造業 | D145: 119.04 | E145: 119.89 | F145: 126.36 | G145: 125.54 | H145: 127.66 | I145: 123.63 | J145: 115.48 | K145: 113.56
A146: 000551 創元科技 | B146: S 綜合 | C146: 90 綜合 | D146: 96.31 | E146: 88.43 | F146: 92.76 | G146: 86.61 | H146: 94.22 | I146: 97.27 | J146: 100.02 | K146: 96.67
A147: 000552 靖遠煤電 | B147: B 採礦業 | C147: 06 煤炭開採和洗選業 | D147: 72.34 | E147: 65.28 | F147: 59.15 | G147: 126.6 | H147: 110.24 | I147: 93.22 | J147: 117.6 | K147: 124.01
A148: 000553 沙隆達Ａ | B148: C 製造業 | C148: 26 化學原料及化學製品 | D148: 87.66 | E148: 107.49 | F148: 146.78 | G148: 128.26 | H148: 130.77 | I148: 176.07 | J148: 154.69 | K148: 193.54
A149: 000554 泰山石油 | B149: F 批發和零售業 | C149: 51 批發業 | D149: 77.83 | E149: 49.55 | F149: 63.76 | G149: 34.9 | H149: 33.07 | I149: 27.71 | J149: 13.52 | K149: 33.92
A150: 000555 神州信息 | B150: I 信息傳輸&軟體 | C150: 65 軟體和資訊技術服務業 | D150: 119.32 | E150: 128.3 | F150: 156.23 | G150: 139.42 | H150: 138.4 | I150: 113.69 | J150: 118.18 | K150: 116.16
A151: 000557 西部創業 | B151: G 交通運輸、倉儲&郵政 | C151: 53 鐵路運輸業 | D151: 179.29 | E151: 166 | F151: 163.15 | G151: 69.81 | H151: 79.58 | I151: 74.8 | J151: 74.8 | K151: 78.64
A152: 000558 萊茵體育 | B152: K 房地產業 | C152: 70 房地產業 | D152: 54.34 | E152: 40.29 | F152: 46.63 | G152: 44.94 | H152: 136.02 | I152: 62.94 | J152: 70.41 | K152: 77.86
A153: 000559 萬向錢潮 | B153: C 製造業 | C153: 36 汽車製造業 | D153: 92.99 | E153: 98.06 | F153: 102.9 | G153: 98.65 | H153: 115.22 | I153: 116.59 | J153: 91.22 | K153: 93.18
A154: 000560 昆百大Ａ | B154: F 批發和零售業 | C154: 52 零售業 | D154: 44.56 | E154: 56.67 | F154: 48.55 | G154: 123.77 | H154: 94.54 | I154: 85.91 | J154: 116.48 | K154: 164.91
A155: 000561 烽火電子 | B155: C 製造業 | C155: 39 電子設備製造業 | D155: 158.33 | E155: 133.07 | F155: 146.33 | G155: 135.26 | H155: 142.43 | I155: 146.86 | J155: 152.02 | K155: 132.61
A156: 000563 陝國投Ａ | B156: J 金融業 | C156: 69 其他金融業
A157: 000564 供銷大集 | B157: F 批發和零售業 | C157: 52 零售業 | D157: 94.82 | E157: 88.15 | F157: 89.19 | G157: 85.47 | H157: 49.25 | I157: 67.05 | J157: 137.17 | K157: 133.49
A158: 000565 渝三峽Ａ | B158: C 製造業 | C158: 26 化學原料及化學製品 | D158: 123.36 | E158: 147.65 | F158: 123.35 | G158: 170.03 | H158: 155.68 | I158: 68.62 | J158: 206.25 | K158: 109.25
A159: 000566 海南海藥 | B159: C 製造業 | C159: 27 醫藥製造業 | D159: 94.43 | E159: 95.33 | F159: 133.07 | G159: 89.7 | H159: 141.21 | I159: 127.45 | J159: 158.52 | K159: 160.3
A160: 000567 海德股份 | B160: K 房地產業 | C160: 70 房地產業 | D160: 228.71 | E160: 18.53 | F160: 39.55 | G160: 612.72 | H160: 1444.68 | I160: 240.84 | J160: 18.69 | K160: 62.41
A161: 000568 瀘州老窖 | B161: C 製造業 | C161: 15 酒飲料和精製茶製造業 | D161: 508.4 | E161: 311.83 | F161: 636.55 | G161: 277.51 | H161: 535.32 | I161: 315.99 | J161: 499.17 | K161: 428.81
A162: 000570 蘇常柴Ａ | B162: C 製造業 | C162: 34 通用設備製造業 | D162: 115.25 | E162: 127.79 | F162: 115.24 | G162: 128.98 | H162: 132.19 | I162: 144.33 | J162: 131.16 | K162: 137.73
A163: 000571 新大洲Ａ | B163: B 採礦業 | C163: 06 煤炭開採和洗選業 | D163: 59.76 | E163: 140.86 | F163: 58.26 | G163: 58.86 | H163: 51.17 | I163: 53.56 | J163: 53.73 | K163: 117.5
A164: 000572 海馬汽車 | B164: C 製造業 | C164: 36 汽車製造業 | D164: 119.32 | E164: 111.16 | F164: 104.74 | G164: 92.39 | H164: 88.16 | I164: 71.11 | J164: 65.95 | K164: 45.3
A165: 000573 粵宏遠Ａ | B165: K 房地產業 | C165: 70 房地產業 | D165: 24.84 | E165: 26.88 | F165: 39.78 | G165: 45.88 | H165: 34.47 | I165: 71.41 | J165: 131.26 | K165: 211.95
A166: 000576 廣東甘化 | B166: C 製造業 | C166: 22 造紙及紙製品業 | D166: 200.3 | E166: 123.88 | F166: 135.77 | G166: 68.7 | H166: 299.11 | I166: 168.62 | J166: 175.31 | K166: 629.38
A167: 000581 威孚高科 | B167: C 製造業 | C167: 36 汽車製造業 | D167: 244.06 | E167: 198.66 | F167: 165.63 | G167: 155.5 | H167: 195.1 | I167: 127.09 | J167: 211.89 | K167: 141.53
A168: 000582 北部灣港 | B168: G 交通運輸、倉儲&郵政 | C168: 55 水上運輸業 | D168: 63.59 | E168: 41.84 | F168: 37.35 | G168: 86.58 | H168: 85.39 | I168: 88.25 | J168: 83.49 | K168: 87.57
A169: 000584 哈工智能 | B169: C 製造業 | C169: 28 化學纖維製造業 | D169: 135.04 | E169: 99.95 | F169: 120.49 | G169: 143.98 | H169: 186.11 | I169: 163.41 | J169: 183.09 | K169: 106.86
A170: 000585 東北電氣 | B170: C 製造業 | C170: 38 電氣機械及器材製造業 | D170: 212.88 | E170: 208.55 | F170: 203.33 | G170: 167.19 | H170: 227.58 | I170: 231.52 | J170: 206.43 | K170: 212.04
A171: 000586 匯源通信 | B171: C 製造業 | C171: 39 電子設備製造業 | D171: 145.09 | E171: 138.31 | F171: 139.62 | G171: 143.79 | H171: 140.17 | I171: 138.33 | J171: 136.26 | K171: 121.67
A172: 000587 金洲慈航 | B172: C 製造業 | C172: 41 其他製造業 | D172: 126.61 | E172: 129.07 | F172: 140.77 | G172: 130.74 | H172: 41.05 | I172: 43.63 | J172: 50.29 | K172: 63.3
A173: 000589 黔輪胎Ａ | B173: C 製造業 | C173: 29 橡膠和塑膠製品業 | D173: 63.55 | E173: 92.65 | F173: 78.89 | G173: 78.18 | H173: 92.04 | I173: 84.1 | J173: 83.67 | K173: 70.43
A174: 000590 啟迪古漢 | B174: C 製造業 | C174: 27 醫藥製造業 | D174: 81.2 | E174: 91.18 | F174: 82.92 | G174: 96.03 | H174: 94.57 | I174: 112.15 | J174: 110.19 | K174: 324.61
A175: 000591 太陽能 | B175: D 電力、熱力、燃氣及水 | C175: 44 電力熱力生產和供應 | D175: 56.81 | E175: 54.68 | F175: 70.22 | G175: 58.33 | H175: 87.33 | I175: 100.23 | J175: 96.07 | K175: 92.7
A176: 000592 平潭發展 | B176: A 農、林、牧、漁業 | C176: 02 林業 | D176: 109.57 | E176: 113.73 | F176: 70.67 | G176: 69.94 | H176: 723.55 | I176: 672.33 | J176: 398.86 | K176: 126.71
A177: 000593 大通燃氣 | B177: D 電力、熱力、燃氣及水 | C177: 45 燃氣生產和供應業 | D177: 249.59 | E177: 308.51 | F177: 302.25 | G177: 255.93 | H177: 255.16 | I177: 126.03 | J177: 58.24 | K177: 128.05
A178: 000595 *ST 寶實 | B178: C 製造業 | C178: 34 通用設備製造業 | D178: 62.19 | E178: 54.52 | F178: 59.56 | G178: 133.65 | H178: 98.53 | I178: 83.69 | J178: 82.73 | K178: 91.65
A179: 000596 古井貢酒 | B179: C 製造業 | C179: 15 酒飲料和精製茶製造業 | D179: 130.03 | E179: 149.54 | F179: 68.63 | G179: 92.61 | H179: 97.99 | I179: 124.16 | J179: 54.4 | K179: 75.8
A180: 000597 東北製藥 | B180: C 製造業 | C180: 27 醫藥製造業 | D180: 56.41 | E180: 56.74 | F180: 68.79 | G180: 67.21 | H180: 63.33 | I180: 72.67 | J180: 70.7 | K180: 74.49
A181: 000598 興蓉環境 | B181: D 電力、熱力、燃氣及水 | C181: 46 水的生產和供應業 | D181: 122.29 | E181: 92.46 | F181: 123.79 | G181: 87.88 | H181: 106.06 | I181: 74.79 | J181: 64.97 | K181: 65.17
A182: 000599 青島雙星 | B182: C 製造業 | C182: 29 橡膠和塑膠製品業 | D182: 70.62 | E182: 61.15 | F182: 70.56 | G182: 68.09 | H182: 86.39 | I182: 68.33 | J182: 79.67 | K182: 72.84
A183: 000600 建投能源 | B183: D 電力、熱力、燃氣及水 | C183: 44 電力熱力生產和供應 | D183: 37.43 | E183: 45.03 | F183: 57.37 | G183: 50.59 | H183: 49.41 | I183: 33.07 | J183: 39.74 | K183: 38.84
A184: 000601 韶能股份 | B184: D 電力、熱力、燃氣及水 | C184: 44 電力熱力生產和供應 | D184: 40.25 | E184: 59.26 | F184: 45.58 | G184: 58.67 | H184: 44.78 | I184: 62.06 | J184: 41.85 | K184: 62.48
A185: 000603 盛達礦業 | B185: B 採礦業 | C185: 09 有色金屬礦採選業 | D185: 325.95 | E185: 331.33 | F185: 436.74 | G185: 205.53 | H185: 44.6 | I185: 53.43 | J185: 606.33 | K185: 329.43
A186: 000605 渤海股份 | B186: D 電力、熱力、燃氣及水 | C186: 46 水的生產和供應業 | D186: 34.33 | E186: 64.25 | F186: 52.46 | G186: 52.95 | H186: 58.25 | I186: 54.41 | J186: 34.77 | K186: 61.98
A187: 000606 神州易橋 | B187: C 製造業 | C187: 27 醫藥製造業 | D187: 100.6 | E187: 139.1 | F187: 100.33 | G187: 109.71 | H187: 86.77 | I187: 127.77 | J187: 620.72 | K187: 565.44
A188: 000607 華媒控股 | B188: R 文化、體育和娛樂業 | C188: 85 新聞和出版業 | D188: 247.73 | E188: 72.95 | F188: 340.37 | G188: 240 | H188: 323.49 | I188: 165.27 | J188: 195.86 | K188: 156.49
A189: 000608 陽光股份 | B189: K 房地產業 | C189: 70 房地產業 | D189: 61.54 | E189: 50.83 | F189: 23.93 | G189: 18.9 | H189: 28.79 | I189: 17.57 | J189: 51.28 | K189: 23.69
A190: 000609 綿石投資 | B190: S 綜合 | C190: 90 綜合 | D190: 687.16 | E190: 351.92 | F190: 81.05 | G190: 119.72 | H190: 83.02 | I190: 69.54 | J190: 15.03 | K190: 112.18
A191: 000610 西安旅遊 | B191: N 水利、環境和公共設施 | C191: 78 公共設施管理業 | D191: 122.1 | E191: 112.4 | F191: 98.79 | G191: 61.64 | H191: 57.26 | I191: 37.53 | J191: 23.34 | K191: 58.92
A192: 000611 天首發展 | B192: C 製造業 | C192: 17 紡織業 | D192: 96.91 | E192: 249.98 | F192: 206.8 | G192: 191.61 | H192: 105.62 | I192: 112.22 | J192: 83.16 | K192: 286.45
A193: 000612 焦作萬方 | B193: C 製造業 | C193: 32 有色金屬冶煉和壓延 | D193: 42.76 | E193: 33.32 | F193: 24.86 | G193: 30.41 | H193: 106.53 | I193: 124.98 | J193: 43.46 | K193: 26.14
A194: 000613 *ST 東海A | B194: H 住宿和餐飲業 | C194: 61 住宿業 | D194: 44.81 | E194: 46.18 | F194: 90.14 | G194: 87 | H194: 76.33 | I194: 49.49 | J194: 101.05 | K194: 61.61
A195: 000615 京漢股份 | B195: K 房地產業 | C195: 70 房地產業 | D195: 52.31 | E195: 52.31 | F195: 55.35 | G195: 50.45 | H195: 65.72 | I195: 56.96 | J195: 52.19 | K195: 72.42
A196: 000616 海航投資 | B196: K 房地產業 | C196: 70 房地產業 | D196: 57.27 | E196: 144.05 | F196: 88.07 | G196: 28.12 | H196: 111.07 | I196: 149.26 | J196: 251.57 | K196: 568.34
A197: 000617 中油資本 | B197: J 金融業 | C197: 67 資本市場服務 | D197: 70.86 | E197: 71.16 | F197: 63.14 | G197: 71.5 | H197: 37.41 | I197: 51.93 | J197: 42.6 | K197: 34.51
A198: 000619 海螺型材 | B198: C 製造業 | C198: 29 橡膠和塑膠製品業 | D198: 175.64 | E198: 209.56 | F198: 421.59 | G198: 266.86 | H198: 486.47 | I198: 335.6 | J198: 88.46 | K198: 79.36
A199: 000620 新華聯 | B199: K 房地產業 | C199: 70 房地產業 | D199: 50.48 | E199: 38.01 | F199: 36.21 | G199: 38.73 | H199: 44.39 | I199: 47.85 | J199: 64.4 | K199: 53.13
A200: 000622 恒立實業 | B200: C 製造業 | C200: 35 專用設備製造業 | D200: 220.93 | E200: 178.63 | F200: 226.87 | G200: 161.38 | H200: 129.95 | I200: 211.3 | J200: 182.11 | K200: 207.68
... 3357 more rows

Sheet ACID-2
B1: CSRC分類-門類 | C1: CSRC分類-大類 | D1: 保守速動比率% | E1: 保守速動比率% | F1: 保守速動比率% | G1: 保守速動比率% | H1: 保守速動比率% | I1: 保守速動比率% | J1: 保守速動比率% | K1: 保守速動比率%
A2: 公司 | D2: 2013-12-31 | E2: 2014-06-30 | F2: 2014-12-31 | G2: 2015-06-30 | H2: 2015-12-31 | I2: 2016-06-30 | J2: 2016-12-30 | K2: 2017-06-30
A3: 000001 平安銀行 | B3: J 金融業 | C3: 66 貨幣金融服務
A4: 000002 萬科Ａ | B4: K 房地產業 | C4: 70 房地產業 | D4: 13.07 | E4: 12.41 | F4: 17.85 | G4: 11.55 | H4: 12.35 | I4: 13.92 | J4: 13.78 | K4: 14.74
A5: 000004 國農科技 | B5: C 製造業 | C5: 27 醫藥製造業 | D5: 75.9 | E5: 37.75 | F5: 26.88 | G5: 16.77 | H5: 25.24 | I5: 57.08 | J5: 261.07 | K5: 234.66
A6: 000005 世紀星源 | B6: N 水利、環境和公共設施 | C6: 77 生態保護和環境治理 | D6: 1.85 | E6: 1.11 | F6: 2.34 | G6: 2.32 | H6: 13.65 | I6: 10.23 | J6: 3.19 | K6: 3.05
A7: 000006 深振業Ａ | B7: K 房地產業 | C7: 70 房地產業 | D7: 63.1 | E7: 54.72 | F7: 23.24 | G7: 22.63 | H7: 40.69 | I7: 43.23 | J7: 59.36 | K7: 57.69
A8: 000007 全新好 | B8: K 房地產業 | C8: 70 房地產業 | D8: 41.97 | E8: 17.57 | F8: 23.88 | G8: 1.27 | H8: 203.33 | I8: 209.49 | J8: 274.25 | K8: 206.9
A9: 000008 神州高鐵 | B9: C 製造業 | C9: 37 鐵路、船舶、航空航太 | D9: 305.05 | E9: 263.41 | F9: 276.79 | G9: 51.33 | H9: 66.71 | I9: 86.8 | J9: 60.5 | K9: 55.23
A10: 000009 中國寶安 | B10: S 綜合 | C10: 90 綜合 | D10: 29.16 | E10: 48.44 | F10: 42.98 | G10: 38.53 | H10: 54.62 | I10: 46.86 | J10: 29.15 | K10: 37.84
A11: 000010 美麗生態 | B11: E 建築業 | C11: 48 土木工程建築業 | D11: 125.1 | E11: 227.21 | F11: 190.45 | G11: 28.24 | H11: 50.42 | I11: 18.43 | J11: 7.49 | K11: 8.09
A12: 000011 深物業A | B12: K 房地產業 | C12: 70 房地產業 | D12: 53.94 | E12: 37.49 | F12: 54.15 | G12: 30.68 | H12: 46.68 | I12: 56.79 | J12: 69.6 | K12: 71.56
A13: 000012 南玻Ａ | B13: C 製造業 | C13: 30 非金屬礦物製品業 | D13: 15.33 | E13: 15.5 | F13: 5.59 | G13: 4.46 | H13: 19.6 | I13: 12.69 | J13: 14.97 | K13: 22.21
A14: 000014 沙河股份 | B14: K 房地產業 | C14: 70 房地產業 | D14: 33.2 | E14: 55.06 | F14: 28.64 | G14: 15.82 | H14: 13.74 | I14: 13.38 | J14: 30.96 | K14: 19.47
A15: 000016 深康佳Ａ | B15: C 製造業 | C15: 39 電子設備製造業 | D15: 52.44 | E15: 50.13 | F15: 48.24 | G15: 47.1 | H15: 40.29 | I15: 42.18 | J15: 37.69 | K15: 28.92
A16: 000017 深中華A | B16: C 製造業 | C16: 37 鐵路、船舶、航空航太 | D16: 18.66 | E16: 64.2 | F16: 85.18 | G16: 65.53 | H16: 82.37 | I16: 61.77 | J16: 71.28 | K16: 60.11
A17: 000018 神州長城 | B17: E 建築業 | C17: 50 建築裝飾和其他建築業 | D17: 185.46 | E17: 102.42 | F17: 18.12 | G17: 176.56 | H17: 29.71 | I17: 21.52 | J17: 37.88 | K17: 32.2
A18: 000019 深深寶Ａ | B18: C 製造業 | C18: 15 酒飲料和精製茶製造業 | D18: 246.32 | E18: 79.29 | F18: 184.83 | G18: 207.72 | H18: 170.3 | I18: 151.4 | J18: 315.13 | K18: 203.98
A19: 000020 深華發A | B19: C 製造業 | C19: 39 電子設備製造業 | D19: 70.07 | E19: 111.76 | F19: 42.01 | G19: 18.49 | H19: 242.18 | I19: 34.92 | J19: 50.51 | K19: 30.68
A20: 000021 深科技 | B20: C 製造業 | C20: 39 電子設備製造業 | D20: 28.32 | E20: 20.58 | F20: 21.49 | G20: 16.86 | H20: 26.39 | I20: 35.05 | J20: 24 | K20: 14.22
A21: 000022 深赤灣Ａ | B21: G 交通運輸、倉儲&郵政 | C21: 55 水上運輸業 | D21: 47.64 | E21: 49.65 | F21: 48.61 | G21: 26.97 | H21: 63.09 | I21: 55.84 | J21: 72.99 | K21: 79.54
A22: 000023 深天地Ａ | B22: C 製造業 | C22: 30 非金屬礦物製品業 | D22: 16.87 | E22: 12.17 | F22: 13.21 | G22: 9.96 | H22: 10.35 | I22: 8.94 | J22: 20.42 | K22: 21.25
A23: 000025 特力Ａ | B23: F 批發和零售業 | C23: 51 批發業 | D23: 19.62 | E23: 15.4 | F23: 21.72 | G23: 49.69 | H23: 37.81 | I23: 78.72 | J23: 71.72 | K23: 53.39
A24: 000026 飛亞達Ａ | B24: F 批發和零售業 | C24: 52 零售業 | D24: 7.94 | E24: 12.07 | F24: 8.19 | G24: 10.6 | H24: 44.49 | I24: 32.57 | J24: 28.83 | K24: 30.09
A25: 000027 深圳能源 | B25: D 電力、熱力、燃氣及水 | C25: 44 電力熱力生產和供應 | D25: 35.23 | E25: 35.71 | F25: 41.06 | G25: 47.69 | H25: 53.42 | I25: 42.36 | J25: 32.42 | K25: 28.14
A26: 000028 國藥一致 | B26: F 批發和零售業 | C26: 51 批發業 | D26: 21.65 | E26: 27.14 | F26: 19.16 | G26: 20.04 | H26: 25.59 | I26: 38.51 | J26: 38.36 | K26: 32.39
A27: 000029 深深房Ａ | B27: K 房地產業 | C27: 70 房地產業 | D27: 31.37 | E27: 28.28 | F27: 42.66 | G27: 58.43 | H27: 75.04 | I27: 83.92 | J27: 114.5 | K27: 116.1
A28: 000030 富奧股份 | B28: C 製造業 | C28: 36 汽車製造業 | D28: 55.03 | E28: 62.9 | F28: 72.24 | G28: 89.05 | H28: 86.41 | I28: 96.09 | J28: 86.81 | K28: 102.39
A29: 000031 中糧地產 | B29: K 房地產業 | C29: 70 房地產業 | D29: 23.74 | E29: 26.95 | F29: 30.56 | G29: 33.31 | H29: 34.18 | I29: 43.3 | J29: 42.45 | K29: 22.76
A30: 000032 深桑達Ａ | B30: F 批發和零售業 | C30: 51 批發業 | D30: 54.55 | E30: 76.16 | F30: 29.85 | G30: 73.52 | H30: 90.59 | I30: 87.04 | J30: 103.73 | K30: 92.15
A31: 000034 神州數碼 | B31: F 批發和零售業 | C31: 51 批發業 | D31: 22.7 | E31: 25.53 | F31: 11.48 | G31: 16.55 | H31: 43.83 | I31: 16.64 | J31: 11.03 | K31: 17.95
A32: 000035 中國天楹 | B32: N 水利、環境和公共設施 | C32: 77 生態保護和環境治理 | D32: 68.6 | E32: 71.77 | F32: 32.09 | G32: 17.21 | H32: 21.09 | I32: 11.14 | J32: 9.03 | K32: 6.19
A33: 000036 華聯控股 | B33: K 房地產業 | C33: 70 房地產業 | D33: 96.23 | E33: 108.81 | F33: 25.32 | G33: 115.67 | H33: 71.34 | I33: 67.22 | J33: 54.68 | K33: 62.64
A34: 000037 深南電A | B34: D 電力、熱力、燃氣及水 | C34: 44 電力熱力生產和供應 | D34: 15.13 | E34: 19.47 | F34: 16.46 | G34: 24.74 | H34: 31.22 | I34: 35.89 | J34: 72.29 | K34: 33.76
A35: 000038 深大通 | B35: L 租賃和商務服務業 | C35: 72 商務服務業 | D35: 4 | E35: 3.13 | F35: 6.72 | G35: 7.74 | H35: 17.89 | I35: 187.42 | J35: 190.04 | K35: 184.47
A36: 000039 中集集團 | B36: C 製造業 | C36: 33 金屬製品業 | D36: 18.47 | E36: 10.96 | F36: 11.43 | G36: 9.32 | H36: 10.37 | I36: 11.08 | J36: 17.33 | K36: 13.47
A37: 000040 東旭藍天 | B37: E 建築業 | C37: 48 土木工程建築業 | D37: 16.03 | E37: 14.86 | F37: 16.3 | G37: 7.86 | H37: 77.58 | I37: 524.46 | J37: 230.06 | K37: 82.72
A38: 000042 中洲控股 | B38: K 房地產業 | C38: 70 房地產業 | D38: 40.92 | E38: 29.72 | F38: 12.76 | G38: 9.18 | H38: 19.05 | I38: 21.89 | J38: 24.11 | K38: 39.35
A39: 000043 中航地產 | B39: K 房地產業 | C39: 70 房地產業 | D39: 14.79 | E39: 12 | F39: 7.07 | G39: 10.17 | H39: 12.06 | I39: 9.72 | J39: 19.61 | K39: 22.88
A40: 000045 深紡織Ａ | B40: C 製造業 | C40: 39 電子設備製造業 | D40: 397.76 | E40: 406 | F40: 234.65 | G40: 146.71 | H40: 135.97 | I40: 142.63 | J40: 198.61 | K40: 245.55
A41: 000046 泛海控股 | B41: K 房地產業 | C41: 70 房地產業 | D41: 46.1 | E41: 30.9 | F41: 48.9 | G41: 72.22 | H41: 77.17 | I41: 86.69 | J41: 78.5 | K41: 46.57
A42: 000048 康達爾 | B42: C 製造業 | C42: 13 農副食品加工業 | D42: 31.81 | E42: 41.87 | F42: 52.37 | G42: 69.9 | H42: 81.4 | I42: 30.32 | J42: 27.46 | K42: 32.78
A43: 000049 德賽電池 | B43: C 製造業 | C43: 38 電氣機械及器材製造業 | D43: 9.36 | E43: 56.18 | F43: 8.51 | G43: 14.32 | H43: 22.28 | I43: 20.77 | J43: 13.15 | K43: 11.45
A44: 000050 深天馬Ａ | B44: C 製造業 | C44: 39 電子設備製造業 | D44: 32.09 | E44: 21.47 | F44: 19.16 | G44: 65.3 | H44: 122.87 | I44: 127.45 | J44: 107.3 | K44: 50.84
A45: 000055 方大集團 | B45: C 製造業 | C45: 33 金屬製品業 | D45: 23.05 | E45: 18.35 | F45: 8.7 | G45: 9.98 | H45: 13.11 | I45: 12.99 | J45: 28.59 | K45: 28.42
A46: 000056 皇庭國際 | B46: K 房地產業 | C46: 70 房地產業 | D46: 0.22 | E46: 0.85 | F46: 0.91 | G46: 0.68 | H46: 24.53 | I46: 76.57 | J46: 141.72 | K46: 41.64
A47: 000058 深賽格 | B47: L 租賃和商務服務業 | C47: 72 商務服務業 | D47: 49.34 | E47: 68
A48: 000059 華錦股份 | B48: C 製造業 | C48: 25 石油加工煉焦及核燃料 | D48: 22.39 | E48: 20.26 | F48: 27.45 | G48: 27.41 | H48: 20.12 | I48: 19.02 | J48: 22.41 | K48: 27.59
A49: 000060 中金嶺南 | B49: C 製造業 | C49: 32 有色金屬冶煉和壓延 | D49: 20.36 | E49: 15.84 | F49: 17.09 | G49: 18.7 | H49: 23.59 | I49: 20.73 | J49: 23.19 | K49: 62.33
A50: 000061 農產品 | B50: L 租賃和商務服務業 | C50: 72 商務服務業 | D50: 31.16 | E50: 44.76 | F50: 18.29 | G50: 14.96 | H50: 16.37 | I50: 18.17 | J50: 19.03 | K50: 23.81
A51: 000062 深圳華強 | B51: F 批發和零售業 | C51: 51 批發業 | D51: 26.41 | E51: 51.45 | F51: 67.53 | G51: 86.76 | H51: 69.84 | I51: 42.8 | J51: 40.71 | K51: 47.39
A52: 000063 中興通訊 | B52: C 製造業 | C52: 39 電子設備製造業 | D52: 39.09 | E52: 29.02 | F52: 29.67 | G52: 32.84 | H52: 42.04 | I52: 42.98 | J52: 34.98 | K52: 32.68
A53: 000065 北方國際 | B53: E 建築業 | C53: 48 土木工程建築業 | D53: 61.19 | E53: 46.74 | F53: 52.97 | G53: 51.79 | H53: 59.95 | I53: 50.3 | J53: 50.11 | K53: 68.35
A54: 000066 中國長城 | B54: C 製造業 | C54: 39 電子設備製造業 | D54: 16.15 | E54: 18.25 | F54: 20.05 | G54: 20.18 | H54: 30.84 | I54: 30.72 | J54: 16.65 | K54: 52.64
A55: 000068 華控賽格 | B55: C 製造業 | C55: 39 電子設備製造業 | D55: 1.93 | E55: 50.77 | F55: 15.56 | G55: 845.33 | H55: 232.03 | I55: 269.7 | J55: 105.83 | K55: 106.43
A56: 000069 華僑城Ａ | B56: N 水利、環境和公共設施 | C56: 78 公共設施管理業 | D56: 21.68 | E56: 25.33 | F56: 34.45 | G56: 34.29 | H56: 34.65 | I56: 27.84 | J56: 21.56 | K56: 19.42
A57: 000070 特發信息 | B57: C 製造業 | C57: 38 電氣機械及器材製造業 | D57: 31.52 | E57: 27.56 | F57: 28.02 | G57: 16.98 | H57: 23.63 | I57: 16.86 | J57: 24.49 | K57: 20.1
A58: 000078 海王生物 | B58: F 批發和零售業 | C58: 52 零售業 | D58: 18.51 | E58: 13.85 | F58: 14.84 | G58: 15.26 | H58: 19.38 | I58: 31.82 | J58: 22.14 | K58: 18.48
A59: 000088 鹽田港 | B59: G 交通運輸、倉儲&郵政 | C59: 54 道路運輸業 | D59: 139.4 | E59: 176.19 | F59: 535.34 | G59: 81.2 | H59: 145.45 | I59: 196.73 | J59: 150.47 | K59: 109.69
A60: 000089 深圳機場 | B60: G 交通運輸、倉儲&郵政 | C60: 56 航空運輸業 | D60: 27.97 | E60: 24.72 | F60: 17.14 | G60: 19.2 | H60: 26.31 | I60: 16.64 | J60: 19.87 | K60: 15.57
A61: 000090 天健集團 | B61: E 建築業 | C61: 48 土木工程建築業 | D61: 35.38 | E61: 24.35 | F61: 34.11 | G61: 29.9 | H61: 48.24 | I61: 47.24 | J61: 39.18 | K61: 27.83
A62: 000096 廣聚能源 | B62: F 批發和零售業 | C62: 51 批發業 | D62: 572.72 | E62: 777.75 | F62: 831.62 | G62: 494.82 | H62: 747.5 | I62: 954.48 | J62: 1303.46 | K62: 1181.35
A63: 000099 中信海直 | B63: G 交通運輸、倉儲&郵政 | C63: 56 航空運輸業 | D63: 39.85 | E63: 42.55 | F63: 59.77 | G63: 14.67 | H63: 48.5 | I63: 14.23 | J63: 39.11 | K63: 72.72
A64: 000100 TCL集團 | B64: C 製造業 | C64: 39 電子設備製造業 | D64: 40.71 | E64: 45.2 | F64: 36.46 | G64: 36.53 | H64: 31.36 | I64: 36.5 | J64: 46.73 | K64: 41.7
A65: 000150 宜華健康 | B65: Q 衛生和社會工作 | C65: 83 衛生 | D65: 16.21 | E65: 0.42 | F65: 0.6 | G65: 2.62 | H65: 23.19 | I65: 24.33 | J65: 42.46 | K65: 24.62
A66: 000151 中成股份 | B66: F 批發和零售業 | C66: 51 批發業 | D66: 105.41 | E66: 100.16 | F66: 118.37 | G66: 104.6 | H66: 123.98 | I66: 132.96 | J66: 120.74 | K66: 100.19
A67: 000153 豐原藥業 | B67: C 製造業 | C67: 27 醫藥製造業 | D67: 50.43 | E67: 40.68 | F67: 23.68 | G67: 16.56 | H67: 20.46 | I67: 13.95 | J67: 15.7 | K67: 15.35
A68: 000155 *ST川化 | B68: C 製造業 | C68: 26 化學原料及化學製品 | D68: 21.68 | E68: 15.37 | F68: 9.43 | G68: 8.09 | H68: 2.32 | I68: 27.66 | J68: 2448.68 | K68: 748.69
A69: 000156 華數傳媒 | B69: R 文化、體育和娛樂業 | C69: 86 廣播電視電影影視 | D69: 35.59 | E69: 25.84 | F69: 39.22 | G69: 345.59 | H69: 114.87 | I69: 91.14 | J69: 96.05 | K69: 107.65
A70: 000157 中聯重科 | B70: C 製造業 | C70: 35 專用設備製造業 | D70: 53.05 | E70: 50.52 | F70: 64.52 | G70: 44.66 | H70: 42.04 | I70: 31.23 | J70: 33.1 | K70: 42.82
A71: 000158 常山北明 | B71: C 製造業 | C71: 17 紡織業 | D71: 13.65 | E71: 7.23 | F71: 7.6 | G71: 8.93 | H71: 20.91 | I71: 14.37 | J71: 35.59 | K71: 20.84
A72: 000159 國際實業 | B72: F 批發和零售業 | C72: 51 批發業 | D72: 116.86 | E72: 94.33 | F72: 147.08 | G72: 132.83 | H72: 127.2 | I72: 103.2 | J72: 100.45 | K72: 89.95
A73: 000166 申萬宏源 | B73: J 金融業 | C73: 67 資本市場服務
A74: 000301 東方市場 | B74: D 電力、熱力、燃氣及水 | C74: 44 電力熱力生產和供應 | D74: 102.5 | E74: 72.44 | F74: 106.77 | G74: 156.69 | H74: 83.47 | I74: 84.68 | J74: 49.47 | K74: 148.54
A75: 000333 美的集團 | B75: C 製造業 | C75: 38 電氣機械及器材製造業 | D75: 56.01 | E75: 65.47 | F75: 30.81 | G75: 35.83 | H75: 25.33 | I75: 27.2 | J75: 22.82 | K75: 23.24
A76: 000338 濰柴動力 | B76: C 製造業 | C76: 36 汽車製造業 | D76: 105.04 | E76: 72.76 | F76: 71.46 | G76: 69.26 | H76: 75 | I76: 74.21 | J76: 65.23 | K76: 63.6
A77: 000400 許繼電氣 | B77: C 製造業 | C77: 38 電氣機械及器材製造業 | D77: 28.09 | E77: 24.65 | F77: 21.72 | G77: 18.72 | H77: 19.46 | I77: 11.59 | J77: 32.6 | K77: 16.09
A78: 000401 冀東水泥 | B78: C 製造業 | C78: 30 非金屬礦物製品業 | D78: 33.02 | E78: 27.35 | F78: 22.87 | G78: 22.39 | H78: 17.81 | I78: 18.87 | J78: 19.16 | K78: 21.78
A79: 000402 金融街 | B79: K 房地產業 | C79: 70 房地產業 | D79: 35.83 | E79: 33.18 | F79: 24.27 | G79: 29.56 | H79: 26.48 | I79: 48.6 | J79: 42.28 | K79: 40.39
A80: 000403 ST生化 | B80: C 製造業 | C80: 27 醫藥製造業 | D80: 2.55 | E80: 3.52 | F80: 7.13 | G80: 10.49 | H80: 7.73 | I80: 5.22 | J80: 31.94 | K80: 18.82
A81: 000404 華意壓縮 | B81: C 製造業 | C81: 34 通用設備製造業 | D81: 64.99 | E81: 58.56 | F81: 59.27 | G81: 52.28 | H81: 44.24 | I81: 59.05 | J81: 61.86 | K81: 60.96
A82: 000407 勝利股份 | B82: D 電力、熱力、燃氣及水 | C82: 45 燃氣生產和供應業 | D82: 21.26 | E82: 22.08 | F82: 29.43 | G82: 28.44 | H82: 33.16 | I82: 26.38 | J82: 37.14 | K82: 30.66
A83: 000408 藏格控股 | B83: C 製造業 | C83: 26 化學原料及化學製品 | D83: 40.21 | E83: 43.45 | F83: 19.35 | G83: 28.37 | H83: 50.42 | J83: 215.23 | K83: 172.52
A84: 000409 山東地礦 | B84: S 綜合 | C84: 90 綜合 | D84: 51.21 | E84: 34.89 | F84: 16 | G84: 28.29 | H84: 17.68 | I84: 9.93 | J84: 3.9 | K84: 8.13
A85: 000410 *ST 瀋機 | B85: C 製造業 | C85: 34 通用設備製造業 | D85: 14.7 | E85: 12.87 | F85: 9.83 | G85: 16.07 | H85: 10.53 | I85: 10.73 | J85: 4.48 | K85: 4.55
A86: 000411 英特集團 | B86: F 批發和零售業 | C86: 51 批發業 | D86: 21.44 | E86: 24.06 | F86: 17.25 | G86: 19.35 | H86: 17.47 | I86: 13.66 | J86: 16.31 | K86: 18.16
A87: 000413 東旭光電 | B87: C 製造業 | C87: 39 電子設備製造業 | D87: 298.77 | E87: 126.71 | F87: 105.36 | G87: 110.78 | H87: 179.46 | I87: 185.35 | J87: 275.4 | K87: 212
A88: 000415 渤海金控 | B88: L 租賃和商務服務業 | C88: 71 租賃業 | D88: 12.05 | E88: 19.41 | F88: 11.89 | G88: 9.17 | H88: 76.69 | I88: 29.46 | J88: 20.66 | K88: 19.36
A89: 000416 民生控股 | B89: J 金融業 | C89: 69 其他金融業 | D89: 810.76 | E89: 697.04 | F89: 955.83 | G89: 244.26 | H89: 35.25 | I89: 29.93 | J89: 989.92 | K89: 797.11
A90: 000417 合肥百貨 | B90: F 批發和零售業 | C90: 52 零售業 | D90: 84.18 | E90: 80.71 | F90: 72.41 | G90: 71.45 | H90: 54.54 | I90: 49.95 | J90: 57.1 | K90: 48.84
A91: 000418 小天鵝Ａ | B91: C 製造業 | C91: 38 電氣機械及器材製造業 | D91: 86.11 | E91: 90.39 | F91: 75.39 | G91: 54.03 | H91: 60.23 | I91: 40.72 | J91: 45.94 | K91: 43.96
A92: 000419 通程控股 | B92: F 批發和零售業 | C92: 52 零售業 | D92: 41.66 | E92: 56.43 | F92: 45.26 | G92: 48.34 | H92: 46.2 | I92: 44.49 | J92: 46.77 | K92: 40.87
A93: 000420 吉林化纖 | B93: C 製造業 | C93: 28 化學纖維製造業 | D93: 17.16 | E93: 11.39 | F93: 26 | G93: 17.81 | H93: 3.71 | I93: 51.69 | J93: 39.33 | K93: 14.21
A94: 000421 南京公用 | B94: D 電力、熱力、燃氣及水 | C94: 45 燃氣生產和供應業 | D94: 36.28 | E94: 61 | F94: 21.58 | G94: 32.67 | H94: 25.53 | I94: 20.98 | J94: 18.77 | K94: 37.61
A95: 000422 湖北宜化 | B95: C 製造業 | C95: 26 化學原料及化學製品 | D95: 22.99 | E95: 25.84 | F95: 21.03 | G95: 24.11 | H95: 17.17 | I95: 17.7 | J95: 19.61 | K95: 12.75
A96: 000423 東阿阿膠 | B96: C 製造業 | C96: 27 醫藥製造業 | D96: 249.3 | E96: 412.51 | F96: 190.29 | G96: 142.27 | H96: 122.35 | I96: 135.01 | J96: 99.39 | K96: 74.9
A97: 000425 徐工機械 | B97: C 製造業 | C97: 35 專用設備製造業 | D97: 40.55 | E97: 35.83 | F97: 34.3 | G97: 26.11 | H97: 35.09 | I97: 31.51 | J97: 38.47 | K97: 33.52
A98: 000426 興業礦業 | B98: B 採礦業 | C98: 09 有色金屬礦採選業 | D98: 46.48 | E98: 52.01 | F98: 10.04 | G98: 4.35 | H98: 13.23 | I98: 47.17 | J98: 61.29 | K98: 9.22
A99: 000428 華天酒店 | B99: H 住宿和餐飲業 | C99: 61 住宿業 | D99: 5.26 | E99: 12.05 | F99: 6.78 | G99: 2.79 | H99: 17.37 | I99: 9.98 | J99: 10.35 | K99: 9.02
A100: 000429 粵高速Ａ | B100: G 交通運輸、倉儲&郵政 | C100: 54 道路運輸業 | D100: 64.09 | E100: 50.47 | F100: 49.92 | G100: 78.12 | H100: 62.74 | I100: 72.69 | J100: 168.42 | K100: 169.79
A101: 000430 張家界 | B101: N 水利、環境和公共設施 | C101: 78 公共設施管理業 | D101: 94.35 | E101: 46.01 | F101: 51.07 | G101: 64.26 | H101: 59.01 | I101: 16.04 | J101: 10.1 | K101: 16.28
A102: 000488 晨鳴紙業 | B102: C 製造業 | C102: 22 造紙及紙製品業 | D102: 18.65 | E102: 14.19 | F102: 14.32 | G102: 11.33 | H102: 12.1 | I102: 13.72 | J102: 7.64 | K102: 8.72
A103: 000498 山東路橋 | B103: E 建築業 | C103: 48 土木工程建築業 | D103: 11.12 | E103: 10.27 | F103: 12.07 | G103: 6.09 | H103: 10.21 | I103: 7.3 | J103: 22.51 | K103: 13.88
A104: 000501 鄂武商Ａ | B104: F 批發和零售業 | C104: 52 零售業 | D104: 22.77 | E104: 19.48 | F104: 18.96 | G104: 12.41 | H104: 17.14 | I104: 20.61 | J104: 22.29 | K104: 20.41
A105: 000502 綠景控股 | B105: K 房地產業 | C105: 70 房地產業 | D105: 31.26 | E105: 99.95 | F105: 104.15 | G105: 114.2 | H105: 59.32 | I105: 64.86 | J105: 92.05 | K105: 58.46
A106: 000503 海虹控股 | B106: I 信息傳輸&軟體 | C106: 64 互聯網和相關服務 | D106: 424.06 | E106: 590.52 | F106: 800.34 | G106: 1207.4 | H106: 936.6 | I106: 834.69 | J106: 1326.41 | K106: 1454.79
A107: 000504 南華生物 | B107: R 文化、體育和娛樂業 | C107: 85 新聞和出版業 | D107: 24.53 | E107: 2.25 | F107: 27.22 | G107: 16.66 | H107: 34.45 | I107: 23.04 | J107: 42.22 | K107: 48.31
A108: 000505 珠江控股 | B108: K 房地產業 | C108: 70 房地產業 | D108: 6.45 | E108: 6.65 | F108: 6.07 | G108: 11.14 | H108: 13.22 | I108: 7.73 | J108: 19.32 | K108: 16.01
A109: 000506 中潤資源 | B109: B 採礦業 | C109: 09 有色金屬礦採選業 | D109: 9.12 | E109: 3.23 | F109: 1.95 | G109: 8.14 | H109: 5.57 | I109: 4.59 | J109: 3.57 | K109: 4.31
A110: 000507 珠海港 | B110: G 交通運輸、倉儲&郵政 | C110: 55 水上運輸業 | D110: 102.97 | E110: 41.21 | F110: 26.07 | G110: 35.09 | H110: 36.58 | I110: 51.87 | J110: 36.65 | K110: 43.73
A111: 000509 華塑控股 | B111: C 製造業 | C111: 29 橡膠和塑膠製品業 | D111: 33.09 | E111: 28.38 | F111: 17.86 | G111: 7.74 | H111: 20.26 | I111: 1.92 | J111: 23.88 | K111: 18.16
A112: 000510 金路集團 | B112: C 製造業 | C112: 26 化學原料及化學製品 | D112: 25.79 | E112: 21.55 | F112: 25.35 | G112: 12.44 | H112: 40.3 | I112: 25.17 | J112: 28.16 | K112: 29.69
A113: 000511 *ST 烯碳 | B113: C 製造業 | C113: 30 非金屬礦物製品業 | D113: 7.85 | E113: 2.75 | F113: 7.44 | G113: 0.92 | H113: 3.38 | I113: 0.84 | J113: 23.15 | K113: 0.83
A114: 000513 麗珠集團 | B114: C 製造業 | C114: 27 醫藥製造業 | D114: 44.37 | E114: 38.66 | F114: 38.25 | G114: 35.55 | H114: 35.4 | I114: 40.33 | J114: 77.96 | K114: 45.01
A115: 000514 渝開發 | B115: K 房地產業 | C115: 70 房地產業 | D115: 25.34 | E115: 17.57 | F115: 33.83 | G115: 26.38 | H115: 24.28 | I115: 20.05 | J115: 61.33 | K115: 77.75
A116: 000516 國際醫學 | B116: F 批發和零售業 | C116: 52 零售業 | D116: 56.35 | E116: 52.82 | F116: 61.09 | G116: 135.17 | H116: 132.84 | I116: 141.22 | J116: 136.48 | K116: 138.36
A117: 000517 榮安地產 | B117: K 房地產業 | C117: 70 房地產業 | D117: 7.46 | E117: 17.74 | F117: 23.64 | G117: 21.71 | H117: 11.79 | I117: 22.99 | J117: 13.96 | K117: 45.89
A118: 000518 四環生物 | B118: C 製造業 | C118: 27 醫藥製造業 | D118: 172.68 | E118: 171.8 | F118: 44.41 | G118: 24.19 | H118: 19.08 | I118: 6.31 | J118: 19.46 | K118: 10.98
A119: 000519 中兵紅箭 | B119: C 製造業 | C119: 35 專用設備製造業 | D119: 129.18 | E119: 122.94 | F119: 91.53 | G119: 59.48 | H119: 48.23 | I119: 55.87 | J119: 114.07 | K119: 118.48
A120: 000520 長航鳳凰 | B120: G 交通運輸、倉儲&郵政 | C120: 55 水上運輸業 | D120: 2.02 | E120: 3.05 | F120: 42.56 | G120: 51.78 | H120: 65.33 | I120: 64.7 | J120: 91.88 | K120: 125.19
A121: 000521 美菱電器 | B121: C 製造業 | C121: 38 電氣機械及器材製造業 | D121: 82.55 | E121: 76.86 | F121: 76.89 | G121: 71.74 | H121: 68.51 | I121: 73.95 | J121: 79.76 | K121: 68.29
A122: 000523 廣州浪奇 | B122: C 製造業 | C122: 26 化學原料及化學製品 | D122: 16.41 | E122: 12.36 | F122: 4.92 | G122: 11.89 | H122: 5.8 | I122: 10.5 | J122: 16.95 | K122: 8.49
A123: 000524 嶺南控股 | B123: H 住宿和餐飲業 | C123: 61 住宿業 | D123: 160.04 | E123: 136.98 | F123: 107.01 | G123: 105.92 | H123: 288.91 | I123: 100.25 | J123: 116.54 | K123: 145.41
A124: 000525 紅太陽 | B124: C 製造業 | C124: 26 化學原料及化學製品 | D124: 12.03 | E124: 9.29 | F124: 9.98 | G124: 13.77 | H124: 9.43 | I124: 16.46 | J124: 9.7 | K124: 13.08
A125: 000526 *ST 紫學 | B125: P 教育 | C125: 82 教育 | D125: 108.44 | E125: 9.82 | F125: 6.17 | G125: 6.66 | H125: 12.05 | I125: 33.39 | J125: 25.75 | K125: 19.11
A126: 000528 柳工 | B126: C 製造業 | C126: 35 專用設備製造業 | D126: 64.04 | E126: 61.69 | F126: 58.87 | G126: 49.14 | H126: 61.8 | I126: 52.21 | J126: 54.29 | K126: 45.69
A127: 000529 廣弘控股 | B127: C 製造業 | C127: 13 農副食品加工業 | D127: 111.92 | E127: 114.63 | F127: 194.68 | G127: 154.6 | H127: 231.41 | I127: 111.26 | J127: 129.22 | K127: 132.75
A128: 000530 大冷股份 | B128: C 製造業 | C128: 34 通用設備製造業 | D128: 60.92 | E128: 56.15 | F128: 52.31 | G128: 40.24 | H128: 24.14 | I128: 70.81 | J128: 57.26 | K128: 34.65
A129: 000531 穗恒運Ａ | B129: D 電力、熱力、燃氣及水 | C129: 44 電力熱力生產和供應 | D129: 36.65 | E129: 51.8 | F129: 59.37 | G129: 45.72 | H129: 42.66 | I129: 45.97 | J129: 44.83 | K129: 46.08
A130: 000532 華金資本 | B130: S 綜合 | C130: 90 綜合 | D130: 101.98 | E130: 142.04 | F130: 150.63 | G130: 146.52 | H130: 39.2 | I130: 83.57 | J130: 22.44 | K130: 20.51
A131: 000533 萬家樂 | B131: C 製造業 | C131: 38 電氣機械及器材製造業 | D131: 51 | E131: 84.2 | F131: 52.53 | G131: 34.69 | H131: 30.28 | I131: 38.94 | J131: 33.16 | K131: 46.08
A132: 000534 萬澤股份 | B132: K 房地產業 | C132: 70 房地產業 | D132: 26.19 | E132: 15.41 | F132: 5.9 | G132: 2.71 | H132: 7.11 | I132: 59.96 | J132: 78.25 | K132: 79.17
A133: 000536 華映科技 | B133: C 製造業 | C133: 39 電子設備製造業 | D133: 35.7 | E133: 37.74 | F133: 50.76 | G133: 51.54 | H133: 47.36 | I133: 47.52 | J133: 112.86 | K133: 83.02
A134: 000537 廣宇發展 | B134: K 房地產業 | C134: 70 房地產業 | D134: 88.84 | E134: 92.02 | F134: 28.85 | G134: 33.05 | H134: 22.69 | I134: 34.14 | J134: 7.67 | K134: 13.41
A135: 000538 雲南白藥 | B135: C 製造業 | C135: 27 醫藥製造業 | D135: 129.76 | E135: 125.7 | F135: 155.01 | G135: 171.59 | H135: 198.68 | I135: 188.3 | J135: 116.06 | K135: 167.28
A136: 000539 粵電力Ａ | B136: D 電力、熱力、燃氣及水 | C136: 44 電力熱力生產和供應 | D136: 20.27 | E136: 24.37 | F136: 27.23 | G136: 38.83 | H136: 31.95 | I136: 33.58 | J136: 30 | K136: 27.17
A137: 000540 中天金融 | B137: K 房地產業 | C137: 70 房地產業 | D137: 10.15 | E137: 7.82 | F137: 11.62 | G137: 9.9 | H137: 23.69 | I137: 11.76 | J137: 58.06 | K137: 54.51
A138: 000541 佛山照明 | B138: C 製造業 | C138: 38 電氣機械及器材製造業 | D138: 244.15 | E138: 158.91 | F138: 223.84 | G138: 174.11 | H138: 192.82 | I138: 129.64 | J138: 175 | K138: 101.26
A139: 000543 皖能電力 | B139: D 電力、熱力、燃氣及水 | C139: 44 電力熱力生產和供應 | D139: 20.98 | E139: 18.15 | F139: 12.29 | G139: 23.76 | H139: 12.07 | I139: 22.15 | J139: 17.59 | K139: 16.91
A140: 000544 中原環保 | B140: D 電力、熱力、燃氣及水 | C140: 46 水的生產和供應業 | D140: 22.88 | E140: 22.42 | F140: 16.73 | G140: 18.93 | H140: 41.92 | I140: 47.83 | J140: 258.36 | K140: 369.62
A141: 000545 金浦鈦業 | B141: C 製造業 | C141: 26 化學原料及化學製品 | D141: 105.58 | E141: 67.37 | F141: 46.76 | G141: 21.6 | H141: 38.48 | I141: 27.51 | J141: 47.37 | K141: 36.76
A142: 000546 金圓股份 | B142: C 製造業 | C142: 30 非金屬礦物製品業 | D142: 8.3 | E142: 23.29 | F142: 3.97 | G142: 5.31 | H142: 7.47 | I142: 3.78 | J142: 18.42 | K142: 14.62
A143: 000547 航天發展 | B143: C 製造業 | C143: 39 電子設備製造業 | D143: 143.69 | E143: 200.14 | F143: 166.66 | G143: 162.61 | H143: 287.77 | I143: 287.37 | J143: 226.28 | K143: 98.11
A144: 000548 湖南投資 | B144: G 交通運輸、倉儲&郵政 | C144: 54 道路運輸業 | D144: 45.68 | E144: 37.29 | F144: 52.86 | G144: 54.14 | H144: 44.26 | I144: 78.69 | J144: 39.94 | K144: 115.34
A145: 000550 江鈴汽車 | B145: C 製造業 | C145: 36 汽車製造業 | D145: 105.72 | E145: 105.31 | F145: 113.7 | G145: 111.63 | H145: 107.64 | I145: 107.94 | J145: 102.58 | K145: 96.55
A146: 000551 創元科技 | B146: S 綜合 | C146: 90 綜合 | D146: 40.65 | E146: 34.29 | F146: 38.01 | G146: 31.72 | H146: 36.01 | I146: 34.3 | J146: 46.89 | K146: 41.73
A147: 000552 靖遠煤電 | B147: B 採礦業 | C147: 06 煤炭開採和洗選業 | D147: 53.6 | E147: 45.33 | F147: 34.56 | G147: 98.92 | H147: 76.2 | I147: 62.12 | J147: 88.53 | K147: 89.7
A148: 000553 沙隆達Ａ | B148: C 製造業 | C148: 26 化學原料及化學製品 | D148: 53.36 | E148: 53.99 | F148: 89.37 | G148: 68.38 | H148: 86.54 | I148: 89.54 | J148: 107.19 | K148: 110.75
A149: 000554 泰山石油 | B149: F 批發和零售業 | C149: 51 批發業 | D149: 43.41 | E149: 15.81 | F149: 26.52 | G149: 9.05 | H149: 14.4 | I149: 16.22 | J149: 11.05 | K149: 27.09
A150: 000555 神州信息 | B150: I 信息傳輸&軟體 | C150: 65 軟體和資訊技術服務業 | D150: 38.74 | E150: 39.44 | F150: 54.85 | G150: 41.82 | H150: 48.36 | I150: 20.87 | J150: 37.26 | K150: 17.88
A151: 000557 西部創業 | B151: G 交通運輸、倉儲&郵政 | C151: 53 鐵路運輸業 | D151: 166.68 | E151: 163.48 | F151: 160.93 | G151: 68.14 | H151: 59.37 | I151: 55.7 | J151: 57.49 | K151: 67.14
A152: 000558 萊茵體育 | B152: K 房地產業 | C152: 70 房地產業 | D152: 9.68 | E152: 3.44 | F152: 9.82 | G152: 6.76 | H152: 33.68 | I152: 18.35 | J152: 31.26 | K152: 34.46
A153: 000559 萬向錢潮 | B153: C 製造業 | C153: 36 汽車製造業 | D153: 44.86 | E153: 48.22 | F153: 65.91 | G153: 45.82 | H153: 73.36 | I153: 69.94 | J153: 50.18 | K153: 48.69
A154: 000560 昆百大Ａ | B154: F 批發和零售業 | C154: 52 零售業 | D154: 10.78 | E154: 16.64 | F154: 8.45 | G154: 52.1 | H154: 49.77 | I154: 17.37 | J154: 56.23 | K154: 74
A155: 000561 烽火電子 | B155: C 製造業 | C155: 39 電子設備製造業 | D155: 68.11 | E155: 36.02 | F155: 63.97 | G155: 33.28 | H155: 64.99 | I155: 62.31 | J155: 63.72 | K155: 41.47
A156: 000563 陝國投Ａ | B156: J 金融業 | C156: 69 其他金融業
A157: 000564 供銷大集 | B157: F 批發和零售業 | C157: 52 零售業 | D157: 67.51 | E157: 65.53 | F157: 54.68 | G157: 60.23 | H157: 29.09 | I157: 55.02 | J157: 72.89 | K157: 67.19
A158: 000565 渝三峽Ａ | B158: C 製造業 | C158: 26 化學原料及化學製品 | D158: 83.9 | E158: 72 | F158: 91.42 | G158: 94.34 | H158: 99.69 | I158: 34.49 | J158: 162.03 | K158: 72.87
A159: 000566 海南海藥 | B159: C 製造業 | C159: 27 醫藥製造業 | D159: 52.93 | E159: 18.6 | F159: 81.47 | G159: 35.19 | H159: 98.69 | I159: 60.66 | J159: 68.64 | K159: 94.57
A160: 000567 海德股份 | B160: K 房地產業 | C160: 70 房地產業 | D160: 180.06 | E160: 11.19 | F160: 3.99 | G160: 149.98 | H160: 1525.11 | I160: 276.41 | J160: 21.78 | K160: 64.06
A161: 000568 瀘州老窖 | B161: C 製造業 | C161: 15 酒飲料和精製茶製造業 | D161: 259.35 | E161: 209.47 | F161: 184.33 | G161: 182.85 | H161: 212.95 | I161: 234.04 | J161: 272.69 | K161: 274.52
A162: 000570 蘇常柴Ａ | B162: C 製造業 | C162: 34 通用設備製造業 | D162: 75.85 | E162: 64.28 | F162: 71.15 | G162: 63.59 | H162: 93.51 | I162: 79.05 | J162: 89.51 | K162: 64.09
A163: 000571 新大洲Ａ | B163: B 採礦業 | C163: 06 煤炭開採和洗選業 | D163: 42.57 | E163: 105.99 | F163: 39.35 | G163: 38.22 | H163: 29.02 | I163: 20.61 | J163: 18.96 | K163: 25.9
A164: 000572 海馬汽車 | B164: C 製造業 | C164: 36 汽車製造業 | D164: 103.84 | E164: 90.76 | F164: 81.82 | G164: 68.91 | H164: 69.73 | I164: 59.23 | J164: 50.28 | K164: 25.07
A165: 000573 粵宏遠Ａ | B165: K 房地產業 | C165: 70 房地產業 | D165: 8.92 | E165: 9.99 | F165: 16.66 | G165: 9.76 | H165: 10.31 | I165: 29.84 | J165: 50.76 | K165: 119.19
A166: 000576 廣東甘化 | B166: C 製造業 | C166: 22 造紙及紙製品業 | D166: 136.19 | E166: 78.2 | F166: 64.93 | G166: 33.97 | H166: 253.18 | I166: 101.7 | J166: 130.19 | K166: 473.34
A167: 000581 威孚高科 | B167: C 製造業 | C167: 36 汽車製造業 | D167: 187.84 | E167: 140.95 | F167: 107.66 | G167: 80.56 | H167: 140.64 | I167: 59.73 | J167: 161.14 | K167: 69.7
A168: 000582 北部灣港 | B168: G 交通運輸、倉儲&郵政 | C168: 55 水上運輸業 | D168: 39.11 | E168: 25.53 | F168: 17.3 | G168: 55.66 | H168: 52.25 | I168: 55.55 | J168: 58.03 | K168: 61.98
A169: 000584 哈工智能 | B169: C 製造業 | C169: 28 化學纖維製造業 | D169: 70.38 | E169: 53.77 | F169: 80.56 | G169: 88.36 | H169: 121.24 | I169: 99.9 | J169: 133.92 | K169: 55.61
A170: 000585 東北電氣 | B170: C 製造業 | C170: 38 電氣機械及器材製造業 | D170: 84.4 | E170: 66.38 | F170: 92.19 | G170: 46.43 | H170: 84.51 | I170: 58.68 | J170: 20.48 | K170: 34.99
A171: 000586 匯源通信 | B171: C 製造業 | C171: 39 電子設備製造業 | D171: 36.22 | E171: 19.06 | F171: 35.3 | G171: 17.8 | H171: 24.34 | I171: 17.56 | J171: 25.77 | K171: 18.99
A172: 000587 金洲慈航 | B172: C 製造業 | C172: 41 其他製造業 | D172: 5.33 | E172: 12.17 | F172: 15.1 | G172: 4.68 | H172: 13.17 | I172: 9.47 | J172: 11.18 | K172: 12.7
A173: 000589 黔輪胎Ａ | B173: C 製造業 | C173: 29 橡膠和塑膠製品業 | D173: 33.12 | E173: 54.74 | F173: 46.39 | G173: 49.66 | H173: 61.42 | I173: 52.27 | J173: 52.22 | K173: 38.18
A174: 000590 啟迪古漢 | B174: C 製造業 | C174: 27 醫藥製造業 | D174: 54.8 | E174: 57.79 | F174: 55.98 | G174: 61.44 | H174: 58.25 | I174: 65.16 | J174: 80.9 | K174: 257.94
A175: 000591 太陽能 | B175: D 電力、熱力、燃氣及水 | C175: 44 電力熱力生產和供應 | D175: 14.31 | E175: 13.59 | F175: 27.39 | G175: 13.92 | H175: 32.34 | I175: 38.27 | J175: 22.55 | K175: 17.57
A176: 000592 平潭發展 | B176: A 農、林、牧、漁業 | C176: 02 林業 | D176: 44.65 | E176: 46.21 | F176: 29.99 | G176: 30.06 | H176: 427.47 | I176: 143.16 | J176: 256.76 | K176: 69.69
A177: 000593 大通燃氣 | B177: D 電力、熱力、燃氣及水 | C177: 45 燃氣生產和供應業 | D177: 201.54 | E177: 227.1 | F177: 215.97 | G177: 101.61 | H177: 122.91 | I177: 91.71 | J177: 16.64 | K177: 44.42
A178: 000595 *ST 寶實 | B178: C 製造業 | C178: 34 通用設備製造業 | D178: 13.58 | E178: 8.04 | F178: 1.98 | G178: 40.4 | H178: 18.33 | I178: 5.19 | J178: 1.63 | K178: 15.12
A179: 000596 古井貢酒 | B179: C 製造業 | C179: 15 酒飲料和精製茶製造業 | D179: 116.28 | E179: 123.01 | F179: 54.37 | G179: 68.34 | H179: 69.22 | I179: 77.07 | J179: 40.34 | K179: 57.35
A180: 000597 東北製藥 | B180: C 製造業 | C180: 27 醫藥製造業 | D180: 35.92 | E180: 28.96 | F180: 42.99 | G180: 33.47 | H180: 37.88 | I180: 39.28 | J180: 37 | K180: 37.26
A181: 000598 興蓉環境 | B181: D 電力、熱力、燃氣及水 | C181: 46 水的生產和供應業 | D181: 79.66 | E181: 57.73 | F181: 87.08 | G181: 56.35 | H181: 77.02 | I181: 47.11 | J181: 42.38 | K181: 39.09
A182: 000599 青島雙星 | B182: C 製造業 | C182: 29 橡膠和塑膠製品業 | D182: 34.85 | E182: 26 | F182: 35.13 | G182: 33.86 | H182: 38.2 | I182: 31.59 | J182: 26.22 | K182: 16.32
A183: 000600 建投能源 | B183: D 電力、熱力、燃氣及水 | C183: 44 電力熱力生產和供應 | D183: 17.85 | E183: 17.41 | F183: 40.4 | G183: 27.64 | H183: 20.96 | I183: 16.58 | J183: 22.45 | K183: 23.46
A184: 000601 韶能股份 | B184: D 電力、熱力、燃氣及水 | C184: 44 電力熱力生產和供應 | D184: 23.48 | E184: 31.97 | F184: 23.4 | G184: 26.72 | H184: 21.04 | I184: 30.72 | J184: 20.35 | K184: 27.23
A185: 000603 盛達礦業 | B185: B 採礦業 | C185: 09 有色金屬礦採選業 | D185: 108.92 | E185: 163.6 | F185: 208.49 | G185: 175.28 | H185: 40 | I185: 47.74 | J185: 547.45 | K185: 169.26
A186: 000605 渤海股份 | B186: D 電力、熱力、燃氣及水 | C186: 46 水的生產和供應業 | D186: 20.89 | E186: 44.51 | F186: 34.56 | G186: 30.84 | H186: 34.77 | I186: 32.21 | J186: 21.85 | K186: 29.28
A187: 000606 神州易橋 | B187: C 製造業 | C187: 27 醫藥製造業 | D187: 79.65 | E187: 105.42 | F187: 76.87 | G187: 72.7 | H187: 64.07 | I187: 75.64 | J187: 476.28 | K187: 374.92
A188: 000607 華媒控股 | B188: R 文化、體育和娛樂業 | C188: 85 新聞和出版業 | D188: 39.45 | E188: 13.75 | F188: 74.47 | G188: 87.05 | H188: 130.89 | I188: 68.74 | J188: 80.75 | K188: 52.88
A189: 000608 陽光股份 | B189: K 房地產業 | C189: 70 房地產業 | D189: 34.82 | E189: 28.38 | F189: 16.38 | G189: 13.06 | H189: 21.87 | I189: 10.27 | J189: 33.06 | K189: 17.24
A190: 000609 綿石投資 | B190: S 綜合 | C190: 90 綜合 | D190: 164.48 | E190: 48.63 | F190: 35.85 | G190: 49.1 | H190: 72.99 | I190: 44.37 | J190: 9.88 | K190: 87.7
A191: 000610 西安旅遊 | B191: N 水利、環境和公共設施 | C191: 78 公共設施管理業 | D191: 94.39 | E191: 67.57 | F191: 55.33 | G191: 26.91 | H191: 35.51 | I191: 17.29 | J191: 8.03 | K191: 40.97
A192: 000611 天首發展 | B192: C 製造業 | C192: 17 紡織業 | D192: 14.33 | E192: 129.41 | F192: 15.73 | G192: 14.83 | H192: 1.34 | I192: 1.2 | J192: 22.57 | K192: 270.24
A193: 000612 焦作萬方 | B193: C 製造業 | C193: 32 有色金屬冶煉和壓延 | D193: 31.25 | E193: 22.61 | F193: 15.26 | G193: 23.53 | H193: 25.01 | I193: 119.66 | J193: 35.18 | K193: 18.54
A194: 000613 *ST 東海A | B194: H 住宿和餐飲業 | C194: 61 住宿業 | D194: 21.33 | E194: 22.34 | F194: 76.01 | G194: 80.82 | H194: 70.78 | I194: 44.19 | J194: 91.68 | K194: 54.01
A195: 000615 京漢股份 | B195: K 房地產業 | C195: 70 房地產業 | D195: 34.25 | F195: 25.62 | G195: 36 | H195: 23.7 | I195: 20.84 | J195: 20.74 | K195: 23.81
A196: 000616 海航投資 | B196: K 房地產業 | C196: 70 房地產業 | D196: 19.45 | E196: 57.88 | F196: 38.51 | G196: 18.78 | H196: 84.01 | I196: 134.09 | J196: 244.65 | K196: 558.97
A197: 000617 中油資本 | B197: J 金融業 | C197: 67 資本市場服務 | D197: 11.17 | E197: 5.63 | F197: 11.93 | G197: 2.53 | H197: 23.4 | I197: 5.82 | J197: 19.56 | K197: 12.73
A198: 000619 海螺型材 | B198: C 製造業 | C198: 29 橡膠和塑膠製品業 | D198: 157.17 | E198: 172.88 | F198: 331.09 | G198: 213.24 | H198: 368.71 | I198: 231.87 | J198: 69.91 | K198: 55.74
A199: 000620 新華聯 | B199: K 房地產業 | C199: 70 房地產業 | D199: 30.73 | E199: 22.1 | F199: 22.06 | G199: 21.48 | H199: 28.62 | I199: 22.06 | J199: 35.32 | K199: 23.02
A200: 000622 恒立實業 | B200: C 製造業 | C200: 35 專用設備製造業 | D200: 142.31 | E200: 119.56 | F200: 170.89 | G200: 91.61 | H200: 71.2 | I200: 149.59 | J200: 102.76 | K200: 178.09
... 3357 more rows

Sheet Interest Expense-to-Debts
B1: CSRC分類-門類 | C1: CSRC分類-大類 | D1: 借款息% | E1: 借款息% | F1: 借款息% | G1: 借款息% | H1: 借款息% | I1: 借款息% | J1: 借款息% | K1: 借款息%
A2: 公司 | D2: 2013-12-31 | E2: 2014-06-30 | F2: 2014-12-31 | G2: 2015-06-30 | H2: 2015-12-31 | I2: 2016-06-30 | J2: 2016-12-30 | K2: 2017-06-30
A3: 000001 平安銀行 | B3: J 金融業 | C3: 66 貨幣金融服務
A4: 000002 萬科Ａ | B4: K 房地產業 | C4: 70 房地產業 | D4: 1.45 | E4: 1.42 | F4: 1.76 | G4: 2.39 | H4: 2.53 | I4: 2.37 | J4: 2.22 | K4: 2.39
A5: 000004 國農科技 | B5: C 製造業 | C5: 27 醫藥製造業 | D5: 0 | E5: 0 | F5: 0 | G5: 0 | H5: 0.67 | I5: 15.2 | J5: 17.13 | K5: 0
A6: 000005 世紀星源 | B6: N 水利、環境和公共設施 | C6: 77 生態保護和環境治理 | D6: 7.55 | E6: 5.52 | F6: 18.76 | G6: 7.41 | H6: 8.74 | I6: 6.01 | J6: 10.04 | K6: 6.07
A7: 000006 深振業Ａ | B7: K 房地產業 | C7: 70 房地產業 | D7: 2.73 | E7: 3.1 | F7: 4.07 | G7: 5.81 | H7: 5.51 | I7: 3.87 | J7: 3.51 | K7: 3.2
A8: 000007 全新好 | B8: K 房地產業 | C8: 70 房地產業 | D8: 8.88 | E8: 10.55 | F8: 15.95 | G8: 29.01 | H8: 5.83 | I8: 0 | J8: 0 | K8: 0
A9: 000008 神州高鐵 | B9: C 製造業 | C9: 37 鐵路、船舶、航空航太 | D9: 0 | E9: 0 | F9: 0 | G9: 19.47 | H9: 8.52 | I9: 4.67 | J9: 2.72 | K9: 3.57
A10: 000009 中國寶安 | B10: S 綜合 | C10: 90 綜合 | D10: 4.81 | E10: 4.61 | F10: 4.39 | G10: 4.48 | H10: 4.52 | I10: 5.08 | J10: 4.75 | K10: 3.75
A11: 000010 美麗生態 | B11: E 建築業 | C11: 48 土木工程建築業 | D11: 8.19 | E11: 0.05 | F11: 0.1 | G11: 3.88 | H11: 3.46 | I11: 7.16 | J11: 5.4 | K11: 5.21
A12: 000011 深物業A | B12: K 房地產業 | C12: 70 房地產業 | D12: 0 | E12: 0.21 | F12: 0.12 | G12: 0 | H12: 0 | I12: 0 | J12: 0 | K12: 0
A13: 000012 南玻Ａ | B13: C 製造業 | C13: 30 非金屬礦物製品業 | D13: 6.01 | E13: 5.59 | F13: 5.88 | G13: 5.52 | H13: 5.68 | I13: 4.35 | J13: 4.51 | K13: 5.42
A14: 000014 沙河股份 | B14: K 房地產業 | C14: 70 房地產業 | D14: 2.55 | E14: 6.72 | F14: 1.43 | G14: 0.69 | H14: 0.71 | I14: 0.53 | J14: 0.63 | K14: 0.98
A15: 000016 深康佳Ａ | B15: C 製造業 | C15: 39 電子設備製造業 | D15: 2.62 | E15: 2.61 | F15: 2.53 | G15: 2.67 | H15: 3.03 | I15: 4.83 | J15: 3.47 | K15: 3.79
A16: 000017 深中華A | B16: C 製造業 | C16: 37 鐵路、船舶、航空航太 | D16: 0 | E16: 0 | F16: 0 | G16: 0 | H16: 0 | I16: 0 | J16: 0 | K16: 0
A17: 000018 神州長城 | B17: E 建築業 | C17: 50 建築裝飾和其他建築業 | D17: 3.15 | E17: 0 | F17: 12.09 | G17: 0 | H17: 18.63 | I17: 10.53 | J17: 9.39 | K17: 5.64
A18: 000019 深深寶Ａ | B18: C 製造業 | C18: 15 酒飲料和精製茶製造業 | D18: 41.65 | E18: 3.13 | F18: 13.74 | G18: 0.92 | H18: 0.46 | I18: 0 | J18: 41.44 | K18: 0
A19: 000020 深華發A | B19: C 製造業 | C19: 39 電子設備製造業 | D19: 6.57 | E19: 4.22 | F19: 7.79 | G19: 7.97 | H19: 7.61 | I19: 2.63 | J19: 2.16 | K19: 4.48
A20: 000021 深科技 | B20: C 製造業 | C20: 39 電子設備製造業 | D20: 1.99 | E20: 1.41 | F20: 1.36 | G20: 2.01 | H20: 1.3 | I20: 1.83 | J20: 1.83 | K20: 2.85
A21: 000022 深赤灣Ａ | B21: G 交通運輸、倉儲&郵政 | C21: 55 水上運輸業 | D21: 4.14 | E21: 4.52 | F21: 5.22 | G21: 5.7 | H21: 5.07 | I21: 5.25 | J21: 4.14 | K21: 4.13
A22: 000023 深天地Ａ | B22: C 製造業 | C22: 30 非金屬礦物製品業 | D22: 5.55 | E22: 6.26 | F22: 6.98 | G22: 6.55 | H22: 6.84 | I22: 5.83 | J22: 5.62 | K22: 5.63
A23: 000025 特力Ａ | B23: F 批發和零售業 | C23: 51 批發業 | D23: 5.88 | E23: 5.96 | F23: 7.83 | G23: 8.83 | H23: 5.35 | I23: 0 | J23: 14.02 | K23: 5.93
A24: 000026 飛亞達Ａ | B24: F 批發和零售業 | C24: 52 零售業 | D24: 5.62 | E24: 6.02 | F24: 6.17 | G24: 5.73 | H24: 5.72 | I24: 4.4 | J24: 4.59 | K24: 4.08
A25: 000027 深圳能源 | B25: D 電力、熱力、燃氣及水 | C25: 44 電力熱力生產和供應 | D25: 5.16 | E25: 5.43 | F25: 5.47 | G25: 4.62 | H25: 3.72 | I25: 3.59 | J25: 3.72 | K25: 5.04
A26: 000028 國藥一致 | B26: F 批發和零售業 | C26: 51 批發業 | D26: 7.39 | E26: 8.46 | F26: 7.5 | G26: 8.17 | H26: 10.06 | I26: 6.61 | J26: 8.31 | K26: 7.48
A27: 000029 深深房Ａ | B27: K 房地產業 | C27: 70 房地產業 | D27: 0.21 | E27: 2.51 | F27: 3.42 | G27: 5.51 | H27: 4.54 | I27: 3.73 | J27: 0.25 | K27: 2.92
A28: 000030 富奧股份 | B28: C 製造業 | C28: 36 汽車製造業 | D28: 3.03 | E28: 2.75 | F28: 4.87 | G28: 3.83 | H28: 2.93 | I28: 2.6 | J28: 2.44 | K28: 3.22
A29: 000031 中糧地產 | B29: K 房地產業 | C29: 70 房地產業 | D29: 2.64 | E29: 2.29 | F29: 2.11 | G29: 2.5 | H29: 2.29 | I29: 2.25 | J29: 2.62 | K29: 2.95
A30: 000032 深桑達Ａ | B30: F 批發和零售業 | C30: 51 批發業 | D30: 4.69 | E30: 3.99 | F30: 8.92 | G30: 1.65 | H30: 9.97 | I30: 7.19 | J30: 6.7 | K30: 6.54
A31: 000034 神州數碼 | B31: F 批發和零售業 | C31: 51 批發業 | D31: 9 | E31: 13.66 | F31: 8.47 | G31: 12.08 | H31: 8.01 | I31: 4.98 | J31: 7.32 | K31: 5.58
A32: 000035 中國天楹 | B32: N 水利、環境和公共設施 | C32: 77 生態保護和環境治理 | D32: 6.58 | E32: 6.62 | F32: 6.68 | G32: 6.66 | H32: 7.41 | I32: 6.66 | J32: 5.36 | K32: 5.66
A33: 000036 華聯控股 | B33: K 房地產業 | C33: 70 房地產業 | D33: 3.61 | E33: 5.05 | F33: 2.27 | G33: 1.68 | H33: 1.23 | I33: 0.75 | J33: 1.02 | K33: 3.81
A34: 000037 深南電A | B34: D 電力、熱力、燃氣及水 | C34: 44 電力熱力生產和供應 | D34: 7.22 | E34: 6.5 | F34: 8.08 | G34: 8.37 | H34: 8.05 | I34: 6.42 | J34: 7.89 | K34: 6.9
A35: 000038 深大通 | B35: L 租賃和商務服務業 | C35: 72 商務服務業 | D35: 5.34 | E35: 0 | F35: 0 | G35: 0 | H35: 0 | I35: 0 | J35: 0.07 | K35: 0
A36: 000039 中集集團 | B36: C 製造業 | C36: 33 金屬製品業 | D36: 3.14 | E36: 3.05 | F36: 4.11 | G36: 2.73 | H36: 2 | I36: 2.25 | J36: 2.69 | K36: 2.6
A37: 000040 東旭藍天 | B37: E 建築業 | C37: 48 土木工程建築業 | D37: 1.89 | E37: 2.25 | F37: 3.5 | G37: 4.78 | H37: 2.71 | I37: 1.54 | J37: 5.83 | K37: 5.21
A38: 000042 中洲控股 | B38: K 房地產業 | C38: 70 房地產業 | D38: 3 | E38: 2.69 | F38: 3.1 | G38: 3.16 | H38: 4.45 | I38: 2.98 | J38: 5.39 | K38: 3.37
A39: 000043 中航地產 | B39: K 房地產業 | C39: 70 房地產業 | D39: 4.79 | E39: 3.54 | F39: 3.95 | G39: 2.93 | H39: 3.6 | I39: 3.57 | J39: 4.88 | K39: 4.53
A40: 000045 深紡織Ａ | B40: C 製造業 | C40: 39 電子設備製造業 | D40: 4.51 | E40: 4.87 | F40: 4.52 | G40: 3.89 | H40: 3.12 | I40: 2.91 | J40: 2.53 | K40: 3.58
A41: 000046 泛海控股 | B41: K 房地產業 | C41: 70 房地產業 | D41: 0.36 | E41: 0.37 | F41: 1 | G41: 1.65 | H41: 2.3 | I41: 3.16 | J41: 2.69 | K41: 1.95
A42: 000048 康達爾 | B42: C 製造業 | C42: 13 農副食品加工業 | D42: 5.59 | E42: 4.3 | F42: 4.91 | G42: 5.11 | H42: 6.06 | I42: 4.44 | J42: 4.56 | K42: 1.08
A43: 000049 德賽電池 | B43: C 製造業 | C43: 38 電氣機械及器材製造業 | D43: 3.27 | E43: 0 | F43: 3.3 | G43: 0 | H43: 2.76 | I43: 5.78 | J43: 6.92 | K43: 14.67
A44: 000050 深天馬Ａ | B44: C 製造業 | C44: 39 電子設備製造業 | D44: 7.96 | E44: 4.93 | F44: 7.51 | G44: 4.27 | H44: 4.57 | I44: 3.36 | J44: 3.7 | K44: 3.89
A45: 000055 方大集團 | B45: C 製造業 | C45: 33 金屬製品業 | D45: 6.54 | E45: 4.35 | F45: 4.23 | G45: 3.91 | H45: 4.08 | I45: 2.93 | J45: 2.48 | K45: 4.05
A46: 000056 皇庭國際 | B46: K 房地產業 | C46: 70 房地產業 | D46: 5.11 | E46: 10.12 | F46: 12.35 | G46: 9.38 | H46: 10.14 | I46: 5.89 | J46: 7.61 | K46: 5.56
A47: 000058 深賽格 | B47: L 租賃和商務服務業 | C47: 72 商務服務業 | D47: 0.13 | E47: 0.79
A48: 000059 華錦股份 | B48: C 製造業 | C48: 25 石油加工煉焦及核燃料 | D48: 4.73 | E48: 4.69 | F48: 5.17 | G48: 4.07 | H48: 3.92 | I48: 4.37 | J48: 4.12 | K48: 3.98
A49: 000060 中金嶺南 | B49: C 製造業 | C49: 32 有色金屬冶煉和壓延 | D49: 4.57 | E49: 4.53 | F49: 4.92 | G49: 4.35 | H49: 3.7 | I49: 3.54 | J49: 3.65 | K49: 3.94
A50: 000061 農產品 | B50: L 租賃和商務服務業 | C50: 72 商務服務業 | D50: 5.82 | E50: 4.8 | F50: 7.01 | G50: 6.59 | H50: 5.27 | I50: 4.8 | J50: 4.74 | K50: 4.61
A51: 000062 深圳華強 | B51: F 批發和零售業 | C51: 51 批發業 | D51: 7.03 | E51: 6.04 | F51: 6.21 | G51: 5.82 | H51: 4.44 | I51: 3.8 | J51: 3.39 | K51: 3.14
A52: 000063 中興通訊 | B52: C 製造業 | C52: 39 電子設備製造業 | D52: 4.48 | E52: 5.08 | F52: 4.59 | G52: 4.93 | H52: 4.74 | I52: 5.24 | J52: 4.9 | K52: 4.04
A53: 000065 北方國際 | B53: E 建築業 | C53: 48 土木工程建築業 | D53: 4.97 | E53: 2.53 | F53: 1.46 | G53: 0.3 | H53: 1.94 | I53: 0 | J53: 1.31 | K53: 1.34
A54: 000066 中國長城 | B54: C 製造業 | C54: 39 電子設備製造業 | D54: 16.1 | E54: 11.03 | F54: 11.43 | G54: 8.37 | H54: 9.26 | I54: 6.3 | J54: 9.25 | K54: 4.94
A55: 000068 華控賽格 | B55: C 製造業 | C55: 39 電子設備製造業 | D55: 0 | E55: 13.16 | F55: 0 | G55: 0 | H55: 363.2 | I55: 16 | J55: 1.14 | K55: 6.5
A56: 000069 華僑城Ａ | B56: N 水利、環境和公共設施 | C56: 78 公共設施管理業 | D56: 3.12 | E56: 2.57 | F56: 3.25 | G56: 2.2 | H56: 2.74 | I56: 2.1 | J56: 2.51 | K56: 2.69
A57: 000070 特發信息 | B57: C 製造業 | C57: 38 電氣機械及器材製造業 | D57: 6.85 | E57: 5.9 | F57: 5.83 | G57: 5.81 | H57: 4.62 | I57: 7.36 | J57: 8.48 | K57: 7.3
A58: 000078 海王生物 | B58: F 批發和零售業 | C58: 52 零售業 | D58: 6.34 | E58: 7.47 | F58: 8.79 | G58: 8.24 | H58: 9.13 | I58: 13.17 | J58: 7.92 | K58: 5.99
A59: 000088 鹽田港 | B59: G 交通運輸、倉儲&郵政 | C59: 54 道路運輸業 | D59: 3.65 | E59: 8.02 | F59: 3.78 | G59: 5.63 | H59: 5.53 | I59: 4.18 | J59: 4.71 | K59: 4.23
A60: 000089 深圳機場 | B60: G 交通運輸、倉儲&郵政 | C60: 56 航空運輸業 | D60: 6.76 | E60: 5.42 | F60: 5.93 | G60: 6.19 | H60: 4.32 | I60: 0 | J60: 0 | K60: 0
A61: 000090 天健集團 | B61: E 建築業 | C61: 48 土木工程建築業 | D61: 0.95 | E61: 2.24 | F61: 2.46 | G61: 2.21 | H61: 2.86 | I61: 3.74 | J61: 2.79 | K61: 2.69
A62: 000096 廣聚能源 | B62: F 批發和零售業 | C62: 51 批發業 | D62: 0 | E62: 0 | F62: 0 | G62: 0 | H62: 0 | I62: 0 | J62: 0 | K62: 0
A63: 000099 中信海直 | B63: G 交通運輸、倉儲&郵政 | C63: 56 航空運輸業 | D63: 2.58 | E63: 3.44 | F63: 3.4 | G63: 2.86 | H63: 3.95 | I63: 2.25 | J63: 4.86 | K63: 4.37
A64: 000100 TCL集團 | B64: C 製造業 | C64: 39 電子設備製造業 | D64: 3.6 | E64: 4.03 | F64: 4.22 | G64: 3.9 | H64: 4.44 | I64: 3.3 | J64: 3.61 | K64: 3.01
A65: 000150 宜華健康 | B65: Q 衛生和社會工作 | C65: 83 衛生 | D65: 0.21 | E65: 1.3 | F65: 2.33 | G65: 4.4 | H65: 5.06 | I65: 5.88 | J65: 6.35 | K65: 5.03
A66: 000151 中成股份 | B66: F 批發和零售業 | C66: 51 批發業 | D66: 0 | E66: 0 | F66: 0 | G66: 0 | H66: 0 | I66: 0 | J66: 0 | K66: 0
A67: 000153 豐原藥業 | B67: C 製造業 | C67: 27 醫藥製造業 | D67: 5.16 | E67: 7.66 | F67: 6.26 | G67: 6.15 | H67: 5.93 | I67: 5.33 | J67: 5.03 | K67: 5.16
A68: 000155 *ST川化 | B68: C 製造業 | C68: 26 化學原料及化學製品 | D68: 7.02 | E68: 7.64 | F68: 9.91 | G68: 10.21 | H68: 18.37 | I68: 4.18 | J68: 4.12 | K68: 0
A69: 000156 華數傳媒 | B69: R 文化、體育和娛樂業 | C69: 86 廣播電視電影影視 | D69: 6.44 | E69: 7.35 | F69: 4.35 | G69: 6.46 | H69: 3.23 | I69: 0 | J69: 0 | K69: 0
A70: 000157 中聯重科 | B70: C 製造業 | C70: 35 專用設備製造業 | D70: 4.42 | E70: 4.73 | F70: 4.62 | G70: 4.87 | H70: 5.03 | I70: 4.69 | J70: 4.75 | K70: 4.83
A71: 000158 常山北明 | B71: C 製造業 | C71: 17 紡織業 | D71: 5.9 | E71: 5.57 | F71: 6.42 | G71: 5.02 | H71: 5.25 | I71: 4.68 | J71: 5.34 | K71: 5.64
A72: 000159 國際實業 | B72: F 批發和零售業 | C72: 51 批發業 | D72: 6.41 | E72: 5.83 | F72: 6.23 | G72: 6.42 | H72: 5.94 | I72: 4.28 | J72: 5.09 | K72: 5.5
A73: 000166 申萬宏源 | B73: J 金融業 | C73: 67 資本市場服務
A74: 000301 東方市場 | B74: D 電力、熱力、燃氣及水 | C74: 44 電力熱力生產和供應 | D74: 5.59 | E74: 7.21 | F74: 6.58 | G74: 3.66 | H74: 0 | I74: 5.15 | J74: 0 | K74: 7.77
A75: 000333 美的集團 | B75: C 製造業 | C75: 38 電氣機械及器材製造業 | D75: 5.33 | E75: 0.88 | F75: 2.1 | G75: 1.53 | H75: 4.32 | I75: 4.2 | J75: 5.21 | K75: 3.64
A76: 000338 濰柴動力 | B76: C 製造業 | C76: 36 汽車製造業 | D76: 3.97 | E76: 2.34 | F76: 4.16 | G76: 4.37 | H76: 4.37 | I76: 4.99 | J76: 3.28 | K76: 2.64
A77: 000400 許繼電氣 | B77: C 製造業 | C77: 38 電氣機械及器材製造業 | D77: 5.93 | E77: 6.55 | F77: 6.01 | G77: 7.02 | H77: 7.02 | I77: 7.02 | J77: 6.54 | K77: 7.02
A78: 000401 冀東水泥 | B78: C 製造業 | C78: 30 非金屬礦物製品業 | D78: 6.32 | E78: 5.85 | F78: 6.29 | G78: 5.78 | H78: 5.91 | I78: 5.13 | J78: 5.16 | K78: 4.8
A79: 000402 金融街 | B79: K 房地產業 | C79: 70 房地產業 | D79: 1.29 | E79: 1.46 | F79: 2.28 | G79: 2.47 | H79: 2.12 | I79: 1.55 | J79: 1.87 | K79: 2.34
A80: 000403 ST生化 | B80: C 製造業 | C80: 27 醫藥製造業 | D80: 21.19 | E80: 9.18 | F80: 11.6 | G80: 11.89 | H80: 10.99 | I80: 13.39 | J80: 11.57 | K80: 11.87
A81: 000404 華意壓縮 | B81: C 製造業 | C81: 34 通用設備製造業 | D81: 4.76 | E81: 3.74 | F81: 6.08 | G81: 4.32 | H81: 4.16 | I81: 2.88 | J81: 4.3 | K81: 3.83
A82: 000407 勝利股份 | B82: D 電力、熱力、燃氣及水 | C82: 45 燃氣生產和供應業 | D82: 11.57 | E82: 10.16 | F82: 9.18 | G82: 6.6 | H82: 7.29 | I82: 6.68 | J82: 5.17 | K82: 5.3
A83: 000408 藏格控股 | B83: C 製造業 | C83: 26 化學原料及化學製品 | D83: 0.63 | E83: 1.93 | F83: 12.06 | G83: 23.2 | H83: 13.54 | J83: 7.04 | K83: 7.51
A84: 000409 山東地礦 | B84: S 綜合 | C84: 90 綜合 | D84: 2.57 | E84: 2.76 | F84: 8.27 | G84: 5.5 | H84: 6.85 | I84: 6.35 | J84: 8.34 | K84: 5.26
A85: 000410 *ST 瀋機 | B85: C 製造業 | C85: 34 通用設備製造業 | D85: 6.3 | E85: 6.8 | F85: 6.94 | G85: 5.78 | H85: 6.73 | I85: 5.21 | J85: 5.57 | K85: 5.34
A86: 000411 英特集團 | B86: F 批發和零售業 | C86: 51 批發業 | D86: 12.34 | E86: 10.56 | F86: 13.5 | G86: 9.73 | H86: 11.61 | I86: 8.95 | J86: 9.28 | K86: 6.8
A87: 000413 東旭光電 | B87: C 製造業 | C87: 39 電子設備製造業 | D87: 5.27 | E87: 1.84 | F87: 5.1 | G87: 6.03 | H87: 6.81 | I87: 4.6 | J87: 4.55 | K87: 5.53
A88: 000415 渤海金控 | B88: L 租賃和商務服務業 | C88: 71 租賃業 | D88: 2.75 | E88: 2.45 | F88: 2.05 | G88: 2.91 | H88: 2.41 | I88: 3.17 | J88: 3.19 | K88: 3.52
A89: 000416 民生控股 | B89: J 金融業 | C89: 69 其他金融業 | D89: 0 | E89: 0 | F89: 0 | G89: 7696.97 | H89: 5.23 | I89: 6.88 | J89: 9 | K89: 0
A90: 000417 合肥百貨 | B90: F 批發和零售業 | C90: 52 零售業 | D90: 10.39 | E90: 8.34 | F90: 15.54 | G90: 10.27 | H90: 17.5 | I90: 11.52 | J90: 8.23 | K90: 6.95
A91: 000418 小天鵝Ａ | B91: C 製造業 | C91: 38 電氣機械及器材製造業 | D91: 0 | E91: 19.4 | F91: 0 | G91: 99.86 | H91: 0 | I91: 0 | J91: 14.98 | K91: 6.67
A92: 000419 通程控股 | B92: F 批發和零售業 | C92: 52 零售業 | D92: 6.25 | E92: 6.51 | F92: 5.92 | G92: 8.2 | H92: 5.45 | I92: 4.29 | J92: 5.13 | K92: 2.47
A93: 000420 吉林化纖 | B93: C 製造業 | C93: 28 化學纖維製造業 | D93: 9.08 | E93: 7.27 | F93: 8.64 | G93: 8.15 | H93: 6.45 | I93: 4.98 | J93: 5.58 | K93: 5.69
A94: 000421 南京公用 | B94: D 電力、熱力、燃氣及水 | C94: 45 燃氣生產和供應業 | D94: 5 | E94: 9.53 | F94: 13.91 | G94: 7.8 | H94: 6.04 | I94: 4.11 | J94: 2.85 | K94: 2.66
A95: 000422 湖北宜化 | B95: C 製造業 | C95: 26 化學原料及化學製品 | D95: 6.84 | E95: 7.07 | F95: 7.35 | G95: 7.5 | H95: 6.28 | I95: 5.09 | J95: 5.15 | K95: 4.31
A96: 000423 東阿阿膠 | B96: C 製造業 | C96: 27 醫藥製造業 | D96: 0 | E96: 0 | F96: 0 | G96: 0 | H96: 6.91 | I96: 0.97 | J96: 12.73 | K96: 0
A97: 000425 徐工機械 | B97: C 製造業 | C97: 35 專用設備製造業 | D97: 5.5 | E97: 6.29 | F97: 6.21 | G97: 5.16 | H97: 5.73 | I97: 4.96 | J97: 4.17 | K97: 3.11
A98: 000426 興業礦業 | B98: B 採礦業 | C98: 09 有色金屬礦採選業 | D98: 7.13 | E98: 5.9 | F98: 6 | G98: 7.2 | H98: 2.78 | I98: 3.66 | J98: 6.6 | K98: 7.09
A99: 000428 華天酒店 | B99: H 住宿和餐飲業 | C99: 61 住宿業 | D99: 5.11 | E99: 5.87 | F99: 5.78 | G99: 7.11 | H99: 6.23 | I99: 8.19 | J99: 8.78 | K99: 6.35
A100: 000429 粵高速Ａ | B100: G 交通運輸、倉儲&郵政 | C100: 54 道路運輸業 | D100: 6.44 | E100: 6.3 | F100: 6.59 | G100: 6.42 | H100: 8.03 | I100: 6.58 | J100: 5.75 | K100: 4.7
A101: 000430 張家界 | B101: N 水利、環境和公共設施 | C101: 78 公共設施管理業 | D101: 8.6 | E101: 7.15 | F101: 7.25 | G101: 6.78 | H101: 7.1 | I101: 3.62 | J101: 5.45 | K101: 4.33
A102: 000488 晨鳴紙業 | B102: C 製造業 | C102: 22 造紙及紙製品業 | D102: 5.34 | E102: 5.34 | F102: 5.24 | G102: 4.94 | H102: 4.51 | I102: 3.68 | J102: 4.25 | K102: 2.42
A103: 000498 山東路橋 | B103: E 建築業 | C103: 48 土木工程建築業 | D103: 6.32 | E103: 5.87 | F103: 5.86 | G103: 5.07 | H103: 5.74 | I103: 3.68 | J103: 4.8 | K103: 3.97
A104: 000501 鄂武商Ａ | B104: F 批發和零售業 | C104: 52 零售業 | D104: 5.19 | E104: 5.07 | F104: 3.73 | G104: 2.85 | H104: 2.71 | I104: 1.85 | J104: 1.61 | K104: 1.13
A105: 000502 綠景控股 | B105: K 房地產業 | C105: 70 房地產業 | D105: 4.44 | E105: 0.72 | F105: 0.48 | G105: 0 | H105: 0 | I105: 0 | J105: 0 | K105: 0
A106: 000503 海虹控股 | B106: I 信息傳輸&軟體 | C106: 64 互聯網和相關服務 | D106: 6.56 | E106: 6.98 | F106: 8.95 | G106: 13.48 | H106: 5.08 | I106: 10.59 | J106: 5.45 | K106: 5.3
A107: 000504 南華生物 | B107: R 文化、體育和娛樂業 | C107: 85 新聞和出版業 | D107: 5.42 | E107: 3.05 | F107: 2.84 | G107: 0 | H107: 4.12 | I107: 6.1 | J107: 3.52 | K107: 5.05
A108: 000505 珠江控股 | B108: K 房地產業 | C108: 70 房地產業 | D108: 10.42 | E108: 9.97 | F108: 14.38 | G108: 15.54 | H108: 16.23 | I108: 15.34 | J108: 16.45 | K108: 19.5
A109: 000506 中潤資源 | B109: B 採礦業 | C109: 09 有色金屬礦採選業 | D109: 3.88 | E109: 10.7 | F109: 9.72 | G109: 5.25 | H109: 7.33 | I109: 7.35 | J109: 15.77 | K109: 12.74
A110: 000507 珠海港 | B110: G 交通運輸、倉儲&郵政 | C110: 55 水上運輸業 | D110: 6.88 | E110: 6.13 | F110: 6.92 | G110: 7.12 | H110: 7.13 | I110: 5.07 | J110: 5.37 | K110: 4.98
A111: 000509 華塑控股 | B111: C 製造業 | C111: 29 橡膠和塑膠製品業 | D111: 41.98 | E111: 38.59 | F111: 69.5 | G111: 129.35 | H111: 307.43 | I111: 0 | J111: 0 | K111: 0
A112: 000510 金路集團 | B112: C 製造業 | C112: 26 化學原料及化學製品 | D112: 7.48 | E112: 8.53 | F112: 10.17 | G112: 9.59 | H112: 10.39 | I112: 7.75 | J112: 10.73 | K112: 16.37
A113: 000511 *ST 烯碳 | B113: C 製造業 | C113: 30 非金屬礦物製品業 | D113: 0.23 | E113: 0.01 | F113: 7.84 | G113: 12.18 | H113: 13.06 | I113: 11.39 | J113: 17.19 | K113: 16.83
A114: 000513 麗珠集團 | B114: C 製造業 | C114: 27 醫藥製造業 | D114: 5.13 | E114: 4.95 | F114: 6.31 | G114: 5.28 | H114: 5.99 | I114: 3.9 | J114: 5.64 | K114: 3.9
A115: 000514 渝開發 | B115: K 房地產業 | C115: 70 房地產業 | D115: 3.55 | E115: 4.87 | F115: 5.14 | G115: 5.29 | H115: 6.34 | I115: 5.84 | J115: 5.68 | K115: 4.25
A116: 000516 國際醫學 | B116: F 批發和零售業 | C116: 52 零售業 | D116: 5.71 | E116: 5.39 | F116: 5.2 | G116: 5.51 | H116: 5.3 | I116: 4.13 | J116: 4.56 | K116: 4.34
A117: 000517 榮安地產 | B117: K 房地產業 | C117: 70 房地產業 | D117: 0.63 | E117: 4.16 | F117: 2.88 | G117: 2.01 | H117: 4.04 | I117: 5.8 | J117: 5.12 | K117: 4.43
A118: 000518 四環生物 | B118: C 製造業 | C118: 27 醫藥製造業 | D118: 23.62 | E118: 2.2 | F118: 26.78 | G118: 29.62 | H118: 31.88 | I118: 20.15 | J118: 30.31 | K118: 7.89
A119: 000519 中兵紅箭 | B119: C 製造業 | C119: 35 專用設備製造業 | D119: 5.97 | E119: 4.4 | F119: 3.99 | G119: 5.62 | H119: 2.26 | I119: 3.67 | J119: 3.12 | K119: 4.63
A120: 000520 長航鳳凰 | B120: G 交通運輸、倉儲&郵政 | C120: 55 水上運輸業 | D120: 6.35 | E120: 1.03 | F120: 0.73 | G120: 0 | H120: 0 | I120: 0 | J120: 0 | K120: 0
A121: 000521 美菱電器 | B121: C 製造業 | C121: 38 電氣機械及器材製造業 | D121: 0 | E121: 0 | F121: 0 | G121: 4.46 | H121: 6.57 | I121: 0.3 | J121: 3.65 | K121: 3.91
A122: 000523 廣州浪奇 | B122: C 製造業 | C122: 26 化學原料及化學製品 | D122: 10.03 | E122: 8.2 | F122: 7.92 | G122: 6.98 | H122: 6.86 | I122: 6.25 | J122: 4.17 | K122: 3.91
A123: 000524 嶺南控股 | B123: H 住宿和餐飲業 | C123: 61 住宿業 | D123: 0 | E123: 0 | F123: 0 | G123: 0 | H123: 0 | I123: 0 | J123: 0 | K123: 8.81
A124: 000525 紅太陽 | B124: C 製造業 | C124: 26 化學原料及化學製品 | D124: 6.16 | E124: 7 | F124: 7.63 | G124: 9.29 | H124: 6.06 | I124: 6.24 | J124: 4.8 | K124: 4.4
A125: 000526 *ST 紫學 | B125: P 教育 | C125: 82 教育 | D125: 0 | E125: 0 | F125: 0 | G125: 0 | H125: 0.27 | I125: 2.16 | J125: 5.76 | K125: 4.31
A126: 000528 柳工 | B126: C 製造業 | C126: 35 專用設備製造業 | D126: 3.35 | E126: 3.83 | F126: 3.98 | G126: 4.37 | H126: 3.95 | I126: 3.13 | J126: 3.18 | K126: 2.66
A127: 000529 廣弘控股 | B127: C 製造業 | C127: 13 農副食品加工業 | D127: 4.25 | E127: 6.1 | F127: 7.75 | G127: 4.87 | H127: 3.66 | I127: 15 | J127: 4.1 | K127: 0
A128: 000530 大冷股份 | B128: C 製造業 | C128: 34 通用設備製造業 | D128: 10.41 | E128: 7.12 | F128: 8.34 | G128: 9.07 | H128: 8.42 | I128: 3.61 | J128: 4.39 | K128: 2.33
A129: 000531 穗恒運Ａ | B129: D 電力、熱力、燃氣及水 | C129: 44 電力熱力生產和供應 | D129: 6.46 | E129: 5.67 | F129: 6.22 | G129: 7.11 | H129: 5.34 | I129: 5.21 | J129: 4.81 | K129: 4.21
A130: 000532 華金資本 | B130: S 綜合 | C130: 90 綜合 | D130: 4.77 | E130: 2.74 | F130: 7.19 | G130: 2.49 | H130: 3.36 | I130: 4.09 | J130: 4.02 | K130: 4.3
A131: 000533 萬家樂 | B131: C 製造業 | C131: 38 電氣機械及器材製造業 | D131: 6.37 | E131: 6.16 | F131: 5.94 | G131: 7.5 | H131: 7.95 | I131: 7.03 | J131: 7.7 | K131: 7.8
A132: 000534 萬澤股份 | B132: K 房地產業 | C132: 70 房地產業 | D132: 4.68 | E132: 1.53 | F132: 7.51 | G132: 4.54 | H132: 5.69 | I132: 9.6 | J132: 8.78 | K132: 6.36
A133: 000536 華映科技 | B133: C 製造業 | C133: 39 電子設備製造業 | D133: 5.88 | E133: 6.41 | F133: 6.82 | G133: 5.86 | H133: 5.55 | I133: 5.52 | J133: 4.92 | K133: 3.65
A134: 000537 廣宇發展 | B134: K 房地產業 | C134: 70 房地產業 | D134: 0 | E134: 0 | F134: 0 | G134: 0 | H134: 0.05 | I134: 0 | J134: 0 | K134: 0.24
A135: 000538 雲南白藥 | B135: C 製造業 | C135: 27 醫藥製造業 | D135: 127.99 | E135: 46.86 | F135: 9.76 | G135: 9.14 | H135: 8.54 | I135: 6.26 | J135: 9.14 | K135: 5.94
A136: 000539 粵電力Ａ | B136: D 電力、熱力、燃氣及水 | C136: 44 電力熱力生產和供應 | D136: 5.58 | E136: 5.79 | F136: 5.46 | G136: 5.6 | H136: 5.1 | I136: 4.44 | J136: 4.4 | K136: 4.62
A137: 000540 中天金融 | B137: K 房地產業 | C137: 70 房地產業 | D137: 1.55 | E137: 0.8 | F137: 0.79 | G137: 0.81 | H137: 1.02 | I137: 2.37 | J137: 4.02 | K137: 5.12
A138: 000541 佛山照明 | B138: C 製造業 | C138: 38 電氣機械及器材製造業 | D138: 0 | E138: 0 | F138: 0 | G138: 0 | H138: 0 | I138: 0 | J138: 0 | K138: 0
A139: 000543 皖能電力 | B139: D 電力、熱力、燃氣及水 | C139: 44 電力熱力生產和供應 | D139: 5.76 | E139: 5.53 | F139: 5.83 | G139: 5.87 | H139: 5.43 | I139: 4.52 | J139: 4.78 | K139: 4.58
A140: 000544 中原環保 | B140: D 電力、熱力、燃氣及水 | C140: 46 水的生產和供應業 | D140: 7.48 | E140: 6.38 | F140: 7.43 | G140: 6.67 | H140: 7.66 | I140: 5.32 | J140: 6.52 | K140: 4.92
A141: 000545 金浦鈦業 | B141: C 製造業 | C141: 26 化學原料及化學製品 | D141: 5.71 | E141: 3.92 | F141: 9.91 | G141: 7.79 | H141: 8.5 | I141: 3.72 | J141: 4.35 | K141: 5.26
A142: 000546 金圓股份 | B142: C 製造業 | C142: 30 非金屬礦物製品業 | D142: 16.01 | E142: 0.18 | F142: 9.19 | G142: 6.99 | H142: 7.79 | I142: 7.62 | J142: 6.97 | K142: 6.1
A143: 000547 航天發展 | B143: C 製造業 | C143: 39 電子設備製造業 | D143: 7.32 | E143: 6.84 | F143: 0 | G143: 16.35 | H143: 6.6 | I143: 6.63 | J143: 6.46 | K143: 0
A144: 000548 湖南投資 | B144: G 交通運輸、倉儲&郵政 | C144: 54 道路運輸業 | D144: 6.23 | E144: 5.99 | F144: 8.3 | G144: 5.13 | H144: 4.92 | I144: 6.34 | J144: 3.4 | K144: 4.4
A145: 000550 江鈴汽車 | B145: C 製造業 | C145: 36 汽車製造業 | D145: 79.69 | E145: 7.58 | F145: 5.27 | G145: 2924.61 | H145: 0 | I145: 9.61 | J145: 0 | K145: 0
A146: 000551 創元科技 | B146: S 綜合 | C146: 90 綜合 | D146: 7.1 | E146: 6.37 | F146: 6.86 | G146: 6.31 | H146: 6.07 | I146: 4.8 | J146: 4.3 | K146: 4.49
A147: 000552 靖遠煤電 | B147: B 採礦業 | C147: 06 煤炭開採和洗選業 | D147: 6.35 | E147: 6.61 | F147: 6.26 | G147: 4.9 | H147: 7.06 | I147: 5.5 | J147: 5.85 | K147: 1.73
A148: 000553 沙隆達Ａ | B148: C 製造業 | C148: 26 化學原料及化學製品 | D148: 7.4 | E148: 7.42 | F148: 6.67 | G148: 5.31 | H148: 6.86 | I148: 4.6 | J148: 4.85 | K148: 5.68
A149: 000554 泰山石油 | B149: F 批發和零售業 | C149: 51 批發業 | D149: 0 | E149: 0 | F149: 4.08 | G149: 4.49 | H149: 4.1 | I149: 3.32 | J149: 3.07 | K149: 4.04
A150: 000555 神州信息 | B150: I 信息傳輸&軟體 | C150: 65 軟體和資訊技術服務業 | D150: 2.28 | E150: 2.53 | F150: 2.92 | G150: 1.61 | H150: 2.25 | I150: 5.13 | J150: 4.34 | K150: 4.64
A151: 000557 西部創業 | B151: G 交通運輸、倉儲&郵政 | C151: 53 鐵路運輸業 | D151: 0 | E151: 0 | F151: 0 | G151: 0 | H151: 7.15 | I151: 5 | J151: 4.25 | K151: 4.58
A152: 000558 萊茵體育 | B152: K 房地產業 | C152: 70 房地產業 | D152: 2.68 | E152: 1.8 | F152: 1.53 | G152: 2.04 | H152: 2.95 | I152: 8.67 | J152: 6.49 | K152: 5.74
A153: 000559 萬向錢潮 | B153: C 製造業 | C153: 36 汽車製造業 | D153: 9.8 | E153: 6.76 | F153: 10.78 | G153: 12.27 | H153: 7.19 | I153: 5.35 | J153: 5.83 | K153: 6.3
A154: 000560 昆百大Ａ | B154: F 批發和零售業 | C154: 52 零售業 | D154: 6.91 | E154: 6.87 | F154: 7.46 | G154: 9.65 | H154: 6.77 | I154: 3.8 | J154: 5.91 | K154: 6.39
A155: 000561 烽火電子 | B155: C 製造業 | C155: 39 電子設備製造業 | D155: 5.24 | E155: 3.37 | F155: 6.87 | G155: 5.82 | H155: 5.99 | I155: 1.2 | J155: 3.1 | K155: 4.09
A156: 000563 陝國投Ａ | B156: J 金融業 | C156: 69 其他金融業
A157: 000564 供銷大集 | B157: F 批發和零售業 | C157: 52 零售業 | D157: 7.93 | E157: 7.34 | F157: 9.42 | G157: 6.65 | H157: 9.01 | I157: 3.43 | J157: 4.69 | K157: 4.38
A158: 000565 渝三峽Ａ | B158: C 製造業 | C158: 26 化學原料及化學製品 | D158: 5.85 | E158: 5.53 | F158: 6.18 | G158: 6.15 | H158: 5.54 | I158: 4.41 | J158: 7.51 | K158: 5.01
A159: 000566 海南海藥 | B159: C 製造業 | C159: 27 醫藥製造業 | D159: 6.72 | E159: 7.28 | F159: 7.18 | G159: 7.55 | H159: 7.09 | I159: 6.85 | J159: 5.67 | K159: 4.87
A160: 000567 海德股份 | B160: K 房地產業 | C160: 70 房地產業 | D160: 0 | E160: 0.74 | F160: 9.58 | G160: 0 | H160: 0 | I160: 0 | J160: 32.86 | K160: 23.51
A161: 000568 瀘州老窖 | B161: C 製造業 | C161: 15 酒飲料和精製茶製造業 | D161: 0 | E161: 0 | F161: 0 | G161: 0 | H161: 0 | I161: 0 | J161: 0 | K161: 0
A162: 000570 蘇常柴Ａ | B162: C 製造業 | C162: 34 通用設備製造業 | D162: 9.55 | E162: 10.06 | F162: 8.74 | G162: 15.05 | H162: 6.39 | I162: 28.41 | J162: 9.04 | K162: 29.9
A163: 000571 新大洲Ａ | B163: B 採礦業 | C163: 06 煤炭開採和洗選業 | D163: 4.09 | E163: 5.1 | F163: 4.84 | G163: 4.5 | H163: 5.62 | I163: 4.77 | J163: 4.91 | K163: 4.86
A164: 000572 海馬汽車 | B164: C 製造業 | C164: 36 汽車製造業 | D164: 0 | E164: 10.19 | F164: 0 | G164: 149.61 | H164: 295.48 | I164: 1.6 | J164: 2.07 | K164: 1.43
A165: 000573 粵宏遠Ａ | B165: K 房地產業 | C165: 70 房地產業 | D165: 3.83 | E165: 4.12 | F165: 5.29 | G165: 5.18 | H165: 5.64 | I165: 4.02 | J165: 5.14 | K165: 1.9
A166: 000576 廣東甘化 | B166: C 製造業 | C166: 22 造紙及紙製品業 | D166: 2.32 | E166: 6.04 | F166: 6.44 | G166: 7.34 | H166: 5.83 | I166: 8.71 | J166: 4.97 | K166: 8.11
A167: 000581 威孚高科 | B167: C 製造業 | C167: 36 汽車製造業 | D167: 7.52 | E167: 6.31 | F167: 5.66 | G167: 4.15 | H167: 4.29 | I167: 4.04 | J167: 3.99 | K167: 4.32
A168: 000582 北部灣港 | B168: G 交通運輸、倉儲&郵政 | C168: 55 水上運輸業 | D168: 6.13 | E168: 6.17 | F168: 6.35 | G168: 5.73 | H168: 6.56 | I168: 5.4 | J168: 4.84 | K168: 4.75
A169: 000584 哈工智能 | B169: C 製造業 | C169: 28 化學纖維製造業 | D169: 0 | E169: 3.79 | F169: 4.68 | G169: 5.11 | H169: 4.87 | I169: 5.19 | J169: 4.4 | K169: 2.45
A170: 000585 東北電氣 | B170: C 製造業 | C170: 38 電氣機械及器材製造業 | D170: 7.61 | E170: 7.62 | F170: 7.82 | G170: 7.56 | H170: 7.37 | I170: 6 | J170: 4.5 | K170: 7.49
A171: 000586 匯源通信 | B171: C 製造業 | C171: 39 電子設備製造業 | D171: 6.24 | E171: 6.52 | F171: 7.93 | G171: 6.08 | H171: 5.63 | I171: 7.19 | J171: 6.03 | K171: 5.06
A172: 000587 金洲慈航 | B172: C 製造業 | C172: 41 其他製造業 | D172: 7.41 | E172: 8.79 | F172: 11.36 | G172: 18.53 | H172: 1.63 | I172: 1.12 | J172: 1.46 | K172: 1.28
A173: 000589 黔輪胎Ａ | B173: C 製造業 | C173: 29 橡膠和塑膠製品業 | D173: 5.7 | E173: 5.65 | F173: 5.72 | G173: 5.8 | H173: 5.27 | I173: 4.43 | J173: 4.59 | K173: 4.5
A174: 000590 啟迪古漢 | B174: C 製造業 | C174: 27 醫藥製造業 | D174: 6.21 | E174: 3.47 | F174: 7.89 | G174: 6.07 | H174: 5.87 | I174: 4.94 | J174: 3.91 | K174: 2.78
A175: 000591 太陽能 | B175: D 電力、熱力、燃氣及水 | C175: 44 電力熱力生產和供應 | D175: 10.37 | E175: 8.06 | F175: 9.09 | G175: 1.27 | H175: 5.42 | I175: 5.22 | J175: 5.01 | K175: 4.84
A176: 000592 平潭發展 | B176: A 農、林、牧、漁業 | C176: 02 林業 | D176: 6.04 | E176: 6.11 | F176: 6.32 | G176: 6.79 | H176: 14.85 | I176: 3.43 | J176: 1.84 | K176: 4.16
A177: 000593 大通燃氣 | B177: D 電力、熱力、燃氣及水 | C177: 45 燃氣生產和供應業 | D177: 7.32 | E177: 6.54 | F177: 3.13 | G177: 6.57 | H177: 2.07 | I177: 2.9 | J177: 4.77 | K177: 4.73
A178: 000595 *ST 寶實 | B178: C 製造業 | C178: 34 通用設備製造業 | D178: 6.8 | E178: 8.24 | F178: 16.24 | G178: 31.91 | H178: 18.51 | I178: 6.41 | J178: 6.33 | K178: 3.99
A179: 000596 古井貢酒 | B179: C 製造業 | C179: 15 酒飲料和精製茶製造業 | D179: 0 | E179: 0 | F179: 0 | G179: 0 | H179: 0 | I179: 0 | J179: 0 | K179: 0
A180: 000597 東北製藥 | B180: C 製造業 | C180: 27 醫藥製造業 | D180: 5.1 | E180: 5.23 | F180: 6.29 | G180: 5.1 | H180: 5.59 | I180: 4.73 | J180: 4.45 | K180: 4.05
A181: 000598 興蓉環境 | B181: D 電力、熱力、燃氣及水 | C181: 46 水的生產和供應業 | D181: 7.15 | E181: 6.27 | F181: 5.7 | G181: 6.81 | H181: 5.25 | I181: 4.79 | J181: 4.18 | K181: 4.36
A182: 000599 青島雙星 | B182: C 製造業 | C182: 29 橡膠和塑膠製品業 | D182: 5.05 | E182: 4.93 | F182: 5.55 | G182: 4.96 | H182: 5.48 | I182: 4.2 | J182: 4.66 | K182: 4.11
A183: 000600 建投能源 | B183: D 電力、熱力、燃氣及水 | C183: 44 電力熱力生產和供應 | D183: 6.99 | E183: 6.26 | F183: 6.14 | G183: 5.87 | H183: 5.67 | I183: 4.22 | J183: 4.61 | K183: 4.24
A184: 000601 韶能股份 | B184: D 電力、熱力、燃氣及水 | C184: 44 電力熱力生產和供應 | D184: 5.78 | E184: 6.2 | F184: 6.17 | G184: 5.35 | H184: 5.42 | I184: 4.78 | J184: 4.72 | K184: 4.77
A185: 000603 盛達礦業 | B185: B 採礦業 | C185: 09 有色金屬礦採選業 | D185: 7.83 | E185: 30.98 | F185: 34.7 | G185: 1.15 | H185: 3.01 | I185: 6.57 | J185: 10.95 | K185: 0
A186: 000605 渤海股份 | B186: D 電力、熱力、燃氣及水 | C186: 46 水的生產和供應業 | D186: 9.22 | E186: 5.39 | F186: 6.3 | G186: 5.7 | H186: 5.08 | I186: 5.04 | J186: 4.62 | K186: 6.79
A187: 000606 神州易橋 | B187: C 製造業 | C187: 27 醫藥製造業 | D187: 8.19 | E187: 7.77 | F187: 7.91 | G187: 10 | H187: 9.24 | I187: 11.44 | J187: 7.96 | K187: 2.36
A188: 000607 華媒控股 | B188: R 文化、體育和娛樂業 | C188: 85 新聞和出版業 | D188: 1.85 | E188: 10.91 | F188: 0 | G188: 23.38 | H188: 20.45 | I188: 9 | J188: 3.1 | K188: 6.68
A189: 000608 陽光股份 | B189: K 房地產業 | C189: 70 房地產業 | D189: 0 | E189: 1.98 | F189: 4.4 | G189: 6.43 | H189: 7.05 | I189: 7.29 | J189: 7.21 | K189: 7.25
A190: 000609 綿石投資 | B190: S 綜合 | C190: 90 綜合 | D190: 0 | E190: 0 | F190: 0.29 | G190: 0 | H190: 0 | I190: 0 | J190: 0 | K190: 0
A191: 000610 西安旅遊 | B191: N 水利、環境和公共設施 | C191: 78 公共設施管理業 | D191: 4.26 | E191: 1.55 | F191: 0.37 | G191: 1.97 | H191: 4.62 | I191: 4.99 | J191: 5.57 | K191: 4.91
A192: 000611 天首發展 | B192: C 製造業 | C192: 17 紡織業 | D192: 0 | E192: 0 | F192: 0 | G192: 14.12 | H192: 0 | I192: 0 | J192: 0 | K192: 0
A193: 000612 焦作萬方 | B193: C 製造業 | C193: 32 有色金屬冶煉和壓延 | D193: 5.64 | E193: 5.87 | F193: 5.76 | G193: 6.74 | H193: 6.04 | I193: 4.77 | J193: 4.18 | K193: 4.39
A194: 000613 *ST 東海A | B194: H 住宿和餐飲業 | C194: 61 住宿業 | D194: 0 | E194: 0 | F194: 0 | G194: 0 | H194: 0 | I194: 0 | J194: 0 | K194: 0
A195: 000615 京漢股份 | B195: K 房地產業 | C195: 70 房地產業 | D195: 10.23 | E195: 0 | F195: 4.44 | G195: 2 | H195: 1.46 | I195: 1.11 | J195: 2.52 | K195: 7.37
A196: 000616 海航投資 | B196: K 房地產業 | C196: 70 房地產業 | D196: 2.23 | E196: 3.45 | F196: 3.34 | G196: 4.24 | H196: 2.34 | I196: 4.74 | J196: 4.21 | K196: 4.58
A197: 000617 中油資本 | B197: J 金融業 | C197: 67 資本市場服務 | D197: 4.47 | E197: 5.67 | F197: 6.3 | G197: 5.98 | H197: 0 | I197: 4.73 | J197: 0.02 | K197: 0.01
A198: 000619 海螺型材 | B198: C 製造業 | C198: 29 橡膠和塑膠製品業 | D198: 5.14 | E198: 5.61 | F198: 5.29 | G198: 5.56 | H198: 5.17 | I198: 5.13 | J198: 5.13 | K198: 4.8
A199: 000620 新華聯 | B199: K 房地產業 | C199: 70 房地產業 | D199: 0.75 | E199: 0.59 | F199: 1.74 | G199: 1.45 | H199: 2.82 | I199: 1.24 | J199: 1.89 | K199: 4.04
A200: 000622 恒立實業 | B200: C 製造業 | C200: 35 專用設備製造業 | D200: 16.41 | E200: 0 | F200: 0 | G200: 0 | H200: 0 | I200: 0 | J200: 6.65 | K200: 0
... 3357 more rows

Sheet Shareholder Pledge Ratio
B1: CSRC分類-門類 | C1: CSRC分類-大類 | D1: 股東設質比% | E1: 股東設質比% | F1: 股東設質比% | G1: 股東設質比% | H1: 股東設質比% | I1: 股東設質比% | J1: 股東設質比% | K1: 股東設質比%
A2: 公司 | D2: 2013-12-31 | E2: 2014-06-30 | F2: 2014-12-31 | G2: 2015-06-30 | H2: 2015-12-31 | I2: 2016-06-30 | J2: 2016-12-30 | K2: 2017-06-30
A3: 000001 平安銀行 | B3: J 金融業 | C3: 66 貨幣金融服務
A4: 000002 萬科Ａ | B4: K 房地產業 | C4: 70 房地產業 | D4: 0 | E4: 0 | F4: 0 | G4: 0 | H4: 0 | I4: 14.53 | J4: 14.61 | K4: 12.92
A5: 000004 國農科技 | B5: C 製造業 | C5: 27 醫藥製造業 | D5: 0 | E5: 0 | F5: 72.99 | G5: 62.62 | H5: 50.4 | I5: 50.14 | J5: 69.45 | K5: 0
A6: 000005 世紀星源 | B6: N 水利、環境和公共設施 | C6: 77 生態保護和環境治理 | D6: 68.29 | E6: 14.17 | F6: 75.92 | G6: 78.08 | H6: 58.04 | I6: 63.11 | J6: 59.5 | K6: 67.95
A7: 000006 深振業Ａ | B7: K 房地產業 | C7: 70 房地產業 | D7: 27.34 | E7: 25.55 | F7: 0 | G7: 0 | H7: 0 | I7: 0 | J7: 0 | K7: 0
A8: 000007 全新好 | B8: K 房地產業 | C8: 70 房地產業 | D8: 77.49 | E8: 70.44 | F8: 62.27 | G8: 59.14 | H8: 27.51 | I8: 66.07 | J8: 66.49 | K8: 73.65
A9: 000008 神州高鐵 | B9: C 製造業 | C9: 37 鐵路、船舶、航空航太 | D9: 91.06 | E9: 90.56 | F9: 80.13 | G9: 49.3 | H9: 47.53 | I9: 66.11 | J9: 15.39 | K9: 37.25
A10: 000009 中國寶安 | B10: S 綜合 | C10: 90 綜合 | D10: 47.95 | E10: 48.57 | F10: 54.87 | G10: 45.12 | H10: 44.02 | I10: 44.55 | J10: 44.65 | K10: 45.93
A11: 000010 美麗生態 | B11: E 建築業 | C11: 48 土木工程建築業 | D11: 30.62 | E11: 30.62 | F11: 53.35 | G11: 68.1 | H11: 57.8 | I11: 62.53 | J11: 63.17 | K11: 15.49
A12: 000011 深物業A | B12: K 房地產業 | C12: 70 房地產業 | D12: 0 | E12: 0 | F12: 0 | G12: 0 | H12: 0 | I12: 0 | J12: 0 | K12: 0
A13: 000012 南玻Ａ | B13: C 製造業 | C13: 30 非金屬礦物製品業 | D13: 0 | E13: 0 | F13: 0 | G13: 0 | H13: 0 | I13: 0 | J13: 8.93 | K13: 9.04 | M13: Field Name | N13: 2016-12-01
A14: 000014 沙河股份 | B14: K 房地產業 | C14: 70 房地產業 | D14: 2.57 | E14: 0 | F14: 0.06 | G14: 0 | H14: 23.29 | I14: 23.6 | J14: 21.8 | K14: 22.36 | M14: shareholder Pledge Ratio | N14: 0
A15: 000016 深康佳Ａ | B15: C 製造業 | C15: 39 電子設備製造業 | D15: 0 | E15: 0 | F15: 0 | G15: 0 | H15: 0 | I15: 0 | J15: 0 | K15: 0 | M15: Other Receivable % | N15: 12.69
A16: 000017 深中華A | B16: C 製造業 | C16: 37 鐵路、船舶、航空航太 | D16: 0 | E16: 0 | F16: 0 | G16: 0 | H16: 0 | I16: 0 | J16: 9.22 | K16: 8.92
A17: 000018 神州長城 | B17: E 建築業 | C17: 50 建築裝飾和其他建築業 | D17: 0 | E17: 0 | F17: 0 | G17: 0 | H17: 29.88 | I17: 39.08 | J17: 45.58 | K17: 47.74
A18: 000019 深深寶Ａ | B18: C 製造業 | C18: 15 酒飲料和精製茶製造業 | D18: 4.97 | E18: 11.32 | F18: 6.64 | G18: 0 | H18: 0 | I18: 0 | J18: 0 | K18: 0
A19: 000020 深華發A | B19: C 製造業 | C19: 39 電子設備製造業 | D19: 76.68 | E19: 76.75 | F19: 76.75 | G19: 75.26 | H19: 75.02 | I19: 73.82 | J19: 74.02 | K19: 72.76
A20: 000021 深科技 | B20: C 製造業 | C20: 39 電子設備製造業 | D20: 0 | E20: 0 | F20: 0 | G20: 0 | H20: 0 | I20: 0 | J20: 0 | K20: 0
A21: 000022 深赤灣Ａ | B21: G 交通運輸、倉儲&郵政 | C21: 55 水上運輸業 | D21: 0 | E21: 0 | F21: 0 | G21: 0 | H21: 0 | I21: 0 | J21: 0 | K21: 0
A22: 000023 深天地Ａ | B22: C 製造業 | C22: 30 非金屬礦物製品業 | D22: 57.59 | E22: 56.68 | F22: 54.74 | G22: 60.1 | H22: 31.33 | I22: 30.88 | J22: 27.26 | K22: 28.57
A23: 000025 特力Ａ | B23: F 批發和零售業 | C23: 51 批發業 | D23: 0 | E23: 0 | F23: 0 | G23: 0 | H23: 0 | I23: 0 | J23: 0 | K23: 0
A24: 000026 飛亞達Ａ | B24: F 批發和零售業 | C24: 52 零售業 | D24: 0 | E24: 0 | F24: 0 | G24: 0 | H24: 0 | I24: 0 | J24: 0 | K24: 0
A25: 000027 深圳能源 | B25: D 電力、熱力、燃氣及水 | C25: 44 電力熱力生產和供應 | D25: 0 | E25: 0 | F25: 0 | G25: 0 | H25: 0 | I25: 0 | J25: 0 | K25: 0
A26: 000028 國藥一致 | B26: F 批發和零售業 | C26: 51 批發業 | D26: 0 | E26: 0 | F26: 0 | G26: 0 | H26: 0 | I26: 0 | J26: 0 | K26: 0
A27: 000029 深深房Ａ | B27: K 房地產業 | C27: 70 房地產業 | D27: 0 | E27: 0 | F27: 0 | G27: 0 | H27: 0 | I27: 0.18 | J27: 0 | K27: 0
A28: 000030 富奧股份 | B28: C 製造業 | C28: 36 汽車製造業 | D28: 14.71 | E28: 22.45 | F28: 23.34 | G28: 24.28 | H28: 25.33 | I28: 17.09 | J28: 17.65 | K28: 10.83
A29: 000031 中糧地產 | B29: K 房地產業 | C29: 70 房地產業 | D29: 0 | E29: 0 | F29: 0 | G29: 0 | H29: 0 | I29: 0 | J29: 0 | K29: 0
A30: 000032 深桑達Ａ | B30: F 批發和零售業 | C30: 51 批發業 | D30: 0 | E30: 0 | F30: 0 | G30: 0 | H30: 0 | I30: 0 | J30: 0 | K30: 0
A31: 000034 神州數碼 | B31: F 批發和零售業 | C31: 51 批發業 | D31: 62 | E31: 59.12 | F31: 64.37 | G31: 63.8 | H31: 0 | I31: 68.05 | J31: 74.98 | K31: 75.62
A32: 000035 中國天楹 | B32: N 水利、環境和公共設施 | C32: 77 生態保護和環境治理 | D32: 0 | E32: 3.11 | F32: 23.11 | G32: 36.74 | H32: 47.22 | I32: 48.57 | J32: 59.51 | K32: 82.01
A33: 000036 華聯控股 | B33: K 房地產業 | C33: 70 房地產業 | D33: 0 | E33: 0 | F33: 0 | G33: 0 | H33: 0 | I33: 0 | J33: 0 | K33: 0
A34: 000037 深南電A | B34: D 電力、熱力、燃氣及水 | C34: 44 電力熱力生產和供應 | D34: 0 | E34: 0 | F34: 0 | G34: 0 | H34: 0 | I34: 0 | J34: 0 | K34: 0
A35: 000038 深大通 | B35: L 租賃和商務服務業 | C35: 72 商務服務業 | D35: 20.04 | E35: 73.3 | F35: 73.19 | G35: 69.53 | H35: 71.55 | I35: 31.77 | J35: 95.18 | K35: 93.28
A36: 000039 中集集團 | B36: C 製造業 | C36: 33 金屬製品業 | D36: 0 | E36: 0 | F36: 0 | G36: 0 | H36: 0 | I36: 0 | J36: 0 | K36: 0
A37: 000040 東旭藍天 | B37: E 建築業 | C37: 48 土木工程建築業 | D37: 59.99 | E37: 45.55 | F37: 77.44 | G37: 88.36 | H37: 11.08 | I37: 62.32 | J37: 41.1 | K37: 41.1
A38: 000042 中洲控股 | B38: K 房地產業 | C38: 70 房地產業 | D38: 70.41 | E38: 71.5 | F38: 76.5 | G38: 61.66 | H38: 42.07 | I38: 71.04 | J38: 64.4 | K38: 68.72
A39: 000043 中航地產 | B39: K 房地產業 | C39: 70 房地產業 | D39: 0 | E39: 0 | F39: 0 | G39: 0 | H39: 0 | I39: 0 | J39: 0 | K39: 0
A40: 000045 深紡織Ａ | B40: C 製造業 | C40: 39 電子設備製造業 | D40: 0 | E40: 0 | F40: 0 | G40: 0 | H40: 0 | I40: 0 | J40: 0 | K40: 0
A41: 000046 泛海控股 | B41: K 房地產業 | C41: 70 房地產業 | D41: 88.12 | E41: 88.34 | F41: 90.38 | G41: 89.81 | H41: 79.47 | I41: 72.28 | J41: 74.25 | K41: 76.08
A42: 000048 康達爾 | B42: C 製造業 | C42: 13 農副食品加工業 | D42: 28.06 | E42: 26.89 | F42: 7.09 | G42: 4.24 | H42: 3.52 | I42: 43.29 | J42: 41.42 | K42: 31.14
A43: 000049 德賽電池 | B43: C 製造業 | C43: 38 電氣機械及器材製造業 | D43: 0 | E43: 0 | F43: 0 | G43: 16.56 | H43: 15.53 | I43: 16.87 | J43: 0 | K43: 0
A44: 000050 深天馬Ａ | B44: C 製造業 | C44: 39 電子設備製造業 | D44: 0 | E44: 0 | F44: 0 | G44: 0 | H44: 0 | I44: 8.88 | J44: 3.26 | K44: 3.74
A45: 000055 方大集團 | B45: C 製造業 | C45: 33 金屬製品業 | D45: 15.34 | E45: 13.98 | F45: 6.45 | G45: 21.97 | H45: 0 | I45: 9.6 | J45: 9.51 | K45: 6.44
A46: 000056 皇庭國際 | B46: K 房地產業 | C46: 70 房地產業 | D46: 14.06 | E46: 58.61 | F46: 65.13 | G46: 21.28 | H46: 33.18 | I46: 63.7 | J46: 77.07 | K46: 72.56
A47: 000058 深賽格 | B47: L 租賃和商務服務業 | C47: 72 商務服務業 | D47: 30.11 | E47: 31.68
A48: 000059 華錦股份 | B48: C 製造業 | C48: 25 石油加工煉焦及核燃料 | D48: 0 | E48: 0 | F48: 0 | G48: 0 | H48: 0 | I48: 0 | J48: 0 | K48: 0.63
A49: 000060 中金嶺南 | B49: C 製造業 | C49: 32 有色金屬冶煉和壓延 | D49: 13.12 | E49: 12.97 | F49: 16.58 | G49: 6.83 | H49: 6.22 | I49: 9.37 | J49: 9.46 | K49: 9.63
A50: 000061 農產品 | B50: L 租賃和商務服務業 | C50: 72 商務服務業 | D50: 0 | E50: 4.82 | F50: 4.82 | G50: 0 | H50: 0 | I50: 0 | J50: 0 | K50: 0
A51: 000062 深圳華強 | B51: F 批發和零售業 | C51: 51 批發業 | D51: 0 | E51: 0 | F51: 0 | G51: 0 | H51: 0 | I51: 0 | J51: 0 | K51: 0
A52: 000063 中興通訊 | B52: C 製造業 | C52: 39 電子設備製造業 | D52: 0 | E52: 0 | F52: 0 | G52: 0 | H52: 0 | I52: 0 | J52: 0 | K52: 0
A53: 000065 北方國際 | B53: E 建築業 | C53: 48 土木工程建築業 | D53: 0 | E53: 0 | F53: 0 | G53: 0 | H53: 0 | I53: 0 | J53: 0 | K53: 0
A54: 000066 中國長城 | B54: C 製造業 | C54: 39 電子設備製造業 | D54: 0 | E54: 0 | F54: 0 | G54: 0 | H54: 0 | I54: 0 | J54: 0 | K54: 0
A55: 000068 華控賽格 | B55: C 製造業 | C55: 39 電子設備製造業 | D55: 30.67 | E55: 33.28 | F55: 35.14 | G55: 48.02 | H55: 47.02 | I55: 47.21 | J55: 50.15 | K55: 50.22
A56: 000069 華僑城Ａ | B56: N 水利、環境和公共設施 | C56: 78 公共設施管理業 | D56: 0 | E56: 0 | F56: 0 | G56: 0 | H56: 0 | I56: 0 | J56: 0 | K56: 1.99
A57: 000070 特發信息 | B57: C 製造業 | C57: 38 電氣機械及器材製造業 | D57: 1.88 | E57: 0.97 | F57: 0 | G57: 0 | H57: 0 | I57: 0 | J57: 3.28 | K57: 3.29
A58: 000078 海王生物 | B58: F 批發和零售業 | C58: 52 零售業 | D58: 72.07 | E58: 73.63 | F58: 89.57 | G58: 72.31 | H58: 75.06 | I58: 47.22 | J58: 87.72 | K58: 90.32
A59: 000088 鹽田港 | B59: G 交通運輸、倉儲&郵政 | C59: 54 道路運輸業 | D59: 0 | E59: 0 | F59: 0 | G59: 0 | H59: 0 | I59: 0 | J59: 0 | K59: 0
A60: 000089 深圳機場 | B60: G 交通運輸、倉儲&郵政 | C60: 56 航空運輸業 | D60: 0 | E60: 0 | F60: 0 | G60: 0 | H60: 0 | I60: 0 | J60: 0 | K60: 0
A61: 000090 天健集團 | B61: E 建築業 | C61: 48 土木工程建築業 | D61: 0 | E61: 0 | F61: 0 | G61: 0 | H61: 0 | I61: 0 | J61: 5.54 | K61: 5.54
A62: 000096 廣聚能源 | B62: F 批發和零售業 | C62: 51 批發業 | D62: 0 | E62: 0 | F62: 0 | G62: 0 | H62: 0 | I62: 0 | J62: 0 | K62: 0
A63: 000099 中信海直 | B63: G 交通運輸、倉儲&郵政 | C63: 56 航空運輸業 | D63: 1.93 | E63: 2.63 | F63: 2.27 | G63: 0.56 | H63: 0.61 | I63: 0 | J63: 0 | K63: 0
A64: 000100 TCL集團 | B64: C 製造業 | C64: 39 電子設備製造業 | D64: 19.54 | E64: 40.69 | F64: 42.86 | G64: 43.2 | H64: 30.4 | I64: 32.67 | J64: 29.47 | K64: 35.45
A65: 000150 宜華健康 | B65: Q 衛生和社會工作 | C65: 83 衛生 | D65: 90.45 | E65: 81.64 | F65: 74.49 | G65: 67.23 | H65: 69.2 | I65: 71.46 | J65: 47.9 | K65: 58.44
A66: 000151 中成股份 | B66: F 批發和零售業 | C66: 51 批發業 | D66: 0 | E66: 0 | F66: 0 | G66: 0 | H66: 0 | I66: 0 | J66: 0 | K66: 0
A67: 000153 豐原藥業 | B67: C 製造業 | C67: 27 醫藥製造業 | D67: 28.36 | E67: 14.45 | F67: 20.95 | G67: 7.66 | H67: 8.15 | I67: 7.96 | J67: 7.62 | K67: 0.76
A68: 000155 *ST川化 | B68: C 製造業 | C68: 26 化學原料及化學製品 | D68: 0 | E68: 45.72 | F68: 10.44 | G68: 1.37 | H68: 1.34 | I68: 67.48 | J68: 7.43 | K68: 7.43
A69: 000156 華數傳媒 | B69: R 文化、體育和娛樂業 | C69: 86 廣播電視電影影視 | D69: 13.67 | E69: 13.53 | F69: 13.46 | G69: 32.77 | H69: 23.47 | I69: 32.86 | J69: 32.86 | K69: 33.28
A70: 000157 中聯重科 | B70: C 製造業 | C70: 35 專用設備製造業 | D70: 0 | E70: 0 | F70: 0 | G70: 0 | H70: 0 | I70: 8.53 | J70: 8.85 | K70: 8.9
A71: 000158 常山北明 | B71: C 製造業 | C71: 17 紡織業 | D71: 0 | E71: 0 | F71: 0 | G71: 17.37 | H71: 25.39 | I71: 27.7 | J71: 31.24 | K71: 24.48
A72: 000159 國際實業 | B72: F 批發和零售業 | C72: 51 批發業 | D72: 3.49 | E72: 25.79 | F72: 25.58 | G72: 15.32 | H72: 17.81 | I72: 30.08 | J72: 60.27 | K72: 46
A73: 000166 申萬宏源 | B73: J 金融業 | C73: 67 資本市場服務
A74: 000301 東方市場 | B74: D 電力、熱力、燃氣及水 | C74: 44 電力熱力生產和供應 | D74: 0 | E74: 0 | F74: 0 | G74: 0 | H74: 0 | I74: 0 | J74: 0 | K74: 0
A75: 000333 美的集團 | B75: C 製造業 | C75: 38 電氣機械及器材製造業 | D75: 0 | E75: 0 | F75: 11.15 | G75: 10.13 | H75: 12.75 | I75: 25.57 | J75: 27.45 | K75: 25.74
A76: 000338 濰柴動力 | B76: C 製造業 | C76: 36 汽車製造業 | D76: 0 | E76: 0 | F76: 0 | G76: 0 | H76: 0 | I76: 0 | J76: 0 | K76: 0
A77: 000400 許繼電氣 | B77: C 製造業 | C77: 38 電氣機械及器材製造業 | D77: 0 | E77: 0 | F77: 0 | G77: 0 | H77: 0 | I77: 0 | J77: 0 | K77: 0
A78: 000401 冀東水泥 | B78: C 製造業 | C78: 30 非金屬礦物製品業 | D78: 25.73 | E78: 15.96 | F78: 15.96 | G78: 2.04 | H78: 17.69 | I78: 19.98 | J78: 22.92 | K78: 27.23
A79: 000402 金融街 | B79: K 房地產業 | C79: 70 房地產業 | D79: 0 | E79: 0 | F79: 0 | G79: 0 | H79: 0 | I79: 0 | J79: 0 | K79: 0
A80: 000403 ST生化 | B80: C 製造業 | C80: 27 醫藥製造業 | D80: 56.48 | E80: 58.02 | F80: 55.5 | G80: 60.59 | H80: 71.27 | I80: 57.37 | J80: 57.78 | K80: 59.09
A81: 000404 華意壓縮 | B81: C 製造業 | C81: 34 通用設備製造業 | D81: 15.51 | E81: 10.95 | F81: 0 | G81: 0 | H81: 0 | I81: 0.6 | J81: 0.59 | K81: 0
A82: 000407 勝利股份 | B82: D 電力、熱力、燃氣及水 | C82: 45 燃氣生產和供應業 | D82: 62.46 | E82: 65.99 | F82: 74.48 | G82: 83.41 | H82: 72.15 | I82: 53.72 | J82: 44.02 | K82: 32.52
A83: 000408 藏格控股 | B83: C 製造業 | C83: 26 化學原料及化學製品 | D83: 75.03 | E83: 75.67 | F83: 77.33 | G83: 48.57 | H83: 54.38 | J83: 94.35 | K83: 93.83
A84: 000409 山東地礦 | B84: S 綜合 | C84: 90 綜合 | D84: 16.94 | E84: 41.84 | F84: 29.06 | G84: 7.6 | H84: 8.92 | I84: 8.67 | J84: 4.73 | K84: 7.36
A85: 000410 *ST 瀋機 | B85: C 製造業 | C85: 34 通用設備製造業 | D85: 29.43 | E85: 30.77 | F85: 45.26 | G85: 45.25 | H85: 45.74 | I85: 46.23 | J85: 31.14 | K85: 31.6
A86: 000411 英特集團 | B86: F 批發和零售業 | C86: 51 批發業 | D86: 0 | E86: 0 | F86: 0 | G86: 0 | H86: 0 | I86: 0 | J86: 0 | K86: 0
A87: 000413 東旭光電 | B87: C 製造業 | C87: 39 電子設備製造業 | D87: 17.67 | E87: 26.67 | F87: 58.58 | G87: 85.89 | H87: 33.18 | I87: 56.55 | J87: 42.56 | K87: 46.3
A88: 000415 渤海金控 | B88: L 租賃和商務服務業 | C88: 71 租賃業 | D88: 61.41 | E88: 59.71 | F88: 55.07 | G88: 61.81 | H88: 0 | I88: 58.91 | J88: 72.93 | K88: 72.79
A89: 000416 民生控股 | B89: J 金融業 | C89: 69 其他金融業 | D89: 84.76 | E89: 70.62 | F89: 77.84 | G89: 85.14 | H89: 84.78 | I89: 78.13 | J89: 69.24 | K89: 69.41
A90: 000417 合肥百貨 | B90: F 批發和零售業 | C90: 52 零售業 | D90: 0 | E90: 0 | F90: 0 | G90: 0 | H90: 0 | I90: 0 | J90: 0 | K90: 0
A91: 000418 小天鵝Ａ | B91: C 製造業 | C91: 38 電氣機械及器材製造業 | D91: 0 | E91: 0 | F91: 0 | G91: 0 | H91: 0 | I91: 0 | J91: 0 | K91: 0
A92: 000419 通程控股 | B92: F 批發和零售業 | C92: 52 零售業 | D92: 54.06 | E92: 60.35 | F92: 60.72 | G92: 27.05 | H92: 27.15 | I92: 27.06 | J92: 26.61 | K92: 26.38
A93: 000420 吉林化纖 | B93: C 製造業 | C93: 28 化學纖維製造業 | D93: 39.15 | E93: 41.33 | F93: 9.6 | G93: 9.6 | H93: 9.6 | I93: 0 | J93: 39.8 | K93: 13.65
A94: 000421 南京公用 | B94: D 電力、熱力、燃氣及水 | C94: 45 燃氣生產和供應業 | D94: 0 | E94: 0 | F94: 0 | G94: 0 | H94: 0 | I94: 0 | J94: 0 | K94: 0
A95: 000422 湖北宜化 | B95: C 製造業 | C95: 26 化學原料及化學製品 | D95: 25.36 | E95: 35.38 | F95: 24.34 | G95: 34.06 | H95: 20.51 | I95: 20.51 | J95: 18.3 | K95: 26.92
A96: 000423 東阿阿膠 | B96: C 製造業 | C96: 27 醫藥製造業 | D96: 0 | E96: 0 | F96: 0 | G96: 0 | H96: 0 | I96: 0 | J96: 0 | K96: 0
A97: 000425 徐工機械 | B97: C 製造業 | C97: 35 專用設備製造業 | D97: 0 | E97: 0 | F97: 0 | G97: 0 | H97: 0 | I97: 1.31 | J97: 0 | K97: 0
A98: 000426 興業礦業 | B98: B 採礦業 | C98: 09 有色金屬礦採選業 | D98: 52.15 | E98: 53.12 | F98: 52.96 | G98: 76.64 | H98: 72.56 | I98: 84.31 | J98: 50.59 | K98: 50.83
A99: 000428 華天酒店 | B99: H 住宿和餐飲業 | C99: 61 住宿業 | D99: 43.46 | E99: 44.52 | F99: 43.17 | G99: 50.13 | H99: 0 | I99: 26.67 | J99: 49.19 | K99: 55.98
A100: 000429 粵高速Ａ | B100: G 交通運輸、倉儲&郵政 | C100: 54 道路運輸業 | D100: 17.09 | E100: 17.21 | F100: 16.95 | G100: 17.14 | H100: 0 | I100: 0 | J100: 14.14 | K100: 14.14
A101: 000430 張家界 | B101: N 水利、環境和公共設施 | C101: 78 公共設施管理業 | D101: 55.92 | E101: 73.59 | F101: 69.72 | G101: 71.15 | H101: 71.87 | I101: 7.23 | J101: 65.82 | K101: 53
A102: 000488 晨鳴紙業 | B102: C 製造業 | C102: 22 造紙及紙製品業 | D102: 0 | E102: 0 | F102: 19.9 | G102: 19.14 | H102: 5.86 | I102: 18.66 | J102: 24.3 | K102: 23.75
A103: 000498 山東路橋 | B103: E 建築業 | C103: 48 土木工程建築業 | D103: 0 | E103: 10.34 | F103: 10.43 | G103: 0 | H103: 0 | I103: 11.02 | J103: 10.66 | K103: 10.72
A104: 000501 鄂武商Ａ | B104: F 批發和零售業 | C104: 52 零售業 | D104: 1.87 | E104: 1.9 | F104: 1.9 | G104: 0 | H104: 0 | I104: 0.64 | J104: 2.41 | K104: 0
A105: 000502 綠景控股 | B105: K 房地產業 | C105: 70 房地產業 | D105: 0 | E105: 73.24 | F105: 55.68 | G105: 67.29 | H105: 62.87 | I105: 56.62 | J105: 0 | K105: 67.23
A106: 000503 海虹控股 | B106: I 信息傳輸&軟體 | C106: 64 互聯網和相關服務 | D106: 58.35 | E106: 44.25 | F106: 54.89 | G106: 43.34 | H106: 0 | I106: 65.52 | J106: 55.25 | K106: 62.02
A107: 000504 南華生物 | B107: R 文化、體育和娛樂業 | C107: 85 新聞和出版業 | D107: 0 | E107: 0 | F107: 0 | G107: 28.99 | H107: 26.58 | I107: 27.83 | J107: 26.35 | K107: 22.47
A108: 000505 珠江控股 | B108: K 房地產業 | C108: 70 房地產業 | D108: 15.72 | E108: 0 | F108: 0 | G108: 0 | H108: 0 | I108: 0 | J108: 0 | K108: 0
A109: 000506 中潤資源 | B109: B 採礦業 | C109: 09 有色金屬礦採選業 | D109: 56.58 | E109: 83.69 | F109: 92.67 | G109: 79.83 | H109: 48.43 | I109: 89.47 | J109: 83.23 | K109: 47.95
A110: 000507 珠海港 | B110: G 交通運輸、倉儲&郵政 | C110: 55 水上運輸業 | D110: 0 | E110: 1.31 | F110: 0 | G110: 0 | H110: 0 | I110: 0 | J110: 0 | K110: 0
A111: 000509 華塑控股 | B111: C 製造業 | C111: 29 橡膠和塑膠製品業 | D111: 0.99 | E111: 51.44 | F111: 70.56 | G111: 53.93 | H111: 60.02 | I111: 62 | J111: 67.33 | K111: 64.03
A112: 000510 金路集團 | B112: C 製造業 | C112: 26 化學原料及化學製品 | D112: 12.42 | E112: 14.92 | F112: 15.3 | G112: 23.23 | H112: 16.95 | I112: 8.19 | J112: 43.42 | K112: 39.91
A113: 000511 *ST 烯碳 | B113: C 製造業 | C113: 30 非金屬礦物製品業 | D113: 56.78 | E113: 70.53 | F113: 75.67 | G113: 62.14 | H113: 54.61 | I113: 2.8 | J113: 0 | K113: 58.38
A114: 000513 麗珠集團 | B114: C 製造業 | C114: 27 醫藥製造業 | D114: 3.28 | E114: 9.7 | F114: 9.73 | G114: 0 | H114: 10.05 | I114: 9.9 | J114: 7.96 | K114: 8.14
A115: 000514 渝開發 | B115: K 房地產業 | C115: 70 房地產業 | D115: 0 | E115: 0 | F115: 0 | G115: 0 | H115: 46.95 | I115: 48.17 | J115: 46.5 | K115: 48.61
A116: 000516 國際醫學 | B116: F 批發和零售業 | C116: 52 零售業 | D116: 61.7 | E116: 54.57 | F116: 71.77 | G116: 73.62 | H116: 66.12 | I116: 66.66 | J116: 69.8 | K116: 76.34
A117: 000517 榮安地產 | B117: K 房地產業 | C117: 70 房地產業 | D117: 79.74 | E117: 79.31 | F117: 75.34 | G117: 58.47 | H117: 41.86 | I117: 39.1 | J117: 34.24 | K117: 32.04
A118: 000518 四環生物 | B118: C 製造業 | C118: 27 醫藥製造業 | D118: 27.61 | E118: 18.06 | F118: 20.22 | G118: 20.96 | H118: 0 | I118: 39.58 | J118: 33.36 | K118: 43.42
A119: 000519 中兵紅箭 | B119: C 製造業 | C119: 35 專用設備製造業 | D119: 0 | E119: 2.87 | F119: 0 | G119: 0 | H119: 0 | I119: 1.66 | J119: 6.15 | K119: 0
A120: 000520 長航鳳凰 | B120: G 交通運輸、倉儲&郵政 | C120: 55 水上運輸業 | D120: 0 | E120: 77.64 | F120: 41.29 | G120: 43.02 | H120: 38 | I120: 58.17 | J120: 64.25 | K120: 60.15
A121: 000521 美菱電器 | B121: C 製造業 | C121: 38 電氣機械及器材製造業 | D121: 0 | E121: 0 | F121: 0 | G121: 0 | H121: 0 | I121: 0 | J121: 0 | K121: 0
A122: 000523 廣州浪奇 | B122: C 製造業 | C122: 26 化學原料及化學製品 | D122: 0 | E122: 0 | F122: 1.83 | G122: 0 | H122: 0 | I122: 0 | J122: 0 | K122: 0
A123: 000524 嶺南控股 | B123: H 住宿和餐飲業 | C123: 61 住宿業 | D123: 0 | E123: 0 | F123: 0 | G123: 0 | H123: 0 | I123: 0 | J123: 0 | K123: 0
A124: 000525 紅太陽 | B124: C 製造業 | C124: 26 化學原料及化學製品 | D124: 0 | E124: 27.77 | F124: 27.06 | G124: 22.02 | H124: 48.05 | I124: 57.93 | J124: 63.66 | K124: 65.15
A125: 000526 *ST 紫學 | B125: P 教育 | C125: 82 教育 | D125: 12.47 | E125: 12.79 | F125: 12.97 | G125: 46.94 | H125: 12.58 | I125: 17.96 | J125: 12.49 | K125: 12.58
A126: 000528 柳工 | B126: C 製造業 | C126: 35 專用設備製造業 | D126: 3.71 | E126: 3.8 | F126: 0 | G126: 0 | H126: 0 | I126: 0 | J126: 0 | K126: 0
A127: 000529 廣弘控股 | B127: C 製造業 | C127: 13 農副食品加工業 | D127: 0.67 | E127: 0 | F127: 0 | G127: 0 | H127: 0 | I127: 0 | J127: 0 | K127: 0
A128: 000530 大冷股份 | B128: C 製造業 | C128: 34 通用設備製造業 | D128: 0 | E128: 0 | F128: 0 | G128: 0 | H128: 0 | I128: 0 | J128: 0 | K128: 0
A129: 000531 穗恒運Ａ | B129: D 電力、熱力、燃氣及水 | C129: 44 電力熱力生產和供應 | D129: 0 | E129: 0 | F129: 0 | G129: 0 | H129: 9 | I129: 8.43 | J129: 8.51 | K129: 8.72
A130: 000532 華金資本 | B130: S 綜合 | C130: 90 綜合 | D130: 7.03 | E130: 7.07 | F130: 30.55 | G130: 30.6 | H130: 19.49 | I130: 10.98 | J130: 11.11 | K130: 11.18
A131: 000533 萬家樂 | B131: C 製造業 | C131: 38 電氣機械及器材製造業 | D131: 78.1 | E131: 77.9 | F131: 79.02 | G131: 73.6 | H131: 65.96 | I131: 16.94 | J131: 20.39 | K131: 17.08
A132: 000534 萬澤股份 | B132: K 房地產業 | C132: 70 房地產業 | D132: 92.47 | E132: 90.22 | F132: 90.01 | G132: 82.65 | H132: 0 | I132: 78.18 | J132: 82.24 | K132: 66.89
A133: 000536 華映科技 | B133: C 製造業 | C133: 39 電子設備製造業 | D133: 1.34 | E133: 32.99 | F133: 67.16 | G133: 88.73 | H133: 1.77 | I133: 88.97 | J133: 52.73 | K133: 58.29
A134: 000537 廣宇發展 | B134: K 房地產業 | C134: 70 房地產業 | D134: 0 | E134: 0 | F134: 0 | G134: 0 | H134: 0 | I134: 0 | J134: 0 | K134: 0
A135: 000538 雲南白藥 | B135: C 製造業 | C135: 27 醫藥製造業 | D135: 0 | E135: 0 | F135: 0 | G135: 0 | H135: 0 | I135: 0 | J135: 0 | K135: 0
A136: 000539 粵電力Ａ | B136: D 電力、熱力、燃氣及水 | C136: 44 電力熱力生產和供應 | D136: 0 | E136: 0 | F136: 0 | G136: 0 | H136: 0 | I136: 0 | J136: 0 | K136: 0
A137: 000540 中天金融 | B137: K 房地產業 | C137: 70 房地產業 | D137: 76.54 | E137: 81.06 | F137: 65.19 | G137: 59.24 | H137: 71.6 | I137: 72.46 | J137: 72.38 | K137: 72.69
A138: 000541 佛山照明 | B138: C 製造業 | C138: 38 電氣機械及器材製造業 | D138: 0 | E138: 0 | F138: 0 | G138: 0 | H138: 0 | I138: 0 | J138: 20.39 | K138: 20.5
A139: 000543 皖能電力 | B139: D 電力、熱力、燃氣及水 | C139: 44 電力熱力生產和供應 | D139: 1.88 | E139: 0 | F139: 8.69 | G139: 0 | H139: 0 | I139: 0 | J139: 0 | K139: 0
A140: 000544 中原環保 | B140: D 電力、熱力、燃氣及水 | C140: 46 水的生產和供應業 | D140: 20.99 | E140: 21.11 | F140: 20.76 | G140: 19.28 | H140: 0 | I140: 0 | J140: 0 | K140: 0
A141: 000545 金浦鈦業 | B141: C 製造業 | C141: 26 化學原料及化學製品 | D141: 4.37 | E141: 22.84 | F141: 33.47 | G141: 63.7 | H141: 2.53 | I141: 85.09 | J141: 84.95 | K141: 82.08
A142: 000546 金圓股份 | B142: C 製造業 | C142: 30 非金屬礦物製品業 | D142: 40.01 | E142: 29.71 | F142: 3.75 | G142: 5.07 | H142: 38.87 | I142: 39.59 | J142: 22.96 | K142: 40.39
A143: 000547 航天發展 | B143: C 製造業 | C143: 39 電子設備製造業 | D143: 65.47 | E143: 43.13 | F143: 34.19 | G143: 14.64 | H143: 13.83 | I143: 14.12 | J143: 18.01 | K143: 17.42
A144: 000548 湖南投資 | B144: G 交通運輸、倉儲&郵政 | C144: 54 道路運輸業 | D144: 84.94 | E144: 91.51 | F144: 83.28 | G144: 83.97 | H144: 83.96 | I144: 31.57 | J144: 30.38 | K144: 32.25
A145: 000550 江鈴汽車 | B145: C 製造業 | C145: 36 汽車製造業 | D145: 0 | E145: 0 | F145: 0 | G145: 0 | H145: 0 | I145: 0 | J145: 0 | K145: 0
A146: 000551 創元科技 | B146: S 綜合 | C146: 90 綜合 | D146: 0 | E146: 0 | F146: 0 | G146: 0 | H146: 0 | I146: 0 | J146: 27.08 | K146: 0
A147: 000552 靖遠煤電 | B147: B 採礦業 | C147: 06 煤炭開採和洗選業 | D147: 0 | E147: 0 | F147: 0 | G147: 0 | H147: 0 | I147: 0 | J147: 0 | K147: 0
A148: 000553 沙隆達Ａ | B148: C 製造業 | C148: 26 化學原料及化學製品 | D148: 0 | E148: 0 | F148: 0 | G148: 0 | H148: 0 | I148: 0 | J148: 0 | K148: 0
A149: 000554 泰山石油 | B149: F 批發和零售業 | C149: 51 批發業 | D149: 0 | E149: 0 | F149: 0 | G149: 0 | H149: 0 | I149: 0 | J149: 0 | K149: 0
A150: 000555 神州信息 | B150: I 信息傳輸&軟體 | C150: 65 軟體和資訊技術服務業 | D150: 0 | E150: 0 | F150: 0 | G150: 16.24 | H150: 8.54 | I150: 42.52 | J150: 39.74 | K150: 46.21
A151: 000557 西部創業 | B151: G 交通運輸、倉儲&郵政 | C151: 53 鐵路運輸業 | D151: 0 | E151: 0 | F151: 0 | G151: 0 | H151: 0 | I151: 0 | J151: 0 | K151: 0
A152: 000558 萊茵體育 | B152: K 房地產業 | C152: 70 房地產業 | D152: 94 | E152: 89.11 | F152: 79.75 | G152: 79.98 | H152: 85.89 | I152: 63.73 | J152: 58.15 | K152: 73.35
A153: 000559 萬向錢潮 | B153: C 製造業 | C153: 36 汽車製造業 | D153: 0 | E153: 0 | F153: 0.34 | G153: 0 | H153: 0 | I153: 0 | J153: 0.32 | K153: 0.31
A154: 000560 昆百大Ａ | B154: F 批發和零售業 | C154: 52 零售業 | D154: 34.81 | E154: 35.48 | F154: 33.69 | G154: 82.84 | H154: 83.3 | I154: 80.2 | J154: 80.61 | K154: 91.49
A155: 000561 烽火電子 | B155: C 製造業 | C155: 39 電子設備製造業 | D155: 0 | E155: 0 | F155: 0 | G155: 0 | H155: 0 | I155: 0 | J155: 0.54 | K155: 0
A156: 000563 陝國投Ａ | B156: J 金融業 | C156: 69 其他金融業
A157: 000564 供銷大集 | B157: F 批發和零售業 | C157: 52 零售業 | D157: 61.85 | E157: 62.18 | F157: 71.91 | G157: 91.02 | H157: 54.08 | I157: 79 | J157: 52.71 | K157: 71.33
A158: 000565 渝三峽Ａ | B158: C 製造業 | C158: 26 化學原料及化學製品 | D158: 0 | E158: 0 | F158: 0 | G158: 0 | H158: 0 | I158: 0 | J158: 0 | K158: 0
A159: 000566 海南海藥 | B159: C 製造業 | C159: 27 醫藥製造業 | D159: 51.42 | E159: 52.49 | F159: 49.84 | G159: 61.67 | H159: 68.64 | I159: 73.05 | J159: 71.39 | K159: 62.88
A160: 000567 海德股份 | B160: K 房地產業 | C160: 70 房地產業 | D160: 0 | E160: 0 | F160: 71.09 | G160: 68.45 | H160: 64.67 | I160: 61.23 | J160: 62.54 | K160: 67.05
A161: 000568 瀘州老窖 | B161: C 製造業 | C161: 15 酒飲料和精製茶製造業 | D161: 14.6 | E161: 22.38 | F161: 22.31 | G161: 22.47 | H161: 20.87 | I161: 18.74 | J161: 18.57 | K161: 19.45
A162: 000570 蘇常柴Ａ | B162: C 製造業 | C162: 34 通用設備製造業 | D162: 0 | E162: 0 | F162: 0 | G162: 0 | H162: 0 | I162: 0 | J162: 0 | K162: 0
A163: 000571 新大洲Ａ | B163: B 採礦業 | C163: 06 煤炭開採和洗選業 | D163: 0 | E163: 0 | F163: 0 | G163: 1.99 | H163: 2.17 | I163: 39.68 | J163: 38.17 | K163: 52.02
A164: 000572 海馬汽車 | B164: C 製造業 | C164: 36 汽車製造業 | D164: 0 | E164: 0 | F164: 14.01 | G164: 14.28 | H164: 13.83 | I164: 0 | J164: 0 | K164: 59.81
A165: 000573 粵宏遠Ａ | B165: K 房地產業 | C165: 70 房地產業 | D165: 62.71 | E165: 71.97 | F165: 70.04 | G165: 72.01 | H165: 75.27 | I165: 44.57 | J165: 66.75 | K165: 65.79
A166: 000576 廣東甘化 | B166: C 製造業 | C166: 22 造紙及紙製品業 | D166: 41.34 | E166: 39.34 | F166: 36.35 | G166: 17.29 | H166: 42.5 | I166: 39.83 | J166: 42.5 | K166: 61.32
A167: 000581 威孚高科 | B167: C 製造業 | C167: 36 汽車製造業 | D167: 0 | E167: 0 | F167: 0 | G167: 0 | H167: 0 | I167: 0 | J167: 0 | K167: 0
A168: 000582 北部灣港 | B168: G 交通運輸、倉儲&郵政 | C168: 55 水上運輸業 | D168: 0 | E168: 0 | F168: 0 | G168: 0 | H168: 0 | I168: 0 | J168: 0 | K168: 0
A169: 000584 哈工智能 | B169: C 製造業 | C169: 28 化學纖維製造業 | D169: 0 | E169: 0 | F169: 0 | G169: 0 | H169: 0 | I169: 0 | J169: 4.74 | K169: 53.93
A170: 000585 東北電氣 | B170: C 製造業 | C170: 38 電氣機械及器材製造業 | D170: 35.09 | E170: 34.96 | F170: 39.28 | G170: 14.07 | H170: 0 | I170: 0 | J170: 0 | K170: 0
A171: 000586 匯源通信 | B171: C 製造業 | C171: 39 電子設備製造業 | D171: 58.59 | E171: 62.4 | F171: 66.35 | G171: 50.73 | H171: 0 | I171: 0 | J171: 0 | K171: 6.47
A172: 000587 金洲慈航 | B172: C 製造業 | C172: 41 其他製造業 | D172: 91.86 | E172: 22.98 | F172: 88.57 | G172: 60.65 | H172: 54.64 | I172: 54.05 | J172: 62.72 | K172: 75.34
A173: 000589 黔輪胎Ａ | B173: C 製造業 | C173: 29 橡膠和塑膠製品業 | D173: 0 | E173: 24.16 | F173: 23.97 | G173: 28.31 | H173: 35.9 | I173: 35.59 | J173: 44 | K173: 8.05
A174: 000590 啟迪古漢 | B174: C 製造業 | C174: 27 醫藥製造業 | D174: 35.53 | E174: 7.51 | F174: 16.33 | G174: 17.31 | H174: 16.03 | I174: 16.56 | J174: 7.23 | K174: 14.33
A175: 000591 太陽能 | B175: D 電力、熱力、燃氣及水 | C175: 44 電力熱力生產和供應 | D175: 35.92 | E175: 56.13 | F175: 53.63 | G175: 52.96 | H175: 8.89 | I175: 2.41 | J175: 4.07 | K175: 0.87
A176: 000592 平潭發展 | B176: A 農、林、牧、漁業 | C176: 02 林業 | D176: 58.94 | E176: 62.98 | F176: 53.8 | G176: 45.69 | H176: 39.33 | I176: 30.76 | J176: 44.44 | K176: 54.13
A177: 000593 大通燃氣 | B177: D 電力、熱力、燃氣及水 | C177: 45 燃氣生產和供應業 | D177: 84.76 | E177: 76.21 | F177: 80.56 | G177: 79.33 | H177: 72.52 | I177: 82.45 | J177: 83.73 | K177: 84.07
A178: 000595 *ST 寶實 | B178: C 製造業 | C178: 34 通用設備製造業 | D178: 67.77 | E178: 74.3 | F178: 86.31 | G178: 94.6 | H178: 93.36 | I178: 94.1 | J178: 93.92 | K178: 92.57
